Workbook

Sheet List of tables
B4: Supplementary Data
D6: Refer to
B7: Data 1 | C7: List of samples diagnosed with ESCC from TCGA ESCA project | D7: Refer to Fig. 1a
B8: Data 2 | C8: Variant allele frequency of TP53 mutants in normal human esophageal epithelium | D8: Refer to Fig. 1d
B9: Data 3 | C9: Distribution of basal cell size of YFP and p53*/wt clones | D9: Supplementary Fig. 1b
B10: Data 4 | C10: Proportion of labelled projected area in induced YFP mice | D10: Supplementary Fig. 1c
B11: Data 5 | C11: Proportion of labelled projected area in induced p53*/wt mice | D11: Fig. 2c
B12: Data 6 | C12: Density of p53*/wt clones over the time | D12: Fig. 2d
B13: Data 7 | C13: Quantification of EdU-labelled basal cells in p53*/wt clones and non-labelled (p53wt/wt) areas | D13: Fig. 2e
B14: Data 8 | C14: in vitro cell competition assay | D14: Fig. 3c and Supplementary Fig. 4d
B15: Data 9 | C15: RNAseq Transcripts Per Milion | D15: Fig. 3d and Supplementary Fig. 4b
B16: Data 10 | C16: Differentially expressed genes identified from RNAseq | D16: Fig. 3d and Supplementary Fig. 4b
B17: Data 11 | C17: RNAseq: Gene Ontology analysis | D17: Fig. 3d
B18: Data 12 | C18: Proportion of labelled projected area in induced p53*/- mice | D18: Supplementary Fig. 4f
B19: Data 13 | C19: Number of cells with ≥ double sized nucleus in p53 mutant EE | D19: Fig. 4e
B20: Data 14 | C20: Targeted sequencing data from control and DEN-treated samples | D20: Fig. 4h,5h-k and Supplementary Fig. 5
B21: Data 15 | C21: dN/dS results from DEN-treated and control mouse EE | D21: Fig. 4h,5h-k and Supplementary Fig. 5
B22: Data 16 | C22: Labelled p53*/wt clone area in control and DEN-treated EE | D22: Fig. 5c
B23: Data 17 | C23: Size distribution of GFP ± EE lesions in DEN-treated mice | D23: Supplementary Fig. 6b
B24: Data 18 | C24: Number of EE lesions found in control and DEN-treated mice | D24: Supplementary Fig. 6c
B25: Data 19 | C25: Size distribution of EE lesions in DEN-treated p53wt/wt and p53*/wt mice | D25: Supplementary Fig. 6d
B26: Data 20 | C26: Quantification of centrosomes | D26: Supplementary Fig. 6j
B27: Data 21 | C27: Pathology result of macroscopic tumors | D27: Supplementary Fig. 6 and 7
B28: Data 22 | C28: Targeted sequencing data from frozen section of tumors | D28: Supplementary Fig. 7
B29: Data 23 | C29: dN/dS results from sequencing of macroscopic tumors | D29: Supplementary Fig. 7
B30: Data 24 | C30: Low input targeted sequencing data from DEN-treated p53wt/wt andp53*/wt EE | D30: Supplementary Fig. 7i
B31: Data 25 | C31: Number of p53*/- and p53wt/- tumors | D31: Fig. 7c
B32: Data 26 | C32: Low input targeted sequencing data from DEN-treated p53 mutant LOH model mice | D32: Fig. 7d,e

Sheet Supplementary Data 1
A1: List of samples diagnosed with ESCC from TCGA ESCA project
A3: Refer to Fig. 1a
A5: Metadata has been combined with TCGA variant calls to identify samples with SNVs, CNVs and LOH over TP53.
A8: Case.UUID | B8: Case.ID | C8: Project | D8: Primary.Site | E8: Gender | F8: Age range | G8: Dominant.Negative | H8: Missense | I8: Nonsense | J8: Dominant.Negative.Mutation | K8: SNV.TP53 | L8: CNV.TP53 | M8: LOH_TP53 | N8: SNV.TP53.most.severe.consequence
A9: 6594acd5-4d2a-4cc5-8cf8-4064e252c5f6 | B9: TCGA-IG-A4P3 | C9: TCGA-ESCA | D9: Esophagus | E9: Male | F9: 46-50 | G9: NA | H9: True | I9: NA | J9: NA | K9: True | L9: NA | M9: True | N9: Missense
A10: fd62f7b4-a2da-4acd-8a85-8fa8f91521cb | B10: TCGA-VR-A8EZ | C10: TCGA-ESCA | D10: Esophagus | E10: Male | F10: 45-49 | G10: NA | H10: True | I10: NA | J10: NA | K10: True | L10: NA | M10: True | N10: Missense
A11: ad29744c-a09d-463a-84b5-63cfeb7ff786 | B11: TCGA-LN-A49L | C11: TCGA-ESCA | D11: Esophagus | E11: Male | F11: 42-46 | G11: NA | H11: NA | I11: NA | J11: NA | K11: True | L11: NA | M11: True | N11: Other
A12: d67330ee-1791-4f5a-8996-8687a2d5cccb | B12: TCGA-LN-A5U7 | C12: TCGA-ESCA | D12: Esophagus | E12: Male | F12: 44-48 | G12: True | H12: True | I12: NA | J12: p.R175H | K12: True | L12: NA | M12: True | N12: Dominant Negative
A13: 4c9fb311-0860-4a04-a2f6-79558ac1d98f | B13: TCGA-LN-A49R | C13: TCGA-ESCA | D13: Esophagus | E13: Male | F13: 44-48 | G13: NA | H13: NA | I13: NA | J13: NA | K13: True | L13: NA | M13: True | N13: Other
A14: 0ab29de2-eb9e-4a25-99de-5f543cfbdb53 | B14: TCGA-LN-A49V | C14: TCGA-ESCA | D14: Esophagus | E14: Male | F14: 47-51 | G14: NA | H14: True | I14: NA | J14: NA | K14: True | L14: NA | M14: True | N14: Missense
A15: cad8bd3a-ffd8-4baf-9de6-3ac3a1eb19e1 | B15: TCGA-LN-A9FO | C15: TCGA-ESCA | D15: Esophagus | E15: Male | F15: 40-44 | G15: NA | H15: NA | I15: True | J15: NA | K15: True | L15: NA | M15: True | N15: Nonsense
A16: 5e491131-b567-4e96-a2d3-69ce16caec50 | B16: TCGA-IG-A97H | C16: TCGA-ESCA | D16: Esophagus | E16: Male | F16: 34-38 | G16: NA | H16: NA | I16: NA | J16: NA | K16: True | L16: NA | M16: NA | N16: Other
A17: 8d3ccaf0-872a-4ee3-b4b7-847180fec3ab | B17: TCGA-XP-A8T8 | C17: TCGA-ESCA | D17: Esophagus | E17: Male | F17: 47-51 | G17: NA | H17: True | I17: NA | J17: NA | K17: True | L17: NA | M17: True | N17: Missense
A18: c305aa0c-430c-4e3f-93ac-e611b32db30a | B18: TCGA-VR-A8EY | C18: TCGA-ESCA | D18: Esophagus | E18: Female | F18: 42-46 | G18: NA | H18: NA | I18: NA | J18: NA | K18: True | L18: NA | M18: True | N18: Other
A19: e89d7900-915d-4936-b1b2-cac3670ea2f4 | B19: TCGA-LN-A4A4 | C19: TCGA-ESCA | D19: Esophagus | E19: Male | F19: 34-38 | G19: NA | H19: NA | I19: NA | J19: NA | K19: True | L19: NA | M19: True | N19: Other
A20: 26e7f083-a91b-4c04-84fe-d43be9722b18 | B20: TCGA-JY-A6FE | C20: TCGA-ESCA | D20: Esophagus | E20: Male | F20: 47-51 | G20: NA | H20: NA | I20: NA | J20: NA | K20: True | L20: Loss | M20: True | N20: Other
A21: 33c0199a-be0c-46d1-bb1e-889bfaedf20b | B21: TCGA-LN-A4MQ | C21: TCGA-ESCA | D21: Esophagus | E21: Male | F21: 44-48 | G21: NA | H21: NA | I21: NA | J21: NA | K21: True | L21: NA | M21: NA | N21: Other
A22: 3df1b9db-d900-47d2-839d-3900829cb2a9 | B22: TCGA-LN-A49O | C22: TCGA-ESCA | D22: Esophagus | E22: Male | F22: 45-49 | G22: NA | H22: True | I22: NA | J22: NA | K22: True | L22: NA | M22: True | N22: Missense
A23: b05aefc4-2d61-44b6-9451-e660d10d8a79 | B23: TCGA-LN-A49X | C23: TCGA-ESCA | D23: Esophagus | E23: Male | F23: 42-46 | G23: NA | H23: True | I23: NA | J23: NA | K23: True | L23: NA | M23: True | N23: Missense
A24: ef8bec6f-f594-4076-9f38-157165633ef1 | B24: TCGA-LN-A7HZ | C24: TCGA-ESCA | D24: Esophagus | E24: Male | F24: 47-51 | G24: NA | H24: True | I24: NA | J24: NA | K24: True | L24: NA | M24: True | N24: Missense
A25: 5080e9d1-d1e0-4ce7-a4ba-9935dd362263 | B25: TCGA-LN-A4A5 | C25: TCGA-ESCA | D25: Esophagus | E25: Male | F25: 47-51 | G25: True | H25: True | I25: NA | J25: p.R248Q | K25: True | L25: Loss | M25: True | N25: Dominant Negative
A26: 705f9841-988a-488a-8cdd-3e00bc731e76 | B26: TCGA-VR-A8EO | C26: TCGA-ESCA | D26: Esophagus | E26: Male | F26: 47-51 | G26: NA | H26: True | I26: NA | J26: NA | K26: True | L26: NA | M26: NA | N26: Missense
A27: 981066ec-eca6-4621-8979-e935279aa1ca | B27: TCGA-LN-A9FP | C27: TCGA-ESCA | D27: Esophagus | E27: Female | F27: 58-62 | G27: NA | H27: NA | I27: True | J27: NA | K27: True | L27: NA | M27: NA | N27: Nonsense
A28: 2659bb79-95f9-4476-a516-f3800536422d | B28: TCGA-Z6-AAPN | C28: TCGA-ESCA | D28: Esophagus | E28: Male | F28: 55-59 | G28: NA | H28: True | I28: NA | J28: NA | K28: True | L28: NA | M28: True | N28: Missense
A29: 517738f6-ba1c-43b0-8d68-81a7c34118ea | B29: TCGA-JY-A6FG | C29: TCGA-ESCA | D29: Stomach | E29: Male | F29: 48-52 | G29: True | H29: True | I29: NA | J29: p.R273H | K29: True | L29: NA | M29: NA | N29: Dominant Negative
A30: b3e248b5-5d40-495c-bd10-90ecf0ed6a95 | B30: TCGA-LN-A49M | C30: TCGA-ESCA | D30: Esophagus | E30: Male | F30: 60-64 | G30: NA | H30: True | I30: True | J30: NA | K30: True | L30: NA | M30: NA | N30: Nonsense
A31: c965a778-8696-47db-a7c7-8b9f75417cbd | B31: TCGA-LN-A4A9 | C31: TCGA-ESCA | D31: Esophagus | E31: Male | F31: 56-60 | G31: NA | H31: True | I31: NA | J31: NA | K31: True | L31: NA | M31: True | N31: Missense
A32: b997d486-8c71-4926-9df1-d2afdaf2785f | B32: TCGA-Z6-A8JD | C32: TCGA-ESCA | D32: Esophagus | E32: Male | F32: 51-55 | G32: True | H32: True | I32: NA | J32: p.R273H | K32: True | L32: NA | M32: True | N32: Dominant Negative
A33: 1116ddae-76b0-48d6-869c-be65d8b09d35 | B33: TCGA-Z6-A8JE | C33: TCGA-ESCA | D33: Esophagus | E33: Male | F33: 55-59 | G33: NA | H33: True | I33: NA | J33: NA | K33: True | L33: NA | M33: True | N33: Missense
A34: 91f9ad2e-e32e-43bb-aef8-5845c398606a | B34: TCGA-VR-AA7B | C34: TCGA-ESCA | D34: Esophagus | E34: Female | F34: 63-67 | G34: NA | H34: True | I34: NA | J34: NA | K34: True | L34: NA | M34: True | N34: Missense
A35: 7a32847f-69bb-4592-8feb-cfd5d355ada9 | B35: TCGA-LN-A7HY | C35: TCGA-ESCA | D35: Esophagus | E35: Male | F35: 48-52 | G35: NA | H35: NA | I35: True | J35: NA | K35: True | L35: NA | M35: True | N35: Nonsense
A36: 07b7dc7b-9407-4f11-9cd9-3b6df8d1cf6c | B36: TCGA-Q9-A6FU | C36: TCGA-ESCA | D36: Esophagus | E36: Female | F36: 55-59 | G36: NA | H36: NA | I36: NA | J36: NA | K36: NA | L36: NA | M36: True | N36: None
A37: cc14603b-e32c-43f3-8218-b6ed7ee2ec18 | B37: TCGA-LN-A4MR | C37: TCGA-ESCA | D37: Esophagus | E37: Male | F37: 55-59 | G37: True | H37: True | I37: NA | J37: p.R175H | K37: True | L37: NA | M37: True | N37: Dominant Negative
A38: a248bfe7-59af-43ec-8129-692f44b2b218 | B38: TCGA-IG-A8O2 | C38: TCGA-ESCA | D38: Esophagus | E38: Male | F38: 60-64 | G38: NA | H38: True | I38: NA | J38: NA | K38: True | L38: NA | M38: True | N38: Missense
A39: e9f82800-647a-4d61-bd1f-2c17c4ccafba | B39: TCGA-LN-A49S | C39: TCGA-ESCA | D39: Esophagus | E39: Male | F39: 57-61 | G39: True | H39: True | I39: True | J39: p.Y220C | K39: True | L39: NA | M39: True | N39: Dominant Negative
A40: f8dbab24-b9f4-4b8a-bfea-57856ccf6364 | B40: TCGA-IG-A51D | C40: TCGA-ESCA | D40: Esophagus | E40: Male | F40: 61-65 | G40: NA | H40: NA | I40: NA | J40: NA | K40: NA | L40: NA | M40: True | N40: None
A41: a91c3f09-5f48-4b54-b669-c768f9fe9682 | B41: TCGA-LN-A4A2 | C41: TCGA-ESCA | D41: Esophagus | E41: Male | F41: 55-59 | G41: NA | H41: True | I41: NA | J41: NA | K41: True | L41: Gain | M41: True | N41: Missense
A42: 931a50ff-3149-4c4a-9456-45ed3a9dd457 | B42: TCGA-LN-A49U | C42: TCGA-ESCA | D42: Esophagus | E42: Male | F42: 60-64 | G42: NA | H42: NA | I42: True | J42: NA | K42: True | L42: NA | M42: True | N42: Nonsense
A43: 0396743b-98a6-4ad5-aa13-1b9b23e5b9f9 | B43: TCGA-JY-A6FD | C43: TCGA-ESCA | D43: Esophagus | E43: Female | F43: 49-53 | G43: NA | H43: NA | I43: True | J43: NA | K43: True | L43: NA | M43: NA | N43: Nonsense
A44: 89aab5c2-9761-43bb-9053-eed42ee08969 | B44: TCGA-V5-AASV | C44: TCGA-ESCA | D44: Esophagus | E44: Male | F44: 65-69 | G44: NA | H44: NA | I44: NA | J44: NA | K44: NA | L44: NA | M44: True | N44: None
A45: 3633aeab-a763-438f-ad03-1b4ac8b3a621 | B45: TCGA-JY-A6FA | C45: TCGA-ESCA | D45: Esophagus | E45: Male | F45: 49-53 | G45: NA | H45: NA | I45: True | J45: NA | K45: True | L45: NA | M45: True | N45: Nonsense
A46: 7aa71c68-4205-4745-838b-0d00bd49a501 | B46: TCGA-IG-A97I | C46: TCGA-ESCA | D46: Esophagus | E46: Male | F46: 56-60 | G46: True | H46: True | I46: NA | J46: p.R248Q | K46: True | L46: NA | M46: NA | N46: Dominant Negative
A47: aa364b98-0097-43a4-976d-742faa0276df | B47: TCGA-LN-A4A8 | C47: TCGA-ESCA | D47: Esophagus | E47: Male | F47: 50-54 | G47: NA | H47: True | I47: NA | J47: NA | K47: True | L47: NA | M47: True | N47: Missense
A48: aac385c1-42f9-4d9e-b9bf-94ca13ebc5ae | B48: TCGA-V5-A7RC | C48: TCGA-ESCA | D48: Esophagus | E48: Male | F48: 53-57 | G48: NA | H48: NA | I48: NA | J48: NA | K48: True | L48: NA | M48: True | N48: Other
A49: 0b831729-8c3f-472b-9d76-50bbb4aeab0e | B49: TCGA-VR-A8EX | C49: TCGA-ESCA | D49: Esophagus | E49: Male | F49: 61-65 | G49: NA | H49: NA | I49: True | J49: NA | K49: True | L49: NA | M49: True | N49: Nonsense
A50: 3c1f8b73-bad7-4649-b08e-c7afc647edf3 | B50: TCGA-LN-A4A1 | C50: TCGA-ESCA | D50: Esophagus | E50: Male | F50: 58-62 | G50: NA | H50: True | I50: NA | J50: NA | K50: True | L50: NA | M50: NA | N50: Missense
A51: 484b7b36-15dc-43a9-801d-580216a8cfcb | B51: TCGA-VR-AA7D | C51: TCGA-ESCA | D51: Esophagus | E51: Male | F51: 56-60 | G51: NA | H51: True | I51: NA | J51: NA | K51: True | L51: NA | M51: True | N51: Missense
A52: 71f9f567-3687-4e3f-ad20-aed026a5b7e1 | B52: TCGA-VR-A8EW | C52: TCGA-ESCA | D52: Esophagus | E52: Male | F52: 55-59 | G52: NA | H52: NA | I52: NA | J52: NA | K52: True | L52: NA | M52: True | N52: Other
A53: b5fa3ac1-0691-4b6a-b6e4-765311b419ed | B53: TCGA-VR-A8EU | C53: TCGA-ESCA | D53: Esophagus | E53: Male | F53: 49-53 | G53: NA | H53: NA | I53: NA | J53: NA | K53: NA | L53: NA | M53: True | N53: None
A54: 9dfddc49-1e66-4e26-9d71-40d748cca0a6 | B54: TCGA-IC-A6RF | C54: TCGA-ESCA | D54: Esophagus | E54: Female | F54: 67-71 | G54: NA | H54: NA | I54: NA | J54: NA | K54: NA | L54: NA | M54: NA | N54: None
A55: a6bbfc3c-bd42-47f8-af01-99fa821ea176 | B55: TCGA-JY-A93F | C55: TCGA-ESCA | D55: Esophagus | E55: Female | F55: 56-60 | G55: NA | H55: NA | I55: NA | J55: NA | K55: NA | L55: NA | M55: NA | N55: None
A56: d86eab07-8cb2-49a8-b00f-2986efd7ea3b | B56: TCGA-VR-A8EP | C56: TCGA-ESCA | D56: Esophagus | E56: Male | F56: 49-53 | G56: NA | H56: True | I56: NA | J56: NA | K56: True | L56: NA | M56: True | N56: Missense
A57: 9e54a27f-d0fa-4a5b-91bc-13e27fed2a3d | B57: TCGA-IG-A50L | C57: TCGA-ESCA | D57: Esophagus | E57: Male | F57: 56-60 | G57: NA | H57: True | I57: NA | J57: NA | K57: True | L57: NA | M57: True | N57: Missense
A58: 0ac08ecf-4d70-48a4-9dfd-f44032551cb9 | B58: TCGA-IG-A3QL | C58: TCGA-ESCA | D58: Esophagus | E58: Male | F58: 52-56 | G58: NA | H58: NA | I58: NA | J58: NA | K58: True | L58: NA | M58: NA | N58: Other
A59: 2795badd-5c70-442d-8780-8f458539d506 | B59: TCGA-VR-A8Q7 | C59: TCGA-ESCA | D59: Esophagus | E59: Male | F59: 58-62 | G59: NA | H59: True | I59: NA | J59: NA | K59: True | L59: NA | M59: True | N59: Missense
A60: 95858ea9-f71b-48d4-aa15-7dfdf21ca9e7 | B60: TCGA-LN-A7HW | C60: TCGA-ESCA | D60: Esophagus | E60: Male | F60: 57-61 | G60: NA | H60: True | I60: NA | J60: NA | K60: True | L60: NA | M60: True | N60: Missense
A61: b782c157-6b33-4247-83df-a82dc5e5d432 | B61: TCGA-LN-A8HZ | C61: TCGA-ESCA | D61: Esophagus | E61: Male | F61: 54-58 | G61: NA | H61: NA | I61: NA | J61: NA | K61: True | L61: NA | M61: True | N61: Other
A62: 65cee80a-4c0a-4594-afca-d7088f7e5857 | B62: TCGA-S8-A6BW | C62: TCGA-ESCA | D62: Esophagus | E62: Male | F62: 49-53 | G62: NA | H62: NA | I62: NA | J62: NA | K62: NA | L62: Gain | M62: True | N62: None
A63: 7bf3f18b-a013-48d2-a743-26a57fdbe4c4 | B63: TCGA-IG-A3I8 | C63: TCGA-ESCA | D63: Esophagus | E63: Female | F63: 49-53 | G63: True | H63: True | I63: NA | J63: p.R175H | K63: True | L63: NA | M63: True | N63: Dominant Negative
A64: 37d13493-975c-432c-bd21-65f383fc66c9 | B64: TCGA-LN-A9FQ | C64: TCGA-ESCA | D64: Esophagus | E64: Male | F64: 60-64 | G64: True | H64: True | I64: True | J64: p.R248Q | K64: True | L64: NA | M64: True | N64: Dominant Negative
A65: 4e7f0fff-7b17-4da9-95ea-f68797c427f5 | B65: TCGA-LN-A5U6 | C65: TCGA-ESCA | D65: Esophagus | E65: Male | F65: 52-56 | G65: NA | H65: NA | I65: NA | J65: NA | K65: True | L65: NA | M65: True | N65: Other
A66: ffcfa005-a04f-458e-9d1d-86143dd823e5 | B66: TCGA-LN-A4A6 | C66: TCGA-ESCA | D66: Esophagus | E66: Male | F66: 63-67 | G66: NA | H66: True | I66: NA | J66: NA | K66: True | L66: NA | M66: NA | N66: Missense
A67: f4cb24e9-e7fd-4245-9c9b-7e0934038446 | B67: TCGA-XP-A8T6 | C67: TCGA-ESCA | D67: Esophagus | E67: Male | F67: 52-56 | G67: NA | H67: NA | I67: True | J67: NA | K67: True | L67: NA | M67: True | N67: Nonsense
A68: 1c2837d4-bd2c-46f7-9e22-683b82a16350 | B68: TCGA-Z6-A9VB | C68: TCGA-ESCA | D68: Esophagus | E68: Male | F68: 51-55 | G68: NA | H68: True | I68: NA | J68: NA | K68: True | L68: NA | M68: True | N68: Missense
A69: 2c792b77-1bf1-42f7-bd94-73c6474c6c7d | B69: TCGA-LN-A7HV | C69: TCGA-ESCA | D69: Esophagus | E69: Male | F69: 56-60 | G69: NA | H69: True | I69: NA | J69: NA | K69: True | L69: NA | M69: True | N69: Missense
A70: 59dd907e-c674-46c2-bce7-63517d5ae7a7 | B70: TCGA-XP-A8T7 | C70: TCGA-ESCA | D70: Esophagus | E70: Female | F70: 62-66 | G70: NA | H70: NA | I70: NA | J70: NA | K70: True | L70: NA | M70: True | N70: Other
A71: 83762308-4dba-4870-b90b-64331ebc9baa | B71: TCGA-LN-A8I1 | C71: TCGA-ESCA | D71: Esophagus | E71: Female | F71: 65-69 | G71: True | H71: True | I71: NA | J71: p.R248Q | K71: True | L71: NA | M71: True | N71: Dominant Negative
A72: 0f06153a-0f28-4a7e-9e81-1e0b3f4412ab | B72: TCGA-LN-A49K | C72: TCGA-ESCA | D72: Esophagus | E72: Male | F72: 64-68 | G72: NA | H72: NA | I72: NA | J72: NA | K72: NA | L72: NA | M72: True | N72: None
A73: 70c5ce85-4022-46c0-8bd0-f5e9009ddf41 | B73: TCGA-L7-A56G | C73: TCGA-ESCA | D73: Esophagus | E73: Male | F73: 64-68 | G73: NA | H73: NA | I73: NA | J73: NA | K73: NA | L73: NA | M73: True | N73: None
A74: 7ab6de57-d659-47f1-a70f-1b67650e99d7 | B74: TCGA-IG-A3YA | C74: TCGA-ESCA | D74: Esophagus | E74: Male | F74: 51-55 | G74: True | H74: True | I74: NA | J74: p.R175H | K74: True | L74: NA | M74: True | N74: Dominant Negative
A75: a1a233ea-5dda-4eeb-bd92-6667e8b3ef57 | B75: TCGA-IG-A3YB | C75: TCGA-ESCA | D75: Esophagus | E75: Male | F75: 59-63 | G75: NA | H75: NA | I75: NA | J75: NA | K75: True | L75: NA | M75: True | N75: Other
A76: df0125b2-5278-4ded-b3b7-9fc829fe9f63 | B76: TCGA-IG-A5S3 | C76: TCGA-ESCA | D76: Esophagus | E76: Female | F76: 67-71 | G76: NA | H76: True | I76: NA | J76: NA | K76: True | L76: NA | M76: True | N76: Missense
A77: df5bd25c-d70b-4126-89cb-6c838044ae3b | B77: TCGA-VR-AA4G | C77: TCGA-ESCA | D77: Esophagus | E77: Female | F77: 49-53 | G77: NA | H77: NA | I77: True | J77: NA | K77: True | L77: NA | M77: NA | N77: Nonsense
A78: 54e45b43-363a-47a3-b43b-5e41ff589b47 | B78: TCGA-VR-A8ER | C78: TCGA-ESCA | D78: Esophagus | E78: Male | F78: 52-56 | G78: NA | H78: NA | I78: NA | J78: NA | K78: NA | L78: NA | M78: True | N78: None
A79: 5da26ba5-297a-4d04-883d-32719db3886a | B79: TCGA-IG-A625 | C79: TCGA-ESCA | D79: Esophagus | E79: Male | F79: 58-62 | G79: NA | H79: NA | I79: NA | J79: NA | K79: True | L79: NA | M79: True | N79: Other
A80: 41b6c417-1ec1-4db9-91a8-11aa4dbad05d | B80: TCGA-IG-A6QS | C80: TCGA-ESCA | D80: Esophagus | E80: Male | F80: 52-56 | G80: NA | H80: True | I80: NA | J80: NA | K80: True | L80: NA | M80: True | N80: Missense
A81: 3c0bb5e2-ad33-4d91-a31e-2a18f1c94d2d | B81: TCGA-LN-A4A3 | C81: TCGA-ESCA | D81: Esophagus | E81: Male | F81: 59-63 | G81: NA | H81: NA | I81: True | J81: NA | K81: True | L81: NA | M81: True | N81: Nonsense
A82: 656e3c14-1fc6-473a-813e-719753e7b408 | B82: TCGA-LN-A5U5 | C82: TCGA-ESCA | D82: Esophagus | E82: Male | F82: 55-59 | G82: NA | H82: NA | I82: NA | J82: NA | K82: True | L82: Loss | M82: NA | N82: Other
A83: 59da377a-12a6-454a-be01-886eda894179 | B83: TCGA-LN-A8I0 | C83: TCGA-ESCA | D83: Esophagus | E83: Male | F83: 50-54 | G83: NA | H83: NA | I83: NA | J83: NA | K83: NA | L83: NA | M83: NA | N83: None
A84: ae404398-6544-4f3a-8830-44a4a227f8d5 | B84: TCGA-LN-A49N | C84: TCGA-ESCA | D84: Esophagus | E84: Male | F84: 48-52 | G84: NA | H84: NA | I84: NA | J84: NA | K84: True | L84: NA | M84: True | N84: Other
A85: 6a05288e-d051-40a5-9f4e-864ab806a5dc | B85: TCGA-IG-A3YC | C85: TCGA-ESCA | D85: Esophagus | E85: Male | F85: 60-64 | G85: NA | H85: NA | I85: True | J85: NA | K85: True | L85: NA | M85: True | N85: Nonsense
A86: d064c0bf-ecac-4069-aeae-4cc36bc87b38 | B86: TCGA-VR-A8ET | C86: TCGA-ESCA | D86: Esophagus | E86: Male | F86: 62-66 | G86: NA | H86: NA | I86: NA | J86: NA | K86: NA | L86: NA | M86: NA | N86: None
A87: 3f7b600b-282e-4f35-9fd8-567b3fca8273 | B87: TCGA-IG-A4QT | C87: TCGA-ESCA | D87: Esophagus | E87: Male | F87: 54-58 | G87: NA | H87: NA | I87: NA | J87: NA | K87: NA | L87: NA | M87: NA | N87: None
A88: a4d36e09-5d8e-4006-855c-e466682b6813 | B88: TCGA-IG-A5B8 | C88: TCGA-ESCA | D88: Esophagus | E88: Male | F88: 70-74 | G88: True | H88: True | I88: NA | J88: p.Y220C | K88: True | L88: NA | M88: True | N88: Dominant Negative
A89: 87faba0e-28e7-4a7e-a7e1-12582ec68fac | B89: TCGA-LN-A49Y | C89: TCGA-ESCA | D89: Esophagus | E89: Male | F89: 75-79 | G89: NA | H89: True | I89: NA | J89: NA | K89: True | L89: NA | M89: NA | N89: Missense
A90: 4b8809a6-4ab3-4567-8623-37ce3faa978c | B90: TCGA-IG-A3Y9 | C90: TCGA-ESCA | D90: Esophagus | E90: Male | F90: 70-74 | G90: True | H90: True | I90: NA | J90: p.R282W | K90: True | L90: NA | M90: True | N90: Dominant Negative
A91: a34c2eda-3e24-4eb8-94cc-a5ccc819d771 | B91: TCGA-VR-AA7I | C91: TCGA-ESCA | D91: Esophagus | E91: Male | F91: 68-72 | G91: NA | H91: True | I91: NA | J91: NA | K91: True | L91: NA | M91: NA | N91: Missense
A92: 8c4f5492-3567-4e12-8607-2cd65fab9baa | B92: TCGA-LN-A7HX | C92: TCGA-ESCA | D92: Esophagus | E92: Male | F92: 70-74 | G92: NA | H92: True | I92: NA | J92: NA | K92: True | L92: NA | M92: NA | N92: Missense
A93: daf211f2-941e-4244-8cf5-d31492269443 | B93: TCGA-LN-A49W | C93: TCGA-ESCA | D93: Esophagus | E93: Male | F93: 71-75 | G93: NA | H93: True | I93: NA | J93: NA | K93: True | L93: NA | M93: NA | N93: Missense
A94: b64a5f5a-5913-432e-9d08-0ff67a8c6b64 | B94: TCGA-LN-A49P | C94: TCGA-ESCA | D94: Esophagus | E94: Male | F94: 69-73 | G94: NA | H94: NA | I94: NA | J94: NA | K94: True | L94: NA | M94: True | N94: Other
A95: cfdc8f4d-a25b-4c63-9832-58444581a505 | B95: TCGA-LN-A9FR | C95: TCGA-ESCA | D95: Esophagus | E95: Male | F95: 68-72 | G95: NA | H95: True | I95: NA | J95: NA | K95: True | L95: NA | M95: NA | N95: Missense
A96: ef573329-9659-4106-b391-9a33e1c732c4 | B96: TCGA-KH-A6WC | C96: TCGA-ESCA | D96: Esophagus | E96: Male | F96: 80-84 | G96: NA | H96: NA | I96: NA | J96: NA | K96: NA | L96: NA | M96: True | N96: None

Sheet Supplementary Data 2
A1: Variant allele frequency of TP53 mutants in normal human esophageal epithelium
A3: Refer to Fig. 1d
B5: Data from Martincorena et al., Science 362, 911-917, (2018)
A7: codon | G7: Other Missense | H7: Nonsense/Essential Splice
A8: 175 | B8: 245 | C8: 248 | D8: 249 | E8: 273 | F8: 282
A9: 0.01296296 | B9: 0.31104622 | C9: 0.04302671 | D9: 0.01336303 | E9: 0.03908484 | F9: 0.08881774 | G9: 0.08502206 | H9: 0.01144165
A10: 0.06169609 | B10: 0.02912621 | C10: 0.05162242 | D10: 0.13580247 | E10: 0.0465587 | F10: 0.97240041 | G10: 0.13782991 | H10: 0.06112039
A11: 0.0301055 | B11: 0.07964602 | C11: 0.01367781 | D11: 0.01017442 | E11: 0.03823336 | F11: 0.2313392 | G11: 0.02690583 | H11: 0.07031348
A12: 0.04573548 | B12: 0.01917404 | C12: 0.05825243 | D12: 0.13529771 | E12: 0.06980313 | F12: 0.16236068 | G12: 0.01165331 | H12: 0.09528437
A13: 0.03135135 | B13: 0.03054299 | C13: 0.70046679 | D13: 0.03627708 | E13: 0.05064895 | F13: 0.0923563 | G13: 0.04469625 | H13: 0.03189793
A14: 0.02771084 | B14: 0.04069767 | C14: 0.0355412 | E14: 0.04668985 | F14: 0.0125 | G14: 0.06963788 | H14: 0.01359928
A15: 0.0204918 | B15: 0.06683481 | C15: 0.01644245 | E15: 0.44605343 | F15: 0.06752874 | G15: 0.4300245 | H15: 0.04623656
A16: 0.02357836 | B16: 0.02293578 | C16: 0.0237037 | E16: 0.38329387 | F16: 0.12454199 | G16: 0.00825688 | H16: 0.35057097
A17: 0.02915082 | B17: 0.05908034 | C17: 0.36624197 | E17: 0.28475448 | F17: 0.02156334 | G17: 0.00458365 | H17: 0.00760456
A18: 0.02225519 | B18: 1.10073386 | C18: 0.3941237 | E18: 0.08746047 | F18: 0.05890928 | G18: 0.01385042 | H18: 0.01810865
A19: 0.07058824 | B19: 0.15818725 | C19: 0.3271822 | E19: 0.06354699 | F19: 0.357932 | G19: 0.01102941 | H19: 0.08703375
A20: 0.17705715 | B20: 0.07287266 | C20: 0.04000758 | E20: 0.00953289 | F20: 0.13358071 | G20: 0.08698416 | H20: 0.04021938
A21: 0.04579244 | C21: 0.0929763 | E21: 0.01310044 | F21: 0.10502854 | G21: 0.01547389 | H21: 0.02807018
A22: 0.02607824 | C22: 0.08767757 | E22: 0.00977778 | F22: 0.02459792 | G22: 0.01877347 | H22: 0.07107601
A23: 0.00802139 | C23: 0.10305045 | E23: 0.1384288 | F23: 0.00795053 | G23: 0.03364269 | H23: 0.09746954
A24: 0.23021209 | C24: 0.02884615 | E24: 0.03018501 | F24: 0.01383399 | G24: 0.0875 | H24: 0.14376081
C25: 0.05583127 | E25: 0.01756098 | F25: 0.02085222 | G25: 0.0120614 | H25: 0.01148226
C26: 0.2132938 | E26: 0.0882365 | G26: 0.01181102 | H26: 0.06425456
C27: 0.03484849 | E27: 0.02686309 | G27: 0.02750275 | H27: 0.01309334
C28: 0.09440776 | E28: 0.10029499 | G28: 0.07367001 | H28: 0.00891266
E29: 0.08396226 | G29: 0.62511398 | H29: 0.13673508
E30: 0.02191235 | G30: 0.00946746 | H30: 0.0110664
E31: 0.02387268 | G31: 0.0345912 | H31: 0.01635992
G32: 0.01013514 | H32: 0.01026694
G33: 0.45751234 | H33: 0.01503759
G34: 0.005997 | H34: 0.01030928
G35: 0.01265823 | H35: 0.02891566
G36: 0.02852349 | H36: 0.03760684
G37: 0.30161723 | H37: 0.1040724
G38: 0.00621118 | H38: 0.02070393
G39: 0.01094276 | H39: 0.01295337
G40: 0.01158645 | H40: 0.11996356
G41: 0.0126369 | H41: 0.17447699
G42: 0.09178541 | H42: 0.01197605
G43: 0.01416431 | H43: 0.08579089
G44: 0.0071582 | H44: 0.11773256
G45: 0.05263158 | H45: 0.29387678
G46: 0.03937008 | H46: 0.01977099
G47: 0.03337784 | H47: 0.05170908
G48: 0.01451187 | H48: 0.13094083
G49: 0.00459137 | H49: 0.11359026
G50: 0.00880626 | H50: 0.03409091
G51: 0.00886918 | H51: 0.03966597
G52: 0.01116625 | H52: 0.05918058
G53: 0.02113459 | H53: 0.28760081
G54: 0.07487062 | H54: 0.37057931
G55: 0.02147971 | H55: 0.03963415
G56: 0.01576182 | H56: 0.08094262
G57: 0.21129823 | H57: 0.06893819
G58: 0.00753769 | H58: 0.14693268
G59: 0.00578871 | H59: 0.25803738
G60: 0.02724359 | H60: 0.44183904
G61: 0.0131579 | H61: 0.17743569
G62: 0.0088968 | H62: 0.07739558
G63: 0.00642398 | H63: 0.00805153
G64: 0.03739214 | H64: 0.02692998
G65: 0.05675147 | H65: 0.04153355
G66: 0.00606673 | H66: 0.02929363
G67: 0.00530705 | H67: 0.00776532
G68: 0.11287001 | H68: 0.01517451
G69: 0.01575528 | H69: 0.04645107
G70: 0.0421621 | H70: 0.16820858
G71: 0.01010101 | H71: 0.00763359
G72: 0.00856164 | H72: 0.02200489
G73: 0.01081917 | H73: 0.01306241
G74: 0.00936037 | H74: 0.00295203
G75: 0.02857143 | H75: 0.05217391
G76: 0.02253521 | H76: 0.0218281
G77: 0.0137457 | H77: 0.07993859
G78: 0.00780234 | H78: 0.15201028
G79: 0.00839329 | H79: 0.00951249
G80: 0.14358974 | H80: 0.02384501
G81: 0.04672897 | H81: 0.12168367
G82: 0.03491272 | H82: 0.07832168
G83: 0.31104622 | H83: 0.01672241
G84: 0.02912621 | H84: 0.05128205
G85: 0.07964602 | H85: 0.00884956
G86: 0.01917404 | H86: 0.03170732
G87: 0.03054299 | H87: 0.0055918
G88: 0.04069767 | H88: 0.00893655
G89: 0.06683481 | H89: 0.00802139
G90: 0.02293578 | H90: 0.00997698
G91: 0.05908034 | H91: 0.01510859
G92: 1.10073386 | H92: 0.05562487
G93: 0.15818725 | H93: 0.10968927
G94: 0.07287266 | H94: 0.09750253
G95: 0.05683042 | H95: 0.00686106
G96: 0.01001001 | H96: 0.00626305
G97: 0.05480661 | H97: 0.00652529
G98: 0.38369721 | H98: 0.03568465
G99: 0.15913201 | H99: 0.10154346
G100: 0.0507177 | H100: 0.01359833
G101: 0.00864553 | H101: 0.00886918
G102: 0.02680067 | H102: 0.05813954
G103: 0.01776199 | H103: 0.0036855
G104: 0.02303263 | H104: 0.24901318
G105: 0.00892857 | H105: 0.08462851
G106: 0.01771337 | H106: 0.12600282
G107: 0.01812191 | H107: 0.09570552
G108: 0.0042796 | H108: 0.09418283
G109: 0.02170767 | H109: 0.04133165
G110: 0.00621891
G111: 0.08831522
G112: 0.04920635
G113: 0.00609756
G114: 0.01150748
G115: 0.02263541
G116: 0.00866551
G117: 0.10121857
G118: 0.00883219
G119: 0.01336303
G120: 0.02247191
G121: 0.00554529
G122: 0.07093426
G123: 0.00855615
G124: 0.01254276
G125: 0.0697393
G126: 0.00537634
G127: 0.01142264
G128: 0.09197652
G129: 0.01898734
G130: 0.01211306
G131: 0.12092854
G132: 0.00441177
G133: 0.01907631
G134: 0.00656045
G135: 0.01222222
G136: 0.00467836
G137: 0.08240888
G138: 0.01415094
G139: 0.02384292
G140: 0.00556174
G141: 0.01462273
G142: 0.07180113
G143: 0.04298357
G144: 0.11375066
G145: 0.36864201
G146: 0.05627604
G147: 0.01277955
G148: 0.03136531
G149: 0.04615385
G150: 0.00782998
G151: 0.03741497
G152: 0.04841713
G153: 0.0172337
G154: 0.0085389
G155: 0.01171875
G156: 0.19560652
G157: 0.1493701
G158: 0.01655696
G159: 0.00706714
G160: 0.1395763
G161: 0.02161833
G162: 0.15197061
G163: 0.00913838
G164: 0.0040404
G165: 0.02564103
G166: 0.00475624
G167: 0.06818032
G168: 0.10866373
G169: 0.06185567
G170: 0.09673025
G171: 0.00515464
G172: 0.0317662
G173: 0.02059202
G174: 0.02753442
G175: 0.04854369
G176: 0.01134752
G177: 0.0128041
G178: 0.04556355
G179: 0.24026715
G180: 0.01700319
G181: 0.0070922
G182: 0.01009082
G183: 0.00797267
G184: 0.01421801
G185: 0.00497018
G186: 0.00612557
G187: 0.01340206
G188: 0.19964863
G189: 0.01045752
G190: 0.44115617
G191: 0.34967594
G192: 0.20386007
G193: 0.23309176
G194: 0.06718213
G195: 0.0312253
G196: 0.13074752
G197: 0.12883908
G198: 0.00881057
G199: 0.11481482
G200: 0.02191061
G201: 0.00932401
G202: 0.01038062
G203: 0.00503145
... 112 more rows

Sheet Supplementary Data 3
A1: Distribution of basal cell size of YFP and p53*/wt clones
A3: Refer to Supplementary Fig. 1b
A5: Number of basal cells per clone | I5: Statistics
A6: 3 weeks | C6: 6 weeks | E6: 12 weeks | I6: Mann Whitney test
A7: YFP | B7: p53*/wt | C7: YFP | D7: p53*/wt | E7: YFP | F7: p53*/wt
A8: 1 | B8: 1 | C8: 1 | D8: 1 | E8: 2 | F8: 1 | I8: p53*/wt vs YFP
A9: 2 | B9: 1 | C9: 2 | D9: 1 | E9: 1 | F9: 1 | I9: 3 weeks | L9: 6 weeks | O9: 12 weeks
A10: 1 | B10: 1 | C10: 2 | D10: 1 | E10: 6 | F10: 1 | I10: P value | J10: <0.0001 | L10: P value | M10: <0.0001 | O10: P value | P10: <0.0001
A11: 1 | B11: 1 | C11: 1 | D11: 1 | E11: 9 | F11: 2 | I11: Exact or approximate P value? | J11: Approximate | L11: Exact or approximate P value? | M11: Approximate | O11: Exact or approximate P value? | P11: Approximate
A12: 1 | B12: 1 | C12: 1 | D12: 1 | E12: 1 | F12: 2 | I12: P value summary | J12: **** | L12: P value summary | M12: **** | O12: P value summary | P12: ****
A13: 2 | B13: 1 | C13: 1 | D13: 2 | E13: 2 | F13: 1 | I13: Significantly different (P < 0.05)? | J13: Yes | L13: Significantly different (P < 0.05)? | M13: Yes | O13: Significantly different (P < 0.05)? | P13: Yes
A14: 1 | B14: 1 | C14: 1 | D14: 2 | E14: 5 | F14: 2 | I14: One- or two-tailed P value? | J14: Two-tailed | L14: One- or two-tailed P value? | M14: Two-tailed | O14: One- or two-tailed P value? | P14: Two-tailed
A15: 1 | B15: 1 | C15: 1 | D15: 2 | E15: 2 | F15: 2 | I15: Sum of ranks in column A,B | J15: 31655 , 63611 | L15: Sum of ranks in column C,D | M15: 18659 , 49977 | O15: Sum of ranks in column E,F | P15: 40146 , 59982
A16: 1 | B16: 1 | C16: 1 | D16: 2 | E16: 5 | F16: 1 | I16: Mann-Whitney U | J16: 13700 | L16: Mann-Whitney U | M16: 8789 | O16: Mann-Whitney U | P16: 14946
A17: 1 | B17: 1 | C17: 1 | D17: 2 | E17: 3 | F17: 1
A18: 1 | B18: 1 | C18: 1 | D18: 2 | E18: 4 | F18: 2 | I18: Difference between medians | L18: Difference between medians | O18: Difference between medians
A19: 1 | B19: 1 | C19: 1 | D19: 1 | E19: 2 | F19: 1 | I19: Median of column A | J19: 1.000, n=189 | L19: Median of column C | M19: 2.000, n=140 | O19: Median of column E | P19: 4.000, n=224
A20: 1 | B20: 1 | C20: 2 | D20: 1 | E20: 1 | F20: 1 | I20: Median of column B | J20: 3.000, n=247 | L20: Median of column D | M20: 4.000, n=230 | O20: Median of column F | P20: 8.000, n=223
A21: 1 | B21: 1 | C21: 1 | D21: 1 | E21: 4 | F21: 3 | I21: Difference: Actual | J21: 2 | L21: Difference: Actual | M21: 2 | O21: Difference: Actual | P21: 4
A22: 1 | B22: 1 | C22: 1 | D22: 1 | E22: 6 | F22: 3 | I22: Difference: Hodges-Lehmann | J22: 1 | L22: Difference: Hodges-Lehmann | M22: 2 | O22: Difference: Hodges-Lehmann | P22: 4
A23: 1 | B23: 1 | C23: 1 | D23: 1 | E23: 1 | F23: 5
A24: 1 | B24: 1 | C24: 1 | D24: 1 | E24: 4 | F24: 1
A25: 1 | B25: 1 | C25: 1 | D25: 1 | E25: 1 | F25: 2
A26: 2 | B26: 1 | C26: 2 | D26: 1 | E26: 12 | F26: 4
A27: 1 | B27: 1 | C27: 1 | D27: 2 | E27: 1 | F27: 1
A28: 2 | B28: 1 | C28: 1 | D28: 2 | E28: 1 | F28: 2
A29: 1 | B29: 1 | C29: 1 | D29: 3 | E29: 58 | F29: 3
A30: 1 | B30: 1 | C30: 1 | D30: 1 | E30: 6 | F30: 3
A31: 1 | B31: 1 | C31: 1 | D31: 1 | E31: 2 | F31: 4
A32: 2 | B32: 1 | C32: 1 | D32: 1 | E32: 4 | F32: 7
A33: 2 | B33: 1 | C33: 1 | D33: 1 | E33: 12 | F33: 2
A34: 1 | B34: 1 | C34: 1 | D34: 2 | E34: 9 | F34: 3
A35: 2 | B35: 1 | C35: 2 | D35: 2 | E35: 11 | F35: 4
A36: 1 | B36: 1 | C36: 2 | D36: 2 | E36: 5 | F36: 6
A37: 1 | B37: 1 | C37: 1 | D37: 2 | E37: 3 | F37: 6
A38: 1 | B38: 1 | C38: 1 | D38: 2 | E38: 15 | F38: 7
A39: 1 | B39: 1 | D39: 3 | E39: 7 | F39: 2
A40: 1 | B40: 1 | C40: 2 | D40: 3 | E40: 2 | F40: 2
A41: 1 | B41: 1 | C41: 3 | D41: 1 | E41: 1 | F41: 3
A42: 2 | B42: 1 | C42: 4 | D42: 1 | E42: 23 | F42: 3
A43: 1 | B43: 1 | C43: 4 | D43: 1 | E43: 9 | F43: 4
A44: 1 | B44: 1 | C44: 2 | D44: 1 | E44: 1 | F44: 5
A45: 3 | B45: 1 | C45: 1 | D45: 1 | E45: 2 | F45: 6
A46: 2 | B46: 1 | C46: 3 | D46: 2 | E46: 2 | F46: 2
A47: 3 | B47: 1 | C47: 2 | D47: 2 | E47: 2 | F47: 2
A48: 1 | B48: 1 | C48: 1 | D48: 2 | E48: 8 | F48: 4
A49: 3 | B49: 1 | C49: 2 | D49: 2 | E49: 3 | F49: 2
A50: 2 | B50: 1 | C50: 4 | D50: 2 | E50: 17 | F50: 2
A51: 1 | B51: 1 | C51: 3 | D51: 3 | E51: 2 | F51: 2
A52: 2 | B52: 1 | C52: 1 | D52: 3 | E52: 6 | F52: 3
A53: 1 | B53: 1 | C53: 2 | D53: 3 | E53: 3 | F53: 3
A54: 3 | B54: 1 | C54: 3 | D54: 3 | E54: 2 | F54: 5
A55: 1 | B55: 1 | C55: 4 | D55: 5 | E55: 44 | F55: 5
A56: 1 | B56: 1 | C56: 1 | D56: 5 | E56: 3 | F56: 9
A57: 3 | B57: 1 | C57: 2 | D57: 1 | E57: 6 | F57: 1
A58: 2 | B58: 1 | C58: 2 | D58: 2 | E58: 5 | F58: 1
A59: 3 | B59: 1 | C59: 2 | D59: 3 | E59: 5 | F59: 7
A60: 4 | B60: 1 | C60: 2 | D60: 3 | E60: 7 | F60: 7
A61: 1 | B61: 1 | C61: 3 | D61: 3 | E61: 5 | F61: 3
A62: 5 | B62: 1 | C62: 2 | D62: 3 | E62: 9 | F62: 7
A63: 5 | B63: 1 | C63: 1 | D63: 3 | E63: 8 | F63: 7
A64: 5 | B64: 1 | C64: 1 | D64: 3 | E64: 0 | F64: 8
A65: 4 | B65: 1 | C65: 4 | D65: 3 | E65: 4 | F65: 1
A66: 5 | B66: 1 | C66: 3 | D66: 4 | E66: 7 | F66: 4
A67: 2 | B67: 1 | C67: 1 | D67: 4 | E67: 6 | F67: 6
A68: 2 | B68: 1 | C68: 4 | D68: 5 | E68: 1 | F68: 6
A69: 1 | B69: 2 | C69: 5 | D69: 1 | E69: 46 | F69: 6
A70: 1 | B70: 2 | C70: 3 | D70: 1 | E70: 6 | F70: 1
A71: 1 | B71: 2 | C71: 1 | D71: 1 | E71: 4 | F71: 1
A72: 1 | B72: 2 | C72: 5 | D72: 2 | E72: 5 | F72: 3
A73: 1 | B73: 2 | C73: 4 | D73: 2 | E73: 6 | F73: 5
A74: 1 | B74: 2 | C74: 7 | D74: 2 | E74: 10 | F74: 5
A75: 2 | B75: 2 | C75: 5 | D75: 2 | E75: 6 | F75: 6
A76: 2 | B76: 2 | C76: 4 | D76: 2 | E76: 3 | F76: 7
A77: 1 | B77: 2 | C77: 1 | D77: 3 | E77: 1 | F77: 7
A78: 1 | B78: 2 | C78: 6 | D78: 3 | E78: 1 | F78: 8
A79: 1 | B79: 2 | C79: 12 | D79: 4 | E79: 1 | F79: 8
A80: 1 | B80: 2 | C80: 7 | D80: 4 | E80: 7 | F80: 9
A81: 2 | B81: 2 | C81: 6 | D81: 4 | E81: 3 | F81: 5
A82: 1 | B82: 2 | C82: 7 | D82: 4 | E82: 3 | F82: 5
A83: 1 | B83: 2 | C83: 15 | D83: 4 | E83: 1 | F83: 9
A84: 1 | B84: 2 | C84: 1 | D84: 4 | E84: 6 | F84: 6
A85: 2 | B85: 2 | C85: 2 | D85: 5 | E85: 13 | F85: 6
A86: 1 | B86: 2 | C86: 2 | D86: 5 | E86: 15 | F86: 7
A87: 1 | B87: 2 | C87: 3 | D87: 6 | E87: 3 | F87: 7
A88: 1 | B88: 2 | C88: 1 | D88: 1 | E88: 7 | F88: 9
A89: 2 | B89: 2 | C89: 1 | D89: 2 | E89: 8 | F89: 10
A90: 1 | B90: 2 | C90: 1 | D90: 2 | E90: 1 | F90: 10
A91: 2 | B91: 2 | C91: 1 | D91: 3 | E91: 8 | F91: 11
A92: 2 | B92: 2 | C92: 1 | D92: 3 | E92: 27 | F92: 13
A93: 1 | B93: 2 | C93: 3 | D93: 3 | E93: 3 | F93: 3
A94: 1 | B94: 2 | C94: 1 | D94: 4 | E94: 3 | F94: 4
A95: 1 | B95: 2 | C95: 1 | D95: 4 | E95: 6 | F95: 5
A96: 1 | B96: 2 | C96: 2 | D96: 4 | E96: 9 | F96: 6
A97: 2 | B97: 2 | C97: 2 | D97: 4 | E97: 1 | F97: 6
A98: 1 | B98: 2 | C98: 1 | D98: 5 | E98: 1 | F98: 7
A99: 1 | B99: 2 | C99: 1 | D99: 6 | E99: 2 | F99: 14
A100: 1 | B100: 2 | C100: 2 | D100: 1 | E100: 5 | F100: 3
A101: 2 | B101: 2 | C101: 1 | D101: 1 | E101: 5 | F101: 4
A102: 2 | B102: 2 | C102: 1 | D102: 2 | E102: 1 | F102: 5
A103: 1 | B103: 2 | C103: 3 | D103: 3 | E103: 1 | F103: 6
A104: 1 | B104: 2 | C104: 2 | D104: 3 | E104: 4 | F104: 10
A105: 1 | B105: 2 | C105: 2 | D105: 3 | E105: 27 | F105: 11
A106: 1 | B106: 2 | C106: 2 | D106: 4 | E106: 3 | F106: 2
A107: 2 | B107: 2 | C107: 1 | D107: 5 | E107: 11 | F107: 4
A108: 1 | B108: 2 | C108: 0.3 | D108: 6 | E108: 2 | F108: 9
A109: 2 | B109: 2 | C109: 2 | D109: 6 | E109: 5 | F109: 11
A110: 1 | B110: 2 | C110: 2 | D110: 2 | E110: 1 | F110: 12
A111: 2 | B111: 2 | C111: 3 | D111: 2 | E111: 8 | F111: 3
A112: 1 | B112: 2 | C112: 3 | D112: 3 | E112: 16 | F112: 10
A113: 3 | B113: 2 | C113: 4 | D113: 3 | E113: 3 | F113: 9
A114: 1 | B114: 2 | C114: 2 | D114: 3 | E114: 2 | F114: 10
A115: 3 | B115: 2 | C115: 1 | D115: 3 | E115: 12 | F115: 10
A116: 1 | B116: 2 | C116: 1 | D116: 3 | E116: 30 | F116: 7
A117: 1 | B117: 2 | C117: 1 | D117: 3 | E117: 1 | F117: 8
A118: 1 | B118: 3 | C118: 2 | D118: 4 | E118: 4 | F118: 2
A119: 2 | B119: 3 | C119: 1 | D119: 4 | E119: 3 | F119: 4
A120: 2 | B120: 3 | C120: 1 | D120: 6 | E120: 3 | F120: 5
A121: 2 | B121: 3 | C121: 1 | D121: 6 | E121: 1 | F121: 6
A122: 3 | B122: 3 | C122: 3 | D122: 6 | E122: 1 | F122: 6
A123: 2 | B123: 3 | C123: 4 | D123: 7 | E123: 1 | F123: 10
A124: 1 | B124: 3 | C124: 1 | D124: 1 | E124: 5 | F124: 13
A125: 1 | B125: 3 | C125: 3 | D125: 2 | E125: 4 | F125: 3
A126: 1 | B126: 3 | C126: 1 | D126: 2 | E126: 8 | F126: 3
A127: 2 | B127: 3 | C127: 6 | D127: 3 | E127: 6 | F127: 7
A128: 1 | B128: 3 | C128: 3 | D128: 4 | E128: 10 | F128: 13
A129: 4 | B129: 3 | C129: 3 | D129: 5 | E129: 2 | F129: 2
A130: 6 | B130: 3 | C130: 2 | D130: 8 | E130: 2 | F130: 7
A131: 7 | B131: 3 | C131: 1 | D131: 9 | E131: 5 | F131: 10
A132: 2 | B132: 3 | C132: 3 | D132: 1 | E132: 12 | F132: 17
A133: 3 | B133: 3 | C133: 4 | D133: 1 | E133: 3 | F133: 8
A134: 4 | B134: 3 | C134: 3 | D134: 3 | E134: 7 | F134: 3
A135: 2 | B135: 3 | C135: 3 | D135: 3 | E135: 5 | F135: 4
A136: 1 | B136: 3 | C136: 8 | D136: 4 | E136: 2 | F136: 16
A137: 1 | B137: 3 | C137: 4 | D137: 5 | E137: 1 | F137: 5
A138: 1 | B138: 3 | C138: 2 | D138: 5 | E138: 9 | F138: 8
A139: 1 | B139: 3 | C139: 4 | D139: 6 | E139: 11 | F139: 10
A140: 2 | B140: 3 | C140: 6 | D140: 6 | E140: 1 | F140: 13
A141: 2 | B141: 3 | C141: 6 | D141: 6 | E141: 7 | F141: 6
A142: 2 | B142: 3 | C142: 8 | D142: 9 | E142: 15 | F142: 6
A143: 1 | B143: 3 | C143: 4 | D143: 3 | E143: 18 | F143: 8
A144: 1 | B144: 3 | C144: 3 | D144: 3 | E144: 2 | F144: 17
A145: 1 | B145: 3 | C145: 6 | D145: 4 | E145: 5 | F145: 11
A146: 1 | B146: 3 | C146: 10 | D146: 5 | E146: 3 | F146: 3
A147: 2 | B147: 3 | C147: 17 | D147: 5 | E147: 1 | F147: 9
A148: 2 | B148: 3 | D148: 6 | E148: 31 | F148: 14
A149: 1 | B149: 3 | D149: 6 | E149: 19 | F149: 16
A150: 1 | B150: 3 | D150: 6 | E150: 13 | F150: 17
A151: 1 | B151: 3 | D151: 7 | E151: 1 | F151: 3
A152: 3 | B152: 3 | D152: 8 | E152: 1 | F152: 7
A153: 1 | B153: 3 | D153: 8 | E153: 5 | F153: 17
A154: 3 | B154: 3 | D154: 9 | E154: 1 | F154: 5
A155: 1 | B155: 3 | D155: 9 | E155: 1 | F155: 11
A156: 1 | B156: 3 | D156: 2 | E156: 19 | F156: 15
A157: 2 | B157: 3 | D157: 3 | E157: 1 | F157: 16
A158: 1 | B158: 3 | D158: 3 | E158: 1 | F158: 14
A159: 2 | B159: 3 | D159: 5 | E159: 3 | F159: 22
A160: 2 | B160: 3 | D160: 6 | E160: 18 | F160: 9
A161: 2 | B161: 3 | D161: 7 | E161: 1 | F161: 13
A162: 1 | B162: 3 | D162: 7 | E162: 6 | F162: 20
A163: 1 | B163: 3 | D163: 8 | E163: 6 | F163: 9
A164: 3 | B164: 4 | D164: 9 | E164: 4 | F164: 15
A165: 4 | B165: 4 | D165: 3 | E165: 4 | F165: 16
A166: 2 | B166: 4 | D166: 5 | E166: 3 | F166: 16
A167: 3 | B167: 4 | D167: 6 | E167: 8 | F167: 16
A168: 3 | B168: 4 | D168: 6 | E168: 5 | F168: 24
A169: 2 | B169: 4 | D169: 6 | E169: 12 | F169: 9
A170: 3 | B170: 4 | D170: 7 | E170: 1 | F170: 14
A171: 3 | B171: 4 | D171: 10 | E171: 10 | F171: 17
A172: 3 | B172: 4 | D172: 12 | E172: 4 | F172: 7
A173: 1 | B173: 4 | D173: 2 | E173: 6 | F173: 13
A174: 1 | B174: 4 | D174: 3 | E174: 10 | F174: 18
A175: 5 | B175: 4 | D175: 3 | E175: 2 | F175: 8
A176: 1 | B176: 4 | D176: 5 | E176: 7 | F176: 19
A177: 2 | B177: 4 | D177: 6 | E177: 5 | F177: 17
A178: 3 | B178: 4 | D178: 7 | E178: 1 | F178: 17
A179: 1 | B179: 4 | D179: 8 | E179: 3 | F179: 26
A180: 2 | B180: 4 | D180: 11 | E180: 2 | F180: 13
A181: 3 | B181: 4 | D181: 3 | E181: 6 | F181: 14
A182: 2 | B182: 4 | D182: 8 | E182: 3 | F182: 18
A183: 2 | B183: 4 | D183: 10 | E183: 25 | F183: 24
A184: 4 | B184: 4 | D184: 11 | E184: 26 | F184: 22
A185: 1 | B185: 4 | D185: 1 | E185: 4 | F185: 27
A186: 3 | B186: 4 | D186: 3 | E186: 2 | F186: 27
A187: 6 | B187: 4 | D187: 4 | E187: 1 | F187: 10
A188: 1 | B188: 4 | D188: 5 | E188: 1 | F188: 13
A189: 2 | B189: 4 | D189: 5 | E189: 6 | F189: 22
A190: 5 | B190: 4 | D190: 5 | E190: 2 | F190: 22
A191: 1 | B191: 4 | D191: 3 | E191: 4 | F191: 8
A192: 3 | B192: 4 | D192: 8 | E192: 2 | F192: 32
A193: 3 | B193: 5 | D193: 8 | E193: 6 | F193: 15
A194: 5 | B194: 5 | D194: 8 | E194: 8 | F194: 23
A195: 5 | B195: 5 | D195: 8 | E195: 7 | F195: 28
A196: 4 | B196: 5 | D196: 9 | E196: 1 | F196: 26
B197: 5 | D197: 5 | E197: 4 | F197: 41
B198: 5 | D198: 12 | E198: 2 | F198: 7
B199: 5 | D199: 14 | E199: 2 | F199: 7
B200: 5 | D200: 9 | E200: 4 | F200: 17
B201: 5 | D201: 9 | E201: 2 | F201: 20
B202: 5 | D202: 11 | E202: 1 | F202: 33
... 52 more rows

Sheet Supplementary Data 4
A1: Proportion of labelled projected area in induced YFP mice
A3: Refer to Supplementary Fig. 1c
M4: Kruskal-Wallis test
A5: Time point (week) | B5: mouse | C5: total labelled area | D5: total area | E5: % area | F5: Average | G5: s.d. | H5: s.e.m | M5: P value | N5: 0.5426
A6: 3 weeks | B6: 1 | C6: 35883.57 | D6: 3610821.466 | E6: 0.99% | F6: 1.34% | G6: 0.3716 | H6: 0.2146 | M6: Exact or approximate P value? | N6: Exact
B7: 2 | C7: 47024.92 | D7: 3610821.466 | E7: 1.30% | M7: P value summary | N7: ns
B8: 3 | C8: 62364.45 | D8: 3610821.466 | E8: 1.73% | M8: Do the medians vary signif. (P < 0.05)? | N8: No
A9: 6 weeks | B9: 4 | C9: 39465.77 | D9: 3610821.466 | E9: 1.09% | F9: 1.02% | G9: 0.09192 | H9: 0.065 | M9: Number of groups | N9: 4
B10: 5 | C10: 34534.36 | D10: 3610821.466 | E10: 0.96% | M10: Kruskal-Wallis statistic | N10: 2.424
A11: 12 weeks | B11: 6 | C11: 91587.16 | D11: 3610821.466 | E11: 2.54% | F11: 2.06% | G11: 1.024 | H11: 0.5914
B12: 7 | C12: 31755.46 | D12: 3610821.466 | E12: 0.88% | M12: Data summary
B13: 8 | C13: 99457.4 | D13: 3610821.466 | E13: 2.75% | J13: All time point | M13: Number of time points | N13: 4
A14: 24 weeks | B14: 9 | C14: 82839.32 | D14: 5416232.198 | E14: 1.53% | F14: 1.59% | G14: 0.3592 | H14: 0.2074 | J14: Mean | K14: 1.547 | M14: Number of values (total) | N14: 11
B15: 10 | C15: 60963.18 | D15: 4814428.621 | E15: 1.27% | J15: Std. Deviation | K15: 0.6404
B16: 11 | C16: 95107.99 | D16: 4814428.621 | E16: 1.98% | J16: Std. Error of Mean | K16: 0.1931
C17: (µm^2) | D17: (µm^2)

Sheet Supplementary Data 5
A1: Proportion of labelled projected area in induced p53*/wt mice
A3: Refers to Fig. 2c
A5: Time point (week) | B5: mouse | C5: GFP+ labelled area | D5: total area | E5: % GFP area | F5: average % | G5: s.d. | H5: s.e.m | J5: Kruskal-Wallis test
A6: 1.5 | B6: 1 | C6: 7966.17 | D6: 901671.4 | E6: 0.88% | F6: =AVERAGE(E6:E9) -> 0.56% | G6: 0.3797 | H6: 0.1898 | J6: P value | K6: 0.0115
B7: 2 | C7: 6730.51 | D7: 901084.42 | E7: 0.75% | J7: Exact or approximate P value? | K7: Approximate
B8: 3 | C8: 5479.95 | D8: 901524.62 | E8: 0.61% | J8: P value summary | K8: *
B9: 4 | C9: 169.16 | D9: 901377.83 | E9: 0.02% | J9: Do the medians vary signif. (P < 0.05)? | K9: Yes
A10: 3 | B10: 5 | C10: 11260.01 | D10: 900937.92 | E10: 1.25% | F10: =AVERAGE(E10:E13) -> 1.26% | G10: 0.7004 | H10: 0.3502 | J10: Number of groups | K10: 6
B11: 6 | C11: 6717.3 | D11: 900790.72 | E11: 0.75% | J11: Kruskal-Wallis statistic | K11: 14.76
B12: 7 | C12: 7230.42 | D12: 901818.6 | E12: 0.80%
B13: 8 | C13: 20394.73 | D13: 901377.56 | E13: 2.26% | J13: Data summary
A14: 6 | B14: 9 | C14: 6003.07 | D14: 901965.24 | E14: 0.67% | F14: =AVERAGE(E14:E16) -> 2.24% | G14: 1.357 | H14: 0.7834 | J14: Number of time points | K14: 6
B15: 10 | C15: 27319.67 | D15: 901377.41 | E15: 3.03% | J15: Number of values (total) | K15: 22
B16: 11 | C16: 27124.37 | D16: 901230.77 | E16: 3.01%
A17: 12 | B17: 12 | C17: 12055.79 | D17: 901965.24 | E17: 1.34% | F17: =AVERAGE(E17:E20) -> 2.66% | G17: 1.928 | H17: 0.9639
B18: 13 | C18: 37054.5 | D18: 900790.86 | E18: 4.11%
B19: 14 | C19: 6167.07 | D19: 899469.98 | E19: 0.69%
B20: 15 | C20: 40646.38 | D20: 901965.24 | E20: 4.51%
A21: 24 | B21: 16 | C21: 47237.86 | D21: 901671.68 | E21: 5.24% | F21: =AVERAGE(E21:E24) -> 5.36% | G21: 3.624 | H21: 1.812
B22: 17 | C22: 22714.07 | D22: 901377.84 | E22: 2.52%
B23: 18 | C23: 28605.08 | D23: 901524.47 | E23: 3.17%
B24: 19 | C24: 94687.21 | D24: 901084.14 | E24: 10.51%
A25: 52 | B25: 20 | C25: 163906.97 | D25: 901818.18 | E25: 18.18% | F25: =AVERAGE(E25:E27) -> 16.62% | G25: 2.542 | H25: 1.468
B26: 21 | C26: 123367.77 | D26: 901231.06 | E26: 13.69%
B27: 22 | C27: 162247.04 | D27: 901231.06 | E27: 18.00%
C28: (µm2) | D28: (µm2)

Sheet Supplementary Data 6
A1: Density of p53*/wt clones over the time
A3: Refers to Fig. 2d
A5: Time point (week) | B5: mouse | C5: clone count | D5: quantified area (µm^2) | E5: estimated cell numbers* | F5: % per 100 cells | G5: Mean | H5: s.d. | I5: s.e.m | K5: Kruskal-Wallis test
K6: P value | L6: 0.0439
A7: 1.5 | B7: 1 | C7: 21 | D7: 902705.3664 | E7: 11505.6 | F7: 0.1825198164 | G7: 0.1812 | H7: 0.1051 | I7: 0.05257 | K7: Exact or approximate P value? | L7: Approximate
B8: 2 | C8: 20 | D8: 902705.3664 | E8: 11505.6 | F8: 0.1738283966 | K8: P value summary | L8: *
B9: 3 | C9: 36 | D9: 902705.3664 | E9: 11505.6 | F9: 0.3128911139 | K9: Do the medians vary signif. (P < 0.05)? | L9: Yes
B10: 4 | C10: 16 | D10: 2256763.416 | E10: 28764.0 | F10: 0.05562508691 | K10: Number of groups | L10: 6
A11: 3 | B11: 5 | C11: 21 | D11: 902705.3664 | E11: 11505.6 | F11: 0.1825198164 | G11: 0.2825 | H11: 0.1329 | I11: 0.06643 | K11: Kruskal-Wallis statistic | L11: 11.41
B12: 6 | C12: 28 | D12: 902705.3664 | E12: 11505.6 | F12: 0.2433597552
B13: 7 | C13: 55 | D13: 902705.3664 | E13: 11505.6 | F13: 0.4780280907 | K13: Data summary
B14: 8 | C14: 26 | D14: 902705.3664 | E14: 11505.6 | F14: 0.2259769156 | K14: Number of time points | L14: 6
A15: 6 | B15: 9 | C15: 24 | D15: 902705.3664 | E15: 11505.6 | F15: 0.2085940759 | G15: 0.1854 | H15: 0.1148 | I15: 0.06626 | K15: Number of values (total) | L15: 22
B16: 10 | C16: 7 | D16: 902705.3664 | E16: 11505.6 | F16: 0.06083993881
B17: 11 | C17: 33 | D17: 902705.3664 | E17: 11505.6 | F17: 0.2868168544
A18: 12 | B18: 12 | C18: 4 | D18: 902705.3664 | E18: 11505.6 | F18: 0.03476567932 | G18: 0.0804 | H18: 0.04833 | I18: 0.02416
B19: 13 | C19: 13 | D19: 902705.3664 | E19: 11505.6 | F19: 0.1129884578
B20: 14 | C20: 5 | D20: 902705.3664 | E20: 11505.6 | F20: 0.04345709915
B21: 15 | C21: 15 | D21: 902705.3664 | E21: 11505.6 | F21: 0.1303712975
A22: 24 | B22: 16 | C22: 3 | D22: 902705.3664 | E22: 11505.6 | F22: 0.02607425949 | G22: 0.06084 | H22: 0.05166 | I22: 0.02583
B23: 17 | C23: 2 | D23: 902705.3664 | E23: 11505.6 | F23: 0.01738283966
B24: 18 | C24: 8 | D24: 902705.3664 | E24: 11505.6 | F24: 0.06953135864
B25: 19 | C25: 15 | D25: 902705.3664 | E25: 11505.6 | F25: 0.1303712975
A26: 52 | B26: 20 | C26: 9 | D26: 902705.3664 | E26: 11505.6 | F26: 0.07822277847 | G26: 0.06374 | H26: 0.01328 | I26: 0.007665
B27: 21 | C27: 6 | D27: 902705.3664 | E27: 11505.6 | F27: 0.05214851898
B28: 22 | C28: 7 | D28: 902705.3664 | E28: 11505.6 | F28: 0.06083993881
D30: Average cell numbers per quantification image
D31: area (µm^2) | E31: cell number | F31: mean cell no.
D32: 150450.8944 | E32: 1992 | F32: =AVERAGE(E32:E36) -> 1917.6
D33: 150450.8944 | E33: 2103
D34: 150450.8944 | E34: 1860
D35: 150450.8944 | E35: 1911
D36: 150450.8944 | E36: 1722

Sheet Supplementary Data 7
A1: Quantification of EdU-labelled basal cells in p53*/wt clones and non-labelled (p53wt/wt) areas
A3: Refers to Fig. 2e
C5: wild type area (p53wt/wt) | F5: clone area (p53*/wt) | J5: Paired t test
A6: Time | B6: mouse | C6: DAPI count | D6: EdU+ | E6: %EdU | F6: DAPI count | G6: EdU+ | H6: %EdU | J6: p53*/wt vs p53wt/wt
A7: 10 days | B7: 1 | C7: 2782 | D7: 275 | E7: 9.9% | F7: 292 | G7: 18 | H7: 6.2%
B8: 2 | C8: 3047 | D8: 175 | E8: 5.7% | F8: 68 | G8: 2 | H8: 2.9% | J8: P value | K8: 0.3241
B9: 3 | C9: 2503 | D9: 129 | E9: 5.2% | F9: 79 | G9: 9 | H9: 11.4% | J9: P value summary | K9: ns
B10: 4 | C10: 2962 | D10: 271 | E10: 9.1% | F10: 120 | G10: 17 | H10: 14.2% | J10: Significantly different (P < 0.05)? | K10: No
A11: 3 weeks | B11: 5 | C11: 2524 | D11: 179 | E11: 7.1% | F11: 210 | G11: 25 | H11: 11.9% | J11: One- or two-tailed P value? | K11: Two-tailed
B12: 6 | C12: 2590 | D12: 202 | E12: 7.8% | F12: 191 | G12: 12 | H12: 6.3% | J12: t, df | K12: t=1.010, df=21
B13: 7 | C13: 3175 | D13: 362 | E13: 11.4% | F13: 176 | G13: 20 | H13: 11.4% | J13: Number of pairs | K13: 22
B14: 8 | C14: 3458 | D14: 199 | E14: 5.8% | F14: 276 | G14: 15 | H14: 5.4%
A15: 6 weeks | B15: 9 | C15: 4833 | D15: 542 | E15: 11.2% | F15: 388 | G15: 35 | H15: 9.0% | J15: How big is the difference?
B16: 10 | C16: 4691 | D16: 544 | E16: 11.6% | F16: 522 | G16: 48 | H16: 9.2% | J16: Mean of differences | K16: -0.7545
B17: 11 | C17: 4829 | D17: 410 | E17: 8.5% | F17: 471 | G17: 27 | H17: 5.7% | J17: SD of differences | K17: 3.505
A18: 12 weeks | B18: 12 | C18: 3943 | D18: 332 | E18: 8.4% | F18: 327 | G18: 39 | H18: 11.9% | J18: SEM of differences | K18: 0.7472
B19: 13 | C19: 4084 | D19: 465 | E19: 11.4% | F19: 926 | G19: 115 | H19: 12.4% | J19: 95% confidence interval | K19: -2.308 to 0.7993
B20: 14 | C20: 4567 | D20: 385 | E20: 8.4% | F20: 488 | G20: 67 | H20: 13.7% | J20: R squared (partial eta squared) | K20: 0.04631
B21: 15 | C21: 4360 | D21: 460 | E21: 10.6% | F21: 1232 | G21: 94 | H21: 7.6%
A22: 24 weeks | B22: 16 | C22: 5160 | D22: 495 | E22: 9.6% | F22: 1589 | G22: 106 | H22: 6.7% | J22: How effective was the pairing?
B23: 17 | C23: 4428 | D23: 474 | E23: 10.7% | F23: 1439 | G23: 80 | H23: 5.6% | J23: Correlation coefficient (r) | K23: 0.1931
B24: 18 | C24: 4580 | D24: 505 | E24: 11.0% | F24: 1752 | G24: 151 | H24: 8.6% | J24: P value (one tailed) | K24: 0.1946
B25: 19 | C25: 4244 | D25: 591 | E25: 13.9% | F25: 945 | G25: 99 | H25: 10.5% | J25: P value summary | K25: ns
A26: 52 weeks | B26: 20 | C26: 3589 | D26: 296 | E26: 8.2% | F26: 1305 | G26: 88 | H26: 6.7% | J26: Was the pairing significantly effective? | K26: No
B27: 21 | C27: 4036 | D27: 432 | E27: 10.7% | F27: 860 | G27: 62 | H27: 7.2%
B28: 22 | C28: 4026 | D28: 366 | E28: 9.1% | F28: 955 | G28: 40 | H28: 4.2%
A30: Number of values | C30: 22 | F30: 22
A31: Mean | C31: 9.332 | F31: 8.577
A32: Std. Deviation | C32: 2.187 | F32: 3.193
A33: Std. Error of Mean | C33: 0.4663 | F33: 0.6808

Sheet Supplementary Data 8
A1: in vitro competition assay
A3: Refers to Fig. 3c and Supplementary Fig. 4d
B5: p53*/wt vs p53wt/wt | J5: p53*/wt vs p53wt/-
C6: % population of GFP+ cells | E6: Fold change | K6: % population of GFP+ cells | M6: Fold change
B7: Biological replicates | C7: Day 0 | D7: Day 28 | J7: Biological replicates | K7: Day 0 | L7: Day 28
B8: 1 | C8: 11.5 | D8: 34.6 | E8: =D8/C8 -> 3.008695652 | J8: 1 | K8: 14.9 | L8: 52.2 | M8: =L8/K8 -> 3.503355705
B9: 2 | C9: 9.02 | D9: 22.1 | E9: =D9/C9 -> 2.450110865 | J9: 2 | K9: 10.2 | L9: 33.8 | M9: =L9/K9 -> 3.31372549
B10: 3 | C10: 9.65 | D10: 19.6 | E10: =D10/C10 -> 2.031088083 | J10: 3 | K10: 11.1 | L10: 29.4 | M10: =L10/K10 -> 2.648648649
B12: p53*/- vs p53wt/wt | J12: p53*/- vs p53wt/-
C13: % population of GFP+ cells | E13: Fold change | K13: % population of GFP+ cells | M13: Fold change
B14: Biological replicates | C14: Day 0 | D14: Day 28 | J14: Biological replicates | K14: Day 0 | L14: Day 28
B15: 4 | C15: 6.81 | D15: 21.1 | E15: =D15/C15 -> 3.098384728 | J15: 4 | K15: 10.5 | L15: 36.9 | M15: =L15/K15 -> 3.514285714
B16: 5 | C16: 26.4 | D16: 59 | E16: =D16/C16 -> 2.234848485 | J16: 5 | K16: 36.8 | L16: 77 | M16: =L16/K16 -> 2.092391304
B17: 6 | C17: 11.5 | D17: 23.7 | E17: =D17/C17 -> 2.060869565 | J17: 6 | K17: 20.5 | L17: 47.7 | M17: =L17/K17 -> 2.326829268
C20: p53*/wt vs p53wt/wt | D20: p53*/- vs p53wt/wt | F20: Table Analyzed | G20: */wt vs */- stat | K20: p53*/wt vs p53wt/- | L20: p53*/- vs p53wt/- | N20: Table Analyzed | O20: */wt vs */- stat
B22: Ratio paired t test | F22: Unpaired t test | J22: Ratio paired t test | N22: Unpaired t test
B23: P value | C23: 0.0155 | D23: 0.0192 | F23: P value | G23: 0.9441 | J23: P value | K23: 0.0056 | L23: 0.0268 | N23: P value | O23: 0.3739
B24: P value summary | C24: * | D24: * | F24: P value summary | G24: ns | J24: P value summary | K24: ** | L24: * | N24: P value summary | O24: ns
B25: Significantly different (P < 0.05)? | C25: Yes | D25: Yes | F25: Significantly different (P < 0.05)? | G25: No | J25: Significantly different (P < 0.05)? | K25: Yes | L25: Yes | N25: Significantly different (P < 0.05)? | O25: No
B26: One- or two-tailed P value? | C26: Two-tailed | D26: Two-tailed | F26: One- or two-tailed P value? | G26: Two-tailed | J26: One- or two-tailed P value? | K26: Two-tailed | L26: Two-tailed | N26: One- or two-tailed P value? | O26: Two-tailed
B27: t, df | C27: t=7.950, df=2 | D27: t=7.110, df=2 | F27: t, df | G27: t=0.07462, df=4 | J27: t, df | K27: t=13.36, df=2 | L27: t=5.985, df=2 | N27: t, df | O27: t=1.000, df=4
B28: Number of pairs | C28: 3 | D28: 3 | J28: Number of pairs | K28: 3 | L28: 3
F29: How big is the difference? | N29: How big is the difference?
B30: How big is the difference? | F30: Mean of column A | G30: 2.497 | J30: How big is the difference? | N30: Mean of column D | O30: 3.155
B31: Geometric mean of ratios | C31: 2.465 | D31: 2.426 | F31: Mean of column B | G31: 2.465 | J31: Geometric mean of ratios | K31: 3.133 | L31: 2.577 | N31: Mean of column E | O31: 2.645
B32: SD of log(ratios) | C32: 0.08535 | D32: 0.09375 | F32: Difference between means (B - A) ± SEM | G32: -0.03193 ± 0.4279 | J32: SD of log(ratios) | K32: 0.06429 | L32: 0.119 | N32: Difference between means (E - D) ± SEM | O32: -0.5107 ± 0.5108
B33: SEM of log(ratios) | C33: 0.04928 | D33: 0.05412 | F33: 95% confidence interval | G33: -1.220 to 1.156 | J33: SEM of log(ratios) | K33: 0.03712 | L33: 0.06868 | N33: 95% confidence interval | O33: -1.929 to 0.9073
B34: 95% confidence interval | C34: 1.513 to 4.016 | D34: 1.419 to 4.147 | F34: R squared (eta squared) | G34: 0.00139 | J34: 95% confidence interval | K34: 2.169 to 4.525 | L34: 1.305 to 5.089 | N34: R squared (eta squared) | O34: 0.2
B35: R squared (partial eta squared) | C35: 0.9693 | D35: 0.9619 | J35: R squared (partial eta squared) | K35: 0.9889 | L35: 0.9471
F36: F test to compare variances | N36: F test to compare variances
F37: F, DFn, Dfd | G37: 1.283, 2, 2 | N37: F, DFn, Dfd | O37: 2.884, 2, 2
F38: P value | G38: 0.8759 | N38: P value | O38: 0.5149
F39: P value summary | G39: ns | N39: P value summary | O39: ns
F40: Significantly different (P < 0.05)? | G40: No | N40: Significantly different (P < 0.05)? | O40: No

Sheet Supplementary Data 9
A1: RNAseq Transcripts Per Milion
A3: Refer to Fig. 3d and Supplementary Fig. 4b
A6: Cell Cycle
B7: p53wt/wt | H7: p53*/wt | N7: p53wt/- | T7: p53*/-
A8: Genes | B8: 1 | C8: 2 | D8: 3 | E8: 4 | F8: 5 | G8: 6 | H8: 1 | I8: 2 | J8: 3 | K8: 4 | L8: 5 | M8: 6 | N8: 1 | O8: 2 | P8: 3 | Q8: 4 | R8: 5 | S8: 6 | T8: 1 | U8: 2 | V8: 3 | W8: 4 | X8: 5 | Y8: 6
A9: Bach1 | B9: 24.5108087 | C9: 23.54177632 | D9: 22.2398233 | E9: 25.6038072 | F9: 23.3805886 | G9: 24.63227635 | H9: 34.14042933 | I9: 30.77048754 | J9: 35.35476958 | K9: 34.13797954 | L9: 32.94428815 | M9: 31.72707094 | N9: 26.33479168 | O9: 26.97013869 | P9: 25.68001223 | Q9: 23.41377457 | R9: 23.45896004 | S9: 22.81859133 | T9: 35.16085049 | U9: 34.1271501 | V9: 34.07527796 | W9: 32.06563797 | X9: 32.73963146 | Y9: 32.60538834
A10: Calm2 | B10: 264.6661757 | C10: 263.8099378 | D10: 267.8226965 | E10: 229.9558064 | F10: 211.5610966 | G10: 195.9610095 | H10: 377.5834248 | I10: 380.4836924 | J10: 383.6195952 | K10: 319.7464308 | L10: 336.4704225 | M10: 331.0880143 | N10: 289.5020021 | O10: 291.2637328 | P10: 320.2662309 | Q10: 266.3687869 | R10: 247.7383678 | S10: 215.6607071 | T10: 383.6639825 | U10: 419.3178261 | V10: 385.5912851 | W10: 327.8444461 | X10: 334.5896255 | Y10: 307.8818649
A11: Calm3 | B11: 154.668477 | C11: 162.5335915 | D11: 165.6253021 | E11: 115.6011501 | F11: 97.31970274 | G11: 95.93006009 | H11: 249.2323714 | I11: 273.4470096 | J11: 260.9283112 | K11: 258.7752041 | L11: 260.2381311 | M11: 269.1979807 | N11: 164.4383993 | O11: 165.1103134 | P11: 177.5285491 | Q11: 175.2500237 | R11: 134.6962589 | S11: 133.7576113 | T11: 248.3724979 | U11: 268.1666056 | V11: 250.0030245 | W11: 226.8032917 | X11: 216.1607533 | Y11: 209.0073322
A12: Camk1 | B12: 9.233029751 | C12: 10.01787603 | D12: 10.84772324 | E12: 12.51450356 | F12: 13.63620099 | G12: 10.81461095 | H12: 13.91371851 | I12: 15.77078212 | J12: 14.18859908 | K12: 13.57749326 | L12: 16.00074953 | M12: 13.8246647 | N12: 8.187126865 | O12: 8.668652236 | P12: 9.695334522 | Q12: 9.026243692 | R12: 7.558557628 | S12: 6.931473248 | T12: 11.41666256 | U12: 11.67220227 | V12: 11.0504176 | W12: 8.824870155 | X12: 9.775254637 | Y12: 8.621172421
A13: Camk2b | B13: 2.623810078 | C13: 2.818893713 | D13: 2.665649483 | E13: 3.49773699 | F13: 2.945226499 | G13: 2.497889169 | H13: 5.901201348 | I13: 5.256764448 | J13: 5.570010072 | K13: 4.897121599 | L13: 5.270740219 | M13: 6.633030256 | N13: 2.589799908 | O13: 2.534357069 | P13: 2.981012206 | Q13: 3.584619838 | R13: 2.319414646 | S13: 2.427088156 | T13: 8.304429209 | U13: 9.250061254 | V13: 7.830366527 | W13: 6.421281399 | X13: 7.313802973 | Y13: 6.502947566
A14: Camk2n1 | B14: 35.85553721 | C14: 35.7781787 | D14: 36.38775347 | E14: 43.79959614 | F14: 44.12516355 | G14: 37.27132859 | H14: 58.8353286 | I14: 66.7221316 | J14: 55.56640711 | K14: 63.84462605 | L14: 83.56971377 | M14: 63.34264136 | N14: 19.17415989 | O14: 20.966441 | P14: 21.23168345 | Q14: 26.63834019 | R14: 26.75263733 | S14: 29.85751447 | T14: 59.93766541 | U14: 63.34778196 | V14: 51.85023292 | W14: 70.49604873 | X14: 71.82729128 | Y14: 69.99531349
A15: Casp3 | B15: 45.40291131 | C15: 47.11679085 | D15: 45.45560444 | E15: 47.92759873 | F15: 52.51588816 | G15: 42.45609224 | H15: 69.34365194 | I15: 68.23088904 | J15: 74.05716222 | K15: 64.13242416 | L15: 67.64753038 | M15: 71.46600411 | N15: 46.54456541 | O15: 50.15761293 | P15: 50.44016477 | Q15: 53.4162521 | R15: 47.32655222 | S15: 44.27030135 | T15: 61.62427328 | U15: 65.22691977 | V15: 62.2082701 | W15: 63.01614378 | X15: 58.18728079 | Y15: 61.9383212
A16: Ccnd2 | B16: 160.4589959 | C16: 97.73289725 | D16: 97.88575437 | E16: 125.9174109 | F16: 188.6368445 | G16: 121.1432596 | H16: 220.2013705 | I16: 216.7672218 | J16: 236.1501431 | K16: 169.7609625 | L16: 185.3635059 | M16: 205.0779982 | N16: 146.1158538 | O16: 160.3162881 | P16: 169.1254733 | Q16: 137.9923357 | R16: 129.8172792 | S16: 130.4410813 | T16: 213.4509687 | U16: 231.2304903 | V16: 222.2560223 | W16: 180.0189391 | X16: 179.2934484 | Y16: 174.6829447
A17: Cdc14a | B17: 5.554355218 | C17: 6.934453947 | D17: 7.011478879 | E17: 8.356910082 | F17: 5.446341393 | G17: 7.190539224 | H17: 16.85848493 | I17: 14.08754966 | J17: 14.62017626 | K17: 16.17431166 | L17: 13.36873948 | M17: 12.79238 | N17: 5.274896632 | O17: 6.167494813 | P17: 5.860753131 | Q17: 5.780638548 | R17: 5.661076991 | S17: 5.392869959 | T17: 14.18908632 | U17: 12.53464337 | V17: 12.60643886 | W17: 10.14296569 | X17: 10.17912294 | Y17: 10.19937513
A18: Cdc73 | B18: 10.26036696 | C18: 10.36292383 | D18: 10.37477043 | E18: 10.79149967 | F18: 10.49968072 | G18: 11.07071185 | H18: 13.0841616 | I18: 11.74669701 | J18: 13.56402365 | K18: 12.91399234 | L18: 12.00618456 | M18: 12.15536938 | N18: 9.116595217 | O18: 9.622927353 | P18: 9.767872102 | Q18: 9.195079221 | R18: 8.58245254 | S18: 8.14764915 | T18: 10.94927913 | U18: 11.50981998 | V18: 11.80854883 | W18: 11.12312088 | X18: 10.8891919 | Y18: 10.70645939
A19: Cdkn2a | B19: 80.34196132 | C19: 49.75405138 | D19: 52.26198651 | E19: 51.30499169 | F19: 57.1131645 | G19: 38.89631172 | H19: 85.98042002 | I19: 95.19620993 | J19: 83.82059485 | K19: 92.33640793 | L19: 103.1245307 | M19: 88.93036957 | N19: 66.85725985 | O19: 65.10083088 | P19: 66.85179225 | Q19: 69.17223991 | R19: 69.81703927 | S19: 68.4140743 | T19: 203.1089549 | U19: 202.8561948 | V19: 195.5539996 | W19: 201.745021 | X19: 208.5279393 | Y19: 206.4291062
A20: Cep85 | B20: 11.42043855 | C20: 11.2352871 | D20: 10.16036427 | E20: 16.97074726 | F20: 18.89065914 | G20: 14.76290662 | H20: 19.02329032 | I20: 21.12758307 | J20: 18.83324764 | K20: 19.18218184 | L20: 21.91558182 | M20: 19.51053625 | N20: 13.21178527 | O20: 13.14040562 | P20: 13.36245464 | Q20: 14.65549993 | R20: 14.17591828 | S20: 14.06273404 | T20: 17.90470632 | U20: 20.36617643 | V20: 18.78992882 | W20: 15.13402946 | X20: 18.00555638 | Y20: 15.56155717
A21: Chchd3 | B21: 42.3368686 | C21: 45.13938137 | D21: 44.18047433 | E21: 30.67723187 | F21: 37.88397374 | G21: 33.74924289 | H21: 52.75849584 | I21: 53.27940375 | J21: 54.30314712 | K21: 51.07881446 | L21: 52.55808327 | M21: 53.38658816 | N21: 47.63573009 | O21: 47.70379177 | P21: 49.90006218 | Q21: 49.05815378 | R21: 47.30474885 | S21: 46.55368793 | T21: 48.91125713 | U21: 48.83759475 | V21: 49.76252329 | W21: 50.96727391 | X21: 51.33979544 | Y21: 52.12276307
A22: Ctnnb1 | B22: 664.5566246 | C22: 715.8222816 | D22: 712.9017851 | E22: 607.8070163 | F22: 567.8000019 | G22: 563.6922476 | H22: 976.9659911 | I22: 938.879406 | J22: 981.4451483 | K22: 898.8059751 | L22: 858.5946156 | M22: 921.1408895 | N22: 724.9670244 | O22: 742.4208623 | P22: 724.5187863 | Q22: 693.0748771 | R22: 624.9325372 | S22: 628.6562025 | T22: 958.9322071 | U22: 937.3151609 | V22: 918.712746 | W22: 845.82827 | X22: 826.666268 | Y22: 835.9844785
A23: Cul4b | B23: 39.25350979 | C23: 38.83670376 | D23: 40.26296964 | E23: 42.3053046 | F23: 37.36139246 | G23: 39.29843418 | H23: 50.05279222 | I23: 45.58680145 | J23: 49.27424596 | K23: 44.68466518 | L23: 43.06600131 | M23: 44.84572124 | N23: 42.00591735 | O23: 42.89152691 | P23: 44.01148073 | Q23: 40.63567317 | R23: 38.88950249 | S23: 37.84079678 | T23: 49.9912691 | U23: 50.80180868 | V23: 49.42415144 | W23: 50.3127274 | X23: 47.27929545 | Y23: 45.82687455
A24: Dab2ip | B24: 39.43481876 | C24: 35.93117492 | D24: 35.50474272 | E24: 40.59622515 | F24: 41.53972808 | G24: 43.6444309 | H24: 54.60557021 | I24: 57.08198014 | J24: 56.36240455 | K24: 57.07604906 | L24: 55.69709037 | M24: 54.89893413 | N24: 33.98183692 | O24: 34.53457114 | P24: 32.91295365 | Q24: 34.84427474 | R24: 29.83221625 | S24: 33.58961755 | T24: 46.32439828 | U24: 48.97522559 | V24: 46.88159201 | W24: 38.70567027 | X24: 41.11750542 | Y24: 40.6901465
A25: Foxg1 | B25: 6.282774469 | C25: 2.25384387 | D25: 2.063639729 | E25: 5.719788443 | F25: 3.570610234 | G25: 3.831422853 | H25: 75.36845242 | I25: 76.79679065 | J25: 78.52374753 | K25: 68.79361293 | L25: 67.72424743 | M25: 70.22559105 | N25: 25.04273734 | O25: 25.24921059 | P25: 26.39204826 | Q25: 27.64359954 | R25: 22.05089853 | S25: 21.61191094 | T25: 52.29450834 | U25: 54.57317235 | V25: 52.05262956 | W25: 43.58162924 | X25: 44.57584476 | Y25: 43.64387736
A26: Foxn3 | B26: 11.67218781 | C26: 12.98654953 | D26: 12.89293343 | E26: 13.88216201 | F26: 12.92857984 | G26: 13.86498675 | H26: 14.61784991 | I26: 11.90251495 | J26: 15.64713695 | K26: 13.7321054 | L26: 15.32218038 | M26: 13.82091041 | N26: 12.99294906 | O26: 12.47241636 | P26: 12.33866674 | Q26: 12.22836165 | R26: 10.78518759 | S26: 11.7533012 | T26: 15.14456626 | U26: 14.80740425 | V26: 14.84004132 | W26: 13.05618778 | X26: 13.81945025 | Y26: 13.12212796
A27: Igf1r | B27: 59.95823181 | C27: 57.98447707 | D27: 55.69590668 | E27: 76.36927648 | F27: 58.20782484 | G27: 79.31675439 | H27: 78.61235862 | I27: 76.52749904 | J27: 82.41019862 | K27: 94.79067421 | L27: 90.75355893 | M27: 85.06123192 | N27: 62.64811293 | O27: 60.85921683 | P27: 58.18221517 | Q27: 62.66372976 | R27: 54.13100862 | S27: 58.76231953 | T27: 69.53126881 | U27: 73.84533336 | V27: 71.17060995 | W27: 82.16600288 | X27: 80.75627832 | Y27: 77.90998657
A28: Itgb1 | B28: 496.7342872 | C28: 393.0064196 | D28: 388.7710957 | E28: 394.0711489 | F28: 335.2795766 | G28: 351.7824171 | H28: 661.7135871 | I28: 641.1576179 | J28: 622.0205294 | K28: 676.5614514 | L28: 728.3754306 | M28: 596.4878364 | N28: 426.5939949 | O28: 449.870767 | P28: 458.2265385 | Q28: 399.1753917 | R28: 378.3354192 | S28: 395.3220188 | T28: 539.6880916 | U28: 563.7092385 | V28: 533.5941461 | W28: 576.2259768 | X28: 554.1269576 | Y28: 540.3764269
A29: Klhl21 | B29: 53.83092079 | C29: 51.18045209 | D29: 52.19278796 | E29: 50.59364045 | F29: 52.33845791 | G29: 58.82958843 | H29: 64.94781569 | I29: 60.69650179 | J29: 61.19418575 | K29: 62.17662493 | L29: 59.75114363 | M29: 61.8902722 | N29: 64.97889835 | O29: 64.73223776 | P29: 64.24775737 | Q29: 61.51067868 | R29: 49.42665362 | S29: 55.59524563 | T29: 79.60727867 | U29: 72.79845751 | V29: 75.31826107 | W29: 67.90036042 | X29: 66.74470783 | Y29: 67.59459087
A30: Klhl22 | B30: 18.87786086 | C30: 19.8766677 | D30: 19.60281183 | E30: 22.81464599 | F30: 27.87961867 | G30: 22.49514375 | H30: 24.95108387 | I30: 23.873434 | J30: 22.93424927 | K30: 22.52671507 | L30: 23.6858287 | M30: 22.29941857 | N30: 14.26788807 | O30: 13.32381584 | P30: 15.37141357 | Q30: 15.5061703 | R30: 14.22551428 | S30: 15.27778504 | T30: 18.35578626 | U30: 17.9590331 | V30: 17.16563521 | W30: 16.87859416 | X30: 18.66345642 | Y30: 17.21094544
A31: Met | B31: 106.8380705 | C31: 84.12274734 | D31: 82.1185279 | E31: 97.85164279 | F31: 87.01231129 | G31: 90.10736783 | H31: 115.7994408 | I31: 112.976332 | J31: 115.2409624 | K31: 109.4445864 | L31: 120.538939 | M31: 101.2037626 | N31: 93.67391739 | O31: 101.7412037 | P31: 103.1420453 | Q31: 85.64087019 | R31: 90.55007544 | S31: 93.38679049 | T31: 127.6700872 | U31: 137.9182821 | V31: 124.5053968 | W31: 126.7305273 | X31: 121.6821202 | Y31: 122.1496326
A32: Nfe2l1 | B32: 190.9771226 | C32: 185.4826287 | D32: 183.1491461 | E32: 171.9661195 | F32: 205.3362603 | G32: 191.6803627 | H32: 265.3440739 | I32: 251.3937645 | J32: 260.6075025 | K32: 241.4797583 | L32: 236.5566289 | M32: 236.1306229 | N32: 176.1520537 | O32: 175.2171384 | P32: 179.5795939 | Q32: 165.4511699 | R32: 150.5769042 | S32: 166.4424815 | T32: 219.0682857 | U32: 223.2628621 | V32: 227.1902914 | W32: 207.0226189 | X32: 208.0448731 | Y32: 206.4026931
A33: Nin | B33: 5.004224647 | C33: 4.571873875 | D33: 4.581810684 | E33: 6.482759833 | F33: 7.382498592 | G33: 6.089761888 | H33: 7.168653881 | I33: 6.859069313 | J33: 8.146888077 | K33: 5.406139951 | L33: 5.754746262 | M33: 6.317909994 | N33: 4.696035196 | O33: 4.672317312 | P33: 5.034174773 | Q33: 4.239038168 | R33: 3.376512258 | S33: 2.830233686 | T33: 7.774347873 | U33: 8.465197493 | V33: 7.792423345 | W33: 4.882150597 | X33: 5.36802893 | Y33: 5.114026536
A34: Pbx1 | B34: 41.97984282 | C34: 44.07574853 | D34: 42.85565922 | E34: 39.38890703 | F34: 31.62483933 | G34: 38.70227032 | H34: 49.19397151 | I34: 46.71445438 | J34: 49.71546857 | K34: 45.86932336 | L34: 44.43252721 | M34: 44.31296038 | N34: 29.67768575 | O34: 32.12151035 | P34: 31.47439453 | Q34: 32.95614885 | R34: 27.78557531 | S34: 25.72860722 | T34: 47.45542369 | U34: 48.08063303 | V34: 47.53779627 | W34: 43.0248189 | X34: 42.29545245 | Y34: 40.22260136
A35: Pebp1 | B35: 203.301728 | C35: 253.7556262 | D35: 245.3777771 | E35: 157.2103807 | F35: 161.3263898 | G35: 142.0110959 | H35: 348.3706683 | I35: 371.335799 | J35: 341.2246258 | K35: 320.5418407 | L35: 327.3523829 | M35: 340.7118158 | N35: 225.5687784 | O35: 213.2591639 | P35: 241.8957829 | Q35: 209.7776063 | R35: 183.5044601 | S35: 191.6749364 | T35: 322.1826867 | U35: 329.0375096 | V35: 308.7253142 | W35: 309.8155126 | X35: 286.7686013 | Y35: 284.3381417
A36: Pkp4 | B36: 59.06310361 | C36: 71.31251505 | D36: 69.94550494 | E36: 67.14114089 | F36: 53.39987283 | G36: 73.23955201 | H36: 69.37031962 | I36: 66.26341455 | J36: 72.21790617 | K36: 76.64160313 | L36: 75.98201539 | M36: 71.24847405 | N36: 58.68790699 | O36: 56.53926795 | P36: 57.4749504 | Q36: 64.71381682 | R36: 56.93636551 | S36: 55.67119665 | T36: 79.30924952 | U36: 77.91803017 | V36: 76.90465098 | W36: 74.41194596 | X36: 73.93780111 | Y36: 75.82904294
A37: Psme1 | B37: 93.94748395 | C37: 100.5638041 | D37: 100.4327416 | E37: 88.34869956 | F37: 88.78718704 | G37: 77.3975394 | H37: 101.6557424 | I37: 104.391852 | J37: 96.37261708 | K37: 103.0539969 | L37: 111.6671577 | M37: 100.3142022 | N37: 65.04395605 | O37: 61.96685592 | P37: 70.51635452 | Q37: 71.24579547 | R37: 67.05263935 | S37: 59.57774648 | T37: 93.93462486 | U37: 90.41523235 | V37: 89.57326337 | W37: 92.83824114 | X37: 98.57765288 | Y37: 90.81317328
A38: Rab11fip4 | B38: 0.769724848 | C38: 0.82945164 | D38: 0.882706639 | E38: 0.751502802 | F38: 1.10024161 | G38: 0.7691748 | H38: 0.69734321 | I38: 1.010971515 | J38: 1.11687831 | K38: 0.905956083 | L38: 1.111896915 | M38: 1.073147339 | N38: 0.584488797 | O38: 0.777121029 | P38: 0.764473238 | Q38: 0.625938106 | R38: 0.527843268 | S38: 0.465394297 | T38: 1.433509295 | U38: 1.439334026 | V38: 1.390207991 | W38: 1.002672653 | X38: 1.18507725 | Y38: 1.095098864
A39: Rabgap1 | B39: 19.36408103 | C39: 20.65343411 | D39: 20.68575318 | E39: 24.3241947 | F39: 26.82790884 | G39: 25.17779427 | H39: 25.03250238 | I39: 23.22314462 | J39: 25.87994695 | K39: 23.90029888 | L39: 23.60477407 | M39: 24.18000885 | N39: 20.9196253 | O39: 21.54797391 | P39: 21.43707161 | Q39: 21.17756178 | R39: 20.45782915 | S39: 19.27813678 | T39: 23.84709566 | U39: 24.00356603 | V39: 23.468975 | W39: 22.91566779 | X39: 22.9731453 | Y39: 22.67536455
A40: Rps6ka2 | B40: 2.639190768 | C40: 2.784981318 | D40: 2.767304786 | E40: 2.909238586 | F40: 4.264790354 | G40: 2.768720272 | H40: 5.465937906 | I40: 5.957039488 | J40: 6.239536238 | K40: 5.036070471 | L40: 6.254408313 | M40: 6.272423246 | N40: 3.254793404 | O40: 3.9004828 | P40: 3.69276273 | Q40: 3.602755012 | R40: 3.096177996 | S40: 2.827035718 | T40: 5.101541031 | U40: 5.379788982 | V40: 5.202769248 | W40: 4.752984011 | X40: 4.049656769 | Y40: 4.46222901
A41: Unc119 | B41: 12.39586541 | C41: 15.46323347 | D41: 14.93446236 | E41: 12.63324288 | F41: 13.8691508 | G41: 12.08101983 | H41: 18.75526938 | I41: 21.24943 | J41: 21.24996548 | K41: 19.62667559 | L41: 22.25246085 | M41: 20.69160688 | N41: 12.85303065 | O41: 13.88910464 | P41: 14.27758122 | Q41: 14.35912676 | R41: 13.65611177 | S41: 16.27667269 | T41: 18.40792526 | U41: 18.06467309 | V41: 18.09134592 | W41: 19.34515944 | X41: 19.4012702 | Y41: 19.82283187
A42: Aaas | B42: 46.36981989 | C42: 40.74408402 | D42: 39.59614508 | E42: 81.56768689 | F42: 128.6564739 | G42: 74.34442251 | H42: 26.27084151 | I42: 31.26644844 | J42: 27.03870659 | K42: 19.81339425 | L42: 22.00296984 | M42: 20.56054003 | N42: 36.04649225 | O42: 34.25700856 | P42: 41.33075054 | Q42: 40.22950549 | R42: 42.65380926 | S42: 44.99936084 | T42: 26.94431897 | U42: 30.54165191 | V42: 27.14243984 | W42: 14.72178311 | X42: 16.52549657 | Y42: 15.81739036
A43: Afap1l2 | B43: 46.52984407 | C43: 66.90689423 | D43: 68.85996968 | E43: 66.42328366 | F43: 67.87710783 | G43: 68.56177797 | H43: 19.6568141 | I43: 20.8577139 | J43: 20.09688629 | K43: 19.43774527 | L43: 20.58128436 | M43: 22.65248019 | N43: 42.92596491 | O43: 45.8086439 | P43: 49.96260208 | Q43: 52.95043156 | R43: 53.08624102 | S43: 53.90652471 | T43: 38.41980577 | U43: 37.47360927 | V43: 35.18867636 | W43: 37.27665919 | X43: 37.97202946 | Y43: 41.40937877
A44: Ago4 | B44: 6.980197997 | C44: 9.967126023 | D44: 9.599691041 | E44: 11.44553803 | F44: 13.04749311 | G44: 13.59009386 | H44: 2.370727217 | I44: 2.598268541 | J44: 2.64875862 | K44: 3.763621153 | L44: 3.561862282 | M44: 3.7332546 | N44: 6.268930509 | O44: 5.956480017 | P44: 5.851102479 | Q44: 7.511003902 | R44: 6.030808272 | S44: 5.759156941 | T44: 4.525264135 | U44: 3.915190198 | V44: 4.315978522 | W44: 4.812708138 | X44: 5.143333888 | Y44: 5.218619682
A45: Appl1 | B45: 26.11646625 | C45: 25.31751845 | D45: 25.83281431 | E45: 32.82691893 | F45: 33.23194977 | G45: 35.30930653 | H45: 22.6741925 | I45: 21.07295704 | J45: 23.7129796 | K45: 21.28883979 | L45: 22.06468838 | M45: 21.40385054 | N45: 23.3519792 | O45: 24.00090544 | P45: 24.33639676 | Q45: 21.82353766 | R45: 23.08149708 | S45: 21.03747601 | T45: 21.09708449 | U45: 21.3659076 | V45: 21.65933536 | W45: 20.39101144 | X45: 21.23372709 | Y45: 20.87377834
A46: Cdkn1a | B46: 551.7808206 | C46: 447.4218352 | D46: 445.7126835 | E46: 474.9425725 | F46: 551.2685906 | G46: 481.5737671 | H46: 259.7987543 | I46: 253.4220533 | J46: 242.0764343 | K46: 295.9480676 | L46: 304.9404745 | M46: 332.7335543 | N46: 408.8849856 | O46: 395.1257899 | P46: 386.1992349 | Q46: 426.3033255 | R46: 408.0134709 | S46: 426.5143323 | T46: 230.2020224 | U46: 217.2690662 | V46: 234.6950645 | W46: 269.1782098 | X46: 268.0583467 | Y46: 283.8242504
A47: Chfr | B47: 33.96980055 | C47: 37.06629801 | D47: 36.36234924 | E47: 48.83899333 | F47: 51.19308258 | G47: 47.48597552 | H47: 33.77563104 | I47: 33.45774205 | J47: 34.03655929 | K47: 34.46123612 | L47: 33.82431882 | M47: 34.57726027 | N47: 39.6033888 | O47: 40.62241083 | P47: 39.89295268 | Q47: 40.05582178 | R47: 41.40543229 | S47: 41.37690374 | T47: 39.40773714 | U47: 38.51273092 | V47: 37.74998317 | W47: 35.74892927 | X47: 38.04964665 | Y47: 36.36109241
A48: Csnk1a1 | B48: 173.7228296 | C48: 161.2524032 | D48: 160.4255979 | E48: 175.2313765 | F48: 196.6569052 | G48: 184.8648064 | H48: 144.306186 | I48: 137.3568261 | J48: 148.4453322 | K48: 145.6305064 | L48: 139.6689119 | M48: 145.6091063 | N48: 176.961367 | O48: 175.4451521 | P48: 175.1892117 | Q48: 158.7408987 | R48: 167.9806347 | S48: 166.7240262 | T48: 146.5379195 | U48: 144.6544513 | V48: 148.5903089 | W48: 142.4288809 | X48: 144.633197 | Y48: 148.2310164
A49: Hace1 | B49: 9.815928055 | C49: 11.08331945 | D49: 11.05071809 | E49: 14.21455158 | F49: 15.25589896 | G49: 15.56799174 | H49: 10.01241021 | I49: 9.970258546 | J49: 11.20468379 | K49: 9.832818715 | L49: 9.076823724 | M49: 9.890433876 | N49: 9.77515811 | O49: 9.890652726 | P49: 10.38450344 | Q49: 8.897590936 | R49: 9.316160187 | S49: 8.423442177 | T49: 9.533487563 | U49: 9.129499902 | V49: 9.47784211 | W49: 6.659086706 | X49: 7.094778076 | Y49: 7.309524233
A50: Klhl18 | B50: 22.95005939 | C50: 23.26145486 | D50: 23.42966325 | E50: 31.06680125 | F50: 26.54145463 | G50: 33.28065918 | H50: 16.88215321 | I50: 18.0872773 | J50: 17.16532936 | K50: 17.5539154 | L50: 16.95328899 | M50: 17.63271065 | N50: 23.52758153 | O50: 23.92681221 | P50: 22.8707438 | Q50: 19.37093101 | R50: 23.09518336 | S50: 23.00349949 | T50: 19.4069094 | U50: 19.43403625 | V50: 18.99389026 | W50: 16.26461268 | X50: 16.4581773 | Y50: 17.32858651
A51: Llgl2 | B51: 151.3432601 | C51: 149.5704335 | D51: 148.6267203 | E51: 166.7954549 | F51: 178.6660848 | G51: 181.5078501 | H51: 113.635621 | I51: 118.0311183 | J51: 111.6545435 | K51: 106.3941151 | L51: 116.6946347 | M51: 108.8102464 | N51: 176.8561129 | O51: 162.3358576 | P51: 164.7388725 | Q51: 152.4927346 | R51: 145.5064261 | S51: 169.4305271 | T51: 142.1696337 | U51: 141.960918 | V51: 144.4587959 | W51: 115.0608746 | X51: 126.3234792 | Y51: 131.9092102
A52: Map2k3 | B52: 113.4506708 | C52: 89.730545 | D52: 87.24588785 | E52: 97.24494047 | F52: 99.71882494 | G52: 95.53761235 | H52: 58.13452981 | I52: 62.48627858 | J52: 59.63666056 | K52: 59.8626704 | L52: 69.41157128 | M52: 61.0228715 | N52: 96.09446531 | O52: 93.26386611 | P52: 91.68081494 | Q52: 85.32715565 | R52: 93.30235281 | S52: 101.8922391 | T52: 82.46567645 | U52: 83.20318942 | V52: 82.00075308 | W52: 67.5093808 | X52: 71.56855504 | Y52: 73.0639489
A53: Map3k8 | B53: 7.424572944 | C53: 8.37276517 | D53: 8.051868919 | E53: 12.91032579 | F53: 12.10563286 | G53: 13.6375715 | H53: 5.173810687 | I53: 4.378367616 | J53: 4.416716944 | K53: 5.099750083 | L53: 4.606686933 | M53: 3.867100192 | N53: 5.00701768 | O53: 5.087514866 | P53: 4.241388482 | Q53: 6.032273584 | R53: 6.941318935 | S53: 7.168834035 | T53: 5.242860165 | U53: 4.131066381 | V53: 4.638775184 | W53: 3.09812132 | X53: 3.862344789 | Y53: 3.851554893
A54: Map4 | B54: 140.5115605 | C54: 115.0592648 | D54: 115.3787043 | E54: 157.3803703 | F54: 124.9967351 | G54: 138.8568368 | H54: 48.87936203 | I54: 49.69951602 | J54: 47.89200114 | K54: 46.9509646 | L54: 51.63564219 | M54: 49.26328847 | N54: 78.50183617 | O54: 85.32127519 | P54: 86.46153305 | Q54: 84.95099151 | R54: 87.03526088 | S54: 95.18580401 | T54: 72.34959389 | U54: 71.99033427 | V54: 68.32736527 | W54: 72.15864372 | X54: 74.07220267 | Y54: 74.15774385
A55: Map4k4 | B55: 60.98160159 | C55: 55.19931343 | D55: 53.63621336 | E55: 65.70842025 | F55: 67.77125922 | G55: 66.69909876 | H55: 47.67436567 | I55: 48.12135708 | J55: 47.92375649 | K55: 44.74976241 | L55: 49.11864179 | M55: 42.90225544 | N55: 61.22879192 | O55: 57.90859548 | P55: 57.13431843 | Q55: 56.14200923 | R55: 53.25729186 | S55: 58.71664673 | T55: 57.7265145 | U55: 58.19804064 | V55: 56.65788392 | W55: 47.15331221 | X55: 51.04250629 | Y55: 48.48793629
A56: Mapk13 | B56: 255.0230905 | C56: 272.1569164 | D56: 270.349863 | E56: 344.6953257 | F56: 383.7011368 | G56: 360.871534 | H56: 211.6225074 | I56: 232.7429111 | J56: 209.7831883 | K56: 230.8191639 | L56: 236.0232653 | M56: 234.0910052 | N56: 261.8401121 | O56: 258.8937896 | P56: 230.6226594 | Q56: 297.4847201 | R56: 319.4361834 | S56: 318.2230145 | T56: 182.9819985 | U56: 189.2439293 | V56: 189.0500073 | W56: 196.5202529 | X56: 215.3022278 | Y56: 207.9426225
A57: Melk | B57: 74.77019181 | C57: 75.29486573 | D57: 75.13085939 | E57: 57.95680207 | F57: 50.92590834 | G57: 64.21036977 | H57: 17.98085061 | I57: 24.56861319 | J57: 23.30431456 | K57: 16.24847101 | L57: 16.66392083 | M57: 14.69220281 | N57: 52.28693853 | O57: 61.28809169 | P57: 49.51829361 | Q57: 52.9338358 | R57: 76.17043138 | S57: 71.20624782 | T57: 34.59859498 | U57: 39.76964153 | V57: 36.57239291 | W57: 27.38135704 | X57: 30.95437059 | Y57: 29.29633462
A58: Pim1 | B58: 143.0750897 | C58: 101.2057717 | D58: 101.2877688 | E58: 126.8994722 | F58: 136.6033306 | G58: 139.3898791 | H58: 45.45685072 | I58: 40.63667266 | J58: 42.55581001 | K58: 53.30770169 | L58: 59.87869855 | M58: 46.24392171 | N58: 70.10488496 | O58: 84.65353825 | P58: 63.49944941 | Q58: 77.97985983 | R58: 91.94224982 | S58: 100.9685367 | T58: 46.72684265 | U58: 42.53956993 | V58: 44.60860983 | W58: 56.17263719 | X58: 64.40928687 | Y58: 61.18290564
A59: Plk3 | B59: 45.95522955 | C59: 31.56277295 | D59: 31.023465 | E59: 32.92991724 | F59: 51.18225659 | G59: 42.46990857 | H59: 25.7546348 | I59: 23.40243654 | J59: 20.93299302 | K59: 18.58480509 | L59: 19.19085759 | M59: 15.12311498 | N59: 54.54136586 | O59: 54.99001664 | P59: 45.31678395 | Q59: 36.81682864 | R59: 46.63063447 | S59: 51.36478481 | T59: 38.06075633 | U59: 43.12549755 | V59: 40.78706818 | W59: 15.71021343 | X59: 19.55319206 | Y59: 19.18587967
A60: Plk5 | B60: 0.623218566 | C60: 1.324838666 | D60: 1.495525597 | E60: 1.801396294 | F60: 2.209264052 | G60: 2.172748121 | H60: 0.364525838 | I60: 0.318433163 | J60: 0.222847944 | K60: 0.376385429 | L60: 0.451724886 | M60: 0.415418168 | N60: 0.50425529 | O60: 0.250496928 | P60: 0.361733684 | Q60: 0.64285319 | R60: 0.597404112 | S60: 0.586354713 | T60: 0.312608497 | U60: 0.241244541 | V60: 0.236814857 | W60: 0.242084559 | X60: 0.514851538 | Y60: 0.185786208
A61: Slk | B61: 261.3361827 | C61: 210.5783608 | D61: 206.1464795 | E61: 342.0752171 | F61: 332.1856946 | G61: 382.032865 | H61: 118.7349615 | I61: 107.6077554 | J61: 121.9652392 | K61: 118.6373393 | L61: 111.4790366 | M61: 105.1730301 | N61: 199.8777941 | O61: 207.2681095 | P61: 185.0910739 | Q61: 186.3821424 | R61: 210.425875 | S61: 213.6105531 | T61: 140.4394387 | U61: 140.9672725 | V61: 143.5850955 | W61: 125.0662791 | X61: 141.0792256 | Y61: 137.5770047
A62: Spire1 | B62: 12.75806025 | C62: 8.59803936 | D62: 7.912081399 | E62: 12.27795752 | F62: 12.55371992 | G62: 14.20280035 | H62: 4.640231923 | I62: 4.851488311 | J62: 5.3209071 | K62: 4.270767755 | L62: 4.658375544 | M62: 4.793825773 | N62: 9.649408972 | O62: 10.4256902 | P62: 11.26996172 | Q62: 8.384440781 | R62: 7.280112689 | S62: 8.175267757 | T62: 7.844141225 | U62: 7.21787547 | V62: 7.069692349 | W62: 6.701355116 | X62: 6.158319641 | Y62: 5.713938913
A63: Syce1l | B63: 0.841983311 | C63: 0.476341424 | D63: 0.530147218 | E63: 0.573664889 | F63: 0.643773708 | G63: 0.242780347 | H63: 0.279603364 | I63: 0.31548798 | J63: 0.441573654 | K63: 0.237302702 | L63: 0.203430405 | M63: 0.15434099 | N63: 0.487101655 | O63: 0.431049624 | P63: 0.301045933 | Q63: 0.208442439 | R63: 0.295939366 | S63: 0.472006867 | T63: 0.128158836 | U63: 0.215111947 | V63: 0.312832748 | W63: 0.068527292 | X63: 0.032558916 | Y63: 0.110440725
A64: Tex15 | B64: 2.857268878 | C64: 3.16096578 | D64: 3.284059553 | E64: 3.943777191 | F64: 6.671285139 | G64: 4.896871024 | H64: 2.523284507 | I64: 2.699414933 | J64: 2.577406646 | K64: 2.047499465 | L64: 2.56020399 | M64: 1.824618634 | N64: 1.389411463 | O64: 1.720944507 | P64: 1.788039599 | Q64: 1.496415389 | R64: 1.399437655 | S64: 1.278357276 | T64: 1.239076304 | U64: 1.416723737 | V64: 1.406089242 | W64: 0.789274591 | X64: 0.96647058 | Y64: 0.968665322
A65: Trp53inp1 | B65: 72.98752942 | C65: 83.91009332 | D65: 81.70911079 | E65: 111.9623389 | F65: 119.3822581 | G65: 130.7943631 | H65: 67.4744127 | I65: 60.98854062 | J65: 67.85089489 | K65: 49.96991774 | L65: 39.33038301 | M65: 52.74662316 | N65: 60.92422148 | O65: 64.69202438 | P65: 60.99886676 | Q65: 60.99727546 | R65: 61.70328353 | S65: 62.26466736 | T65: 49.35832698 | U65: 46.91491348 | V65: 47.59011058 | W65: 47.35861905 | X65: 44.05547684 | Y65: 47.59948054
A66: Tubb2a | B66: 90.86282037 | C66: 81.15833406 | D66: 78.84495555 | E66: 53.59610905 | F66: 56.90545027 | G66: 67.77783557 | H66: 29.60170431 | I66: 31.47169367 | J66: 35.28979145 | K66: 23.94946705 | L66: 25.48019758 | M66: 29.14667229 | N66: 116.3693235 | O66: 102.2205585 | P66: 96.28517582 | Q66: 79.55697837 | R66: 73.60412783 | S66: 71.06557114 | T66: 66.08242553 | U66: 71.31461256 | V66: 72.60089699 | W66: 49.50361413 | X66: 53.41150403 | Y66: 54.36035644
A69: Centrosome/microtubule/spindle
B70: p53wt/wt | H70: p53*/wt | N70: p53wt/- | T70: p53*/-
A71: Genes | B71: 1 | C71: 2 | D71: 3 | E71: 4 | F71: 5 | G71: 6 | H71: 1 | I71: 2 | J71: 3 | K71: 4 | L71: 5 | M71: 6 | N71: 1 | O71: 2 | P71: 3 | Q71: 4 | R71: 5 | S71: 6 | T71: 1 | U71: 2 | V71: 3 | W71: 4 | X71: 5 | Y71: 6
A72: Rp2 | B72: 13.45194203 | C72: 14.18089698 | D72: 13.86538878 | E72: 15.55844235 | F72: 15.35942302 | G72: 13.93909597 | H72: 19.58880988 | I72: 18.10112286 | J72: 20.90153232 | K72: 18.35269044 | L72: 17.22027889 | M72: 18.06227143 | N72: 16.02954591 | O72: 16.56490982 | P72: 17.87831546 | Q72: 14.58810554 | R72: 14.17877537 | S72: 11.50483985 | T72: 17.52506016 | U72: 19.64171666 | V72: 17.56499441 | W72: 19.81639742 | X72: 17.68922552 | Y72: 18.08457382
A73: Wdr34 | B73: 18.61353482 | C73: 20.02493037 | D73: 20.17064346 | E73: 19.81087293 | F73: 19.47400457 | G73: 17.8037549 | H73: 31.26339556 | I73: 31.82652173 | J73: 31.24339508 | K73: 26.46563908 | L73: 25.96684339 | M73: 29.19460576 | N73: 15.31288007 | O73: 13.85933595 | P73: 16.63952865 | Q73: 17.07694944 | R73: 12.77256239 | S73: 12.39764891 | T73: 22.18621493 | U73: 23.33349109 | V73: 23.20972994 | W73: 16.42381908 | X73: 17.23574333 | Y73: 16.45093952
A74: C2cd3 | B74: 7.954387768 | C74: 8.688159381 | D74: 8.320389292 | E74: 10.76278125 | F74: 10.11709115 | G74: 10.6472724 | H74: 10.18696647 | I74: 10.67969491 | J74: 11.77032112 | K74: 10.63726223 | L74: 9.38001415 | M74: 10.52756364 | N74: 6.302184211 | O74: 6.555646828 | P74: 6.923371593 | Q74: 7.181978021 | R74: 5.76066739 | S74: 5.05679608 | T74: 10.06786012 | U74: 10.15618399 | V74: 10.03168016 | W74: 6.75910269 | X74: 7.332672911 | Y74: 7.035352258
A75: Cfap20 | B75: 67.5953065 | C75: 87.4312148 | D75: 88.90053721 | E75: 97.51359591 | F75: 87.27538511 | G75: 87.36259124 | H75: 117.1381737 | I75: 130.6317418 | J75: 112.295279 | K75: 124.8247899 | L75: 126.7997772 | M75: 120.4138955 | N75: 77.24012365 | O75: 77.06301051 | P75: 78.69748117 | Q75: 75.95121368 | R75: 72.69692116 | S75: 73.78308148 | T75: 94.13308635 | U75: 95.33280327 | V75: 88.90006941 | W75: 88.7676396 | X75: 90.640595 | Y75: 88.0057573
A76: Acads | B76: 32.09704207 | C76: 40.65485529 | D76: 38.33025313 | E76: 31.73975662 | F76: 40.22020455 | G76: 29.17243944 | H76: 48.50537649 | I76: 51.36377909 | J76: 47.16781179 | K76: 45.80964098 | L76: 49.88999327 | M76: 49.33639995 | N76: 32.16786504 | O76: 31.43230644 | P76: 33.04501769 | Q76: 34.77747415 | R76: 28.60019529 | S76: 28.48932764 | T76: 43.2444145 | U76: 43.87692773 | V76: 41.05574796 | W76: 41.10310181 | X76: 39.95017742 | Y76: 37.74457389
A77: Actr1b | B77: 51.97144942 | C77: 54.70066108 | D77: 54.03170716 | E77: 55.0249859 | F77: 56.68306496 | G77: 53.5756582 | H77: 61.63970309 | I77: 62.9164525 | J77: 62.62491269 | K77: 63.76844255 | L77: 61.50576921 | M77: 64.34103548 | N77: 56.54031458 | O77: 55.66988381 | P77: 57.2892785 | Q77: 58.08354554 | R77: 51.24299351 | S77: 52.61441735 | T77: 68.00881 | U77: 69.54062425 | V77: 68.22334008 | W77: 57.58980575 | X77: 59.44676823 | Y77: 60.93664758
A78: Ccdc88b | B78: 0.819971874 | C78: 0.703910761 | D78: 0.852082523 | E78: 0.877261521 | F78: 0.888950362 | G78: 0.838103804 | H78: 14.52276306 | I78: 16.36513578 | J78: 15.20348153 | K78: 12.42342164 | L78: 13.34300804 | M78: 12.63300764 | N78: 1.075632765 | O78: 0.968287168 | P78: 0.804827175 | Q78: 1.376011527 | R78: 0.564576401 | S78: 0.989525308 | T78: 6.240423014 | U78: 6.963405224 | V78: 6.451173972 | W78: 5.397384488 | X78: 5.584349805 | Y78: 5.564959433
A79: Ccdc92 | B79: 0.856200457 | C79: 0.775854112 | D79: 1.386792915 | E79: 0.94699902 | F79: 1.728713656 | G79: 0.689339611 | H79: 4.454110271 | I79: 4.023208734 | J79: 5.697915519 | K79: 3.525627728 | L79: 3.076115204 | M79: 6.102082262 | N79: 2.99373169 | O79: 3.182665143 | P79: 3.549735454 | Q79: 3.211546262 | R79: 2.442665525 | S79: 1.846064796 | T79: 5.913187156 | U79: 5.752687803 | V79: 5.990477737 | W79: 4.208213562 | X79: 3.633355505 | Y79: 3.792135466
A80: Cdc14a | B80: 5.554355218 | C80: 6.934453947 | D80: 7.011478879 | E80: 8.356910082 | F80: 5.446341393 | G80: 7.190539224 | H80: 16.85848493 | I80: 14.08754966 | J80: 14.62017626 | K80: 16.17431166 | L80: 13.36873948 | M80: 12.79238 | N80: 5.274896632 | O80: 6.167494813 | P80: 5.860753131 | Q80: 5.780638548 | R80: 5.661076991 | S80: 5.392869959 | T80: 14.18908632 | U80: 12.53464337 | V80: 12.60643886 | W80: 10.14296569 | X80: 10.17912294 | Y80: 10.19937513
A81: Cep170 | B81: 2.526935178 | C81: 1.333198245 | D81: 1.28863075 | E81: 2.391202696 | F81: 2.106042547 | G81: 2.19363188 | H81: 2.261148328 | I81: 2.25408331 | J81: 2.281472034 | K81: 2.761826831 | L81: 3.355270571 | M81: 2.686996761 | N81: 1.595500448 | O81: 1.656874606 | P81: 1.803373387 | Q81: 1.794927418 | R81: 1.678604107 | S81: 1.716431948 | T81: 2.122419028 | U81: 2.385695858 | V81: 2.020385386 | W81: 2.644324276 | X81: 2.69154668 | Y81: 2.438656114
A82: Cep85 | B82: 11.42043855 | C82: 11.2352871 | D82: 10.16036427 | E82: 16.97074726 | F82: 18.89065914 | G82: 14.76290662 | H82: 19.02329032 | I82: 21.12758307 | J82: 18.83324764 | K82: 19.18218184 | L82: 21.91558182 | M82: 19.51053625 | N82: 13.21178527 | O82: 13.14040562 | P82: 13.36245464 | Q82: 14.65549993 | R82: 14.17591828 | S82: 14.06273404 | T82: 17.90470632 | U82: 20.36617643 | V82: 18.78992882 | W82: 15.13402946 | X82: 18.00555638 | Y82: 15.56155717
A83: Ctnnb1 | B83: 664.5566246 | C83: 715.8222816 | D83: 712.9017851 | E83: 607.8070163 | F83: 567.8000019 | G83: 563.6922476 | H83: 976.9659911 | I83: 938.879406 | J83: 981.4451483 | K83: 898.8059751 | L83: 858.5946156 | M83: 921.1408895 | N83: 724.9670244 | O83: 742.4208623 | P83: 724.5187863 | Q83: 693.0748771 | R83: 624.9325372 | S83: 628.6562025 | T83: 958.9322071 | U83: 937.3151609 | V83: 918.712746 | W83: 845.82827 | X83: 826.666268 | Y83: 835.9844785
A84: Dynll2 | B84: 106.9176012 | C84: 122.564134 | D84: 125.6738365 | E84: 98.53503463 | F84: 127.1735116 | G84: 97.98756789 | H84: 178.0653791 | I84: 173.8930023 | J84: 183.3209594 | K84: 172.3249304 | L84: 169.6377741 | M84: 178.0451369 | N84: 118.6531865 | O84: 117.7412277 | P84: 123.7670848 | Q84: 125.0671394 | R84: 108.627608 | S84: 103.9999345 | T84: 154.5417911 | U84: 154.1459506 | V84: 150.6021413 | W84: 152.7780416 | X84: 148.4792245 | Y84: 148.2786618
A85: Hnf4g | B85: 0.426907949 | C85: 0.359012916 | D85: 0.251474922 | E85: 0.507700698 | F85: 0.176438057 | G85: 0.38259598 | H85: 0.550781417 | I85: 0.621469336 | J85: 0.605107015 | K85: 0.766509642 | L85: 0.557538539 | M85: 0.872437385 | N85: 0.333747978 | O85: 0.281918076 | P85: 0.309401961 | Q85: 0.487964014 | R85: 0.278807515 | S85: 0.236334763 | T85: 0.636627798 | U85: 0.712377702 | V85: 0.455480913 | W85: 0.551696815 | X85: 0.747332352 | Y85: 0.567530949
A86: Ift46 | B86: 15.52114833 | C86: 21.01669773 | D86: 19.37172234 | E86: 19.38955388 | F86: 17.36634761 | G86: 18.27128506 | H86: 24.56112074 | I86: 24.1149243 | J86: 24.2361865 | K86: 22.70034679 | L86: 21.78886328 | M86: 24.37504003 | N86: 16.56967465 | O86: 15.94363479 | P86: 16.59395799 | Q86: 15.81098651 | R86: 14.66810287 | S86: 13.25199995 | T86: 20.7350033 | U86: 19.82233655 | V86: 19.94532003 | W86: 16.76710116 | X86: 17.28611433 | Y86: 17.76284271
A87: Ift74 | B87: 7.32349222 | C87: 9.372232727 | D87: 8.507950812 | E87: 8.643725239 | F87: 10.04587541 | G87: 9.91600496 | H87: 13.69402477 | I87: 13.15052432 | J87: 14.66751343 | K87: 9.556577543 | L87: 9.109331659 | M87: 11.24374981 | N87: 8.859429401 | O87: 8.800134199 | P87: 9.818530845 | Q87: 8.060977663 | R87: 5.534113498 | S87: 4.877495424 | T87: 14.75995563 | U87: 13.17159771 | V87: 12.53576238 | W87: 9.124308348 | X87: 8.316902961 | Y87: 7.917607562
A88: Kif3b | B88: 23.38213504 | C88: 22.4023442 | D88: 22.95884468 | E88: 22.90839367 | F88: 25.82988438 | G88: 23.89697944 | H88: 32.89300364 | I88: 32.11421994 | J88: 33.40782227 | K88: 27.44374921 | L88: 26.47063862 | M88: 28.15157055 | N88: 22.71228914 | O88: 22.91344641 | P88: 24.08140028 | Q88: 19.17505213 | R88: 16.50242721 | S88: 16.60939038 | T88: 29.29810485 | U88: 29.24722094 | V88: 29.44298134 | W88: 22.36885874 | X88: 22.11491714 | Y88: 22.43839332
A89: Pde4dip | B89: 10.34004456 | C89: 9.65113634 | D89: 9.712763648 | E89: 12.15754724 | F89: 9.942037296 | G89: 13.00506211 | H89: 16.10477101 | I89: 14.52300734 | J89: 16.24206673 | K89: 14.0245879 | L89: 12.91092659 | M89: 13.24039134 | N89: 9.631092068 | O89: 9.500624104 | P89: 10.18546776 | Q89: 10.51540397 | R89: 9.898014859 | S89: 9.998280645 | T89: 12.36089575 | U89: 12.26799118 | V89: 12.67017633 | W89: 11.51021306 | X89: 12.59775096 | Y89: 12.3333622
A90: Plag1 | B90: 0.418330881 | C90: 0.391071052 | D90: 0.333360738 | E90: 1.075928654 | F90: 0.861141204 | G90: 1.113442678 | H90: 1.962811824 | I90: 1.657901045 | J90: 2.007962582 | K90: 2.112580827 | L90: 2.267648572 | M90: 2.277543443 | N90: 0.576786178 | O90: 0.478413046 | P90: 0.620932257 | Q90: 0.711807883 | R90: 0.750095756 | S90: 0.794040718 | T90: 1.244916537 | U90: 1.362595331 | V90: 1.328442587 | W90: 0.949390043 | X90: 1.513960823 | Y90: 1.258445622
A91: Prkacb | B91: 24.42619693 | C91: 24.45348549 | D91: 24.06827272 | E91: 24.14367633 | F91: 23.44758588 | G91: 21.91939541 | H91: 41.08604805 | I91: 39.74040368 | J91: 42.62276859 | K91: 40.21728939 | L91: 44.4979567 | M91: 38.52639743 | N91: 20.07043263 | O91: 21.40872204 | P91: 21.39759813 | Q91: 23.05477057 | R91: 22.97243666 | S91: 22.74892964 | T91: 25.02400614 | U91: 27.77320355 | V91: 26.09925422 | W91: 29.07316858 | X91: 30.2519023 | Y91: 29.90582154
A92: Prkar2b | B92: 17.42432357 | C92: 24.12297142 | D92: 24.58942414 | E92: 18.26932341 | F92: 18.04286873 | G92: 16.56760478 | H92: 57.54831726 | I92: 55.51605791 | J92: 59.18299115 | K92: 59.24848075 | L92: 56.9345776 | M92: 57.92631399 | N92: 27.59399688 | O92: 29.1678164 | P92: 30.11210649 | Q92: 30.37544374 | R92: 27.46179759 | S92: 29.33663455 | T92: 38.55097261 | U92: 40.01565218 | V92: 37.83762199 | W92: 39.14735097 | X92: 34.75768597 | Y92: 36.72934325
A93: Rab11fip4 | B93: 0.769724848 | C93: 0.82945164 | D93: 0.882706639 | E93: 0.751502802 | F93: 1.10024161 | G93: 0.7691748 | H93: 0.69734321 | I93: 1.010971515 | J93: 1.11687831 | K93: 0.905956083 | L93: 1.111896915 | M93: 1.073147339 | N93: 0.584488797 | O93: 0.777121029 | P93: 0.764473238 | Q93: 0.625938106 | R93: 0.527843268 | S93: 0.465394297 | T93: 1.433509295 | U93: 1.439334026 | V93: 1.390207991 | W93: 1.002672653 | X93: 1.18507725 | Y93: 1.095098864
A94: Rab3ip | B94: 18.70339784 | C94: 17.70980748 | D94: 17.06035578 | E94: 17.30912957 | F94: 20.62844013 | G94: 16.68642864 | H94: 27.1004131 | I94: 27.24987846 | J94: 26.56083312 | K94: 29.52232133 | L94: 28.95858279 | M94: 26.67494258 | N94: 21.23484635 | O94: 21.53851105 | P94: 21.67922412 | Q94: 20.66571178 | R94: 19.32902115 | S94: 21.47673086 | T94: 30.64920936 | U94: 31.23389488 | V94: 29.19475279 | W94: 30.59611133 | X94: 33.02161576 | Y94: 30.83856753
A95: Rilpl2 | B95: 6.463308446 | C95: 8.200960945 | D95: 7.339294706 | E95: 5.541834246 | F95: 6.906294993 | G95: 4.82632485 | H95: 11.71360002 | I95: 12.66472241 | J95: 11.42891057 | K95: 11.62626911 | L95: 12.0574989 | M95: 11.09832632 | N95: 7.448679281 | O95: 6.998408877 | P95: 7.710293107 | Q95: 8.214048263 | R95: 7.778455215 | S95: 7.834620199 | T95: 10.90723933 | U95: 10.74011478 | V95: 9.829274682 | W95: 10.65756528 | X95: 10.87471943 | Y95: 10.61408993
A96: Cdkl5 | B96: 3.017356563 | C96: 5.320746888 | D96: 5.197029452 | E96: 4.222810991 | F96: 2.914164258 | G96: 3.776256783 | H96: 7.989591489 | I96: 6.748841778 | J96: 8.210624713 | K96: 8.467817784 | L96: 8.405464392 | M96: 8.388698261 | N96: 2.75148653 | O96: 2.949015334 | P96: 3.266253992 | Q96: 3.848478767 | R96: 2.853682222 | S96: 2.490451049 | T96: 5.793296263 | U96: 6.081399322 | V96: 5.615217943 | W96: 6.012314745 | X96: 6.161475535 | Y96: 5.867245391
A97: Cir1 | B97: 10.66256321 | C97: 12.45388797 | D97: 12.66648693 | E97: 13.03497136 | F97: 12.06963278 | G97: 13.30889738 | H97: 16.28844486 | I97: 15.36450932 | J97: 16.60364931 | K97: 15.26728944 | L97: 14.331379 | M97: 15.27516537 | N97: 11.40291371 | O97: 11.16542448 | P97: 10.51212972 | Q97: 12.36586913 | R97: 12.00688025 | S97: 10.26251451 | T97: 12.85753823 | U97: 13.29326916 | V97: 13.03802768 | W97: 14.3656763 | X97: 14.38455797 | Y97: 13.20881325
A98: Fgf13 | B98: 0.974002272 | C98: 1.117721304 | D98: 1.005663306 | E98: 1.264636802 | F98: 0.750487329 | G98: 0.859958315 | H98: 3.690456551 | I98: 4.00495663 | J98: 3.3823033 | K98: 2.751186294 | L98: 3.602879515 | M98: 2.759426033 | N98: 1.696814659 | O98: 1.967838207 | P98: 2.661035027 | Q98: 1.308431413 | R98: 1.144454743 | S98: 1.416318727 | T98: 3.038335402 | U98: 3.11050591 | V98: 2.577367441 | W98: 2.511817685 | X98: 2.255460377 | Y98: 1.873443655
A99: Iqgap2 | B99: 20.84350915 | C99: 22.1768422 | D99: 22.31592398 | E99: 24.36878781 | F99: 18.53394497 | G99: 20.84730567 | H99: 25.77175933 | I99: 25.40362955 | J99: 26.50777128 | K99: 27.22571667 | L99: 26.53921122 | M99: 24.39174004 | N99: 16.47337635 | O99: 19.40012571 | P99: 20.34468966 | Q99: 22.18901848 | R99: 18.52189546 | S99: 15.83817302 | T99: 28.89779101 | U99: 30.25399258 | V99: 28.49270884 | W99: 24.88553599 | X99: 26.53469851 | Y99: 23.41546222
A100: Kif5b | B100: 150.6995279 | C100: 139.5248197 | D100: 140.856694 | E100: 146.1092603 | F100: 147.8795072 | G100: 148.9655561 | H100: 184.5984794 | I100: 163.0764622 | J100: 191.2981662 | K100: 176.9294659 | L100: 167.730286 | M100: 170.0749891 | N100: 153.9304972 | O100: 159.2605396 | P100: 162.7559111 | Q100: 140.4846134 | R100: 137.9720348 | S100: 134.9866188 | T100: 169.2053855 | U100: 176.4392697 | V100: 177.8934209 | W100: 180.4033744 | X100: 174.4187869 | Y100: 175.5648699
A101: Tcp11l1 | B101: 4.721424171 | C101: 4.851224897 | D101: 4.600256551 | E101: 8.179861826 | F101: 9.575961503 | G101: 7.856629042 | H101: 10.08313277 | I101: 9.930519777 | J101: 10.6402053 | K101: 10.19325997 | L101: 10.76237063 | M101: 9.903335497 | N101: 5.846739998 | O101: 6.509979268 | P101: 8.057429762 | Q101: 6.158266213 | R101: 5.496061367 | S101: 6.01281449 | T101: 10.92248912 | U101: 11.01493389 | V101: 9.898174623 | W101: 6.836900294 | X101: 8.569897769 | Y101: 8.083655087
A102: Ttll7 | B102: 5.903083266 | C102: 4.918702541 | D102: 4.600688975 | E102: 5.028445268 | F102: 5.959925004 | G102: 5.186793877 | H102: 8.148779745 | I102: 7.311837557 | J102: 7.91768913 | K102: 7.68594671 | L102: 8.3640561 | M102: 7.368596597 | N102: 6.78791918 | O102: 6.624845786 | P102: 6.286268 | Q102: 7.687060934 | R102: 6.999900437 | S102: 6.906051072 | T102: 10.60627159 | U102: 10.23867983 | V102: 10.37035734 | W102: 10.90924068 | X102: 10.12159251 | Y102: 10.52934158
A103: Prkcz | B103: 11.70000179 | C103: 13.21470731 | D103: 12.56180522 | E103: 13.05542372 | F103: 15.69909132 | G103: 13.89748025 | H103: 14.24989714 | I103: 16.38806008 | J103: 15.26549173 | K103: 14.70165522 | L103: 14.19212674 | M103: 15.23114472 | N103: 11.50978263 | O103: 11.81366735 | P103: 13.16162799 | Q103: 12.12806396 | R103: 10.58778939 | S103: 10.95634747 | T103: 16.15645173 | U103: 16.51433054 | V103: 15.659017 | W103: 14.06272666 | X103: 14.11989696 | Y103: 13.83880434
A104: Pkp4 | B104: 59.06310361 | C104: 71.31251505 | D104: 69.94550494 | E104: 67.14114089 | F104: 53.39987283 | G104: 73.23955201 | H104: 69.37031962 | I104: 66.26341455 | J104: 72.21790617 | K104: 76.64160313 | L104: 75.98201539 | M104: 71.24847405 | N104: 58.68790699 | O104: 56.53926795 | P104: 57.4749504 | Q104: 64.71381682 | R104: 56.93636551 | S104: 55.67119665 | T104: 79.30924952 | U104: 77.91803017 | V104: 76.90465098 | W104: 74.41194596 | X104: 73.93780111 | Y104: 75.82904294
A105: Tbl1xr1 | B105: 31.26875777 | C105: 35.73075382 | D105: 34.704509 | E105: 36.34302065 | F105: 31.48534774 | G105: 38.28469096 | H105: 37.44671586 | I105: 34.89726547 | J105: 39.38508323 | K105: 35.90655935 | L105: 35.27467679 | M105: 36.80366473 | N105: 32.31515183 | O105: 32.07084819 | P105: 34.37480722 | Q105: 35.49544745 | R105: 32.84723365 | S105: 32.31319067 | T105: 39.71386517 | U105: 39.05125891 | V105: 39.4830426 | W105: 41.10426785 | X105: 40.04770078 | Y105: 39.85276032
A106: Gsdmc | B106: 7.255060355 | C106: 2.605439041 | D106: 2.383347908 | E106: 2.847631961 | F106: 5.370295136 | G106: 3.128827939 | H106: 0.418998138 | I106: 0.310257176 | J106: 0.42735945 | K106: 0.342908396 | L106: 0.289607077 | M106: 0.491484603 | N106: 6.878314725 | O106: 5.696079226 | P106: 6.348054642 | Q106: 6.260221249 | R106: 4.670381563 | S106: 3.849471514 | T106: 1.944523905 | U106: 1.477459812 | V106: 1.670078112 | W106: 1.578877363 | X106: 1.244170271 | Y106: 1.503294962
A107: Rpp25 | B107: 1.239954918 | C107: 0.701488834 | D107: 0.655155071 | E107: 1.632025466 | F107: 0.861872379 | G107: 0.617556726 | H107: 0.514700768 | I107: 0.580758056 | J107: 0.517274338 | K107: 0.113463031 | L107: 0.136174439 | M107: 0.542400792 | N107: 0.852775867 | O107: 0.918083877 | P107: 1.065163263 | Q107: 1.302274851 | R107: 0.817158727 | S107: 0.802044815 | T107: 0.707753837 | U107: 0.719969779 | V107: 0.392638799 | W107: 0.389908074 | X107: 0.348714215 | Y107: 0.418925355
A108: Camsap2 | B108: 71.79193456 | C108: 46.66953761 | D108: 46.5295003 | E108: 58.64816257 | F108: 57.86312768 | G108: 71.07371824 | H108: 34.87053052 | I108: 32.66455583 | J108: 36.3819633 | K108: 38.55982914 | L108: 42.0123631 | M108: 36.09618213 | N108: 62.13729271 | O108: 61.39442627 | P108: 58.0664776 | Q108: 51.57278517 | R108: 53.05641264 | S108: 56.3017301 | T108: 43.85578979 | U108: 44.37353966 | V108: 43.66643337 | W108: 40.39320937 | X108: 43.77207217 | Y108: 42.38565686
A109: Camsap3 | B109: 21.47810673 | C109: 26.59222382 | D109: 26.03074357 | E109: 32.49984101 | F109: 36.71659905 | G109: 39.40915024 | H109: 11.05429422 | I109: 11.47424473 | J109: 11.9095111 | K109: 12.75380834 | L109: 12.94627904 | M109: 13.53341452 | N109: 18.77511216 | O109: 18.03714916 | P109: 16.85093241 | Q109: 21.36189241 | R109: 20.02860583 | S109: 22.90333705 | T109: 15.13447147 | U109: 15.77914743 | V109: 15.0972987 | W109: 13.5009405 | X109: 15.76805583 | Y109: 16.00721502
A110: Caprin2 | B110: 2.716893169 | C110: 2.851106669 | D110: 3.00390608 | E110: 7.758564064 | F110: 10.18146786 | G110: 8.177415563 | H110: 2.42301823 | I110: 2.726452591 | J110: 2.806670563 | K110: 2.736885574 | L110: 3.276938676 | M110: 2.827447249 | N110: 1.652181402 | O110: 1.650484409 | P110: 1.61408128 | Q110: 2.182665542 | R110: 2.213368505 | S110: 1.88786313 | T110: 1.42501477 | U110: 1.532890677 | V110: 1.333065185 | W110: 0.654983278 | X110: 1.176327847 | Y110: 1.008676333
A111: Ccdc13 | B111: 1.367215358 | C111: 1.464933372 | D111: 1.859738878 | E111: 2.091885187 | F111: 1.470747307 | G111: 1.151963625 | H111: 0.22111407 | I111: 0.155932565 | J111: 0.261901753 | K111: 0.125108095 | L111: 0.257400765 | M111: 0.345822255 | N111: 0.414837756 | O111: 0.743737731 | P111: 0.544162606 | Q111: 0.549463539 | R111: 0.370551931 | S111: 0.468979411 | T111: 0.396953058 | U111: 0.359128284 | V111: 0.402012505 | W111: 0.307089683 | X111: 0.231732227 | Y111: 0.242605552
A112: Map4 | B112: 140.5115605 | C112: 115.0592648 | D112: 115.3787043 | E112: 157.3803703 | F112: 124.9967351 | G112: 138.8568368 | H112: 48.87936203 | I112: 49.69951602 | J112: 47.89200114 | K112: 46.9509646 | L112: 51.63564219 | M112: 49.26328847 | N112: 78.50183617 | O112: 85.32127519 | P112: 86.46153305 | Q112: 84.95099151 | R112: 87.03526088 | S112: 95.18580401 | T112: 72.34959389 | U112: 71.99033427 | V112: 68.32736527 | W112: 72.15864372 | X112: 74.07220267 | Y112: 74.15774385
A113: Map7 | B113: 78.79537973 | C113: 85.21200313 | D113: 84.57456947 | E113: 97.92573489 | F113: 101.7703104 | G113: 99.25225516 | H113: 66.4039915 | I113: 63.97526678 | J113: 68.78615879 | K113: 70.70596742 | L113: 69.54181653 | M113: 69.09914568 | N113: 76.83847555 | O113: 75.51501991 | P113: 72.15437527 | Q113: 79.22035899 | R113: 81.29926587 | S113: 82.84815765 | T113: 64.7683857 | U113: 63.64756782 | V113: 64.23040137 | W113: 63.80072037 | X113: 69.14190009 | Y113: 68.15241038
A114: Epb41 | B114: 70.97282926 | C114: 72.13636871 | D114: 72.16014853 | E114: 84.84470501 | F114: 76.07004262 | G114: 84.84597946 | H114: 30.156932 | I114: 30.88111242 | J114: 32.31174318 | K114: 32.63508465 | L114: 33.19583763 | M114: 33.72341425 | N114: 58.38326593 | O114: 59.20686493 | P114: 54.65932379 | Q114: 58.41286021 | R114: 58.32874532 | S114: 59.57095798 | T114: 46.19696477 | U114: 45.92189938 | V114: 46.12379544 | W114: 46.67354283 | X114: 52.00747022 | Y114: 50.87750568
A115: Syne1 | B115: 2.648540877 | C115: 3.38468682 | D115: 3.241229959 | E115: 3.971109843 | F115: 3.122776181 | G115: 3.514453826 | H115: 0.83789198 | I115: 0.870155068 | J115: 0.893418638 | K115: 0.771306318 | L115: 0.848036385 | M115: 0.866113086 | N115: 2.849322269 | O115: 2.926034354 | P115: 2.626822284 | Q115: 3.257161128 | R115: 4.57827365 | S115: 4.008475541 | T115: 1.416358216 | U115: 1.757333912 | V115: 1.558470932 | W115: 1.462350119 | X115: 1.6729809 | Y115: 1.621771961
A118: Keratinocyte Differentiation
B119: p53wt/wt | H119: p53*/wt | N119: p53wt/- | T119: p53*/-
A120: Genes | B120: 1 | C120: 2 | D120: 3 | E120: 4 | F120: 5 | G120: 6 | H120: 1 | I120: 2 | J120: 3 | K120: 4 | L120: 5 | M120: 6 | N120: 1 | O120: 2 | P120: 3 | Q120: 4 | R120: 5 | S120: 6 | T120: 1 | U120: 2 | V120: 3 | W120: 4 | X120: 5 | Y120: 6
A121: Abca1 | B121: 9.109672807 | C121: 8.918029539 | D121: 8.686773774 | E121: 12.04106254 | F121: 13.27287899 | G121: 11.97683737 | H121: 2.68319602 | I121: 2.753262812 | J121: 3.039378632 | K121: 4.79842087 | L121: 4.786113 | M121: 4.136410756 | N121: 2.531258885 | O121: 3.223034947 | P121: 2.961414502 | Q121: 4.062528988 | R121: 3.959224222 | S121: 3.466143968 | T121: 3.370646632 | U121: 2.658897557 | V121: 3.019079027 | W121: 3.13690409 | X121: 2.997817502 | Y121: 2.810229592
A122: Abca12 | B122: 10.77692923 | C122: 3.033577741 | D122: 3.007351139 | E122: 2.550967952 | F122: 2.065602952 | G122: 11.29178477 | H122: 0.082936441 | I122: 0.110377117 | J122: 0.145533726 | K122: 0.07425668 | L122: 0.076742499 | M122: 0.09390953 | N122: 3.17581909 | O122: 2.441534847 | P122: 2.216391724 | Q122: 3.413782184 | R122: 3.423500151 | S122: 4.078167378 | T122: 0.413288012 | U122: 0.392657748 | V122: 0.53534423 | W122: 0.473246945 | X122: 0.467530907 | Y122: 0.70110121
A123: Casp14 | B123: 3.283366161 | C123: 4.631522135 | D123: 4.448950207 | E123: 4.290622555 | F123: 4.947816031 | G123: 5.841968558 | H123: 1.663078766 | I123: 1.952801512 | J123: 1.13885176 | K123: 1.416392772 | L123: 2.675778023 | M123: 1.537495369 | N123: 5.537260032 | O123: 4.714658892 | P123: 5.174285831 | Q123: 3.64216393 | R123: 3.0196076 | S123: 3.090174096 | T123: 1.871633507 | U123: 1.511802578 | V123: 2.027133373 | W123: 1.259251521 | X123: 1.511494204 | Y123: 1.48114179
A124: Evpl | B124: 1473.994127 | C124: 1531.902279 | D124: 1526.382856 | E124: 1637.105636 | F124: 1441.601987 | G124: 1803.893195 | H124: 730.842981 | I124: 776.4184334 | J124: 783.3709546 | K124: 929.6235606 | L124: 1009.288004 | M124: 891.8956972 | N124: 1362.764775 | O124: 1379.081092 | P124: 1222.132437 | Q124: 1379.239315 | R124: 1380.241855 | S124: 1473.428629 | T124: 679.1343674 | U124: 659.1075213 | V124: 719.6230772 | W124: 848.334007 | X124: 953.9808555 | Y124: 957.153076
A125: Cnfn | B125: 613.7387093 | C125: 351.5047696 | D125: 341.6256307 | E125: 264.4865749 | F125: 461.9883683 | G125: 474.2417951 | H125: 12.92023227 | I125: 9.982517971 | J125: 12.31201312 | K125: 8.836166273 | L125: 13.6639591 | M125: 9.090233503 | N125: 728.9601085 | O125: 552.6337404 | P125: 460.5138455 | Q125: 759.846326 | R125: 863.8030711 | S125: 994.0598937 | T125: 120.7307477 | U125: 105.5339512 | V125: 158.3270359 | W125: 149.8064272 | X125: 175.4830932 | Y125: 208.8403387
A126: Lor | B126: 10.52440329 | C126: 13.07574613 | D126: 11.7314127 | E126: 9.854175126 | F126: 11.71600599 | G126: 11.60738435 | H126: 4.301377125 | I126: 5.033177128 | J126: 6.187409138 | K126: 2.678416337 | L126: 3.564846258 | M126: 2.970391683 | N126: 17.3448797 | O126: 13.21775377 | P126: 12.85096021 | Q126: 10.64483939 | R126: 12.00935338 | S126: 16.88093465 | T126: 9.135783508 | U126: 8.025727193 | V126: 8.337832406 | W126: 4.546568206 | X126: 4.485260636 | Y126: 4.530677091
A127: Sprr2f | B127: 537.9400128 | C127: 118.9592702 | D127: 122.3569333 | E127: 320.6756902 | F127: 199.2518739 | G127: 292.6658483 | H127: 76.68334591 | I127: 79.23190519 | J127: 53.67923539 | K127: 82.65504177 | L127: 65.61148312 | M127: 60.91064622 | N127: 172.6799056 | O127: 208.5367119 | P127: 152.7050728 | Q127: 211.9120871 | R127: 455.8954437 | S127: 570.2068907 | T127: 99.82847273 | U127: 94.62712153 | V127: 92.21849665 | W127: 176.9664438 | X127: 155.9747437 | Y127: 165.4094373
A128: Sprr2h | B128: 16.98840168 | C128: 4.98431335 | D128: 4.202024072 | E128: 8.305235979 | F128: 6.582015443 | G128: 11.05360841 | H128: 1.172512244 | I128: 1.275744032 | J128: 1.410843483 | K128: 1.340372578 | L128: 1.267436346 | M128: 1.618066193 | N128: 11.67230297 | O128: 8.498066213 | P128: 7.935282556 | Q128: 7.200919389 | R128: 9.70652589 | S128: 15.87832838 | T128: 5.719812342 | U128: 4.123741796 | V128: 5.622253443 | W128: 5.172625922 | X128: 3.627937835 | Y128: 4.675421929
A129: Sprr3 | B129: 2939.772604 | C129: 2637.922231 | D129: 2602.157905 | E129: 1917.438863 | F129: 2164.723617 | G129: 2568.948098 | H129: 39.22117879 | I129: 41.57980548 | J129: 50.13920687 | K129: 17.89662967 | L129: 36.71815591 | M129: 25.43386684 | N129: 2525.941616 | O129: 2366.110111 | P129: 2345.640985 | Q129: 2120.406609 | R129: 2282.625768 | S129: 2410.40052 | T129: 354.9177517 | U129: 356.9151393 | V129: 407.5412944 | W129: 358.6353973 | X129: 353.7074346 | Y129: 437.9832119
A130: Tgm1 | B130: 527.8590007 | C130: 374.1198114 | D130: 378.7882607 | E130: 382.9971566 | F130: 361.5827775 | G130: 457.9820745 | H130: 256.3120012 | I130: 264.9757544 | J130: 258.8414369 | K130: 282.8137226 | L130: 288.9482427 | M130: 269.8070088 | N130: 390.7881538 | O130: 358.5657083 | P130: 348.3663848 | Q130: 361.2226799 | R130: 374.2270807 | S130: 419.7170744 | T130: 258.6095763 | U130: 248.31986 | V130: 274.1382848 | W130: 250.2998334 | X130: 251.1383573 | Y130: 263.4433188
A131: Tgm3 | B131: 108.0387536 | C131: 161.3149182 | D131: 161.5549162 | E131: 57.92675444 | F131: 68.95019327 | G131: 86.49292061 | H131: 22.48112472 | I131: 19.17945658 | J131: 24.19059191 | K131: 50.39246886 | L131: 38.20959249 | M131: 35.33702278 | N131: 130.5409692 | O131: 146.6665844 | P131: 115.2440441 | Q131: 168.7004725 | R131: 195.9265946 | S131: 175.6017977 | T131: 50.39818317 | U131: 38.66942881 | V131: 57.1307969 | W131: 94.354193 | X131: 91.18506719 | Y131: 110.6008706
A132: Ncoa3 | B132: 41.32619181 | C132: 49.09563469 | D132: 48.03386897 | E132: 58.25585722 | F132: 60.45543668 | G132: 61.36499449 | H132: 34.72112888 | I132: 33.16454503 | J132: 35.30915037 | K132: 36.64149098 | L132: 32.98537821 | M132: 34.29854128 | N132: 35.97919296 | O132: 36.47408947 | P132: 35.01389991 | Q132: 34.35787039 | R132: 31.38397617 | S132: 32.44437281 | T132: 32.53521041 | U132: 32.12261666 | V132: 33.19334756 | W132: 28.22820579 | X132: 31.06710733 | Y132: 30.58945092
A133: Notch1 | B133: 50.45999357 | C133: 56.4183062 | D133: 55.61061388 | E133: 68.86119368 | F133: 83.30808432 | G133: 70.26832597 | H133: 13.73387233 | I133: 16.01578932 | J133: 17.02702311 | K133: 23.38463494 | L133: 24.19922731 | M133: 25.68069717 | N133: 28.12849883 | O133: 27.45760112 | P133: 27.62139646 | Q133: 34.47256459 | R133: 29.0959841 | S133: 32.27237506 | T133: 12.07286488 | U133: 12.32003597 | V133: 13.03652775 | W133: 14.55509192 | X133: 16.65276686 | Y133: 15.34463887
A134: Palld | B134: 75.27039646 | C134: 70.45920544 | D134: 70.95149518 | E134: 73.56237349 | F134: 56.25502039 | G134: 73.56687188 | H134: 33.16902073 | I134: 33.44073988 | J134: 34.5507732 | K134: 38.21363145 | L134: 43.76583827 | M134: 35.45823598 | N134: 68.51916212 | O134: 67.57401752 | P134: 62.28434068 | Q134: 63.07842934 | R134: 61.78601595 | S134: 69.22002731 | T134: 50.7220371 | U134: 50.89790361 | V134: 50.86087134 | W134: 50.98410747 | X134: 51.55091307 | Y134: 52.61901599
A135: Ppl | B135: 1409.704625 | C135: 1442.641342 | D135: 1445.801542 | E135: 1637.049743 | F135: 1565.341319 | G135: 1959.143361 | H135: 770.7128799 | I135: 785.7646821 | J135: 819.2204174 | K135: 819.2252421 | L135: 896.8663571 | M135: 846.1201355 | N135: 1668.594881 | O135: 1561.45069 | P135: 1474.434075 | Q135: 1548.888642 | R135: 1439.468335 | S135: 1466.993721 | T135: 875.4244426 | U135: 882.793129 | V135: 943.2137915 | W135: 887.9663643 | X135: 1006.565228 | Y135: 974.8588008
A136: Prkch | B136: 133.2658616 | C136: 116.2724504 | D136: 117.319936 | E136: 108.5919348 | F136: 99.39877448 | G136: 111.342656 | H136: 27.87371439 | I136: 26.67049793 | J136: 30.13941319 | K136: 27.57025602 | L136: 29.45469684 | M136: 26.33362447 | N136: 74.35543299 | O136: 82.0910418 | P136: 66.69374624 | Q136: 84.49705578 | R136: 101.7606485 | S136: 108.1673391 | T136: 41.60562875 | U136: 40.35149939 | V136: 40.73718048 | W136: 50.86051204 | X136: 57.22353778 | Y136: 56.06219498
A137: Dsg4 | B137: 0.200671882 | C137: 0.213892547 | D137: 0.169031767 | E137: 0.594447459 | F137: 0.444730773 | G137: 0.80504232 | H137: 0.135812229 | I137: 0.122594021 | J137: 0.200187251 | K137: 0.219553248 | L137: 0.094860101 | M137: 0.329860598 | N137: 0.194133937 | O137: 0.192878313 | P137: 0.200540661 | Q137: 0.521985096 | R137: 0.383325717 | S137: 0.479700702 | T137: 0.149401955 | U137: 0.083589361 | V137: 0.081041491 | W137: 0.08876235 | X137: 0.101215354 | Y137: 0.076294493
A138: Dsp | B138: 1213.853585 | C138: 1161.234882 | D138: 1151.681376 | E138: 1239.938046 | F138: 979.3527804 | G138: 1304.857091 | H138: 502.9357225 | I138: 519.6064622 | J138: 584.7614965 | K138: 578.7920759 | L138: 565.9943564 | M138: 623.6733701 | N138: 1512.499267 | O138: 1427.344474 | P138: 1409.055379 | Q138: 1460.660838 | R138: 1261.120176 | S138: 1326.854348 | T138: 883.0180825 | U138: 815.2616822 | V138: 916.2245401 | W138: 929.6456653 | X138: 929.1409787 | Y138: 979.4668407
A139: Cd109 | B139: 43.87722442 | C139: 56.95909414 | D139: 56.97870996 | E139: 40.0326154 | F139: 54.29399608 | G139: 48.33949529 | H139: 16.57577889 | I139: 15.2014454 | J139: 21.74764112 | K139: 24.64345329 | L139: 21.6867543 | M139: 25.35852098 | N139: 62.40197946 | O139: 55.84116121 | P139: 61.29067072 | Q139: 60.34308917 | R139: 55.69519894 | S139: 57.16364659 | T139: 25.44548176 | U139: 21.2776112 | V139: 28.16580579 | W139: 37.62301789 | X139: 39.06309273 | Y139: 41.75452227
A140: Epha2 | B140: 730.9697029 | C140: 484.4981745 | D140: 480.7835424 | E140: 625.2448989 | F140: 671.1041745 | G140: 666.5126473 | H140: 194.8034591 | I140: 198.3290567 | J140: 184.7632959 | K140: 169.3199532 | L140: 196.2787944 | M140: 146.43231 | N140: 701.2219859 | O140: 720.3918474 | P140: 600.0775595 | Q140: 451.8971648 | R140: 476.7769018 | S140: 542.3588213 | T140: 459.7289335 | U140: 492.8053782 | V140: 496.975288 | W140: 322.566036 | X140: 358.1150438 | Y140: 367.3076333
A141: Errfi1 | B141: 163.6533297 | C141: 141.4157241 | D141: 140.4389308 | E141: 135.0019234 | F141: 125.6483687 | G141: 151.1063254 | H141: 45.24866625 | I141: 42.27712885 | J141: 40.21711361 | K141: 46.94195543 | L141: 48.41701559 | M141: 40.87980931 | N141: 117.2548331 | O141: 127.5956444 | P141: 99.42525188 | Q141: 84.51822993 | R141: 116.8882215 | S141: 124.2061449 | T141: 77.44816973 | U141: 79.80971524 | V141: 77.25246199 | W141: 77.13577036 | X141: 81.061866 | Y141: 81.00577431
A142: Grhl1 | B142: 143.757642 | C142: 152.9119936 | D142: 150.5844606 | E142: 143.1858686 | F142: 136.1160794 | G142: 169.746192 | H142: 76.08963169 | I142: 75.33763954 | J142: 79.60946368 | K142: 78.99615184 | L142: 78.4694076 | M142: 71.48740602 | N142: 157.7647966 | O142: 154.1498504 | P142: 145.5409143 | Q142: 138.4492645 | R142: 129.7781633 | S142: 130.9389477 | T142: 110.7945309 | U142: 107.4939701 | V142: 114.3253646 | W142: 106.0481679 | X142: 114.0064585 | Y142: 119.7781095
A143: Krt6b | B143: 574.211769 | C143: 270.0424897 | D143: 271.9266841 | E143: 303.598484 | F143: 268.3054661 | G143: 257.0697047 | H143: 10.80800145 | I143: 10.05617937 | J143: 15.31139123 | K143: 5.955167818 | L143: 5.516838831 | M143: 8.074422369 | N143: 324.2526881 | O143: 273.5093834 | P143: 288.1798032 | Q143: 340.7124009 | R143: 196.866617 | S143: 209.7733375 | T143: 87.97798927 | U143: 67.88489171 | V143: 90.09210722 | W143: 44.69855801 | X143: 30.81158755 | Y143: 46.83300296
A146: Small GTPase-mediated Signal Transduction
B147: p53wt/wt | H147: p53*/wt | N147: p53wt/- | T147: p53*/-
A148: Genes | B148: 1 | C148: 2 | D148: 3 | E148: 4 | F148: 5 | G148: 6 | H148: 1 | I148: 2 | J148: 3 | K148: 4 | L148: 5 | M148: 6 | N148: 1 | O148: 2 | P148: 3 | Q148: 4 | R148: 5 | S148: 6 | T148: 1 | U148: 2 | V148: 3 | W148: 4 | X148: 5 | Y148: 6
A149: Agfg1 | B149: 44.58743111 | C149: 35.73458742 | D149: 35.01655644 | E149: 47.59879617 | F149: 52.98124009 | G149: 45.38230134 | H149: 26.36338479 | I149: 24.70784719 | J149: 25.07570675 | K149: 30.20543402 | L149: 30.52368886 | M149: 26.82866677 | N149: 31.3640024 | O149: 32.28743686 | P149: 32.47717154 | Q149: 32.26059865 | R149: 34.40354254 | S149: 33.16632953 | T149: 28.83678894 | U149: 30.16814206 | V149: 29.53015303 | W149: 27.16357214 | X149: 29.89892173 | Y149: 28.99916479
A150: Appl1 | B150: 26.11646625 | C150: 25.31751845 | D150: 25.83281431 | E150: 32.82691893 | F150: 33.23194977 | G150: 35.30930653 | H150: 22.6741925 | I150: 21.07295704 | J150: 23.7129796 | K150: 21.28883979 | L150: 22.06468838 | M150: 21.40385054 | N150: 23.3519792 | O150: 24.00090544 | P150: 24.33639676 | Q150: 21.82353766 | R150: 23.08149708 | S150: 21.03747601 | T150: 21.09708449 | U150: 21.3659076 | V150: 21.65933536 | W150: 20.39101144 | X150: 21.23372709 | Y150: 20.87377834
A151: Arhgap17 | B151: 20.21761457 | C151: 19.57911147 | D151: 19.40138571 | E151: 28.16341026 | F151: 28.81874322 | G151: 29.53809645 | H151: 17.22142484 | I151: 18.22285357 | J151: 16.95281905 | K151: 18.66332102 | L151: 18.37227741 | M151: 17.79410934 | N151: 18.07169526 | O151: 18.60675258 | P151: 17.43879726 | Q151: 17.91979512 | R151: 17.48305624 | S151: 18.45362796 | T151: 17.26919627 | U151: 17.97680704 | V151: 17.30049403 | W151: 14.06760544 | X151: 15.72740774 | Y151: 15.22668912
A152: Arhgap30 | B152: 0.328494041 | C152: 0.169855001 | D152: 0.183908864 | E152: 0.486328622 | F152: 0.490624856 | G152: 0.555074266 | H152: 0.073310043 | I152: 0.045495306 | J152: 0.057888759 | K152: 0.049775285 | L152: 0.021335211 | M152: 0.048560551 | N152: 0.208273107 | O152: 0.29179242 | P152: 0.302197313 | Q152: 0.200391205 | R152: 0.213381377 | S152: 0.232282168 | T152: 0.171371978 | U152: 0.146642197 | V152: 0.147640598 | W152: 0.079056454 | X152: 0.122928763 | Y152: 0.104244423
A153: Arhgap40 | B153: 82.79557011 | C153: 80.02607896 | D153: 81.24828698 | E153: 132.1468018 | F153: 135.6757467 | G153: 152.6059374 | H153: 52.24596715 | I153: 58.11371543 | J153: 54.902341 | K153: 59.31620931 | L153: 63.77788483 | M153: 60.13799411 | N153: 68.08601904 | O153: 65.15608341 | P153: 63.16459127 | Q153: 77.38723185 | R153: 72.55280217 | S153: 76.92021603 | T153: 56.28300635 | U153: 56.14158538 | V153: 56.90590413 | W153: 40.98946321 | X153: 54.89450955 | Y153: 49.2423285
A154: Arhgdib | B154: 67.48091277 | C154: 48.20668226 | D154: 46.75243393 | E154: 55.89101858 | F154: 49.61092923 | G154: 50.46386499 | H154: 14.03874648 | I154: 17.50572478 | J154: 13.65427051 | K154: 13.63486635 | L154: 14.92526095 | M154: 14.92851242 | N154: 7.930706828 | O154: 11.29323844 | P154: 9.375102957 | Q154: 9.66355184 | R154: 14.25367598 | S154: 12.85934223 | T154: 5.293271487 | U154: 6.169104842 | V154: 5.449007672 | W154: 7.704322349 | X154: 7.699086902 | Y154: 6.936932679
A155: Arhgef37 | B155: 16.12023652 | C155: 23.80814531 | D155: 23.65476484 | E155: 22.37541408 | F155: 23.79467781 | G155: 32.52091547 | H155: 6.69924126 | I155: 6.504281259 | J155: 6.47923544 | K155: 7.876902504 | L155: 7.991342621 | M155: 8.008705751 | N155: 20.8467853 | O155: 21.47453263 | P155: 17.91268515 | Q155: 20.73190154 | R155: 21.70480529 | S155: 22.69930668 | T155: 9.756487649 | U155: 8.620031487 | V155: 9.968460496 | W155: 11.12101118 | X155: 12.74474169 | Y155: 12.9640245
A156: Arhgef4 | B156: 43.65933482 | C156: 44.96081128 | D156: 46.04343068 | E156: 55.20924555 | F156: 48.23050812 | G156: 51.67426698 | H156: 38.43328597 | I156: 37.70588698 | J156: 39.37937005 | K156: 41.65211833 | L156: 40.6801659 | M156: 39.80502309 | N156: 44.40938787 | O156: 43.2685646 | P156: 40.71452486 | Q156: 41.90177375 | R156: 40.75546807 | S156: 43.62854031 | T156: 31.42816634 | U156: 31.45461942 | V156: 32.79696845 | W156: 30.06431934 | X156: 32.62168415 | Y156: 33.13780824
A157: Cyth1 | B157: 44.89983706 | C157: 42.05743056 | D157: 42.04071093 | E157: 46.6684957 | F157: 47.64102387 | G157: 53.26064897 | H157: 37.93354848 | I157: 37.24245727 | J157: 38.46129142 | K157: 37.43528045 | L157: 35.96348446 | M157: 37.03551368 | N157: 48.56064314 | O157: 48.50740752 | P157: 44.01797045 | Q157: 38.99612852 | R157: 40.6448847 | S157: 40.67222687 | T157: 43.34971795 | U157: 41.37716405 | V157: 43.28986376 | W157: 34.62672674 | X157: 35.06747838 | Y157: 37.11873641
A158: Dock9 | B158: 78.62184451 | C158: 71.87434155 | D158: 73.13700863 | E158: 103.0613101 | F158: 96.52007049 | G158: 116.2158342 | H158: 55.34524191 | I158: 55.70944299 | J158: 60.09033453 | K158: 60.86869928 | L158: 62.36671042 | M158: 63.29753831 | N158: 71.25029459 | O158: 68.58121917 | P158: 63.41891122 | Q158: 75.82281634 | R158: 74.26217411 | S158: 79.78729022 | T158: 58.81294782 | U158: 59.24318317 | V158: 60.41011552 | W158: 55.83912857 | X158: 64.83954647 | Y158: 61.40255558
A159: Eps8l1 | B159: 52.46038675 | C159: 51.41291775 | D159: 52.81389985 | E159: 86.18816 | F159: 83.69388125 | G159: 98.08738704 | H159: 41.86189505 | I159: 42.7724162 | J159: 40.02088006 | K159: 33.15032598 | L159: 34.96979441 | M159: 34.8689818 | N159: 49.1688548 | O159: 50.14092108 | P159: 46.34975915 | Q159: 50.97579099 | R159: 48.19511817 | S159: 48.47980555 | T159: 44.11949131 | U159: 42.54037735 | V159: 42.9669573 | W159: 27.2248567 | X159: 33.38890948 | Y159: 32.11395252
A160: Eps8l2 | B160: 217.0749428 | C160: 209.5437477 | D160: 206.4266072 | E160: 303.2927216 | F160: 394.0290785 | G160: 308.4856425 | H160: 105.8565058 | I160: 102.4406347 | J160: 99.40377024 | K160: 131.4520982 | L160: 128.6978202 | M160: 116.9371307 | N160: 147.0448004 | O160: 149.1049251 | P160: 132.1719189 | Q160: 172.7004514 | R160: 197.2734268 | S160: 210.3558713 | T160: 108.4622523 | U160: 102.0896607 | V160: 107.9397183 | W160: 115.2914456 | X160: 132.8223918 | Y160: 129.4806638
A161: F2rl2 | B161: 0.412363177 | C161: 0.125793228 | D161: 0.205597891 | E161: 0.327090636 | F161: 0.417295044 | G161: 0.209827427 | H161: 0.025172125 | I161: 0.085208234 | J161: 0.092759294 | K161: 0.08545553 | L161: 0.029303085 | M161: 0.027790014 | N161: 0.134931621 | O161: 0.127003176 | P161: 0.154871751 | Q161: 0.075062605 | R161: 0.266428226 | S161: 0.143825249 | T161: 0.034613642 | U161: 0.038732187 | V161: 0.042245549 | W161: 0.037016241 | X161: 0.011724853 | Y161: 0.132570068
A162: Fgd3 | B162: 108.4336863 | C162: 73.06306251 | D162: 72.29478745 | E162: 111.1134517 | F162: 112.2195588 | G162: 112.6690044 | H162: 28.86089685 | I162: 30.69732944 | J162: 22.21902483 | K162: 27.41971151 | L162: 30.66431823 | M162: 20.84646291 | N162: 32.82211689 | O162: 43.95742149 | P162: 34.89464584 | Q162: 39.8344584 | R162: 57.16357188 | S162: 62.39655265 | T162: 28.78614895 | U162: 32.54443032 | V162: 27.47946508 | W162: 31.66233327 | X162: 35.64478316 | Y162: 32.05456926
A163: Fgd6 | B163: 62.50548574 | C163: 47.0482326 | D163: 46.27129747 | E163: 86.34395623 | F163: 72.65106206 | G163: 85.62406508 | H163: 40.30196556 | I163: 38.49389782 | J163: 37.98260808 | K163: 46.48907907 | L163: 51.90681427 | M163: 40.9581816 | N163: 46.28312777 | O163: 49.70211718 | P163: 41.12340569 | Q163: 48.92103488 | R163: 59.40058522 | S163: 66.09431092 | T163: 37.60412497 | U163: 37.76677291 | V163: 37.33196298 | W163: 40.84738851 | X163: 45.08730721 | Y163: 44.33807135
A164: Notch1 | B164: 50.45999357 | C164: 56.4183062 | D164: 55.61061388 | E164: 68.86119368 | F164: 83.30808432 | G164: 70.26832597 | H164: 13.73387233 | I164: 16.01578932 | J164: 17.02702311 | K164: 23.38463494 | L164: 24.19922731 | M164: 25.68069717 | N164: 28.12849883 | O164: 27.45760112 | P164: 27.62139646 | Q164: 34.47256459 | R164: 29.0959841 | S164: 32.27237506 | T164: 12.07286488 | U164: 12.32003597 | V164: 13.03652775 | W164: 14.55509192 | X164: 16.65276686 | Y164: 15.34463887
A165: Nrp1 | B165: 55.29616138 | C165: 59.61246934 | D165: 57.93582399 | E165: 52.18013232 | F165: 35.5990985 | G165: 58.8282469 | H165: 14.29246176 | I165: 14.18386051 | J165: 14.93566632 | K165: 13.11329144 | L165: 15.05547546 | M165: 13.53063195 | N165: 59.05552066 | O165: 66.92587896 | P165: 60.94737489 | Q165: 59.16317102 | R165: 66.48542508 | S165: 64.43055079 | T165: 23.18414382 | U165: 25.00214807 | V165: 24.68144198 | W165: 31.39417165 | X165: 34.550136 | Y165: 34.27522694
A166: Plekhg6 | B166: 212.4523428 | C166: 196.5823178 | D166: 193.495304 | E166: 245.2100197 | F166: 273.2992872 | G166: 262.5604178 | H166: 140.4226212 | I166: 147.4910372 | J166: 144.7696905 | K166: 159.8318734 | L166: 164.0783191 | M166: 158.809697 | N166: 150.5738242 | O166: 144.9305266 | P166: 141.72306 | Q166: 156.477067 | R166: 157.1943413 | S166: 178.661065 | T166: 124.0378143 | U166: 120.4372604 | V166: 122.9249447 | W166: 123.1773717 | X166: 129.4002452 | Y166: 130.6853791
A167: Rap1gap2 | B167: 4.921968349 | C167: 3.398802001 | D167: 3.190161965 | E167: 4.130503314 | F167: 3.724433989 | G167: 5.001458152 | H167: 0.206594843 | I167: 0.24798879 | J167: 0.166607145 | K167: 0.260078046 | L167: 0.255849797 | M167: 0.150436145 | N167: 4.462676913 | O167: 4.923447229 | P167: 3.369705795 | Q167: 5.448419806 | R167: 6.438994527 | S167: 7.045958879 | T167: 2.869047703 | U167: 3.278060055 | V167: 2.803278797 | W167: 3.175925293 | X167: 3.574813549 | Y167: 3.648408217
A168: Rap2c | B168: 70.45707796 | C168: 61.03406781 | D168: 61.7017623 | E168: 66.99653428 | F168: 65.84150652 | G168: 63.64278948 | H168: 50.27792981 | I168: 46.84789592 | J168: 50.35417796 | K168: 50.94728843 | L168: 46.17170087 | M168: 47.90649624 | N168: 66.60555212 | O168: 69.74727798 | P168: 69.07034593 | Q168: 57.65760896 | R168: 68.96383779 | S168: 67.47605734 | T168: 54.49454684 | U168: 57.57980475 | V168: 57.10792701 | W168: 60.25394108 | X168: 57.99260032 | Y168: 57.36511406
A169: Rasa1 | B169: 34.10078109 | C169: 30.60050995 | D169: 31.28919959 | E169: 37.88340693 | F169: 33.04066202 | G169: 39.25179215 | H169: 25.07227524 | I169: 24.03853228 | J169: 25.77042143 | K169: 24.83394712 | L169: 23.14247258 | M169: 23.02439252 | N169: 30.37279727 | O169: 32.20978784 | P169: 30.03359356 | Q169: 27.98909226 | R169: 31.04603108 | S169: 30.72290545 | T169: 27.37216095 | U169: 28.00359426 | V169: 27.60770976 | W169: 25.52318538 | X169: 25.8937989 | Y169: 25.29047693
A170: Vav3 | B170: 10.27336297 | C170: 10.17271201 | D170: 10.03480094 | E170: 7.775316664 | F170: 6.967564807 | G170: 9.755193314 | H170: 2.013702959 | I170: 1.94670663 | J170: 2.042844977 | K170: 1.856561276 | L170: 2.069461428 | M170: 1.869974098 | N170: 6.302221241 | O170: 6.855591237 | P170: 6.175305411 | Q170: 6.515634106 | R170: 6.704887041 | S170: 5.84543002 | T170: 4.119847712 | U170: 3.30826413 | V170: 3.690495221 | W170: 2.755561735 | X170: 2.735708023 | Y170: 2.960632913

Sheet Supplementary Data 10
A1: Differentially expressed genes identified from RNAseq
A3: Refer to Fig. 3d and Supplementary Fig. 4b
B5: #padj: Two sided p values caluculated by R package and adjusted for multiple testing.
A9: p53*/wt vs p53wt/wt | I9: p53*/- vs p53wt/- | Q9: p53wt/- vs p53wt/wt | Y9: p53*/- vs p53*/wt
B11: baseMean | C11: log2FoldChange | D11: lfcSE | E11: stat | F11: pvalue | G11: padj | J11: baseMean | K11: log2FoldChange | L11: lfcSE | M11: stat | N11: pvalue | O11: padj | Q11: baseMean | R11: log2FoldChange | S11: lfcSE | T11: stat | U11: pvalue | V11: padj | Z11: baseMean | AA11: log2FoldChange | AB11: lfcSE | AC11: stat | AD11: pvalue | AE11: padj
A12: Map6 | B12: 2317.19888 | C12: -4.115162507 | D12: 0.091168619 | E12: -45.13792737 | F12: 0 | G12: 0 | I12: Xlr | J12: 247.3970396 | K12: 4.075510056 | L12: 0.1390544639 | M12: 29.30873229 | N12: 8.03E-189 | O12: 1.80E-184 | Q12: Tpm3-rs7 | R12: 1320.908082 | S12: -5.036062535 | T12: 0.1297039101 | U12: -38.82737637 | V12: 0 | W12: 0 | Y12: Map6 | Z12: 2317.19888 | AA12: 3.531776971 | AB12: 0.09148740059 | AC12: 38.60397113 | AD12: 0 | AE12: 0
A13: Tpm3-rs7 | B13: 1320.908082 | C13: -5.038735037 | D13: 0.128318699 | E13: -39.26734819 | F13: 0 | G13: 0 | I13: Kit | J13: 606.1882799 | K13: 2.866159096 | L13: 0.1066573034 | M13: 26.87260042 | N13: 4.59E-159 | O13: 5.15E-155 | Q13: Dmtn | R13: 397.6927451 | S13: -4.648746862 | T13: 0.1563704088 | U13: -29.72907022 | V13: 3.23E-194 | W13: 4.28E-190 | Y13: Xist | Z13: 128086.4601 | AA13: 11.47962333 | AB13: 0.284449887 | AC13: 40.35727859 | AD13: 0 | AE13: 0
A14: Xist | B14: 128086.4601 | C14: -13.39687733 | D14: 0.284444381 | E14: -47.09840728 | F14: 0 | G14: 0 | I14: Olfml2a | J14: 444.8711804 | K14: 2.75128931 | L14: 0.1068624837 | M14: 25.74607304 | N14: 3.57E-146 | O14: 2.67E-142 | Q14: Gm11868 | R14: 398.3664708 | S14: 3.272220957 | T14: 0.1223839633 | U14: 26.73733443 | V14: 1.73E-157 | W14: 1.53E-153 | Y14: Rassf9 | Z14: 830.4118555 | AA14: 4.260855063 | AB14: 0.1381061056 | AC14: 30.85203978 | AD14: 5.26E-209 | AE14: 4.52E-205
A15: Ccdc88b | B15: 783.0054547 | C15: 4.194442567 | D15: 0.129347695 | E15: 32.42765602 | F15: 1.12E-230 | G15: 7.59e-227 | I15: Ccdc88b | J15: 783.0054547 | K15: 2.600406657 | L15: 0.1278366688 | M15: 20.34163344 | N15: 5.51E-92 | O15: 3.09E-88 | Q15: Ppp1r9a | R15: 446.6514641 | S15: -4.491893159 | T15: 0.169656489 | U15: -26.47640055 | V15: 1.81E-154 | W15: 1.20E-150 | Y15: Pcdhb22 | Z15: 952.0222465 | AA15: -3.147716098 | AB15: 0.1089261722 | AC15: -28.89770232 | AD15: 1.28E-183 | AE15: 8.23E-180
A16: Sprr3 | B16: 46659.32511 | C16: -6.050881781 | D16: 0.189752654 | E16: -31.88825898 | F16: 3.88E-223 | G16: 2.11E-219 | I16: Lcn2 | J16: 2303.139594 | K16: 4.397036423 | L16: 0.2206488301 | M16: 19.9277577 | N16: 2.34E-88 | O16: 1.05E-84 | Q16: Ramp3 | R16: 995.5971552 | S16: 2.633429606 | T16: 0.1056718029 | U16: 24.92083541 | V16: 4.42E-137 | W16: 2.34E-133 | Y16: Gm11868 | Z16: 398.3664708 | AA16: 3.479615578 | AB16: 0.1232371393 | AC16: 28.23512131 | AD16: 2.17E-175 | AE16: 1.12E-171
A17: Cdo1 | B17: 925.6010801 | C17: -5.726009808 | D17: 0.179841222 | E17: -31.83925098 | F17: 1.85E-222 | G17: 8.38E-219 | I17: Muc1 | J17: 1747.583036 | K17: 3.112332881 | L17: 0.1598243852 | M17: 19.47345442 | N17: 1.84E-84 | O17: 6.90E-81 | Q17: Gm8210 | R17: 382.2841303 | S17: 7.295568265 | T17: 0.2971608299 | U17: 24.55090824 | V17: 4.23E-133 | W17: 1.87E-129 | Y17: Cdo1 | Z17: 925.6010801 | AA17: 4.95962624 | AB17: 0.1803370176 | AC17: 27.50198659 | AD17: 1.66E-166 | AE17: 7.15E-163
A18: Zdhhc15 | B18: 438.5525563 | C18: -4.101016507 | D18: 0.129178646 | E18: -31.74686082 | F18: 3.51E-221 | G18: 1.36E-217 | I18: Laptm5 | J18: 155.8945271 | K18: 2.640874801 | L18: 0.1358027166 | M18: 19.44640628 | N18: 3.13E-84 | O18: 1.00E-80 | Q18: Cd200 | R18: 293.9489765 | S18: -8.476043578 | T18: 0.3719695845 | U18: -22.78692649 | V18: 6.18E-115 | W18: 2.34E-111 | Y18: Mgll | Z18: 343.0904703 | AA18: 4.987576996 | AB18: 0.1844849212 | AC18: 27.03514717 | AD18: 5.71E-161 | AE18: 2.10E-157
A19: Dmtn | B19: 397.6927451 | C19: -4.911527697 | D19: 0.157016457 | E19: -31.28033699 | F19: 8.64E-215 | G19: 2.93e-211 | I19: Sulf2 | J19: 713.8881424 | K19: -3.588556991 | L19: 0.1888492657 | M19: -19.00222899 | N19: 1.63E-80 | O19: 4.59E-77 | Q19: Gm28438 | R19: 638.5675337 | S19: 5.863994303 | T19: 0.2589210042 | U19: 22.6478123 | V19: 1.47E-113 | W19: 4.85E-110 | Y19: H19 | Z19: 577.2361062 | AA19: 5.446790454 | AB19: 0.2105850508 | AC19: 25.86503853 | AD19: 1.65E-147 | AE19: 5.31E-144
A20: Crct1 | B20: 9658.5248 | C20: -8.159001921 | D20: 0.262991249 | E20: -31.02385325 | F20: 2.57E-211 | G20: 7.75E-208 | I20: Wnk2 | J20: 568.1973579 | K20: 2.181084548 | L20: 0.1157530405 | M20: 18.84256811 | N20: 3.38E-79 | O20: 8.43E-76 | Q20: Gm10704 | R20: 286.0763774 | S20: 5.340147842 | T20: 0.2363133823 | U20: 22.59773776 | V20: 4.56E-113 | W20: 1.34E-109 | Y20: Hmgcs1 | Z20: 41174.94056 | AA20: 1.947756914 | AB20: 0.07693983189 | AC20: 25.31532584 | AD20: 2.17E-141 | AE20: 6.21E-138
A21: Ppp1r9a | B21: 446.6514641 | C21: -5.671510596 | D21: 0.184641691 | E21: -30.71630552 | F21: 3.45E-207 | G21: 9.35E-204 | I21: Slc39a4 | J21: 3577.949538 | K21: 2.782381149 | L21: 0.1546506302 | M21: 17.99139872 | N21: 2.28E-72 | O21: 5.11E-69 | Q21: Hmgcs1 | R21: 41174.94056 | S21: 1.626139989 | T21: 0.07689975666 | U21: 21.14623062 | V21: 2.99E-99 | W21: 7.91E-96 | Y21: Gm8210 | Z21: 382.2841303 | AA21: 6.908234325 | AB21: 0.2823975012 | AC21: 24.46280259 | AD21: 3.68E-132 | AE21: 9.49E-129
A22: Slc39a4 | B22: 3577.949538 | C22: 4.692848348 | D22: 0.157171759 | E22: 29.85808878 | F22: 6.89E-196 | G22: 1.70E-192 | I22: Ddit4l | J22: 221.9671848 | K22: -3.929580243 | L22: 0.2244175283 | M22: -17.51013066 | N22: 1.20E-68 | O22: 2.45E-65 | Q22: Fras1 | R22: 3256.403837 | S22: 1.89586672 | T22: 0.09472233616 | U22: 20.01499116 | V22: 4.08E-89 | W22: 9.81E-86 | Y22: Sulf1 | Z22: 442.113617 | AA22: 3.910440805 | AB22: 0.1637532949 | AC22: 23.88007403 | AD22: 4.93E-126 | AE22: 1.16E-122
A23: Ramp3 | B23: 995.5971552 | C23: 3.092542215 | D23: 0.104895288 | E23: 29.48218446 | F23: 4.87E-191 | G23: 1.10E-187 | I23: Ptp4a3 | J23: 2962.229682 | K23: -1.99122175 | L23: 0.1140838001 | M23: -17.4540272 | N23: 3.21E-68 | O23: 6.00E-65 | Q23: Ptprm | R23: 91.36879107 | S23: -3.014407878 | T23: 0.153343029 | U23: -19.6579388 | V23: 4.94E-86 | W23: 1.09E-82 | Y23: Fstl1 | Z23: 295.1987699 | AA23: 6.541850794 | AB23: 0.277512832 | AC23: 23.57314704 | AD23: 7.27E-123 | AE23: 1.56E-119
A24: Jam2 | B24: 493.9966279 | C24: 3.916488329 | D24: 0.134896473 | E24: 29.03328935 | F24: 2.50E-185 | G24: 5.22E-182 | I24: Aadacl2 | J24: 228.8634412 | K24: -3.479710331 | L24: 0.2104960494 | M24: -16.53100066 | N24: 2.19E-61 | O24: 3.79E-58 | Q24: Ces1h | R24: 160.2792455 | S24: 4.800856804 | T24: 0.2528830181 | U24: 18.98449663 | V24: 2.29E-80 | W24: 4.66E-77 | Y24: Gm3375 | Z24: 432.3382904 | AA24: 5.280967681 | AB24: 0.224480974 | AC24: 23.52523507 | AD24: 2.25E-122 | AE24: 4.47E-119
A25: Olfml2a | B25: 444.8711804 | C25: 3.772371527 | D25: 0.130458828 | E25: 28.91618431 | F25: 7.47E-184 | G25: 1.45E-180 | I25: Spata13 | J25: 1110.964966 | K25: 1.15164815 | L25: 0.06972544589 | M25: 16.51689904 | N25: 2.77E-61 | O25: 4.45E-58 | Q25: Sdk1 | R25: 99.27842995 | S25: -3.568832086 | T25: 0.1939652303 | U25: -18.39933931 | V25: 1.33E-75 | W25: 2.51E-72 | Y25: Gjb6 | Z25: 726.4017789 | AA25: 3.721673297 | AB25: 0.1595467012 | AC25: 23.32654494 | AD25: 2.38E-120 | AE25: 4.39E-117
A26: Rassf9 | B26: 830.4118555 | C26: -3.97095981 | D26: 0.138276092 | E26: -28.71761669 | F26: 2.30E-181 | G26: 4.16E-178 | I26: Sftpd | J26: 198.6489299 | K26: 3.188194063 | L26: 0.1935814945 | M26: 16.4695188 | N26: 6.08E-61 | O26: 9.09E-58 | Q26: Stk38l | R26: 6270.85814 | S26: 0.8304598923 | T26: 0.04570680903 | U26: 18.16928177 | V26: 9.04E-74 | W26: 1.49E-70 | Y26: Fam20a | Z26: 433.8339709 | AA26: 3.455354617 | AB26: 0.1501380523 | AC26: 23.01451606 | AD26: 3.34E-117 | AE26: 5.74E-114
A27: Acsm3 | B27: 1962.379027 | C27: -5.086957726 | D27: 0.178686344 | E27: -28.46864293 | F27: 2.86E-178 | G27: 4.86E-175 | I27: Cp | J27: 539.8994772 | K27: 3.542478672 | L27: 0.2164734403 | M27: 16.36449565 | N27: 3.43E-60 | O27: 4.81E-57 | Q27: Peg10 | R27: 573.681963 | S27: -7.133219625 | T27: 0.3925333099 | U27: -18.17226576 | V27: 8.56E-74 | W27: 1.49E-70 | Y27: Gm10704 | Z27: 286.0763774 | AA27: 5.603964125 | AB27: 0.2454876248 | AC27: 22.82788849 | AD27: 2.42E-115 | AE27: 3.91E-112
A28: Tmprss11f | B28: 1019.376112 | C28: -2.703562051 | D28: 0.097479538 | E28: -27.73466224 | F28: 2.67E-169 | G28: 4.26e-166 | I28: Col4a2 | J28: 216.2763821 | K28: 2.459279783 | L28: 0.1561048084 | M28: 15.75402968 | N28: 6.44E-56 | O28: 8.51E-53 | Q28: Rcsd1 | R28: 208.4592192 | S28: -2.555368518 | T28: 0.1546341762 | U28: -16.52525063 | V28: 2.41E-61 | W28: 3.76E-58 | Y28: Ddah2 | Z28: 786.9771472 | AA28: 2.924779549 | AB28: 0.1293719817 | AC28: 22.60751911 | AD28: 3.66E-113 | AE28: 5.55E-110
A29: Cplx2 | B29: 286.0835407 | C29: -4.853389856 | D29: 0.176733669 | E29: -27.46160308 | F29: 5.05E-166 | G29: 7.61E-163 | I29: AW112010 | J29: 76.56222095 | K29: 3.350673705 | L29: 0.217395418 | M29: 15.41280738 | N29: 1.34E-53 | O29: 1.67E-50 | Q29: Vav2 | R29: 6400.962801 | S29: -0.6668894549 | T29: 0.04086643145 | U29: -16.31875922 | V29: 7.26E-60 | W29: 1.07E-56 | Y29: Col4a2 | Z29: 216.2763821 | AA29: 3.737615058 | AB29: 0.1676553476 | AC29: 22.29344373 | AD29: 4.28E-110 | AE29: 5.81E-107
A30: Aqp4 | B30: 7325.372305 | C30: 5.630735604 | D30: 0.207026546 | E30: 27.19813337 | F30: 6.83E-163 | G30: 9.76E-160 | I30: Dclk1 | J30: 134.3098397 | K30: 3.27200828 | L30: 0.218856903 | M30: 14.95044587 | N30: 1.55E-50 | O30: 1.83E-47 | Q30: Gm15264 | R30: 165.1406239 | S30: -2.120111175 | T30: 0.1323374168 | U30: -16.0204969 | V30: 9.19E-58 | W30: 1.28E-54 | Y30: Kazn | Z30: 3406.496421 | AA30: 1.314888293 | AB30: 0.05897649542 | AC30: 22.29512424 | AD30: 4.12E-110 | AE30: 5.81E-107
A31: Kazn | B31: 3406.496421 | C31: -1.575614208 | D31: 0.058819698 | E31: -26.78718644 | F31: 4.56E-158 | G31: 6.18E-155 | I31: Aqp4 | J31: 7325.372305 | K31: 3.042418102 | L31: 0.2061966579 | M31: 14.75493412 | N31: 2.86E-49 | O31: 3.21E-46 | Q31: Epb41l3 | R31: 141.7585102 | S31: -3.553378468 | T31: 0.2220808489 | U31: -16.00038223 | V31: 1.27E-57 | W31: 1.68E-54 | Y31: Prom1 | Z31: 831.173957 | AA31: 4.174635013 | AB31: 0.1889191582 | AC31: 22.09746779 | AD31: 3.34E-108 | AE31: 4.31E-105
A32: Tnc | B32: 28258.92008 | C32: -3.161323075 | D32: 0.118182219 | E32: -26.74956611 | F32: 1.25E-157 | G32: 1.61E-154 | I32: Vnn3 | J32: 126.9259012 | K32: 3.764718325 | L32: 0.2566420526 | M32: 14.66914049 | N32: 1.02E-48 | O32: 1.09E-45 | Q32: Foxg1 | R32: 4645.808188 | S32: 2.950043865 | T32: 0.1844974641 | U32: 15.98961741 | V32: 1.51E-57 | W32: 1.90E-54 | Y32: Crct1 | Z32: 9658.5248 | AA32: 5.741950833 | AB32: 0.263179295 | AC32: 21.81763893 | AD32: 1.58E-105 | AE32: 1.94E-102
A33: Lgals7 | B33: 2715.60473 | C33: -8.528114264 | D33: 0.321714305 | E33: -26.50834651 | F33: 7.77E-155 | G33: 9.58E-152 | I33: Atp1b1 | J33: 3877.245648 | K33: 1.57902793 | L33: 0.1107405723 | M33: 14.25880233 | N33: 3.95E-46 | O33: 4.03E-43 | Q33: Rasgrp3 | R33: 207.4815761 | S33: -2.138484165 | T33: 0.1362261257 | U33: -15.6980473 | V33: 1.56E-55 | W33: 1.88E-52 | Y33: Zdhhc15 | Z33: 438.5525563 | AA33: 2.843289756 | AB33: 0.1311121995 | AC33: 21.68592829 | AD33: 2.79E-104 | AE33: 3.27E-101
A34: Sulf1 | B34: 442.113617 | C34: -4.273642582 | D34: 0.163271725 | E34: -26.17503178 | F34: 5.11E-151 | G34: 6.03E-148 | I34: Sprr3 | J34: 46659.32511 | K34: -2.667119729 | L34: 0.1890975113 | M34: -14.10446764 | N34: 3.56E-45 | O34: 3.48E-42 | Q34: Pvrl3 | R34: 173.9804131 | S34: -3.14161481 | T34: 0.2020303333 | U34: -15.55021347 | V34: 1.59E-54 | W34: 1.82E-51 | Y34: Wdr72 | Z34: 2236.466197 | AA34: 3.151302196 | AB34: 0.1456846994 | AC34: 21.63097572 | AD34: 9.18E-104 | AE34: 1.03E-100
A35: Slfn10-ps | B35: 501.5342182 | C35: -2.881580779 | D35: 0.110885137 | E35: -25.98707875 | F35: 6.93E-149 | G35: 7.84E-146 | I35: Pigr | J35: 2183.384096 | K35: 2.661705687 | L35: 0.1901555964 | M35: 13.99751434 | N35: 1.61E-44 | O35: 1.51E-41 | Q35: Slfn10-ps | R35: 501.5342182 | S35: -1.646218346 | T35: 0.1060763233 | U35: -15.51918745 | V35: 2.57E-54 | W35: 2.84E-51 | Y35: Slco2a1 | Z35: 2763.118953 | AA35: 2.669339704 | AB35: 0.123833152 | AC35: 21.55593766 | AD35: 4.66E-103 | AE35: 5.01E-100
A36: Lgr6 | B36: 929.3705066 | C36: -3.912225092 | D36: 0.151192374 | E36: -25.87580959 | F36: 1.25e-147 | G36: 1.35E-144 | I36: Igfbp4 | J36: 260.1251037 | K36: 2.592772021 | L36: 0.1869882668 | M36: 13.86596104 | N36: 1.02E-43 | O36: 9.15E-41 | Q36: Jam2 | R36: 493.9966279 | S36: 2.142558434 | T36: 0.1385391729 | U36: 15.46536182 | V36: 5.94E-54 | W36: 6.29E-51 | Y36: Serpinh1 | Z36: 6100.661849 | AA36: 2.85353843 | AB36: 0.1324399562 | AC36: 21.54590285 | AD36: 5.78E-103 | AE36: 5.97E-100
A37: Gm43305 | B37: 498.1880028 | C37: 5.783874426 | D37: 0.223651517 | E37: 25.86110079 | F37: 1.83E-147 | G37: 1.90E-144 | I37: Upk3a | J37: 255.1794586 | K37: 3.962876645 | L37: 0.286125092 | M37: 13.8501542 | N37: 1.27E-43 | O37: 1.10E-40 | Q37: 3110039M20Rik | R37: 130.2370922 | S37: 4.355443098 | T37: 0.2823093922 | U37: 15.42790717 | V37: 1.06E-53 | W37: 1.08E-50 | Y37: Cyba | Z37: 398.0337864 | AA37: 4.128938398 | AB37: 0.1930991005 | AC37: 21.38248385 | AD37: 1.94E-101 | AE37: 1.93E-98
A38: Kcnq1 | B38: 2248.792215 | C38: 4.135826976 | D38: 0.161125641 | E38: 25.66833522 | F38: 2.64e-145 | G38: 2.65E-142 | I38: Camk2b | J38: 1258.441512 | K38: 1.426726472 | L38: 0.1041072875 | M38: 13.70438619 | N38: 9.56E-43 | O38: 7.95E-40 | Q38: Zfp704 | R38: 2099.974719 | S38: -1.120925899 | T38: 0.073278202 | U38: -15.2968532 | V38: 8.02E-53 | W38: 7.86E-50 | Y38: Col4a1 | Z38: 176.6699833 | AA38: 3.991137636 | AB38: 0.1892169705 | AC38: 21.09291585 | AD38: 9.24E-99 | AE38: 8.83E-96
A39: Lrmp | B39: 1495.352138 | C39: -6.135198531 | D39: 0.240256177 | E39: -25.53606991 | F39: 7.84E-144 | G39: 7.60E-141 | I39: Col4a1 | J39: 176.6699833 | K39: 2.256018477 | L39: 0.17019044 | M39: 13.25584725 | N39: 4.17E-40 | O39: 3.35E-37 | Q39: Pgm2l1 | R39: 2249.577722 | S39: 2.679503686 | T39: 0.175456307 | U39: 15.27162934 | V39: 1.18E-52 | W39: 1.12E-49 | Y39: Plxnd1 | Z39: 263.1480246 | AA39: 2.388241834 | AB39: 0.1133786981 | AC39: 21.06429051 | AD39: 1.69E-98 | AE39: 1.56E-95
A40: Gm15264 | B40: 165.1406239 | C40: -4.198858677 | D40: 0.164864872 | E40: -25.46848591 | F40: 4.41E-143 | G40: 4.12e-140 | I40: Pde3b | J40: 105.6843115 | K40: 2.323109814 | L40: 0.1867870129 | M40: 12.43721273 | N40: 1.64E-35 | O40: 1.27E-32 | Q40: Amtn | R40: 93.18008824 | S40: -5.362518934 | T40: 0.3607456319 | U40: -14.86509734 | V40: 5.55E-50 | W40: 5.07E-47 | Y40: Rap1gap2 | Z40: 683.4051344 | AA40: 4.076467379 | AB40: 0.1960341924 | AC40: 20.7946753 | AD40: 4.84E-96 | AE40: 4.30E-93
A41: Dmd | B41: 637.9216013 | C41: -2.26306002 | D41: 0.089671611 | E41: -25.23719607 | F41: 1.57E-140 | G41: 1.42E-137 | I41: Tmprss11f | J41: 1019.376112 | K41: -1.180494516 | L41: 0.09572785025 | M41: -12.33177715 | N41: 6.11E-35 | O41: 4.57E-32 | Q41: Raet1d | R41: 66.21513595 | S41: -7.170045555 | T41: 0.4854150015 | U41: -14.77095997 | V41: 2.25E-49 | W41: 1.99E-46 | Y41: Lgals7 | Z41: 2715.60473 | AA41: 6.686295121 | AB41: 0.3220132634 | AC41: 20.7640364 | AD41: 9.15E-96 | AE41: 7.87E-93
A42: Slc16a6 | B42: 755.9721761 | C42: -3.082764451 | D42: 0.12226717 | E42: -25.213346 | F42: 2.86E-140 | G42: 2.50E-137 | I42: Sestd1 | J42: 4514.253646 | K42: 0.9843755973 | L42: 0.07989215148 | M42: 12.3213054 | N42: 6.96E-35 | O42: 5.04E-32 | Q42: Hs3st1 | R42: 2202.382117 | S42: 2.044937517 | T42: 0.1387337785 | U42: 14.74001169 | V42: 3.57E-49 | W42: 3.04E-46 | Y42: Asprv1 | Z42: 3057.103075 | AA42: 5.365736584 | AB42: 0.260597733 | AC42: 20.59011229 | AD42: 3.37E-94 | AE42: 2.80E-91
A43: Rasgrp3 | B43: 207.4815761 | C43: -3.91547235 | D43: 0.157526709 | E43: -24.85592674 | F43: 2.23e-136 | G43: 1.89e-133 | I43: Ppp1r1b | J43: 162.1617726 | K43: 2.47681361 | L43: 0.2012985913 | M43: 12.30417756 | N43: 8.60E-35 | O43: 6.03E-32 | Q43: Zdhhc15 | R43: 438.5525563 | S43: -1.613926586 | T43: 0.1102103204 | U43: -14.64406038 | V43: 1.47E-48 | W43: 1.22E-45 | Y43: Clstn2 | Z43: 298.3382756 | AA43: 3.556918901 | AB43: 0.1729659111 | AC43: 20.56427697 | AD43: 5.73E-94 | AE43: 4.62E-91
A44: Slco2a1 | B44: 2763.118953 | C44: -3.049951544 | D44: 0.123718873 | E44: -24.65227383 | F44: 3.48E-134 | G44: 2.86E-131 | I44: Runx3 | J44: 39.17685462 | K44: 2.748114759 | L44: 0.2237283148 | M44: 12.28326759 | N44: 1.11E-34 | O44: 7.58E-32 | Q44: Tpm2 | R44: 20194.73577 | S44: -0.6874730361 | T44: 0.04730645005 | U44: -14.53233196 | V44: 7.56E-48 | W44: 6.06E-45 | Y44: Sparc | Z44: 603.7235127 | AA44: 3.717079425 | AB44: 0.1814739859 | AC44: 20.4827122 | AD44: 3.07E-93 | AE44: 2.40E-90
A45: Pcdhb22 | B45: 952.0222465 | C45: 2.582522229 | D45: 0.107084163 | E45: 24.11675225 | F45: 1.67E-128 | G45: 1.33E-125 | I45: Gria3 | J45: 207.2792442 | K45: -7.003271556 | L45: 0.5728265084 | M45: -12.22581611 | N45: 2.26E-34 | O45: 1.49E-31 | Q45: Sgce | R45: 65.62337573 | S45: -3.972137577 | T45: 0.2747134379 | U45: -14.45920377 | V45: 2.19E-47 | W45: 1.71E-44 | Y45: Igfbp4 | Z45: 260.1251037 | AA45: 4.036425618 | AB45: 0.1988845247 | AC45: 20.29532275 | AD45: 1.41E-91 | AE45: 1.07E-88
A46: Sulf2 | B46: 713.8881424 | C46: -4.36023995 | D46: 0.181615256 | E46: -24.00811503 | F46: 2.29E-127 | G46: 1.77e-124 | I46: Tnip3 | J46: 312.9453383 | K46: 2.141918654 | L46: 0.1756061794 | M46: 12.19728521 | N46: 3.21E-34 | O46: 2.06E-31 | Q46: 9430018G01Rik | R46: 316.715293 | S46: -1.805820943 | T46: 0.1249635545 | U46: -14.45078087 | V46: 2.48E-47 | W46: 1.87E-44 | Y46: Pcdhgb2 | Z46: 597.0440342 | AA46: -1.649042641 | AB46: 0.08163515144 | AC46: -20.20015412 | AD46: 9.76E-91 | AE46: 7.19E-88
A47: Map9 | B47: 256.778842 | C47: -5.710534202 | D47: 0.238518168 | E47: -23.9417158 | F47: 1.13e-126 | G47: 8.49E-124 | I47: Hpn | J47: 466.6131349 | K47: 1.220109154 | L47: 0.1010993098 | M47: 12.0684222 | N47: 1.55E-33 | O47: 9.57E-31 | Q47: Stxbp6 | R47: 316.6771126 | S47: 2.790383298 | T47: 0.194838593 | U47: 14.32151226 | V47: 1.61E-46 | W47: 1.18E-43 | Y47: Zfhx4 | Z47: 636.8905566 | AA47: -2.118817446 | AB47: 0.105891982 | AC47: -20.009234 | AD47: 4.58E-89 | AE47: 3.28E-86
A48: Wnk2 | B48: 568.1973579 | C48: 2.904935413 | D48: 0.122532759 | E48: 23.70741862 | F48: 3.02E-124 | G48: 2.22E-121 | I48: A330074K22Rik | J48: 762.172576 | K48: 1.566108262 | L48: 0.1297842098 | M48: 12.06701697 | N48: 1.58E-33 | O48: 9.57E-31 | Q48: H19 | R48: 577.2361062 | S48: 2.744872018 | T48: 0.191870395 | U48: 14.30586526 | V48: 2.01E-46 | W48: 1.44E-43 | Y48: Pcdhgb4 | Z48: 189.9702202 | AA48: 2.857627764 | AB48: 0.1452763001 | AC48: 19.67029559 | AD48: 3.88E-86 | AE48: 2.70E-83
A49: Spns3 | B49: 579.9697291 | C49: 4.577656358 | D49: 0.193895192 | E49: 23.60892148 | F49: 3.12E-123 | G49: 2.23E-120 | I49: Stk10 | J49: 491.7946653 | K49: 0.9096807285 | L49: 0.07561672818 | M49: 12.03015193 | N49: 2.47E-33 | O49: 1.46E-30 | Q49: Skint6 | R49: 742.3356444 | S49: -2.41302875 | T49: 0.1694715833 | U49: -14.23854491 | V49: 5.28E-46 | W49: 3.68E-43 | Y49: Trpm6 | Z49: 445.055658 | AA49: 2.667666454 | AB49: 0.1379052147 | AC49: 19.3442029 | AD49: 2.28E-83 | AE49: 1.55E-80
A50: Foxg1 | B50: 4645.808188 | C50: 4.317300128 | D50: 0.184290123 | E50: 23.42664955 | F50: 2.29E-121 | G50: 1.59E-118 | I50: B4galt6 | J50: 1042.23928 | K50: 1.435746793 | L50: 0.1200351216 | M50: 11.96105585 | N50: 5.68E-33 | O50: 3.27E-30 | Q50: Itgb8 | R50: 644.7415306 | S50: -2.815744225 | T50: 0.1977860818 | U50: -14.23631126 | V50: 5.45E-46 | W50: 3.70E-43 | Y50: Map9 | Z50: 256.778842 | AA50: 4.633334366 | AB50: 0.2400657157 | AC50: 19.30027515 | AD50: 5.34E-83 | AE50: 3.53E-80
A51: Snx31 | B51: 442.4914224 | C51: -6.266156635 | D51: 0.268475407 | E51: -23.3397789 | F51: 1.75E-120 | G51: 1.19E-117 | I51: Tenm1 | J51: 151.8522764 | K51: 2.667200568 | L51: 0.2248767109 | M51: 11.86072385 | N51: 1.89E-32 | O51: 1.06E-29 | Q51: Nnt | R51: 1512.728235 | S51: 1.185979555 | T51: 0.08332549264 | U51: 14.23309382 | V51: 5.71E-46 | W51: 3.78E-43 | Y51: Ephx3 | Z51: 1366.781554 | AA51: 4.729386177 | AB51: 0.2479078089 | AC51: 19.07719728 | AD51: 3.91E-81 | AE51: 2.52E-78
A52: Papss2 | B52: 519.7575247 | C52: -2.712184637 | D52: 0.116606562 | E52: -23.25927958 | F52: 1.15e-119 | G52: 7.58E-117 | I52: Prom1 | J52: 831.173957 | K52: 2.186794269 | L52: 0.1844863692 | M52: 11.85341919 | N52: 2.07E-32 | O52: 1.13E-29 | Q52: Krtdap | R52: 94.84627205 | S52: 7.366439437 | T52: 0.5185704145 | U52: 14.20528289 | V52: 8.50E-46 | W52: 5.48E-43 | Y52: Slc16a7 | Z52: 147.8479772 | AA52: 4.333853614 | AB52: 0.2278964156 | AC52: 19.01676954 | AD52: 1.24E-80 | AE52: 7.79E-78
A53: Trpm6 | B53: 445.055658 | C53: -3.168155525 | D53: 0.137184315 | E53: -23.09415271 | F53: 5.30E-118 | G53: 3.42E-115 | I53: Slc25a23 | J53: 736.7722914 | K53: 1.538402676 | L53: 0.1314270751 | M53: 11.70537102 | N53: 1.20E-31 | O53: 6.39E-29 | Q53: Lyrm7 | R53: 308.9019959 | S53: -1.795026385 | T53: 0.1275543156 | U53: -14.0726433 | V53: 5.59E-45 | W53: 3.52E-42 | Y53: Sprr3 | Z53: 46659.32511 | AA53: 3.590136928 | AB53: 0.1898042384 | AC53: 18.91494604 | AD53: 8.59E-80 | AE53: 5.28E-77
A54: Wfdc1 | B54: 428.9569408 | C54: 6.366585363 | D54: 0.276064103 | E54: 23.06198196 | F54: 1.12E-117 | G54: 7.04E-115 | I54: Lrmp | J54: 1495.352138 | K54: -2.659264686 | L54: 0.227722266 | M54: -11.67766654 | N54: 1.66E-31 | O54: 8.65E-29 | Q54: Ces1f | R54: 112.0611636 | S54: 4.775047743 | T54: 0.3404994114 | U54: 14.02365932 | V54: 1.12E-44 | W54: 6.87E-42 | Y54: Ly6d | Z54: 16177.6979 | AA54: 4.239127797 | AB54: 0.2242605322 | AC54: 18.90269213 | AD54: 1.08E-79 | AE54: 6.46E-77
A55: Atp6v0a1 | B55: 16066.80313 | C55: -0.776327875 | D55: 0.034333143 | E55: -22.61161696 | F55: 3.33e-113 | G55: 2.05E-110 | I55: Gsdma | J55: 481.0827752 | K55: -2.493023166 | L55: 0.214211982 | M55: -11.63811259 | N55: 2.64E-31 | O55: 1.32E-28 | Q55: Gpr153 | R55: 207.9114944 | S55: -2.428886425 | T55: 0.1733855929 | U55: -14.00858275 | V55: 1.38E-44 | W55: 8.31E-42 | Y55: Gm43305 | Z55: 498.1880028 | AA55: -3.9075087 | AB55: 0.2067264319 | AC55: -18.90183401 | AD55: 1.10E-79 | AE55: 6.46E-77
A56: Gjb6 | B56: 726.4017789 | C56: -3.597684847 | D56: 0.159604362 | E56: -22.54126898 | F56: 1.64e-112 | G56: 9.86E-110 | I56: Chst9 | J56: 157.4397888 | K56: 2.950509318 | L56: 0.2535212722 | M56: 11.63811341 | N56: 2.64E-31 | O56: 1.32E-28 | Q56: Depdc7 | R56: 912.046459 | S56: 1.290863417 | T56: 0.09389755574 | U56: 13.7475721 | V56: 5.27E-43 | W56: 3.10E-40 | Y56: Laptm5 | Z56: 155.8945271 | AA56: 2.477439831 | AB56: 0.1313225222 | AC56: 18.86530802 | AD56: 2.20E-79 | AE56: 1.26E-76
A57: Aim1l | B57: 10663.36424 | C57: -1.830113084 | D57: 0.081894504 | E57: -22.34720274 | F57: 1.29e-110 | G57: 7.58E-108 | I57: Zmat3 | J57: 6500.543238 | K57: -1.076710665 | L57: 0.09269477046 | M57: -11.61565707 | N57: 3.43E-31 | O57: 1.67E-28 | Q57: Tnc | R57: 28258.92008 | S57: -1.619217954 | T57: 0.1180600646 | U57: -13.71520471 | V57: 8.23E-43 | W57: 4.74E-40 | Y57: Mfsd2a | Z57: 619.253991 | AA57: 2.258553922 | AB57: 0.1198059089 | AC57: 18.85177403 | AD57: 2.84E-79 | AE57: 1.59E-76
A58: Cnfn | B58: 7084.563085 | C58: -5.136911077 | D58: 0.233261525 | E58: -22.02211052 | F58: 1.77e-107 | G58: 1.02e-104 | I58: Tns1 | J58: 1971.725116 | K58: 1.025279095 | L58: 0.08866359676 | M58: 11.56369843 | N58: 6.29E-31 | O58: 3.01E-28 | Q58: Fgfbp1 | R58: 14616.82623 | S58: 1.08070508 | T58: 0.07900709164 | U58: 13.67858325 | V58: 1.36E-42 | W58: 7.67E-40 | Y58: Adamts15 | Z58: 3800.166233 | AA58: 4.275222418 | AB58: 0.2270455512 | AC58: 18.82980043 | AD58: 4.30E-79 | AE58: 2.36E-76
A59: Ephx3 | B59: 1366.781554 | C59: -5.442508452 | D59: 0.24761888 | E59: -21.97937596 | F59: 4.54E-107 | G59: 2.56E-104 | I59: Clstn2 | J59: 298.3382756 | K59: 1.884121674 | L59: 0.1631239435 | M59: 11.55024599 | N59: 7.36E-31 | O59: 3.44E-28 | Q59: Pmvk | R59: 3056.384125 | S59: 0.8037038557 | T59: 0.05880090537 | U59: 13.66822246 | V59: 1.57E-42 | W59: 8.66E-40 | Y59: Col16a1 | Z59: 1316.992906 | AA59: 2.341674952 | AB59: 0.1254483808 | AC59: 18.66644222 | AD59: 9.28E-78 | AE59: 4.99E-75
A60: Gpr153 | B60: 207.9114944 | C60: -4.423206694 | D60: 0.202109991 | E60: -21.88514612 | F60: 3.60E-106 | G60: 1.99E-103 | I60: Sox5 | J60: 210.0423383 | K60: 3.116280406 | L60: 0.2699791998 | M60: 11.5426685 | N60: 8.04E-31 | O60: 3.68E-28 | Q60: Olfml2a | R60: 444.8711804 | S60: 1.872921991 | T60: 0.137629723 | U60: 13.60841213 | V60: 3.57E-42 | W60: 1.93E-39 | Y60: Dnajc1 | Z60: 3651.146268 | AA60: -0.9056871104 | AB60: 0.04868946666 | AC60: -18.60129454 | AD60: 3.14E-77 | AE60: 1.65E-74
A61: Hdgfrp3 | B61: 1069.028649 | C61: -1.501639358 | D61: 0.069290064 | E61: -21.67178494 | F61: 3.79E-104 | G61: 2.06E-101 | I61: Padi2 | J61: 94.01127341 | K61: 1.625058889 | L61: 0.1409004959 | M61: 11.53337948 | N61: 8.96E-31 | O61: 4.02E-28 | Q61: Ralgps2 | R61: 7198.218341 | S61: 0.4705128539 | T61: 0.03492843669 | U61: 13.47076762 | V61: 2.32E-41 | W61: 1.23E-38 | Y61: Papss2 | Z61: 519.7575247 | AA61: 2.177500672 | AB61: 0.1176262346 | AC61: 18.51203245 | AD61: 1.65E-76 | AE61: 8.52E-74
A62: Mgll | B62: 343.0904703 | C62: -4.011687946 | D62: 0.185888758 | E62: -21.58112191 | F62: 2.70E-103 | G62: 1.44e-100 | I62: Capns2 | J62: 364.0576219 | K62: -2.468936339 | L62: 0.2154385295 | M62: -11.46005009 | N62: 2.09E-30 | O62: 9.22E-28 | Q62: Laptm5 | R62: 155.8945271 | S62: 3.273332511 | T62: 0.2454764097 | U62: 13.33461132 | V62: 1.46E-40 | W62: 7.55E-38 | Y62: Acsm3 | Z62: 1962.379027 | AA62: 3.284143224 | AB62: 0.1792733159 | AC62: 18.31919718 | AD62: 5.82E-75 | AE62: 2.94E-72
A63: Gm28438 | B63: 638.5675337 | C63: 5.574943349 | D63: 0.25896356 | E63: 21.52790664 | F63: 8.53E-103 | G63: 4.45E-100 | I63: Dbn1 | J63: 1036.863577 | K63: 1.21707767 | L63: 0.106259404 | M63: 11.4538349 | N63: 2.25E-30 | O63: 9.71E-28 | Q63: Rps3a2 | R63: 326.645896 | S63: -2.674626552 | T63: 0.2006440459 | U63: -13.33020644 | V63: 1.54E-40 | W63: 7.86E-38 | Y63: Pcdhga12 | Z63: 309.9266704 | AA63: -2.578805559 | AB63: 0.1417180478 | AC63: -18.19673357 | AD63: 5.48E-74 | AE63: 2.72E-71
A64: Kcne3 | B64: 1095.667034 | C64: 6.691109457 | D64: 0.312549394 | E64: 21.40816645 | F64: 1.12E-101 | G64: 5.74E-99 | I64: Hid1 | J64: 750.3875201 | K64: 1.497043875 | L64: 0.1309844772 | M64: 11.42917014 | N64: 2.99E-30 | O64: 1.27E-27 | Q64: Otx1 | R64: 118.7465719 | S64: 3.810376134 | T64: 0.2859211479 | U64: 13.32666772 | V64: 1.62E-40 | W64: 8.09E-38 | Y64: Dmd | Z64: 637.9216013 | AA64: 1.646447632 | AB64: 0.090830813 | AC64: 18.12653193 | AD64: 1.97E-73 | AE64: 9.58E-71
A65: Pcdhgb4 | B65: 189.9702202 | C65: -3.084189236 | D65: 0.144331459 | E65: -21.36879408 | F65: 2.61E-101 | G65: 1.31e-98 | I65: Crct1 | J65: 9658.5248 | K65: -2.8609495 | L65: 0.2512743148 | M65: -11.38576182 | N65: 4.92E-30 | O65: 2.05E-27 | Q65: Wfdc1 | R65: 428.9569408 | S65: 3.723267674 | T65: 0.2795920751 | U65: 13.31678544 | V65: 1.85E-40 | W65: 9.06E-38 | Y65: Il34 | Z65: 225.6318009 | AA65: 2.458393401 | AB65: 0.1362267926 | AC65: 18.04632814 | AD65: 8.43E-73 | AE65: 4.03E-70
A66: Cul9 | B66: 1010.056568 | C66: -3.219645427 | D66: 0.150970702 | E66: -21.326293 | F66: 6.47E-101 | G66: 3.19E-98 | I66: Elmo1 | J66: 115.0501316 | K66: 1.699057826 | L66: 0.1497216838 | M66: 11.34810792 | N66: 7.58E-30 | O66: 3.09E-27 | Q66: Npnt | R66: 7950.69912 | S66: 1.438999674 | T66: 0.1081977079 | U66: 13.29972419 | V66: 2.32E-40 | W66: 1.12E-37 | Y66: Gpr153 | Z66: 207.9114944 | AA66: 3.654882743 | AB66: 0.2034846361 | AC66: 17.96146782 | AD66: 3.90E-72 | AE66: 1.83E-69
A67: Ica1 | B67: 109.2794734 | C67: -4.140013441 | D67: 0.194334317 | E67: -21.30356334 | F67: 1.05e-100 | G67: 5.10E-98 | I67: Vav2 | J67: 6400.962801 | K67: 0.4626883016 | L67: 0.04097801099 | M67: 11.29113616 | N67: 1.45E-29 | O67: 5.82E-27 | Q67: Sall3 | R67: 73.52318356 | S67: 3.793579383 | T67: 0.2860266653 | U67: 13.26302699 | V67: 3.79E-40 | W67: 1.79E-37 | Y67: Cybrd1 | Z67: 526.8690358 | AA67: 3.857436629 | AB67: 0.2153631881 | AC67: 17.91130909 | AD67: 9.62E-72 | AE67: 4.43E-69
A68: Isg20 | B68: 5847.234988 | C68: 2.780547952 | D68: 0.130779046 | E68: 21.2614179 | F68: 2.58E-100 | G68: 1.23E-97 | I68: Lipm | J68: 469.1247642 | K68: -2.274205952 | L68: 0.2016042195 | M68: -11.28054739 | N68: 1.64E-29 | O68: 6.45E-27 | Q68: Lcn2 | R68: 2303.139594 | S68: -2.897797073 | T68: 0.220870064 | U68: -13.11991775 | V68: 2.53E-39 | W68: 1.18E-36 | Y68: Foxd1 | Z68: 184.4678537 | AA68: 4.06416865 | AB68: 0.2294943867 | AC68: 17.70922901 | AD68: 3.56E-70 | AE68: 1.61E-67
A69: Krt23 | B69: 6436.021579 | C69: -4.372282615 | D69: 0.206097289 | E69: -21.21465371 | F69: 6.99E-100 | G69: 3.27e-97 | I69: Olfm4 | J69: 708.4371011 | K69: 2.867615125 | L69: 0.2571630012 | M69: 11.15096305 | N69: 7.08E-29 | O69: 2.74E-26 | Q69: Kcnq1 | R69: 2248.792215 | S69: 2.114801869 | T69: 0.1619612059 | U69: 13.05745939 | V69: 5.76E-39 | W69: 2.63E-36 | Y69: Tacc1 | Z69: 783.9496344 | AA69: 2.670131618 | AB69: 0.1515438873 | AC69: 17.61952702 | AD69: 1.74E-69 | AE69: 7.76E-67
A70: Rap1gap2 | B70: 683.4051344 | C70: -4.133617644 | D70: 0.195936947 | E70: -21.09667277 | F70: 8.53E-99 | G70: 3.92E-96 | I70: Mmp2 | J70: 382.4060539 | K70: -2.267452488 | L70: 0.203785988 | M70: -11.12663589 | N70: 9.31E-29 | O70: 3.54E-26 | Q70: Sptssb | R70: 2601.239215 | S70: 4.074066431 | T70: 0.3132819446 | U70: 13.00447249 | V70: 1.15E-38 | W70: 5.18E-36 | Y70: Slc28a3 | Z70: 3973.935389 | AA70: 1.382422763 | AB70: 0.07848871756 | AC70: 17.61301249 | AD70: 1.96E-69 | AE70: 8.56E-67
A71: Aadacl2 | B71: 228.8634412 | C71: -5.592297933 | D71: 0.265256835 | E71: -21.08257809 | F71: 1.15e-98 | G71: 5.20E-96 | I71: Ly6g6c | J71: 1443.888697 | K71: -3.378210712 | L71: 0.3040081515 | M71: -11.11223727 | N71: 1.09E-28 | O71: 4.09E-26 | Q71: Atp1b1 | R71: 3877.245648 | S71: 1.447283949 | T71: 0.1119235451 | U71: 12.93100524 | V71: 3.01E-38 | W71: 1.33E-35 | Y71: Slc15a1 | Z71: 590.9019303 | AA71: 3.644291277 | AB71: 0.2072966059 | AC71: 17.58008174 | AD71: 3.50E-69 | AE71: 1.50E-66
A72: Gm12349 | B72: 925.5250925 | C72: 3.116913135 | D72: 0.149770921 | E72: 20.81120357 | F72: 3.43e-96 | G72: 1.52e-93 | I72: Bpifc | J72: 559.8239876 | K72: -3.275633674 | L72: 0.2964763302 | M72: -11.04855039 | N72: 2.23E-28 | O72: 8.20E-26 | Q72: Ica1 | R72: 109.2794734 | S72: -1.9064777 | T72: 0.1475974295 | U72: -12.91674053 | V72: 3.62E-38 | W72: 1.57E-35 | Y72: Snx31 | Z72: 442.4914224 | AA72: 4.721294729 | AB72: 0.2700133954 | AC72: 17.48540928 | AD72: 1.85E-68 | AE72: 7.83E-66
A73: Dzip1 | B73: 295.3064076 | C73: -3.432522445 | D73: 0.165633199 | E73: -20.72363796 | F73: 2.12E-95 | G73: 9.28E-93 | I73: Smim1 | J73: 38.46847671 | K73: 2.415717669 | L73: 0.2194917404 | M73: 11.00596161 | N73: 3.58E-28 | O73: 1.30E-25 | Q73: Clic6 | R73: 750.9340659 | S73: 1.989148779 | T73: 0.155496223 | U73: 12.79226428 | V73: 1.81E-37 | W73: 7.73E-35 | Y73: Scd1 | Z73: 8567.325718 | AA73: 2.8269273 | AB73: 0.1631358929 | AC73: 17.32866538 | AD73: 2.86E-67 | AE73: 1.19E-64
A74: Ppp1r1b | B74: 162.1617726 | C74: 5.769310145 | D74: 0.279749833 | E74: 20.62310486 | F74: 1.70E-94 | G74: 7.33E-92 | I74: Rnf39 | J74: 6719.210197 | K74: -1.33055584 | L74: 0.1213582343 | M74: -10.96386948 | N74: 5.70E-28 | O74: 2.03E-25 | Q74: Ap1s2 | R74: 830.8073544 | S74: 0.9537125795 | T74: 0.07521452577 | U74: 12.67989886 | V74: 7.64E-37 | W74: 3.21E-34 | Y74: Sprr2a3 | Z74: 14812.5361 | AA74: 3.100140034 | AB74: 0.1790833841 | AC74: 17.31115396 | AD74: 3.88E-67 | AE74: 1.59E-64
A75: Wdr72 | B75: 2236.466197 | C75: -3.004742619 | D75: 0.145706357 | E75: -20.62190478 | F75: 1.75e-94 | G75: 7.40E-92 | I75: Gm26809 | J75: 6805.031215 | K75: 1.353984163 | L75: 0.123751076 | M75: 10.94119103 | N75: 7.32E-28 | O75: 2.57E-25 | Q75: 2010300C02Rik | R75: 1970.775669 | S75: 1.20773143 | T75: 0.09530030749 | U75: 12.67290172 | V75: 8.36E-37 | W75: 3.45E-34 | Y75: Upk1b | Z75: 10988.89902 | AA75: 3.218656691 | AB75: 0.1878630858 | AC75: 17.13299171 | AD75: 8.42E-66 | AE75: 3.39E-63
A76: Adamts15 | B76: 3800.166233 | C76: -4.675430107 | D76: 0.226993062 | E76: -20.59723789 | F76: 2.91E-94 | G76: 1.21e-91 | I76: Piezo2 | J76: 27.27302445 | K76: 2.58373042 | L76: 0.2361880013 | M76: 10.93929584 | N76: 7.48E-28 | O76: 2.58E-25 | Q76: Ptchd4 | R76: 105.1806291 | S76: -2.148396009 | T76: 0.1699089563 | U76: -12.6443953 | V76: 1.20E-36 | W76: 4.89E-34 | Y76: Adcy8 | Z76: 114.6617266 | AA76: 3.652633058 | AB76: 0.215130953 | AC76: 16.97864955 | AD76: 1.18E-64 | AE76: 4.69E-62
A77: Gm3375 | B77: 432.3382904 | C77: -4.626311249 | D77: 0.225061836 | E77: -20.55573408 | F77: 6.84E-94 | G77: 2.81E-91 | I77: Ces2e | J77: 1404.709447 | K77: -1.88121219 | L77: 0.1720642629 | M77: -10.93319529 | N77: 8.00E-28 | O77: 2.72E-25 | Q77: Plxna2 | R77: 2688.123079 | S77: 0.8894298062 | T77: 0.07054343099 | U77: 12.6082584 | V77: 1.90E-36 | W77: 7.62E-34 | Y77: Cnfn | Z77: 7084.563085 | AA77: 3.956299875 | AB77: 0.2333837251 | AC77: 16.95190987 | AD77: 1.86E-64 | AE77: 7.28E-62
A78: Fstl1 | B78: 295.1987699 | C78: -5.717961154 | D78: 0.278261495 | E78: -20.54887674 | F78: 7.88E-94 | G78: 3.19E-91 | I78: St5 | J78: 3499.121136 | K78: 0.9523499484 | L78: 0.08718378355 | M78: 10.92347579 | N78: 8.90E-28 | O78: 2.98E-25 | Q78: Gm3336 | R78: 125.3987693 | S78: 2.638464886 | T78: 0.2103244446 | U78: 12.54473721 | V78: 4.25E-36 | W78: 1.68E-33 | Y78: Angptl2 | Z78: 139.5688355 | AA78: 2.771230549 | AB78: 0.1636464565 | AC78: 16.93425332 | AD78: 2.52E-64 | AE78: 9.68E-62
A79: Nkx3-1 | B79: 196.9629181 | C79: 6.236695415 | D79: 0.304245586 | E79: 20.49888548 | F79: 2.20E-93 | G79: 8.79E-91 | I79: Gpm6b | J79: 108.8598885 | K79: 1.954370782 | L79: 0.1800764322 | M79: 10.85300701 | N79: 1.93E-27 | O79: 6.37E-25 | Q79: Kank3 | R79: 1557.044682 | S79: -1.923088941 | T79: 0.1534235017 | U79: -12.53451342 | V79: 4.83E-36 | W79: 1.88E-33 | Y79: Papln | Z79: 588.6779424 | AA79: 1.919511247 | AB79: 0.1141737894 | AC79: 16.8121883 | AD79: 1.99E-63 | AE79: 7.54E-61
A80: Adtrp | B80: 448.248973 | C80: -4.512116876 | D80: 0.221262399 | E80: -20.39260574 | F80: 1.95E-92 | G80: 7.65E-90 | I80: Ramp3 | J80: 995.5971552 | K80: 1.028150673 | L80: 0.0950519706 | M80: 10.81672128 | N80: 2.87E-27 | O80: 9.33E-25 | Q80: Lgr6 | R80: 929.3705066 | S80: -1.826405048 | T80: 0.1458684316 | U80: -12.52090688 | V80: 5.74E-36 | W80: 2.20E-33 | Y80: Gna14 | Z80: 280.2963433 | AA80: 2.668540895 | AB80: 0.1588402319 | AC80: 16.80015739 | AD80: 2.43E-63 | AE80: 9.10E-61
A81: Pcdhga9 | B81: 108.3332178 | C81: -2.858397623 | D81: 0.140228169 | E81: -20.3839047 | F81: 2.32E-92 | G81: 9.01E-90 | I81: Loxl1 | J81: 71.65762942 | K81: 2.517465665 | L81: 0.2333994201 | M81: 10.78608363 | N81: 4.00E-27 | O81: 1.28E-24 | Q81: Gria3 | R81: 207.2792442 | S81: -2.215416264 | T81: 0.1778544893 | U81: -12.45634155 | V81: 1.29E-35 | W81: 4.88E-33 | Y81: B4galt4 | Z81: 255.498123 | AA81: 2.53158174 | AB81: 0.1518157964 | AC81: 16.67535131 | AD81: 1.98E-62 | AE81: 7.30E-60
A82: Slc16a11 | B82: 7589.952155 | C82: -2.676999553 | D82: 0.132547667 | E82: -20.19650449 | F82: 1.05e-90 | G82: 4.01E-88 | I82: Ppl | J82: 221645.3997 | K82: -0.7530148855 | L82: 0.06982722793 | M82: -10.78397221 | N82: 4.10E-27 | O82: 1.30E-24 | Q82: Tspan33 | R82: 2430.968168 | S82: 1.321406491 | T82: 0.1061236102 | U82: 12.45157877 | V82: 1.37E-35 | W82: 5.11E-33 | Y82: Xlr | Z82: 247.3970396 | AA82: 9.959648505 | AB82: 0.5996317307 | AC82: 16.60960886 | AD82: 5.94E-62 | AE82: 2.16E-59
A83: Tgfb3 | B83: 325.7086935 | C83: -2.500183366 | D83: 0.124768036 | E83: -20.03865287 | F83: 2.54e-89 | G83: 9.55E-87 | I83: Srgn | J83: 108.512104 | K83: 2.695565879 | L83: 0.2504812229 | M83: 10.7615487 | N83: 5.23E-27 | O83: 1.63E-24 | Q83: Oit1 | R83: 9887.393306 | S83: 0.9746168342 | T83: 0.07887434992 | U83: 12.35657517 | V83: 4.49E-35 | W83: 1.65E-32 | Y83: Epsti1 | Z83: 216.7750502 | AA83: 4.930279208 | AB83: 0.3004683764 | AC83: 16.40864595 | AD83: 1.66E-60 | AE83: 5.94E-58
A84: Zfhx4 | B84: 636.8905566 | C84: 2.11612552 | D84: 0.105687234 | E84: 20.02252715 | F84: 3.50E-89 | G84: 1.30E-86 | I84: C130074G19Rik | J84: 92.17238618 | K84: 2.601838232 | L84: 0.2423823702 | M84: 10.73443679 | N84: 7.01E-27 | O84: 2.16E-24 | Q84: Pcdhga9 | R84: 108.3332178 | S84: -1.436847255 | T84: 0.1171477719 | U84: -12.26525465 | V84: 1.39E-34 | W84: 5.04E-32 | Y84: Tnc | Z84: 28258.92008 | AA84: 1.938340947 | AB84: 0.1182150976 | AC84: 16.39672923 | AD84: 2.02E-60 | AE84: 7.13E-58
A85: Pgm2l1 | B85: 2249.577722 | C85: 3.504616296 | D85: 0.175174972 | E85: 20.00637571 | F85: 4.85E-89 | G85: 1.78E-86 | I85: Vsig10l | J85: 5977.271833 | K85: -1.326928642 | L85: 0.1236989101 | M85: -10.72708434 | N85: 7.60E-27 | O85: 2.30E-24 | Q85: Zdhhc2 | R85: 517.7665708 | S85: 1.833214036 | T85: 0.1507097514 | U85: 12.1638714 | V85: 4.84E-34 | W85: 1.73E-31 | Y85: Srgn | Z85: 108.512104 | AA85: 4.581910881 | AB85: 0.27972404 | AC85: 16.3801112 | AD85: 2.65E-60 | AE85: 9.25E-58
A86: Serpinh1 | B86: 6100.661849 | C86: -2.645559011 | D86: 0.132456934 | E86: -19.9729748 | F86: 9.46E-89 | G86: 3.42E-86 | I86: Ccdc102a | J86: 143.7253289 | K86: 1.638964279 | L86: 0.1542240453 | M86: 10.62716437 | N86: 2.23E-26 | O86: 6.67E-24 | Q86: Adhfe1 | R86: 590.3042369 | S86: 0.972709322 | T86: 0.08014414388 | U86: 12.1369981 | V86: 6.72E-34 | W86: 2.37E-31 | Y86: Cachd1 | Z86: 3086.280175 | AA86: 2.337663571 | AB86: 0.1430049664 | AC86: 16.34672998 | AD86: 4.59E-60 | AE86: 1.58E-57
A87: Boc | B87: 1129.437592 | C87: -2.787654252 | D87: 0.140359443 | E87: -19.86082438 | F87: 8.88E-88 | G87: 3.17E-85 | I87: Cdkn2a | J87: 3661.97285 | K87: 1.547057142 | L87: 0.1457817178 | M87: 10.61214785 | N87: 2.62E-26 | O87: 7.73E-24 | Q87: Zfp827 | R87: 4458.812625 | S87: -0.7272268725 | T87: 0.0599267063 | U87: -12.13527186 | V87: 6.87E-34 | W87: 2.39E-31 | Y87: Cul9 | Z87: 1010.056568 | AA87: 2.471375962 | AB87: 0.1514476338 | AC87: 16.31835308 | AD87: 7.31E-60 | AE87: 2.48E-57
A88: Kit | B88: 606.1882799 | C88: 2.222580402 | D88: 0.112094984 | E88: 19.82765266 | F88: 1.72E-87 | G88: 6.06E-85 | I88: Hp | J88: 30.16708807 | K88: 3.063824031 | L88: 0.2898432136 | M88: 10.57062539 | N88: 4.08E-26 | O88: 1.17E-23 | Q88: Cplx2 | R88: 286.0835407 | S88: -1.72494582 | T88: 0.1426851581 | U88: -12.08917482 | V88: 1.20E-33 | W88: 4.14E-31 | Y88: Naprt | Z88: 2034.012087 | AA88: 1.557714544 | AB88: 0.0955297087 | AC88: 16.30607447 | AD88: 8.94E-60 | AE88: 2.99E-57
A89: Cspg5 | B89: 134.7811428 | C89: -2.993031653 | D89: 0.151070061 | E89: -19.81220914 | F89: 2.34E-87 | G89: 8.13E-85 | I89: Vill | J89: 6170.996468 | K89: 1.342219035 | L89: 0.1269748429 | M89: 10.57074775 | N89: 4.07E-26 | O89: 1.17E-23 | Q89: Gfra2 | R89: 41.45226197 | S89: -3.539048173 | T89: 0.2932247571 | U89: -12.0694044 | V89: 1.53E-33 | W89: 5.20E-31 | Y89: 1700024P16Rik | Z89: 95.11683205 | AA89: 3.505596385 | AB89: 0.2157218806 | AC89: 16.25053692 | AD89: 2.21E-59 | AE89: 7.32E-57
A90: Tacc1 | B90: 783.9496344 | C90: -2.983948067 | D90: 0.151243302 | E90: -19.72945602 | F90: 1.20E-86 | G90: 4.14E-84 | I90: Ifitm1 | J90: 36.68381806 | K90: 2.553558399 | L90: 0.2422256438 | M90: 10.54206465 | N90: 5.53E-26 | O90: 1.57E-23 | Q90: Tgfb3 | R90: 325.7086935 | S90: -1.440369408 | T90: 0.1194037381 | U90: -12.06301772 | V90: 1.66E-33 | W90: 5.55E-31 | Y90: Oas1a | Z90: 751.1584477 | AA90: 5.358310512 | AB90: 0.3312876065 | AC90: 16.1741955 | AD90: 7.67E-59 | AE90: 2.50E-56
A91: Fads1 | B91: 24751.49783 | C91: 1.191969934 | D91: 0.060660017 | E91: 19.65000978 | F91: 5.78E-86 | G91: 1.96E-83 | I91: Teddm3 | J91: 404.0522588 | K91: -2.814477995 | L91: 0.2676908332 | M91: -10.51391249 | N91: 7.45E-26 | O91: 2.09E-23 | Q91: Capn11 | R91: 262.1376762 | S91: -5.606368136 | T91: 0.4652662002 | U91: -12.04980747 | V91: 1.94E-33 | W91: 6.43E-31 | Y91: Ubap2 | Z91: 12489.52712 | AA91: 0.5808263866 | AB91: 0.03597467988 | AC91: 16.14542196 | AD91: 1.22E-58 | AE91: 3.94E-56
A92: Ppm1h | B92: 515.3320237 | C92: -2.376915812 | D92: 0.121130688 | E92: -19.62273843 | F92: 9.89E-86 | G92: 3.31E-83 | I92: Camk2n1 | J92: 6242.336964 | K92: 1.388947017 | L92: 0.1323805469 | M92: 10.49207795 | N92: 9.39E-26 | O92: 2.60E-23 | Q92: Arhgdib | R92: 1003.35101 | S92: -1.983909321 | T92: 0.1659387995 | U92: -11.95566876 | V92: 6.06E-33 | W92: 1.98E-30 | Y92: Il1r2 | Z92: 565.1812439 | AA92: 3.722355672 | AB92: 0.2318941769 | AC92: 16.05195836 | AD92: 5.54E-58 | AE92: 1.76E-55
A93: Gna14 | B93: 280.2963433 | C93: -3.09838134 | D93: 0.157912147 | E93: -19.62091833 | F93: 1.02e-85 | G93: 3.39E-83 | I93: Rrad | J93: 180.9885827 | K93: 1.561164775 | L93: 0.14891603 | M93: 10.483524 | N93: 1.03E-25 | O93: 2.82E-23 | Q93: Mt4 | R93: 73.26499154 | S93: 7.234110831 | T93: 0.6060405333 | U93: 11.93667821 | V93: 7.62E-33 | W93: 2.46E-30 | Y93: Gprc5c | Z93: 249.2484214 | AA93: 3.147021927 | AB93: 0.1967438546 | AC93: 15.99552847 | AD93: 1.37E-57 | AE93: 4.32E-55
A94: Sgpp2 | B94: 177.1906941 | C94: 2.700761522 | D94: 0.13786279 | E94: 19.59021375 | F94: 1.87E-85 | G94: 6.13E-83 | I94: Selm | J94: 129.1545572 | K94: 1.905643891 | L94: 0.1819287161 | M94: 10.47467344 | N94: 1.13E-25 | O94: 3.05E-23 | Q94: BC117090 | R94: 50.64555424 | S94: -4.00456431 | T94: 0.3367829928 | U94: -11.89063699 | V94: 1.32E-32 | W94: 4.22E-30 | Y94: Cbs | Z94: 210.6502026 | AA94: 3.345116755 | AB94: 0.209599222 | AC94: 15.95958574 | AD94: 2.44E-57 | AE94: 7.50E-55
A95: Bpifc | B95: 559.8239876 | C95: -7.82419235 | D95: 0.402760494 | E95: -19.4264146 | F95: 4.61E-84 | G95: 1.49e-81 | I95: Cdh6 | J95: 1354.218835 | K95: 1.523119929 | L95: 0.1456151404 | M95: 10.45990084 | N95: 1.32E-25 | O95: 3.53E-23 | Q95: Ces1b | R95: 618.8087707 | S95: 2.918604487 | T95: 0.2459026936 | U95: 11.86894069 | V95: 1.72E-32 | W95: 5.41E-30 | Y95: Sox7 | Z95: 1376.548362 | AA95: 3.568694217 | AB95: 0.2236059261 | AC95: 15.95974794 | AD95: 2.44E-57 | AE95: 7.50E-55
A96: Hp1bp3 | B96: 24511.67537 | C96: -0.585288564 | D96: 0.030219718 | E96: -19.3677705 | F96: 1.44e-83 | G96: 4.61E-81 | I96: Dkk3 | J96: 695.1181936 | K96: 1.546433253 | L96: 0.1486240312 | M96: 10.4050014 | N96: 2.35E-25 | O96: 6.21E-23 | Q96: Has2 | R96: 962.5090048 | S96: -1.524328574 | T96: 0.1287781521 | U96: -11.83685702 | V96: 2.52E-32 | W96: 7.84E-30 | Y96: Syn2 | Z96: 406.2330729 | AA96: 7.045015216 | AB96: 0.4421988807 | AC96: 15.93177985 | AD96: 3.81E-57 | AE96: 1.16E-54
A97: Galns | B97: 1131.935103 | C97: 1.772708276 | D97: 0.091895175 | E97: 19.2905479 | F97: 6.45E-83 | G97: 2.03E-80 | I97: Cybb | J97: 312.8442866 | K97: 2.279728281 | L97: 0.2192087139 | M97: 10.39980684 | N97: 2.48E-25 | O97: 6.48E-23 | Q97: Pank3 | R97: 12657.13033 | S97: 0.7967610235 | T97: 0.06746824804 | U97: 11.80942216 | V97: 3.49E-32 | W97: 1.07E-29 | Y97: Flt4 | Z97: 240.3391761 | AA97: 2.953353273 | AB97: 0.1854500889 | AC97: 15.92532682 | AD97: 4.23E-57 | AE97: 1.27E-54
A98: Naip5 | B98: 186.1189936 | C98: 5.34789334 | D98: 0.278354458 | E98: 19.2125299 | F98: 2.91E-82 | G98: 9.07E-80 | I98: Krt78 | J98: 3418.91902 | K98: -1.305894915 | L98: 0.1260075169 | M98: -10.36362708 | N98: 3.63E-25 | O98: 9.36E-23 | Q98: Pcdh9 | R98: 346.4311221 | S98: -1.880570239 | T98: 0.1595361567 | U98: -11.78773689 | V98: 4.52E-32 | W98: 1.37E-29 | Y98: Lnx1 | Z98: 388.5039143 | AA98: 1.194770537 | AB98: 0.07577356605 | AC98: 15.76764298 | AD98: 5.20E-56 | AE98: 1.54E-53
A99: Armcx3 | B99: 119.157093 | C99: -3.833287933 | D99: 0.199606946 | E99: -19.20418105 | F99: 3.41E-82 | G99: 1.05e-79 | I99: Psmb8 | J99: 159.8196435 | K99: 1.949362793 | L99: 0.1890084373 | M99: 10.31362843 | N99: 6.11E-25 | O99: 1.56E-22 | Q99: Ednra | R99: 104.6073549 | S99: -2.896387434 | T99: 0.2458102095 | U99: -11.78302334 | V99: 4.77E-32 | W99: 1.44E-29 | Y99: Nebl | Z99: 4718.131146 | AA99: 2.014456524 | AB99: 0.1282721168 | AC99: 15.70455509 | AD99: 1.41E-55 | AE99: 4.13E-53
A100: Msx2 | B100: 145.7040168 | C100: -5.306651677 | D100: 0.276918814 | E100: -19.16320386 | F100: 7.51E-82 | G100: 2.29E-79 | I100: 9030617O03Rik | J100: 3413.42736 | K100: -1.139836072 | L100: 0.1106174658 | M100: -10.3043047 | N100: 6.74E-25 | O100: 1.70E-22 | Q100: Tcea1-ps1 | R100: 56.95923215 | S100: -2.33930077 | T100: 0.2002041383 | U100: -11.6845775 | V100: 1.53E-31 | W100: 4.54E-29 | Y100: Fam65b | Z100: 191.7062827 | AA100: 3.775867413 | AB100: 0.2407361232 | AC100: 15.68467317 | AD100: 1.93E-55 | AE100: 5.58E-53
A101: Hunk | B101: 304.9037777 | C101: -4.056785043 | D101: 0.211759151 | E101: -19.15754306 | F101: 8.37E-82 | G101: 2.52E-79 | I101: Ddah2 | J101: 786.9771472 | K101: 1.289154196 | L101: 0.1256703159 | M101: 10.25822356 | N101: 1.09E-24 | O101: 2.71E-22 | Q101: Sgpp2 | R101: 177.1906941 | S101: 1.659747033 | T101: 0.143109521 | U101: 11.59774012 | V101: 4.23E-31 | W101: 1.24E-28 | Y101: Sftpd | Z101: 198.6489299 | AA101: 2.97495177 | AB101: 0.1898368991 | AC101: 15.67109337 | AD101: 2.38E-55 | AE101: 6.83E-53
A102: Dapk1 | B102: 4620.5234 | C102: -2.23776082 | D102: 0.117219845 | E102: -19.09028994 | F102: 3.04E-81 | G102: 9.07E-79 | I102: Rdh12 | J102: 2346.567979 | K102: -1.935380259 | L102: 0.1893522241 | M102: -10.22105903 | N102: 1.60E-24 | O102: 3.94E-22 | Q102: Selenbp1 | R102: 33273.47116 | S102: 1.630642016 | T102: 0.1407786282 | U102: 11.58302249 | V102: 5.02E-31 | W102: 1.46E-28 | Y102: Homer2 | Z102: 96.21972283 | AA102: 4.365472183 | AB102: 0.2791817773 | AC102: 15.63666592 | AD102: 4.10E-55 | AE102: 1.16E-52
A103: 3110039M20Rik | B103: 130.2370922 | C103: 5.315688572 | D103: 0.279019796 | E103: 19.05129546 | F103: 6.41E-81 | G103: 1.89e-78 | I103: Map6 | J103: 2317.19888 | K103: -0.8351221837 | L103: 0.08183511806 | M103: -10.2049365 | N103: 1.88E-24 | O103: 4.60E-22 | Q103: Xlr | R103: 247.3970396 | S103: 4.469711696 | T103: 0.3862687714 | U103: 11.57150675 | V103: 5.75E-31 | W103: 1.65E-28 | Y103: Bnc2 | Z103: 162.6399598 | AA103: 3.404077576 | AB103: 0.2178146349 | AC103: 15.6283235 | AD103: 4.67E-55 | AE103: 1.31E-52
A104: Ube4b | B104: 7245.41947 | C104: -0.735969118 | D104: 0.038866218 | E104: -18.93595924 | F104: 5.77e-80 | G104: 1.68e-77 | I104: Pxdn | J104: 10087.30563 | K104: 0.83938559 | L104: 0.08236903551 | M104: 10.19054776 | N104: 2.19E-24 | O104: 5.27E-22 | Q104: Eif4e1b | R104: 39.36362752 | S104: -4.601531471 | T104: 0.397802675 | U104: -11.56737187 | V104: 6.03E-31 | W104: 1.72E-28 | Y104: Cyp4f39 | Z104: 2793.219171 | AA104: 2.847617888 | AB104: 0.1826911252 | AC104: 15.58706196 | AD104: 8.91E-55 | AE104: 2.47E-52
A105: Ap1s2 | B105: 830.8073544 | C105: 1.400053054 | D105: 0.074063133 | E105: 18.90350839 | F105: 1.07e-79 | G105: 3.08e-77 | I105: Sdr9c7 | J105: 144.3699758 | K105: -2.802548374 | L105: 0.2763534413 | M105: -10.14117415 | N105: 3.63E-24 | O105: 8.66E-22 | Q105: Itpr1 | R105: 3386.457905 | S105: -0.8686879954 | T105: 0.07521953022 | U105: -11.54870275 | V105: 7.49E-31 | W105: 2.11E-28 | Y105: Atp1b1 | Z105: 3877.245648 | AA105: 1.723347795 | AB105: 0.1107109219 | AC105: 15.56619496 | AD105: 1.24E-54 | AE105: 3.39E-52
A106: Bdkrb2 | B106: 153.3060996 | C106: -5.72500243 | D106: 0.30356142 | E106: -18.85945335 | F106: 2.46e-79 | G106: 7.02E-77 | I106: Isg20 | J106: 5847.234988 | K106: 1.322151105 | L106: 0.1305026603 | M106: 10.13121957 | N106: 4.02E-24 | O106: 9.49E-22 | Q106: Thsd4 | R106: 187.0054346 | S106: -1.986439296 | T106: 0.1741230154 | U106: -11.40825233 | V106: 3.80E-30 | W106: 1.06E-27 | Y106: Stmn2 | Z106: 305.0796655 | AA106: 4.38248839 | AB106: 0.2846319808 | AC106: 15.39703437 | AD106: 1.71E-53 | AE106: 4.65E-51
A107: Spata13 | B107: 1110.964966 | C107: 1.24353574 | D107: 0.066015568 | E107: 18.83700748 | F107: 3.76E-79 | G107: 1.06e-76 | I107: Vcam1 | J107: 122.425993 | K107: 2.739981879 | L107: 0.2720261458 | M107: 10.07249458 | N107: 7.31E-24 | O107: 1.71E-21 | Q107: Fbn1 | R107: 22.22914119 | S107: -3.831185265 | T107: 0.3377221734 | U107: -11.34419226 | V107: 7.93E-30 | W107: 2.17E-27 | Y107: Ube4b | Z107: 7245.41947 | AA107: 0.5972587771 | AB107: 0.03894218756 | AC107: 15.33706282 | AD107: 4.32E-53 | AE107: 1.16E-50
A108: Pla2g4e | B108: 2090.938966 | C108: 4.177242244 | D108: 0.221889256 | E108: 18.82579769 | F108: 4.64e-79 | G108: 1.30E-76 | I108: C3 | J108: 10364.99726 | K108: 1.693114143 | L108: 0.1687175208 | M108: 10.03520046 | N108: 1.07E-23 | O108: 2.47E-21 | Q108: Apobec1 | R108: 5036.776231 | S108: -0.9489964019 | T108: 0.08365844315 | U108: -11.34370144 | V108: 7.97E-30 | W108: 2.17E-27 | Y108: Tll1 | Z108: 482.633766 | AA108: 3.127722265 | AB108: 0.2043740858 | AC108: 15.30390829 | AD108: 7.20E-53 | AE108: 1.91E-50
A109: Oas1a | B109: 751.1584477 | C109: -6.227978769 | D109: 0.331010953 | E109: -18.81502321 | F109: 5.69E-79 | G109: 1.57e-76 | I109: Plbd1 | J109: 164.1225758 | K109: -3.130078213 | L109: 0.312217251 | M109: -10.02532116 | N109: 1.18E-23 | O109: 2.70E-21 | Q109: Rrm1 | R109: 15987.05424 | S109: 1.113156714 | T109: 0.09841552489 | U109: 11.31078369 | V109: 1.16E-29 | W109: 3.13E-27 | Y109: Adtrp | Z109: 448.248973 | AA109: 3.401064748 | AB109: 0.2224579651 | AC109: 15.28857259 | AD109: 9.11E-53 | AE109: 2.40E-50
A110: Chst9 | B110: 157.4397888 | C110: 6.567451463 | D110: 0.349294637 | E110: 18.80203922 | F110: 7.27e-79 | G110: 1.99E-76 | I110: Noxa1 | J110: 38.62175145 | K110: 2.49659005 | L110: 0.2506836825 | M110: 9.959124682 | N110: 2.30E-23 | O110: 5.22E-21 | Q110: Pde9a | R110: 120.8970325 | S110: 2.826640249 | T110: 0.250292854 | U110: 11.29333181 | V110: 1.42E-29 | W110: 3.78E-27 | Y110: Slc38a1 | Z110: 44.87766302 | AA110: 4.690608561 | AB110: 0.3076078248 | AC110: 15.24866464 | AD110: 1.68E-52 | AE110: 4.38E-50
A111: Vsig10l | B111: 5977.271833 | C111: -2.334400726 | D111: 0.124506215 | E111: -18.7492707 | F111: 1.96e-78 | G111: 5.32E-76 | I111: Tfcp2l1 | J111: 1311.374837 | K111: 1.525140506 | L111: 0.1537985285 | M111: 9.916483086 | N111: 3.53E-23 | O111: 7.92E-21 | Q111: Tc2n | R111: 1609.47552 | S111: 1.115768889 | T111: 0.09923325476 | U111: 11.24390097 | V111: 2.48E-29 | W111: 6.57E-27 | Y111: Id1 | Z111: 8033.129803 | AA111: 2.07214007 | AB111: 0.1359692124 | AC111: 15.23977401 | AD111: 1.93E-52 | AE111: 4.97E-50
A112: Mboat2 | B112: 1090.933812 | C112: 2.805702181 | D112: 0.149844444 | E112: 18.72409881 | F112: 3.15E-78 | G112: 8.46E-76 | I112: Slc38a1 | J112: 44.87766302 | K112: 2.07067665 | L112: 0.2088965536 | M112: 9.912450032 | N112: 3.68E-23 | O112: 8.17E-21 | Q112: Gm2a | R112: 4974.809342 | S112: 1.404819441 | T112: 0.1252560571 | U112: 11.21558089 | V112: 3.42E-29 | W112: 8.96E-27 | Y112: St3gal6 | Z112: 149.9030551 | AA112: 2.308642856 | AB112: 0.1515622272 | AC112: 15.23231018 | AD112: 2.16E-52 | AE112: 5.51E-50
A113: Ptp4a3 | B113: 2962.229682 | C113: -2.116036009 | D113: 0.11334233 | E113: -18.66942387 | F113: 8.78E-78 | G113: 2.34E-75 | I113: Pacsin3 | J113: 9406.724146 | K113: -0.777175601 | L113: 0.0784222649 | M113: -9.910139702 | N113: 3.76E-23 | O113: 8.28E-21 | Q113: Gm14026 | R113: 46.74781506 | S113: -2.434300088 | T113: 0.2172350592 | U113: -11.20583435 | V113: 3.82E-29 | W113: 9.90E-27 | Y113: Tmem191c | Z113: 274.4045633 | AA113: -2.11083252 | AB113: 0.1399251373 | AC113: -15.08544184 | AD113: 2.02E-51 | AE113: 5.11E-49
A114: Slc15a2 | B114: 686.9441031 | C114: -5.871464254 | D114: 0.317201123 | E114: -18.51022529 | F114: 1.71e-76 | G114: 4.50E-74 | I114: Angptl2 | J114: 139.5688355 | K114: 1.507904393 | L114: 0.1523210348 | M114: 9.899515159 | N114: 4.18E-23 | O114: 9.12E-21 | Q114: Slc12a2 | R114: 26482.43845 | S114: -1.216034811 | T114: 0.1086262254 | U114: -11.19467059 | V114: 4.33E-29 | W114: 1.11E-26 | Y114: Atp6v0a1 | Z114: 16066.80313 | AA114: 0.5184077672 | AB114: 0.03439689898 | AC114: 15.07135185 | AD114: 2.50E-51 | AE114: 6.26E-49
A115: Tll1 | B115: 482.633766 | C115: -3.767801566 | D115: 0.20375459 | E115: -18.49186103 | F115: 2.40E-76 | G115: 6.26E-74 | I115: Mill1 | J115: 1655.519582 | K115: 1.809473153 | L115: 0.182866863 | M115: 9.895030316 | N115: 4.37E-23 | O115: 9.44E-21 | Q115: Galt | R115: 627.9861006 | S115: -1.27542378 | T115: 0.1142319811 | U115: -11.16520757 | V115: 6.04E-29 | W115: 1.54E-26 | Y115: Lipg | Z115: 193.1977972 | AA115: 2.7048919 | AB115: 0.1796360466 | AC115: 15.05762318 | AD115: 3.08E-51 | AE115: 7.63E-49
A116: Rcsd1 | B116: 208.4592192 | C116: -2.873838413 | D116: 0.155521342 | E116: -18.47873986 | F116: 3.06e-76 | G116: 7.91E-74 | I116: Cnfn | J116: 7084.563085 | K116: -2.277583566 | L116: 0.2302858055 | M116: -9.890247296 | N116: 4.59E-23 | O116: 9.81E-21 | Q116: Klf12 | R116: 30.30134646 | S116: 3.126303953 | T116: 0.2800299264 | U116: 11.16417803 | V116: 6.11E-29 | W116: 1.54E-26 | Y116: Gm684 | Z116: 335.5881083 | AA116: -1.481005298 | AB116: 0.0983657736 | AC116: -15.0561038 | AD116: 3.15E-51 | AE116: 7.73E-49
A117: Plekhh2 | B117: 907.8566648 | C117: -2.693851098 | D117: 0.145800584 | E117: -18.47627102 | F117: 3.21E-76 | G117: 8.20E-74 | I117: Jam2 | J117: 493.9966279 | K117: 1.193184768 | L117: 0.1211167341 | M117: 9.85152694 | N117: 6.75E-23 | O117: 1.43E-20 | Q117: Fam219a | R117: 350.3423646 | S117: -1.245649019 | T117: 0.1117573727 | U117: -11.14601201 | V117: 7.49E-29 | W117: 1.87E-26 | Y117: Rab6b | Z117: 121.27248 | AA117: 3.614892306 | AB117: 0.2403160091 | AC117: 15.04224508 | AD117: 3.88E-51 | AE117: 9.44E-49
A118: Bmi1 | B118: 4344.839929 | C118: 0.970216732 | D118: 0.05260895 | E118: 18.44204696 | F118: 6.04E-76 | G118: 1.53E-73 | I118: Tmprss11a | J118: 1150.361125 | K118: -2.637349118 | L118: 0.2680261833 | M118: -9.839893574 | N118: 7.58E-23 | O118: 1.59E-20 | Q118: Ano1 | R118: 8784.117383 | S118: 0.9010284177 | T118: 0.08089811425 | U118: 11.13781732 | V118: 8.21E-29 | W118: 2.03E-26 | Y118: Renbp | Z118: 94.82015055 | AA118: 4.668015377 | AB118: 0.3107687897 | AC118: 15.02086288 | AD118: 5.36E-51 | AE118: 1.29E-48
A119: Spats2l | B119: 174.6357812 | C119: -4.604446162 | D119: 0.250032292 | E119: -18.41540596 | F119: 9.88e-76 | G119: 2.48E-73 | I119: Plxnd1 | J119: 263.1480246 | K119: 1.02626442 | L119: 0.1050804513 | M119: 9.766463767 | N119: 1.57E-22 | O119: 3.26E-20 | Q119: Prom1 | R119: 831.173957 | S119: 2.125806121 | T119: 0.1910133681 | U119: 11.12909605 | V119: 9.05E-29 | W119: 2.22E-26 | Y119: Pmvk | Z119: 3056.384125 | AA119: 0.8941775409 | AB119: 0.05954119469 | AC119: 15.01779643 | AD119: 5.61E-51 | AE119: 1.34E-48
A120: Slc15a1 | B120: 590.9019303 | C120: -3.808965529 | D120: 0.207078353 | E120: -18.39383727 | F120: 1.47e-75 | G120: 3.66E-73 | I120: Ano3 | J120: 48.34878503 | K120: -4.585178528 | L120: 0.4706138545 | M120: -9.742973956 | N120: 1.98E-22 | O120: 4.07E-20 | Q120: Ankrd35 | R120: 8650.712621 | S120: 1.0949142 | T120: 0.09844337462 | U120: 11.12227414 | V120: 9.77E-29 | W120: 2.37E-26 | Y120: Gmfg | Z120: 107.7955407 | AA120: 2.34139682 | AB120: 0.1563487062 | AC120: 14.97547935 | AD120: 1.06E-50 | AE120: 2.51E-48
A121: Krt6b | B121: 10800.11233 | C121: -5.052973009 | D121: 0.274879427 | E121: -18.38250706 | F121: 1.81E-75 | G121: 4.47E-73 | I121: Npnt | J121: 7950.69912 | K121: 1.048147849 | L121: 0.1077010803 | M121: 9.732008682 | N121: 2.20E-22 | O121: 4.49E-20 | Q121: Krt76 | R121: 934.651387 | S121: 4.078925147 | T121: 0.3673218098 | U121: 11.1045003 | V121: 1.19E-28 | W121: 2.87E-26 | Y121: Vsig10l | Z121: 5977.271833 | AA121: 1.862003837 | AB121: 0.1245983719 | AC121: 14.94404629 | AD121: 1.70E-50 | AE121: 3.99E-48
A122: Xpnpep2 | B122: 91.41731862 | C122: -4.968438457 | D122: 0.27030521 | E122: -18.38084606 | F122: 1.87e-75 | G122: 4.57E-73 | I122: Vegfc | J122: 44.04081354 | K122: 1.77571763 | L122: 0.1826251102 | M122: 9.723293954 | N122: 2.40E-22 | O122: 4.85E-20 | Q122: Tgm2 | R122: 2211.216066 | S122: -3.265387396 | T122: 0.2948833215 | U122: -11.07348961 | V122: 1.69E-28 | W122: 4.02E-26 | Y122: Tmem108 | Z122: 867.4883688 | AA122: 3.447900855 | AB122: 0.231467207 | AC122: 14.89585026 | AD122: 3.51E-50 | AE122: 8.15E-48
A123: Prickle2 | B123: 166.7834682 | C123: -7.078652253 | D123: 0.386275346 | E123: -18.32540527 | F123: 5.19E-75 | G123: 1.26E-72 | I123: Slc4a4 | J123: 5733.466907 | K123: 1.317473459 | L123: 0.1356626905 | M123: 9.711391199 | N123: 2.70E-22 | O123: 5.40E-20 | Q123: Chst3 | R123: 1388.572471 | S123: 2.688247239 | T123: 0.2431375628 | U123: 11.05648674 | V123: 2.04E-28 | W123: 4.82E-26 | Y123: Krt80 | Z123: 14431.54122 | AA123: 1.238966921 | AB123: 0.08347998719 | AC123: 14.84148432 | AD123: 7.90E-50 | AE123: 1.82E-47
A124: Slc8b1 | B124: 4133.705716 | C124: 0.849168141 | D124: 0.046464116 | E124: 18.275784 | F124: 1.29E-74 | G124: 3.10E-72 | I124: Nos2 | J124: 127.5434689 | K124: 3.099813576 | L124: 0.3193781645 | M124: 9.705778041 | N124: 2.85E-22 | O124: 5.66E-20 | Q124: Lhx6 | R124: 64.73339942 | S124: 4.115159891 | T124: 0.3727336408 | U124: 11.04048425 | V124: 2.44E-28 | W124: 5.71E-26 | Y124: Flt1 | Z124: 86.36349403 | AA124: 3.667730763 | AB124: 0.2474021557 | AC124: 14.82497496 | AD124: 1.01E-49 | AE124: 2.31E-47
A125: Cyp4f39 | B125: 2793.219171 | C125: -3.329784472 | D125: 0.182554202 | E125: -18.23997713 | F125: 2.49e-74 | G125: 5.92E-72 | I125: Krt80 | J125: 14431.54122 | K125: -0.8054615834 | L125: 0.08323555948 | M125: -9.676892766 | N125: 3.78E-22 | O125: 7.44E-20 | Q125: Slc39a4 | R125: 3577.949538 | S125: 1.744222559 | T125: 0.1583585104 | U125: 11.01439105 | V125: 3.26E-28 | W125: 7.56E-26 | Y125: Tns1 | Z125: 1971.725116 | AA125: 1.3079124 | AB125: 0.08872390064 | AC125: 14.74137623 | AD125: 3.50E-49 | AE125: 7.91E-47
A126: Rdh12 | B126: 2346.567979 | C126: -3.500778491 | D126: 0.192281377 | E126: -18.20653948 | F126: 4.58E-74 | G126: 1.08E-71 | I126: Cdc14a | J126: 3432.114463 | K126: 0.9844189651 | L126: 0.1019453548 | M126: 9.656339582 | N126: 4.62E-22 | O126: 9.02E-20 | Q126: Adgrb1 | R126: 1960.344232 | S126: -2.130713245 | T126: 0.1935903157 | U126: -11.00630079 | V126: 3.56E-28 | W126: 8.20E-26 | Y126: Grb10 | Z126: 387.5478994 | AA126: 7.407613486 | AB126: 0.5026927112 | AC126: 14.7358681 | AD126: 3.79E-49 | AE126: 8.51E-47
A127: BC037156 | B127: 279.2380032 | C127: -5.322839365 | D127: 0.292592985 | E127: -18.19195826 | F127: 5.98E-74 | G127: 1.40E-71 | I127: Aadac | J127: 59.58488704 | K127: -3.499969561 | L127: 0.362834995 | M127: -9.646174183 | N127: 5.10E-22 | O127: 9.87E-20 | Q127: Scd2 | R127: 201857.7882 | S127: 1.088747512 | T127: 0.09904511527 | U127: 10.99244025 | V127: 4.16E-28 | W127: 9.48E-26 | Y127: Pdzrn3 | Z127: 1085.6122 | AA127: 2.587604104 | AB127: 0.1760003027 | AC127: 14.70227076 | AD127: 6.23E-49 | AE127: 1.39E-46
A128: Epb41l3 | B128: 141.7585102 | C128: -7.684473852 | D128: 0.422525063 | E128: -18.1870249 | F128: 6.54E-74 | G128: 1.52e-71 | I128: Gprasp2 | J128: 21.05225874 | K128: 2.974377196 | L128: 0.3095429861 | M128: 9.608931004 | N128: 7.33E-22 | O128: 1.41E-19 | Q128: Slc16a6 | R128: 755.9721761 | S128: -1.295778174 | T128: 0.1179491901 | U128: -10.98590141 | V128: 4.47E-28 | W128: 1.01E-25 | Y128: Bmi1 | Z128: 4344.839929 | AA128: -0.7686404857 | AB128: 0.05252594215 | AC128: -14.63354019 | AD128: 1.72E-48 | AE128: 3.78E-46
A129: Crnn | B129: 434.3424923 | C129: -4.253694098 | D129: 0.23415789 | E129: -18.16592253 | F129: 9.61E-74 | G129: 2.21E-71 | I129: Cxcl5 | J129: 3673.54337 | K129: 1.898709185 | L129: 0.1985259787 | M129: 9.564033874 | N129: 1.13E-21 | O129: 2.15E-19 | Q129: Abca5 | R129: 736.6730442 | S129: 1.151098233 | T129: 0.1049418648 | U129: 10.96891345 | V129: 5.39E-28 | W129: 1.21E-25 | Y129: Stk38l | Z129: 6270.85814 | AA129: 0.6674458784 | AB129: 0.0456289121 | AC129: 14.62769651 | AD129: 1.87E-48 | AE129: 4.09E-46
A130: Grb10 | B130: 387.5478994 | C130: -9.105732596 | D130: 0.501938877 | E130: -18.14111841 | F130: 1.51e-73 | G130: 3.44E-71 | I130: Pak3 | J130: 962.2313522 | K130: 0.9301698703 | L130: 0.09733501319 | M130: 9.556374832 | N130: 1.22E-21 | O130: 2.30E-19 | Q130: Prex1 | R130: 53.88403047 | S130: 2.5149529 | T130: 0.2293658261 | U130: 10.96481086 | V130: 5.64E-28 | W130: 1.25E-25 | Y130: Tlcd2 | Z130: 443.8442556 | AA130: 1.740021212 | AB130: 0.119570575 | AC130: 14.55225261 | AD130: 5.65E-48 | AE130: 1.22E-45
A131: Tiam2 | B131: 626.5114467 | C131: 1.48911101 | D131: 0.082116478 | E131: 18.13413141 | F131: 1.71e-73 | G131: 3.87E-71 | I131: Elf5 | J131: 3803.967796 | K131: -1.027186482 | L131: 0.1079925354 | M131: -9.511643359 | N131: 1.88E-21 | O131: 3.51E-19 | Q131: Tiam2 | R131: 626.5114467 | S131: 0.9176464082 | T131: 0.08378333885 | U131: 10.95261207 | V131: 6.46E-28 | W131: 1.42E-25 | Y131: Tex26 | Z131: 277.8591051 | AA131: -1.727711076 | AB131: 0.1187571184 | AC131: -14.54827381 | AD131: 5.99E-48 | AE131: 1.29E-45
A132: Syn2 | B132: 406.2330729 | C132: -8.004260236 | D132: 0.441518458 | E132: -18.12893682 | F132: 1.88e-73 | G132: 4.22E-71 | I132: Capn13 | J132: 1431.614189 | K132: 1.37136204 | L132: 0.1442292759 | M132: 9.508208589 | N132: 1.94E-21 | O132: 3.60E-19 | Q132: AI854703 | R132: 63.89058796 | S132: -2.164844849 | T132: 0.1979513133 | U132: -10.93624899 | V132: 7.73E-28 | W132: 1.69E-25 | Y132: Fgfbp1 | Z132: 14616.82623 | AA132: 1.148347554 | AB132: 0.07904263417 | AC132: 14.52820451 | AD132: 8.03E-48 | AE132: 1.71E-45
A133: Best2 | B133: 412.9631368 | C133: 3.950261587 | D133: 0.218455675 | E133: 18.08266863 | F133: 4.36E-73 | G133: 9.71E-71 | I133: Synpo | J133: 6833.344413 | K133: 0.7631503385 | L133: 0.08034735819 | M133: 9.498138528 | N133: 2.14E-21 | O133: 3.93E-19 | Q133: Phip | R133: 12479.51756 | S133: -0.534527622 | T133: 0.0490600073 | U133: -10.89538407 | V133: 1.21E-27 | W133: 2.63E-25 | Y133: Spats2l | Z133: 174.6357812 | AA133: 3.648572222 | AB133: 0.2518872948 | AC133: 14.48493949 | AD133: 1.51E-47 | AE133: 3.19E-45
A134: Pcdhgb2 | B134: 597.0440342 | C134: 1.458322799 | D134: 0.080695367 | E134: 18.0719519 | F134: 5.30E-73 | G134: 1.17E-70 | I134: Gpr153 | J134: 207.9114944 | K134: 1.660562473 | L134: 0.1749860348 | M134: 9.489685705 | N134: 2.32E-21 | O134: 4.23E-19 | Q134: Klk13 | R134: 589.5223068 | S134: 3.943959395 | T134: 0.3622997132 | U134: 10.88590262 | V134: 1.35E-27 | W134: 2.89E-25 | Y134: Tmem246 | Z134: 174.5897022 | AA134: 4.784525907 | AB134: 0.3310971131 | AC134: 14.45052137 | AD134: 2.49E-47 | AE134: 5.22E-45
A135: Sptbn2 | B135: 22827.18808 | C135: 1.45443377 | D135: 0.080502686 | E135: 18.06689735 | F135: 5.81E-73 | G135: 1.27e-70 | I135: Kcnq1 | J135: 2248.792215 | K135: 1.501273104 | L135: 0.1583130989 | M135: 9.482936755 | N135: 2.47E-21 | O135: 4.48E-19 | Q135: B4galt6 | R135: 1042.23928 | S135: -1.30345497 | T135: 0.120089655 | U135: -10.85401544 | V135: 1.91E-27 | W135: 4.07E-25 | Y135: Lgr6 | Z135: 929.3705066 | AA135: 2.201325316 | AB135: 0.1523525018 | AC135: 14.4488951 | AD135: 2.55E-47 | AE135: 5.30E-45
A136: Selenbp1 | B136: 33273.47116 | C136: 2.534438099 | D136: 0.140753203 | E136: 18.00625531 | F136: 1.74e-72 | G136: 3.78E-70 | I136: Crnn | J136: 434.3424923 | K136: -2.174622788 | L136: 0.2304598739 | M136: -9.436014829 | N136: 3.87E-21 | O136: 6.95E-19 | Q136: Col4a6 | R136: 2273.272194 | S136: -1.94126616 | T136: 0.1794851674 | U136: -10.815747 | V136: 2.90E-27 | W136: 6.14E-25 | Y136: Gpc3 | Z136: 517.3500783 | AA136: 8.824782656 | AB136: 0.6111915198 | AC136: 14.43865363 | AD136: 2.96E-47 | AE136: 6.10E-45
A137: St3gal6 | B137: 149.9030551 | C137: -2.686714202 | D137: 0.149506099 | E137: -17.97059928 | F137: 3.31E-72 | G137: 7.13E-70 | I137: Brinp3 | J137: 24.78359282 | K137: 3.576229899 | L137: 0.3801568698 | M137: 9.407247858 | N137: 5.09E-21 | O137: 9.07E-19 | Q137: Gm13841 | R137: 39.64271805 | S137: 2.469629306 | T137: 0.2285015987 | U137: 10.8079301 | V137: 3.16E-27 | W137: 6.63E-25 | Y137: Ydjc | Z137: 983.1786609 | AA137: -1.192150784 | AB137: 0.08274349435 | AC137: -14.40778872 | AD137: 4.62E-47 | AE137: 9.46E-45
A138: C3 | B138: 10364.99726 | C138: 3.036921617 | D138: 0.169040785 | E138: 17.96561468 | F138: 3.62E-72 | G138: 7.74E-70 | I138: Efemp2 | J138: 1168.191883 | K138: 0.8572061673 | L138: 0.09144114644 | M138: 9.374403107 | N138: 6.96E-21 | O138: 1.23E-18 | Q138: Il11ra1 | R138: 434.140283 | S138: -1.33146984 | T138: 0.1237675938 | U138: -10.75782278 | V138: 5.44E-27 | W138: 1.13E-24 | Y138: Col11a1 | Z138: 188.0609062 | AA138: 4.20347612 | AB138: 0.2926929259 | AC138: 14.36138611 | AD138: 9.04E-47 | AE138: 1.84E-44
A139: Pdzrn3 | B139: 1085.6122 | C139: -3.153303349 | D139: 0.17567835 | E139: -17.94929965 | F139: 4.86E-72 | G139: 1.03e-69 | I139: Lbp | J139: 22.28603109 | K139: 3.085716349 | L139: 0.3292215687 | M139: 9.372764857 | N139: 7.07E-21 | O139: 1.24E-18 | Q139: Ptpru | R139: 1364.005797 | S139: -1.913701154 | T139: 0.1780042568 | U139: -10.75087297 | V139: 5.87E-27 | W139: 1.21E-24 | Y139: Rhoc | Z139: 2020.401806 | AA139: 1.938314514 | AB139: 0.1349848078 | AC139: 14.35950123 | AD139: 9.29E-47 | AE139: 1.87E-44
A140: Stxbp6 | B140: 316.6771126 | C140: 3.466574605 | D140: 0.193148031 | E140: 17.94776051 | F140: 5.00E-72 | G140: 1.05e-69 | I140: Ar | J140: 1015.251393 | K140: 0.8248151012 | L140: 0.08831238515 | M140: 9.339744361 | N140: 9.66E-21 | O140: 1.68E-18 | Q140: Xpnpep2 | R140: 91.41731862 | S140: -2.170687931 | T140: 0.2021421447 | U140: -10.73842337 | V140: 6.72E-27 | W140: 1.38E-24 | Y140: Col5a2 | Z140: 482.3748122 | AA140: 2.644460939 | AB140: 0.1841965249 | AC140: 14.35673632 | AD140: 9.67E-47 | AE140: 1.93E-44
A141: Ddit4l | B141: 221.9671848 | C141: -3.797042212 | D141: 0.211880199 | E141: -17.92070341 | F141: 8.13E-72 | G141: 1.70E-69 | I141: 4933416M07Rik | J141: 150.3321369 | K141: -1.470850625 | L141: 0.1588838656 | M141: -9.257394509 | N141: 2.09E-20 | O141: 3.62E-18 | Q141: Atp6v0e2 | R141: 210.190216 | S141: 2.208891679 | T141: 0.2063437956 | U141: 10.7049096 | V141: 9.65E-27 | W141: 1.96E-24 | Y141: Fst | Z141: 204.4047019 | AA141: 3.069277142 | AB141: 0.2152650101 | AC141: 14.25813299 | AD141: 3.99E-46 | AE141: 7.92E-44
A142: Gpr27 | B142: 419.5307391 | C142: -3.844746526 | D142: 0.214832405 | E142: -17.89649255 | F142: 1.26E-71 | G142: 2.60E-69 | I142: Gm11992 | J142: 291.2959941 | K142: -1.441309042 | L142: 0.1559583791 | M142: -9.241626196 | N142: 2.43E-20 | O142: 4.16E-18 | Q142: Best2 | R142: 412.9631368 | S142: 2.358431454 | T142: 0.2207769032 | U142: 10.68241931 | V142: 1.23E-26 | W142: 2.48E-24 | Y142: Tspan12 | Z142: 682.3645585 | AA142: 2.982898808 | AB142: 0.2098296372 | AC142: 14.21581263 | AD142: 7.31E-46 | AE142: 1.44E-43
A143: Oas1g | B143: 316.719763 | C143: -6.93654998 | D143: 0.38784397 | E143: -17.88489833 | F143: 1.55e-71 | G143: 3.18E-69 | I143: Abcg1 | J143: 690.2036413 | K143: -2.242117295 | L143: 0.2431575252 | M143: -9.220842717 | N143: 2.95E-20 | O143: 5.01E-18 | Q143: Sim2 | R143: 10397.84355 | S143: 0.9707569615 | T143: 0.09104194536 | U143: 10.66274405 | V143: 1.52E-26 | W143: 3.05E-24 | Y143: Plekhh2 | Z143: 907.8566648 | AA143: 2.07837975 | AB143: 0.1462513873 | AC143: 14.21100879 | AD143: 7.83E-46 | AE143: 1.53E-43
A144: Ank3 | B144: 5091.482047 | C144: -1.274702979 | D144: 0.071292686 | E144: -17.87985616 | F144: 1.69E-71 | G144: 3.45E-69 | I144: Acan | J144: 85.82015253 | K144: 3.608933458 | L144: 0.3915914688 | M144: 9.216067627 | N144: 3.08E-20 | O144: 5.20E-18 | Q144: Cacna2d2 | R144: 68.4740762 | S144: 3.931007949 | T144: 0.369103386 | U144: 10.65015413 | V144: 1.74E-26 | W144: 3.46E-24 | Y144: Oas1g | Z144: 316.719763 | AA144: 5.491770371 | AB144: 0.3888102695 | AC144: 14.12455072 | AD144: 2.68E-45 | AE144: 5.20E-43
A145: Tenm2 | B145: 436.5081518 | C145: -9.294727939 | D145: 0.520578536 | E145: -17.8546123 | F145: 2.66E-71 | G145: 5.39E-69 | I145: Slc16a7 | J145: 147.8479772 | K145: 1.787111439 | L145: 0.1942789378 | M145: 9.198688541 | N145: 3.62E-20 | O145: 6.07E-18 | Q145: A230050P20Rik | R145: 445.3891093 | S145: -2.989751583 | T145: 0.2814466658 | U145: -10.62279979 | V145: 2.33E-26 | W145: 4.61E-24 | Y145: Runx3 | Z145: 39.17685462 | AA145: 5.80257126 | AB145: 0.411562154 | AC145: 14.09889419 | AD145: 3.86E-45 | AE145: 7.43E-43
A146: Hid1 | B146: 750.3875201 | C146: 2.365258458 | D146: 0.132481251 | E146: 17.85353359 | F146: 2.71e-71 | G146: 5.45E-69 | I146: Plscr2 | J146: 339.328306 | K146: 1.861434303 | L146: 0.2024411331 | M146: 9.194941141 | N146: 3.75E-20 | O146: 6.24E-18 | Q146: Rbp1 | R146: 4059.658605 | S146: -2.229127711 | T146: 0.2101082201 | U146: -10.60942647 | V146: 2.69E-26 | W146: 5.28E-24 | Y146: Tead2 | Z146: 83.01906342 | AA146: 2.277175767 | AB146: 0.161756358 | AC146: 14.07781304 | AD146: 5.20E-45 | AE146: 9.93E-43
A147: Frmpd1 | B147: 527.9629367 | C147: -1.998772801 | D147: 0.112255705 | E147: -17.80553419 | F147: 6.40E-71 | G147: 1.28e-68 | I147: Cybrd1 | J147: 526.8690358 | K147: 1.912743304 | L147: 0.2083508131 | M147: 9.180397598 | N147: 4.30E-20 | O147: 7.09E-18 | Q147: Rims2 | R147: 75.64518715 | S147: -3.862883217 | T147: 0.3650068155 | U147: -10.58304408 | V147: 3.57E-26 | W147: 6.95E-24 | Y147: Nat8l | Z147: 711.1632387 | AA147: 4.344625779 | AB147: 0.3088685531 | AC147: 14.06626131 | AD147: 6.12E-45 | AE147: 1.16E-42
A148: Asprv1 | B148: 3057.103075 | C148: -4.633048748 | D148: 0.260715885 | E148: -17.77048891 | F148: 1.20E-70 | G148: 2.37E-68 | I148: Dtx4 | J148: 1507.983637 | K148: 1.828676027 | L148: 0.1994521789 | M148: 9.168493606 | N148: 4.80E-20 | O148: 7.86E-18 | Q148: Gm12312 | R148: 23.21440438 | S148: -3.462887 | T148: 0.3272801237 | U148: -10.58080449 | V148: 3.66E-26 | W148: 7.07E-24 | Y148: Tenm2 | Z148: 436.5081518 | AA148: 7.326623033 | AB148: 0.5214819809 | AC148: 14.04961878 | AD148: 7.74E-45 | AE148: 1.46E-42
A149: Fam65b | B149: 191.7062827 | C149: -4.256511372 | D149: 0.239706341 | E149: -17.75719141 | F149: 1.52e-70 | G149: 2.98E-68 | I149: St6gal1 | J149: 1663.947146 | K149: 1.387892934 | L149: 0.1514494577 | M149: 9.164066713 | N149: 5.00E-20 | O149: 8.13E-18 | Q149: Myl7 | R149: 1213.139939 | S149: 1.638085518 | T149: 0.1552015984 | U149: 10.55456602 | V149: 4.84E-26 | W149: 9.28E-24 | Y149: Dlk1 | Z149: 65.22715113 | AA149: 4.916786577 | AB149: 0.3501063212 | AC149: 14.04369553 | AD149: 8.42E-45 | AE149: 1.57E-42
A150: 4933416M07Rik | B150: 150.3321369 | C150: -2.658239613 | D150: 0.150354152 | E150: -17.67985507 | F150: 6.00E-70 | G150: 1.17e-67 | I150: Osr1 | J150: 98.20048377 | K150: 2.112030633 | L150: 0.2309223753 | M150: 9.146063173 | N150: 5.90E-20 | O150: 9.54E-18 | Q150: 5830416I19Rik | R150: 169.3668152 | S150: -1.740572909 | T150: 0.1650651053 | U150: -10.54476599 | V150: 5.37E-26 | W150: 1.02E-23 | Y150: Kit | Z150: 606.1882799 | AA150: 1.411799779 | AB150: 0.100645881 | AC150: 14.02739749 | AD150: 1.06E-44 | AE150: 1.97E-42
A151: Gm3336 | B151: 125.3987693 | C151: 3.635290003 | D151: 0.205755101 | E151: 17.66804316 | F151: 7.39E-70 | G151: 1.43e-67 | I151: Adgrf2 | J151: 114.1785589 | K151: -2.514935665 | L151: 0.2750401412 | M151: -9.143885887 | N151: 6.02E-20 | O151: 9.66E-18 | Q151: Msl3l2 | R151: 192.0552933 | S151: -1.767643774 | T151: 0.1689577628 | U151: -10.46204533 | V151: 1.29E-25 | W151: 2.44E-23 | Y151: Kalrn | Z151: 2987.726294 | AA151: 1.756469356 | AB151: 0.1253991593 | AC151: 14.00702657 | AD151: 1.41E-44 | AE151: 2.60E-42
A152: Acan | B152: 85.82015253 | C152: 6.106901421 | D152: 0.345754197 | E152: 17.6625518 | F152: 8.15E-70 | G152: 1.57E-67 | I152: Scara3 | J152: 1323.067394 | K152: 1.338187768 | L152: 0.1464266221 | M152: 9.138964958 | N152: 6.31E-20 | O152: 1.00E-17 | Q152: Ppm1h | R152: 515.3320237 | S152: -1.232719488 | T152: 0.1178565527 | U152: -10.45949045 | V152: 1.33E-25 | W152: 2.49E-23 | Y152: Acpp | Z152: 4596.716707 | AA152: 1.848461658 | AB152: 0.1323386224 | AC152: 13.96766586 | AD152: 2.46E-44 | AE152: 4.49E-42
A153: Bnc2 | B153: 162.6399598 | C153: -3.822163909 | D153: 0.216626201 | E153: -17.64405183 | F153: 1.13E-69 | G153: 2.16E-67 | I153: Arhgef40 | J153: 4118.827614 | K153: 0.8362911316 | L153: 0.09154318828 | M153: 9.135481813 | N153: 6.51E-20 | O153: 1.03E-17 | Q153: Zfp618 | R153: 177.246625 | S153: -1.867064334 | T153: 0.1787989651 | U153: -10.4422547 | V153: 1.59E-25 | W153: 2.96E-23 | Y153: Ror1 | Z153: 140.7460466 | AA153: 2.587873688 | AB153: 0.185570765 | AC153: 13.94548159 | AD153: 3.35E-44 | AE153: 6.09E-42
A154: Mfsd2a | B154: 619.253991 | C154: -2.113092849 | D154: 0.119928441 | E154: -17.61961409 | F154: 1.74e-69 | G154: 3.30E-67 | I154: Adgrl3 | J154: 298.6417727 | K154: 2.149870255 | L154: 0.2355459157 | M154: 9.127181207 | N154: 7.03E-20 | O154: 1.10E-17 | Q154: Spata13 | R154: 1110.964966 | S154: -0.7340058068 | T154: 0.07032985274 | U154: -10.436618 | V154: 1.69E-25 | W154: 3.12E-23 | Y154: Dmbt1 | Z154: 44.04715935 | AA154: 3.778188313 | AB154: 0.2711826363 | AC154: 13.93226485 | AD154: 4.03E-44 | AE154: 7.28E-42
A155: Fam13a | B155: 704.3708256 | C155: 2.277779327 | D155: 0.129857568 | E155: 17.54059751 | F155: 7.02e-69 | G155: 1.32E-66 | I155: Cyp4v3 | J155: 443.6847762 | K155: 1.044574522 | L155: 0.1144909789 | M155: 9.123640413 | N155: 7.26E-20 | O155: 1.13E-17 | Q155: Scarf2 | R155: 124.8369377 | S155: -1.666979742 | T155: 0.160136882 | U155: -10.40971774 | V155: 2.24E-25 | W155: 4.11E-23 | Y155: Pcdhgb5 | Z155: 182.1140136 | AA155: 2.441690066 | AB155: 0.1753925487 | AC155: 13.92128733 | AD155: 4.70E-44 | AE155: 8.42E-42
A156: Fam20a | B156: 433.8339709 | C156: -2.651870871 | D156: 0.151261672 | E156: -17.53167766 | F156: 8.21E-69 | G156: 1.54E-66 | I156: Raet1e | J156: 181.0077412 | K156: -1.286435445 | L156: 0.1412332668 | M156: -9.10858662 | N156: 8.35E-20 | O156: 1.29E-17 | Q156: Khdrbs2 | R156: 333.6643645 | S156: -1.939324635 | T156: 0.1867360889 | U156: -10.38537675 | V156: 2.89E-25 | W156: 5.24E-23 | Y156: Pcsk5 | Z156: 341.0725572 | AA156: 1.938295255 | AB156: 0.1399395129 | AC156: 13.85095042 | AD156: 1.26E-43 | AE156: 2.23E-41
A157: Ly6d | B157: 16177.6979 | C157: -3.930002776 | D157: 0.224267594 | E157: -17.52372109 | F157: 9.44E-69 | G157: 1.75e-66 | I157: Csf1 | J157: 1977.898783 | K157: 1.075351574 | L157: 0.118170112 | M157: 9.100030084 | N157: 9.03E-20 | O157: 1.39E-17 | Q157: Cd200r3 | R157: 537.0385453 | S157: -1.843647436 | T157: 0.1775190632 | U157: -10.38563072 | V157: 2.88E-25 | W157: 5.24E-23 | Y157: Tnfrsf19 | Z157: 124.9856969 | AA157: 4.802620306 | AB157: 0.3475312597 | AC157: 13.81924696 | AD157: 1.95E-43 | AE157: 3.45E-41
A158: Tmem56 | B158: 322.1525367 | C158: -3.409162914 | D158: 0.194555498 | E158: -17.52283001 | F158: 9.59E-69 | G158: 1.77E-66 | I158: Cytip | J158: 333.8078344 | K158: 1.423997601 | L158: 0.1565478961 | M158: 9.096242342 | N158: 9.35E-20 | O158: 1.43E-17 | Q158: Stmn2 | R158: 305.0796655 | S158: 2.852441411 | T158: 0.275477329 | U158: 10.35454141 | V158: 3.99E-25 | W158: 7.18E-23 | Y158: Hp1bp3 | Z158: 24511.67537 | AA158: 0.4180452735 | AB158: 0.03025327755 | AC158: 13.81818128 | AD158: 1.98E-43 | AE158: 3.47E-41
A159: Ralgps2 | B159: 7198.218341 | C159: 0.602152826 | D159: 0.034775756 | E159: 17.31530502 | F159: 3.61E-67 | G159: 6.61E-65 | I159: Gpa33 | J159: 406.8414883 | K159: 0.9171419807 | L159: 0.1009896147 | M159: 9.081547478 | N159: 1.07E-19 | O159: 1.62E-17 | Q159: Cytip | R159: 333.8078344 | S159: -1.61507816 | T159: 0.1561760353 | U159: -10.34139558 | V159: 4.58E-25 | W159: 8.19E-23 | Y159: Rasgrp3 | Z159: 207.4815761 | AA159: 2.232413847 | AB159: 0.1621772136 | AC159: 13.7652744 | AD159: 4.12E-43 | AE159: 7.19E-41
A160: Cacnb2 | B160: 251.0164706 | C160: 2.78385538 | D160: 0.161427097 | E160: 17.2452793 | F160: 1.21E-66 | G160: 2.21e-64 | I160: Ccbe1 | J160: 545.0142748 | K160: 1.130037532 | L160: 0.1246663545 | M160: 9.064494881 | N160: 1.25E-19 | O160: 1.89E-17 | Q160: Map2 | R160: 759.01616 | S160: 1.212838376 | T160: 0.1174017762 | U160: 10.33066462 | V160: 5.12E-25 | W160: 9.09E-23 | Y160: Fam189b | Z160: 889.480256 | AA160: 1.543800676 | AB160: 0.1124987614 | AC160: 13.72282376 | AD160: 7.41E-43 | AE160: 1.28E-40
A161: Fras1 | B161: 3256.403837 | C161: 1.628995051 | D161: 0.094738772 | E161: 17.19459756 | F161: 2.91E-66 | G161: 5.27E-64 | I161: Dlg4 | J161: 321.720084 | K161: 1.486872392 | L161: 0.1644618945 | M161: 9.040832201 | N161: 1.55E-19 | O161: 2.33E-17 | Q161: Gm4349 | R161: 22.17866915 | S161: 4.077498997 | T161: 0.394720841 | U161: 10.33008287 | V161: 5.15E-25 | W161: 9.09E-23 | Y161: Capn11 | Z161: 262.1376762 | AA161: -6.662667075 | AB161: 0.4856184734 | AC161: -13.71996215 | AD161: 7.71E-43 | AE161: 1.33E-40
A162: Sptssb | B162: 2601.239215 | C162: 5.380844881 | D162: 0.313077693 | E162: 17.18693158 | F162: 3.33E-66 | G162: 5.98E-64 | I162: Ccdc141 | J162: 1019.870803 | K162: 1.278469373 | L162: 0.1414294927 | M162: 9.039623553 | N162: 1.57E-19 | O162: 2.34E-17 | Q162: Pros1 | R162: 174.3156066 | S162: -1.758686571 | T162: 0.1710241952 | U162: -10.28326178 | V162: 8.38E-25 | W162: 1.47E-22 | Y162: Prdm2 | Z162: 8664.799682 | AA162: 0.6560055964 | AB162: 0.04793362768 | AC162: 13.68570726 | AD162: 1.24E-42 | AE162: 2.11E-40
A163: Nebl | B163: 4718.131146 | C163: -2.203510576 | D163: 0.128231764 | E163: -17.18381242 | F163: 3.51E-66 | G163: 6.27E-64 | I163: Pqlc3 | J163: 1417.272205 | K163: -1.057511459 | L163: 0.1170863926 | M163: -9.031890348 | N163: 1.69E-19 | O163: 2.49E-17 | Q163: Fam120c | R163: 1259.854885 | S163: -0.839141101 | T163: 0.0818661396 | U163: -10.25016087 | V163: 1.18E-24 | W163: 2.06E-22 | Y163: Foxp2 | Z163: 131.2338771 | AA163: 5.571243981 | AB163: 0.4084389871 | AC163: 13.64033346 | AD163: 2.31E-42 | AE163: 3.91E-40
A164: Mtor | B164: 8677.137848 | C164: -0.476281221 | D164: 0.027802404 | E164: -17.1309369 | F164: 8.72E-66 | G164: 1.55E-63 | I164: Pla2g7 | J164: 149.8509371 | K164: 1.763555281 | L164: 0.1953879321 | M164: 9.025917117 | N164: 1.78E-19 | O164: 2.61E-17 | Q164: Ppp1r26 | R164: 1428.392629 | S164: -0.8034465492 | T164: 0.07849851606 | U164: -10.23518137 | V164: 1.38E-24 | W164: 2.39E-22 | Y164: Kdm6a | Z164: 7051.697325 | AA164: 0.7268751104 | AB164: 0.05343816474 | AC164: 13.60217204 | AD164: 3.89E-42 | AE164: 6.55E-40
A165: Clca3a1 | B165: 1057.988705 | C165: -5.859858538 | D165: 0.342612544 | E165: -17.10345592 | F165: 1.40E-65 | G165: 2.46E-63 | I165: Prickle2 | J165: 166.7834682 | K165: -1.374294623 | L165: 0.1524277661 | M165: -9.016038599 | N165: 1.95E-19 | O165: 2.82E-17 | Q165: Pced1b | R165: 30.59373724 | S165: -3.625528919 | T165: 0.3543910743 | U165: -10.2303054 | V165: 1.45E-24 | W165: 2.49E-22 | Y165: Ces1h | Z165: 160.2792455 | AA165: 5.71897752 | AB165: 0.4215570424 | AC165: 13.56631949 | AD165: 6.34E-42 | AE165: 1.06E-39
A166: Rab6b | B166: 121.27248 | C166: -4.083055731 | D166: 0.238743196 | E166: -17.10229147 | F166: 1.43e-65 | G166: 2.50E-63 | I166: Fhod3 | J166: 559.9600642 | K166: 1.756836549 | L166: 0.1948546868 | M166: 9.016136989 | N166: 1.95E-19 | O166: 2.82E-17 | Q166: Gm5913 | R166: 77.51205824 | S166: -1.92830103 | T166: 0.1887494705 | U166: -10.21619306 | V166: 1.68E-24 | W166: 2.86E-22 | Y166: Cplx2 | Z166: 286.0835407 | AA166: 2.467224672 | AB166: 0.1821573507 | AC166: 13.54446945 | AD166: 8.54E-42 | AE166: 1.42E-39
A167: Crisp1 | B167: 291.2726991 | C167: -5.602866976 | D167: 0.327715147 | E167: -17.09675927 | F167: 1.57e-65 | G167: 2.73E-63 | I167: Atp13a4 | J167: 249.2213551 | K167: -2.916697572 | L167: 0.323777812 | M167: -9.008330603 | N167: 2.09E-19 | O167: 3.01E-17 | Q167: Cspg5 | R167: 134.7811428 | S167: -1.351415561 | T167: 0.1323180363 | U167: -10.21338888 | V167: 1.73E-24 | W167: 2.93E-22 | Y167: Ppp1r9a | Z167: 446.6514641 | AA167: 2.55169819 | AB167: 0.1893027046 | AC167: 13.47945977 | AD167: 2.07E-41 | AE167: 3.42E-39
A168: Plekhg1 | B168: 4497.873647 | C168: -1.875044911 | D168: 0.109875669 | E168: -17.06515131 | F168: 2.70E-65 | G168: 4.66E-63 | I168: Klk11 | J168: 2365.153009 | K168: -2.003348008 | L168: 0.2232398336 | M168: -8.973971963 | N168: 2.86E-19 | O168: 4.09E-17 | Q168: Podn | R168: 49.35323402 | S168: -2.565272933 | T168: 0.2512881222 | U168: -10.20849259 | V168: 1.82E-24 | W168: 3.06E-22 | Y168: Atp6v0e2 | Z168: 210.190216 | AA168: 2.764164285 | AB168: 0.2050995855 | AC168: 13.47718124 | AD168: 2.13E-41 | AE168: 3.50E-39
A169: Akap6 | B169: 1421.059609 | C169: 3.485629952 | D169: 0.204261104 | E169: 17.06457998 | F169: 2.72e-65 | G169: 4.68E-63 | I169: Col6a1 | J169: 14.59828663 | K169: 3.001541807 | L169: 0.3349555516 | M169: 8.961015254 | N169: 3.22E-19 | O169: 4.57E-17 | Q169: Bzrap1 | R169: 110.1511589 | S169: -2.670330419 | T169: 0.2623952276 | U169: -10.17674918 | V169: 2.52E-24 | W169: 4.22E-22 | Y169: Dclk1 | Z169: 134.3098397 | AA169: 2.838999793 | AB169: 0.2110519789 | AC169: 13.45166156 | AD169: 3.01E-41 | AE169: 4.91E-39
A170: Esyt3 | B170: 960.4212168 | C170: -3.270329022 | D170: 0.191710984 | E170: -17.05864186 | F170: 3.01E-65 | G170: 5.14e-63 | I170: Cd74 | J170: 36.04271193 | K170: 2.635072493 | L170: 0.2940986348 | M170: 8.959825652 | N170: 3.25E-19 | O170: 4.59E-17 | Q170: Coro2a | R170: 11806.71595 | S170: 1.022002512 | T170: 0.1004415524 | U170: 10.17509673 | V170: 2.56E-24 | W170: 4.26E-22 | Y170: Nkx3-1 | Z170: 196.9629181 | AA170: -3.342404714 | AB170: 0.2490183134 | AC170: -13.42232492 | AD170: 4.47E-41 | AE170: 7.26E-39
A171: Serpinb2 | B171: 3664.833936 | C171: -3.654531373 | D171: 0.214525361 | E171: -17.03542816 | F171: 4.48E-65 | G171: 7.60E-63 | I171: Syne1 | J171: 786.6458291 | K171: -1.138720624 | L171: 0.1274699254 | M171: -8.933249317 | N171: 4.14E-19 | O171: 5.80E-17 | Q171: Sec14l4 | R171: 134.2996247 | S171: -1.641197342 | T171: 0.1613851926 | U171: -10.16944191 | V171: 2.71E-24 | W171: 4.49E-22 | Y171: Cadps2 | Z171: 556.0801306 | AA171: 2.929048335 | AB171: 0.2195076704 | AC171: 13.34371747 | AD171: 1.29E-40 | AE171: 2.08E-38
A172: Rnf128 | B172: 3096.704537 | C172: 2.080320274 | D172: 0.12213445 | E172: 17.03303424 | F172: 4.67E-65 | G172: 7.87E-63 | I172: Slc16a6 | J172: 755.9721761 | K172: -1.083471625 | L172: 0.1213887551 | M172: -8.925634205 | N172: 4.43E-19 | O172: 6.18E-17 | Q172: Gm684 | R172: 335.5881083 | S172: -1.102028061 | T172: 0.1085530461 | U172: -10.15197731 | V172: 3.25E-24 | W172: 5.34E-22 | Y172: Prickle2 | Z172: 166.7834682 | AA172: 5.197296795 | AB172: 0.389834349 | AC172: 13.33206478 | AD172: 1.51E-40 | AE172: 2.41E-38
A173: Osgin2 | B173: 1245.92053 | C173: -1.161777543 | D173: 0.068403121 | E173: -16.98427682 | F173: 1.07E-64 | G173: 1.80E-62 | I173: Sh3gl1 | J173: 6383.354173 | K173: -0.4126997605 | L173: 0.04664259561 | M173: -8.848130236 | N173: 8.90E-19 | O173: 1.23E-16 | Q173: Cmah | R173: 1020.798254 | S173: -1.520899923 | T173: 0.1498918445 | U173: -10.14664893 | V173: 3.43E-24 | W173: 5.60E-22 | Y173: Tbc1d9 | Z173: 194.0186398 | AA173: 2.500846786 | AB173: 0.1876947058 | AC173: 13.32401346 | AD173: 1.68E-40 | AE173: 2.67E-38
A174: Trim30d | B174: 384.619071 | C174: -7.072925745 | D174: 0.417450413 | E174: -16.94315187 | F174: 2.16E-64 | G174: 3.60E-62 | I174: Kcnj11 | J174: 27.82217936 | K174: 2.756590109 | L174: 0.3116040044 | M174: 8.846452774 | N174: 9.03E-19 | O174: 1.24E-16 | Q174: Tspear | R174: 61.73665208 | S174: -1.692599287 | T174: 0.1671537277 | U174: -10.12600383 | V174: 4.24E-24 | W174: 6.88E-22 | Y174: Pcdhb21 | Z174: 101.4319561 | AA174: -1.864889657 | AB174: 0.1401511406 | AC174: -13.30627528 | AD174: 2.13E-40 | AE174: 3.37E-38
A175: Car12 | B175: 1422.630678 | C175: -3.62395064 | D175: 0.214101778 | E175: -16.9262987 | F175: 2.88E-64 | G175: 4.76E-62 | I175: Mtss1 | J175: 5489.068609 | K175: 0.4971428137 | L175: 0.05629350347 | M175: 8.831264411 | N175: 1.03E-18 | O175: 1.42E-16 | Q175: Gm12446 | R175: 43.24665961 | S175: -2.057718418 | T175: 0.2032383376 | U175: -10.1246568 | V175: 4.29E-24 | W175: 6.93E-22 | Y175: Scly | Z175: 2025.159314 | AA175: -0.8778075552 | AB175: 0.06602957152 | AC175: -13.29415798 | AD175: 2.50E-40 | AE175: 3.94E-38
A176: Olfm4 | B176: 708.4371011 | C176: 4.275605953 | D176: 0.25377206 | E176: 16.84821389 | F176: 1.08E-63 | G176: 1.78E-61 | I176: B4galt5 | J176: 1789.599815 | K176: 1.418276759 | L176: 0.1608011568 | M176: 8.82006565 | N176: 1.14E-18 | O176: 1.56E-16 | Q176: Cpa6 | R176: 234.9071469 | S176: -2.273068499 | T176: 0.2246480584 | U176: -10.11835364 | V176: 4.58E-24 | W176: 7.35E-22 | Y176: Rasgrp1 | Z176: 1084.543578 | AA176: 2.12579065 | AB176: 0.1599351967 | AC176: 13.29157492 | AD176: 2.59E-40 | AE176: 4.05E-38
A177: Npnt | B177: 7950.69912 | C177: 1.809637246 | D177: 0.108110107 | E177: 16.73883503 | F177: 6.83E-63 | G177: 1.12e-60 | I177: Fam212b | J177: 410.317542 | K177: -2.336873355 | L177: 0.2653846865 | M177: -8.805607385 | N177: 1.30E-18 | O177: 1.76E-16 | Q177: Trim5 | R177: 477.6907745 | S177: -1.748906982 | T177: 0.1729295143 | U177: -10.11340943 | V177: 4.82E-24 | W177: 7.68E-22 | Y177: Gm12349 | Z177: 925.5250925 | AA177: -1.959481046 | AB177: 0.1476842903 | AC177: -13.26803983 | AD177: 3.55E-40 | AE177: 5.51E-38
A178: Epb41 | B178: 13728.51274 | C178: -1.144194737 | D178: 0.068446263 | E178: -16.71668674 | F178: 9.91e-63 | G178: 1.61e-60 | I178: Sept8 | J178: 17207.7641 | K178: -0.3903583807 | L178: 0.04433650943 | M178: -8.804445493 | N178: 1.32E-18 | O178: 1.77E-16 | Q178: Myo3b | R178: 261.3660172 | S178: -1.849758684 | T178: 0.1829898054 | U178: -10.10853408 | V178: 5.06E-24 | W178: 8.02E-22 | Y178: Rptn | Z178: 341.9271514 | AA178: 3.763933317 | AB178: 0.2838701021 | AC178: 13.25935098 | AD178: 3.98E-40 | AE178: 6.15E-38
A179: Pcsk5 | B179: 341.0725572 | C179: -2.321087919 | D179: 0.139178724 | E179: -16.67703115 | F179: 1.93E-62 | G179: 3.11E-60 | I179: Pmvk | J179: 3056.384125 | K179: -0.5162930415 | L179: 0.05865012441 | M179: -8.802931736 | N179: 1.33E-18 | O179: 1.78E-16 | Q179: Dnajc1 | R179: 3651.146268 | S179: -0.4942131399 | T179: 0.04908280586 | U179: -10.06896674 | V179: 7.58E-24 | W179: 1.19E-21 | Y179: Kdm5c | Z179: 18432.29213 | AA179: 0.7799300957 | AB179: 0.05892637291 | AC179: 13.23567118 | AD179: 5.46E-40 | AE179: 8.38E-38
A180: A330074K22Rik | B180: 762.172576 | C180: 2.157436256 | D180: 0.129440586 | E180: 16.66738639 | F180: 2.26e-62 | G180: 3.63e-60 | I180: Ugt1a1 | J180: 248.438877 | K180: -1.606254001 | L180: 0.1825861598 | M180: -8.797238533 | N180: 1.40E-18 | O180: 1.86E-16 | Q180: Alox12e | R180: 274.699627 | S180: -2.037090686 | T180: 0.2024010985 | U180: -10.06462267 | V180: 7.92E-24 | W180: 1.24E-21 | Y180: Dsc3 | Z180: 9334.945269 | AA180: 1.731799793 | AB180: 0.1309647988 | AC180: 13.22339903 | AD180: 6.43E-40 | AE180: 9.81E-38
A181: Itga1 | B181: 173.9129184 | C181: -3.690977238 | D181: 0.222178088 | E181: -16.6126969 | F181: 5.64E-62 | G181: 9.00E-60 | I181: Aebp1 | J181: 52.1551639 | K181: 1.87820114 | L181: 0.2138314467 | M181: 8.783559059 | N181: 1.58E-18 | O181: 2.09E-16 | Q181: Pla2g4e | R181: 2090.938966 | S181: 2.225643041 | T181: 0.2223762058 | U181: 10.00845856 | V181: 1.40E-23 | W181: 2.18E-21 | Y181: Rhbdl3 | Z181: 739.5624962 | AA181: 2.344688953 | AB181: 0.1775487668 | AC181: 13.20588701 | AD181: 8.11E-40 | AE181: 1.23E-37
A182: Evl | B182: 451.0952915 | C182: -1.598875559 | D182: 0.096368056 | E182: -16.59134394 | F182: 8.05E-62 | G182: 1.28E-59 | I182: Hcn1 | J182: 25.20254249 | K182: 2.979960137 | L182: 0.3399065032 | M182: 8.76699948 | N182: 1.83E-18 | O182: 2.41E-16 | Q182: Cercam | R182: 570.4922977 | S182: -1.341893537 | T182: 0.1342871161 | U182: -9.992719895 | V182: 1.64E-23 | W182: 2.54E-21 | Y182: Boc | Z182: 1129.437592 | AA182: 1.859178806 | AB182: 0.1409774759 | AC182: 13.18777197 | AD182: 1.03E-39 | AE182: 1.56E-37
A183: Elf5 | B183: 3803.967796 | C183: -1.803614877 | D183: 0.108716671 | E183: -16.59004884 | F183: 8.23E-62 | G183: 1.30E-59 | I183: Unc5cl | J183: 37.69286115 | K183: 2.503291443 | L183: 0.2871737495 | M183: 8.716992578 | N183: 2.86E-18 | O183: 3.73E-16 | Q183: Mtus2 | R183: 809.6249673 | S183: -1.200223777 | T183: 0.1201666316 | U183: -9.987995513 | V183: 1.72E-23 | W183: 2.65E-21 | Y183: Pcdhga7 | Z183: 334.9107254 | AA183: 1.887976131 | AB183: 0.1431658369 | AC183: 13.18733695 | AD183: 1.04E-39 | AE183: 1.56E-37
A184: Pvrl3 | B184: 173.9804131 | C184: -3.339667828 | D184: 0.201767153 | E184: -16.55208876 | F184: 1.55e-61 | G184: 2.43E-59 | I184: Ank3 | J184: 5091.482047 | K184: -0.6190826627 | L184: 0.07104126636 | M184: -8.714409166 | N184: 2.92E-18 | O184: 3.79E-16 | Q184: Fat2 | R184: 32678.14335 | S184: -0.7703005595 | T184: 0.07713792779 | U184: -9.98601572 | V184: 1.75E-23 | W184: 2.68E-21 | Y184: Aif1l | Z184: 432.4942441 | AA184: 3.03012832 | AB184: 0.2297984662 | AC184: 13.186025 | AD184: 1.06E-39 | AE184: 1.57E-37
A185: Pls1 | B185: 8543.862699 | C185: 2.093896963 | D185: 0.126848802 | E185: 16.5070298 | F185: 3.27E-61 | G185: 5.09E-59 | I185: Ntf5 | J185: 948.8176123 | K185: 0.6429294217 | L185: 0.07403170372 | M185: 8.684514733 | N185: 3.80E-18 | O185: 4.91E-16 | Q185: Cyp2d22 | R185: 180.7694752 | S185: -1.855494247 | T185: 0.185966942 | U185: -9.977548846 | V185: 1.91E-23 | W185: 2.91E-21 | Y185: Hpn | Z185: 466.6131349 | AA185: 1.323256419 | AB185: 0.1006353831 | AC185: 13.14901756 | AD185: 1.72E-39 | AE185: 2.56E-37
A186: Tex26 | B186: 277.8591051 | C186: 1.973318919 | D186: 0.119742535 | E186: 16.47968213 | F186: 5.14E-61 | G186: 7.92E-59 | I186: Phf20 | J186: 3463.110551 | K186: 0.3194014062 | L186: 0.03678265675 | M186: 8.683478423 | N186: 3.84E-18 | O186: 4.92E-16 | Q186: Cacna1c | R186: 110.8263561 | S186: -3.708882722 | T186: 0.3720219485 | U186: -9.969526629 | V186: 2.07E-23 | W186: 3.13E-21 | Y186: Hunk | Z186: 304.9037777 | AA186: 2.803548801 | AB186: 0.213653681 | AC186: 13.12193072 | AD186: 2.47E-39 | AE186: 3.63E-37
A187: S100a7a | B187: 3116.403386 | C187: -4.736942052 | D187: 0.287438091 | E187: -16.47986888 | F187: 5.12E-61 | G187: 7.92E-59 | I187: Ces1h | J187: 160.2792455 | K187: -1.902455217 | L187: 0.2191364697 | M187: -8.681600191 | N187: 3.90E-18 | O187: 4.98E-16 | Q187: Ptgr1 | R187: 18766.33018 | S187: 1.574633594 | T187: 0.1581793766 | U187: 9.954733845 | V187: 2.40E-23 | W187: 3.62E-21 | Y187: Zfp449 | Z187: 114.8271471 | AA187: 2.165552194 | AB187: 0.1651894711 | AC187: 13.10950498 | AD187: 2.90E-39 | AE187: 4.26E-37
A188: Sox7 | B188: 1376.548362 | C188: -3.670192523 | D188: 0.223551692 | E188: -16.41764591 | F188: 1.43E-60 | G188: 2.19E-58 | I188: Kcne3 | J188: 1095.667034 | K188: 2.565413099 | L188: 0.2956811826 | M188: 8.676281244 | N188: 4.09E-18 | O188: 5.19E-16 | Q188: Scd1 | R188: 8567.325718 | S188: 1.620038725 | T188: 0.1628011423 | U188: 9.951028001 | V188: 2.50E-23 | W188: 3.73E-21 | Y188: Apln | Z188: 286.0391631 | AA188: 3.322950841 | AB188: 0.2535728535 | AC188: 13.10452122 | AD188: 3.10E-39 | AE188: 4.52E-37
A189: Oit1 | B189: 9887.393306 | C189: 1.292583386 | D189: 0.078803816 | E189: 16.40254824 | F189: 1.83e-60 | G189: 2.79E-58 | I189: Col11a1 | J189: 188.0609062 | K189: 2.420428539 | L189: 0.279010467 | M189: 8.675045653 | N189: 4.13E-18 | O189: 5.21E-16 | Q189: Dmbt1 | R189: 44.04715935 | S189: 4.040703161 | T189: 0.4067397922 | U189: 9.934368946 | V189: 2.95E-23 | W189: 4.36E-21 | Y189: Tgfb3 | Z189: 325.7086935 | AA189: 1.6568991 | AB189: 0.12660276 | AC189: 13.0873853 | AD189: 3.89E-39 | AE189: 5.63E-37
A190: Krt80 | B190: 14431.54122 | C190: -1.367045056 | D190: 0.083461123 | E190: -16.37942326 | F190: 2.68E-60 | G190: 4.07E-58 | I190: Fam57a | J190: 9422.979756 | K190: -1.912438105 | L190: 0.2208268745 | M190: -8.660350374 | N190: 4.70E-18 | O190: 5.90E-16 | Q190: Gm16011 | R190: 26.61166009 | S190: 5.576729213 | T190: 0.5613595612 | U190: 9.934326585 | V190: 2.95E-23 | W190: 4.36E-21 | Y190: Krt23 | Z190: 6436.021579 | AA190: 2.699089715 | AB190: 0.2062477471 | AC190: 13.08663853 | AD190: 3.93E-39 | AE190: 5.66E-37
A191: Naprt | B191: 2034.012087 | C191: -1.561470776 | D191: 0.095494658 | E191: -16.3513939 | F191: 4.25E-60 | G191: 6.41E-58 | I191: Mgmt | J191: 1060.824089 | K191: -1.463716676 | L191: 0.1691736312 | M191: -8.652156164 | N191: 5.05E-18 | O191: 6.30E-16 | Q191: 2610307P16Rik | R191: 249.3435123 | S191: -1.172112049 | T191: 0.1182621019 | U191: -9.911138312 | V191: 3.72E-23 | W191: 5.47E-21 | Y191: Enpp3 | Z191: 15576.40238 | AA191: 2.189882782 | AB191: 0.1673782046 | AC191: 13.08344051 | AD191: 4.09E-39 | AE191: 5.87E-37
A192: Gpc3 | B192: 517.3500783 | C192: -9.979255046 | D192: 0.610815987 | E192: -16.33757999 | F192: 5.33E-60 | G192: 7.99E-58 | I192: Serpinb2 | J192: 3664.833936 | K192: -1.844268605 | L192: 0.2132392288 | M192: -8.648824213 | N192: 5.20E-18 | O192: 6.45E-16 | Q192: Rhou | R192: 6631.236666 | S192: 1.353347455 | T192: 0.137097337 | U192: 9.871435026 | V192: 5.54E-23 | W192: 8.09E-21 | Y192: Slc16a11 | Z192: 7589.952155 | AA192: 1.727726164 | AB192: 0.1326446759 | AC192: 13.02522059 | AD192: 8.79E-39 | AE192: 1.25E-36
A193: Selm | B193: 129.1545572 | C193: 2.904578586 | D193: 0.178075852 | E193: 16.31090656 | F193: 8.26E-60 | G193: 1.23e-57 | I193: Rasef | J193: 507.4354235 | K193: 1.109713799 | L193: 0.128366174 | M193: 8.644908272 | N193: 5.38E-18 | O193: 6.64E-16 | Q193: Gm17055 | R193: 259.8844863 | S193: -0.9176029495 | T193: 0.09300507629 | U193: -9.866159849 | V193: 5.84E-23 | W193: 8.48E-21 | Y193: F5 | Z193: 57.99020662 | AA193: 3.879532527 | AB193: 0.2980962913 | AC193: 13.01436026 | AD193: 1.01E-38 | AE193: 1.44E-36
A194: 5830416I19Rik | B194: 169.3668152 | C194: -2.804639255 | D194: 0.172296394 | E194: -16.27799159 | F194: 1.41e-59 | G194: 2.10E-57 | I194: Abcc8 | J194: 50.07491098 | K194: 2.667113759 | L194: 0.3093622287 | M194: 8.621329662 | N194: 6.62E-18 | O194: 8.12E-16 | Q194: Usp11 | R194: 456.5871082 | S194: -1.472378656 | T194: 0.149350572 | U194: -9.858540454 | V194: 6.30E-23 | W194: 9.10E-21 | Y194: Vnn1 | Z194: 1013.04853 | AA194: 2.832410907 | AB194: 0.2177514757 | AC194: 13.00753944 | AD194: 1.11E-38 | AE194: 1.56E-36
A195: Capn13 | B195: 1431.614189 | C195: 2.340578365 | D195: 0.143966722 | E195: 16.25777352 | F195: 1.97e-59 | G195: 2.90E-57 | I195: Lpin3 | J195: 7152.344645 | K195: -0.6347297891 | L195: 0.07366705896 | M195: -8.616195598 | N195: 6.92E-18 | O195: 8.44E-16 | Q195: Pcdhb16 | R195: 290.2660853 | S195: -1.305647431 | T195: 0.1329515516 | U195: -9.820475318 | V195: 9.19E-23 | W195: 1.32E-20 | Y195: Me1 | Z195: 10443.61813 | AA195: 1.483415055 | AB195: 0.1143709981 | AC195: 12.97020294 | AD195: 1.81E-38 | AE195: 2.53E-36
A196: Gria3 | B196: 207.2792442 | C196: -9.282399229 | D196: 0.571009412 | E196: -16.25612299 | F196: 2.02E-59 | G196: 2.96E-57 | I196: Syndig1 | J196: 17.20178249 | K196: 2.981023769 | L196: 0.3461376519 | M196: 8.612249354 | N196: 7.16E-18 | O196: 8.69E-16 | Q196: Polh | R196: 1503.861083 | S196: 0.6530644572 | T196: 0.06663550693 | U196: 9.800547596 | V196: 1.12E-22 | W196: 1.60E-20 | Y196: Dapk1 | Z196: 4620.5234 | AA196: 1.520648282 | AB196: 0.1173629806 | AC196: 12.95679672 | AD196: 2.15E-38 | AE196: 3.00E-36
A197: Afap1l2 | B197: 6997.003804 | C197: -1.530928446 | D197: 0.094402143 | E197: -16.21709412 | F197: 3.82e-59 | G197: 5.57E-57 | I197: Atp6v0a1 | J197: 16066.80313 | K197: -0.2944920258 | L197: 0.03425009883 | M197: -8.598282511 | N197: 8.09E-18 | O197: 9.77E-16 | Q197: Gpr132 | R197: 255.4956694 | S197: 1.679916703 | T197: 0.1719689386 | U197: 9.768721702 | V197: 1.53E-22 | W197: 2.18E-20 | Y197: Npr3 | Z197: 257.7543865 | AA197: 3.308275946 | AB197: 0.255338432 | AC197: 12.95643558 | AD197: 2.16E-38 | AE197: 3.00E-36
A198: Acpp | B198: 4596.716707 | C198: -2.142564563 | D198: 0.132282162 | E198: -16.19692731 | F198: 5.30E-59 | G198: 7.69E-57 | I198: Cldn6 | J198: 127.0033189 | K198: 1.90337357 | L198: 0.2216496926 | M198: 8.587305253 | N198: 8.90E-18 | O198: 1.07E-15 | Q198: Edil3 | R198: 40.07581767 | S198: -2.738068381 | T198: 0.2803224131 | U198: -9.767568532 | V198: 1.55E-22 | W198: 2.20E-20 | Y198: Piezo2 | Z198: 27.27302445 | AA198: 4.514195599 | AB198: 0.3485034528 | AC198: 12.95308716 | AD198: 2.26E-38 | AE198: 3.11E-36
A199: Glipr1 | B199: 287.2404362 | C199: 3.061433061 | D199: 0.189016875 | E199: 16.1966124 | F199: 5.33E-59 | G199: 7.69E-57 | I199: Rnf128 | J199: 3096.704537 | K199: 1.044631466 | L199: 0.1218069695 | M199: 8.576122291 | N199: 9.81E-18 | O199: 1.17E-15 | Q199: Slc12a9 | R199: 1765.043404 | S199: -0.6555408147 | T199: 0.06714284199 | U199: -9.763376039 | V199: 1.62E-22 | W199: 2.28E-20 | Y199: Steap4 | Z199: 1090.120532 | AA199: 1.929710493 | AB199: 0.1491602767 | AC199: 12.93716086 | AD199: 2.78E-38 | AE199: 3.81E-36
A200: Mroh6 | B200: 1290.028786 | C200: -4.230981431 | D200: 0.261415861 | E200: -16.1848689 | F200: 6.45E-59 | G200: 9.26E-57 | I200: Plscr1 | J200: 2927.574258 | K200: 1.039744098 | L200: 0.1214428561 | M200: 8.561591281 | N200: 1.11E-17 | O200: 1.32E-15 | Q200: Trp53 | R200: 5784.036491 | S200: -0.9484421196 | T200: 0.09719586065 | U200: -9.758050531 | V200: 1.70E-22 | W200: 2.39E-20 | Y200: Hdgfrp3 | Z200: 1069.028649 | AA200: 0.9067487038 | AB200: 0.07018793639 | AC200: 12.91886826 | AD200: 3.52E-38 | AE200: 4.81E-36
A201: Pdzd2 | B201: 4312.066869 | C201: -2.199123609 | D201: 0.135991374 | E201: -16.17105219 | F201: 8.07E-59 | G201: 1.15e-56 | I201: Obfc1 | J201: 2839.750436 | K201: -0.7810001025 | L201: 0.09145141141 | M201: -8.540055211 | N201: 1.34E-17 | O201: 1.59E-15 | Q201: Ppfibp1 | R201: 20182.82646 | S201: -0.3192404917 | T201: 0.03273917608 | U201: -9.751023999 | V201: 1.83E-22 | W201: 2.54E-20 | Y201: Tmem220 | Z201: 469.8003108 | AA201: -1.169441644 | AB201: 0.09062874539 | AC201: -12.90365037 | AD201: 4.29E-38 | AE201: 5.83E-36
A202: Map4 | B202: 37056.83126 | C202: -1.317567936 | D202: 0.081489494 | E202: -16.16856202 | F202: 8.40E-59 | G202: 1.19E-56 | I202: Col6a2 | J202: 27.30544816 | K202: 2.372619758 | L202: 0.2785218629 | M202: 8.518612266 | N202: 1.61E-17 | O202: 1.90E-15 | Q202: Tmem132a | R202: 7804.897216 | S202: 1.02174088 | T202: 0.1048731003 | U202: 9.742640174 | V202: 1.98E-22 | W202: 2.75E-20 | Y202: Slc1a3 | Z202: 177.1011517 | AA202: 2.270440003 | AB202: 0.1772383302 | AC202: 12.81009588 | AD202: 1.44E-37 | AE202: 1.94E-35
A203: Vav3 | B203: 902.7254748 | C203: -2.136687599 | D203: 0.1328225 | E203: -16.08678954 | F203: 3.16E-58 | G203: 4.46E-56 | I203: Pla2g4f | J203: 3081.75726 | K203: -1.19681642 | L203: 0.1405670109 | M203: -8.514205521 | N203: 1.68E-17 | O203: 1.96E-15 | Q203: Kcne3 | R203: 1095.667034 | S203: 3.063729099 | T203: 0.31503816 | U203: 9.724946015 | V203: 2.36E-22 | W203: 3.25E-20 | Y203: Mical1 | Z203: 51.9355466 | AA203: 4.85694969 | AB203: 0.3794990238 | AC203: 12.79831933 | AD203: 1.68E-37 | AE203: 2.24E-35
A204: Zfp704 | B204: 2099.974719 | C204: -1.175853111 | D204: 0.073106528 | E204: -16.08410558 | F204: 3.30E-58 | G204: 4.64E-56 | I204: Gprc5c | J204: 249.2484214 | K204: 1.599844314 | L204: 0.1880436962 | M204: 8.507832733 | N204: 1.77E-17 | O204: 2.06E-15 | Q204: Gm14023 | R204: 143.8551908 | S204: -1.311589742 | T204: 0.1350223449 | U204: -9.713871749 | V204: 2.63E-22 | W204: 3.61E-20 | Y204: Lcn2 | Z204: 2303.139594 | AA204: 2.795959945 | AB204: 0.2184607264 | AC204: 12.79845577 | AD204: 1.67E-37 | AE204: 2.24E-35
A205: Xkr4 | B205: 382.1074603 | C205: -3.796106797 | D205: 0.236375945 | E205: -16.05961552 | F205: 4.90E-58 | G205: 6.85E-56 | I205: Reep1 | J205: 2035.119203 | K205: 1.619462105 | L205: 0.1905263695 | M205: 8.499936826 | N205: 1.90E-17 | O205: 2.19E-15 | Q205: Ncam1 | R205: 1256.588681 | S205: -1.40794607 | T205: 0.1449513849 | U205: -9.713229511 | V205: 2.65E-22 | W205: 3.61E-20 | Y205: Slc15a2 | Z205: 686.9441031 | AA205: 4.063610758 | AB205: 0.3181098081 | AC205: 12.77423913 | AD205: 2.28E-37 | AE205: 3.04E-35
A206: Sdk1 | B206: 99.27842995 | C206: -7.72592574 | D206: 0.481366554 | E206: -16.04998453 | F206: 5.72E-58 | G206: 7.95E-56 | I206: Fabp5 | J206: 16263.39914 | K206: -1.376172067 | L206: 0.1619749919 | M206: -8.496200874 | N206: 1.96E-17 | O206: 2.26E-15 | Q206: Polr3g | R206: 4039.973376 | S206: 0.9103010924 | T206: 0.09380169582 | U206: 9.704527028 | V206: 2.88E-22 | W206: 3.91E-20 | Y206: Adamtsl1 | Z206: 86.14664113 | AA206: 7.339728591 | AB206: 0.5750336606 | AC206: 12.76399817 | AD206: 2.60E-37 | AE206: 3.45E-35
... 2044 more rows

Sheet Supplementary Data 11
A1: RNAseq: Gene Ontology analysis
A3: Refers to Fig. 3d
B5: Biological processes identified by enrichGO in R package clusterProfiler
B6: Down regulated processes | C6: p53*/wt compared to p53 wt/wt
C7: p53*/- compared to p53 wt/-
C8: p53*/- compared to p53 */wt
C9: p53wt/- compared to p53wt/wt
B11: Upregulated processes | C11: p53*/wt compared to p53 wt/wt
C12: p53*/- compared to p53 wt/-
C13: p53*/- compared to p53 */wt
C14: p53wt/- compared to p53wt/wt
B16: #padj: Two sided p values caluculated by R package and adjusted for multiple testing.
A18: Downregulated in p53*/wt compared to p53 wt/wt | L18: p53*/- compared to p53 wt/- | W18: p53*/- compared to p53 */wt | AH18: p53wt/- compared to p53wt/wt
A20: ID | B20: Description | C20: GeneRatio | D20: BgRatio | E20: pvalue | F20: p.adjust | G20: qvalue | H20: geneID | I20: Count | L20: ID | M20: Description | N20: GeneRatio | O20: BgRatio | P20: pvalue | Q20: p.adjust | R20: qvalue | S20: geneID | T20: Count | W20: ID | X20: Description | Y20: GeneRatio | Z20: GeneRatio | AA20: pvalue | AB20: p.adjust | AC20: qvalue | AD20: geneID | AE20: Count | AH20: ID | AI20: Description | AJ20: GeneRatio | AK20: BgRatio | AL20: pvalue | AM20: p.adjust | AN20: qvalue | AO20: geneID | AP20: Count
A21: GO:0030216 | B21: keratinocyte differentiation | C21: 57/4600 | D21: 135/23843 | E21: 7.67E-10 | F21: 2.30E-06 | G21: 1.87E-06 | H21: Sprr3/Kazn/Cnfn/Msx2/Krt6b/Abca12/Sprr1a/Pou2f3/Errfi1/Epha2/Cyp26b1/Prkch/Ncoa3/Ppl/Scel/Notch1/Grhl1/Dsp/Sprr2a3/Sprr2h/Tfap2a/Sprr2b/Palld/Il1a/Casp14/Krt84/Lor/Alox8/Cd109/Evpl/Sprr2e/Tgm3/H2afy/Sprr2f/Trim16/Zfp36/Krt16/Sprr2g/Tgm1/Clic4/Vdr/Lce3c/Sfn/Ptgs1/Tfap2c/Krt10/Zfp36l1/Lce3a/Sprr2d/Krt17/Med1/Yap1/Dsg4/Cyp27b1/Lelp1/Krt2/Ctnnd1 | I21: 57 | L21: GO:0030216 | M21: keratinocyte differentiation | N21: 37/1220 | O21: 135/23843 | P21: 1.63E-17 | Q21: 8.03E-14 | R21: 7.64E-14 | S21: Sprr3/Ppl/Cnfn/Krt6b/Casp14/Sprr1a/Notch1/Abca12/Dsp/Sprr2g/Evpl/Lor/Prkch/Tgm1/Msx2/Pou2f3/Lce3f/Cd109/Scel/Dsg4/Grhl1/Errfi1/Tfap2a/Epha2/Ncoa3/Sprr2h/Lce3c/Palld/Foxc1/Tgm3/H2afy2/Sprr2f/Lce3a/Zfp36/Il1a/Irf6/Tmem79 | T21: 37 | W21: GO:0044782 | X21: cilium organization | Y21: 99/2455 | Z21: 322/23843 | AA21: 2.51E-24 | AB21: 1.37E-20 | AC21: 1.35E-20 | AD21: Cdc14b/Fam161a/1810043G02Rik/Bbs2/Tmem216/Bbs10/Ulk4/Ttc17/Rpgr/Rilpl1/Rsph9/Ift88/Ift122/Tctn1/Arl13b/Dnal1/Wdr60/Fuz/Dnah7b/Wdr35/Tmem107/Tmem231/Ccdc39/Bbs4/Rfx2/Dync2h1/Fam161b/Cfap126/Bbs1/Nme5/Ift22/Rfx3/Ttc8/Kif19a/Ccdc103/Tctn2/Ift81/Cep126/B9d2/Wdr34/Ahi1/Abcc4/Ttll3/Mks1/Cfap20/Tbc1d32/Snx10/Intu/Cep162/Iqcb1/Rsph1/Dnaaf3/Fbf1/Stk36/Ttc21b/Ift172/Rab23/Cfap54/Cep41/Bbs5/Ift27/Cep164/Ift57/Rpgrip1l/Cep97/Tmem138/Evi5l/Ccp110/Gmnc/Alms1/Cep135/Ift52/Tmem141/Gas8/Sept12/Cep250/Tchp/Cenpj/B9d1/Rab17/Lama5/Syne2/Ttll8/Rabl2/Wdr19/Nphp3/Cluap1/Wdr5b/Arl6/2410089E03Rik/Sept1/Bbs12/Ift80/Ift140/Dync2li1/Tmem237/Cdk10/Celsr2/Tctn3 | AE21: 99 | AH21: GO:0044782 | AI21: cilium organization | AJ21: 98/3743 | AK21: 322/23843 | AL21: 1.89E-11 | AM21: 1.10E-07 | AN21: 1.02E-07 | AO21: Dzip1/Ccdc13/Tctn3/Dzip1l/Celsr2/Syne2/Adamts16/Cdk10/Dnah7b/Avil/Tctn1/Fnbp1l/Mks1/Nphp3/Ift81/Ccdc39/Fam161a/2410089E03Rik/Ehd3/Cep41/Ttc21a/Ift88/Dnhd1/Crocc/Dnaaf3/Cep162/Dync2h1/Spef2/Fuz/Dnal1/Sept4/Rpgr/Kif19a/Rpgrip1l/Cep126/Bbs10/Cep290/Flna/Cep250/Cep164/Sept1/Stk36/Kif27/Sclt1/Ttll3/Cfap53/Fam161b/Dnaic2/Ptpn23/Cep131/Map4/Ttll8/Cfap126/Disc1/Ahi1/Nme5/Htt/Lama5/Alms1/C2cd3/Bbs12/Ccdc183/Cfap54/Tmem80/Eno4/Cc2d2a/Ccdc114/Arl13b/Ptpdc1/Hap1/Bbs1/Gas8/Ift172/Ccp110/Wdr60/Mir34b/Rsph4a/Fbf1/Cdc14b/Traf3ip1/Ccdc151/Pcm1/Tchp/Cep78/Tmem216/Ocrl/Ttc8/Dnah6/Rab23/Ccdc65/Ift140/Pcdh15/Kif3a/Ulk4/Ccdc88a/Klc3/Ift122/Wdr19 | AP21: 98
A22: GO:0031424 | B22: keratinization | C22: 22/4600 | D22: 35/23843 | E22: 1.93E-08 | F22: 3.87E-05 | G22: 3.15E-05 | H22: Sprr3/Kazn/Cnfn/Krt6b/Abca12/Sprr1a/Cyp26b1/Ppl/Sprr2h/Sprr2b/Il1a/Casp14/Lor/Evpl/Sprr2e/Tgm3/Sprr2f/Krt16/Tgm1/Sfn/Sprr2d/Krt17 | I22: 22 | L22: GO:0031424 | M22: keratinization | N22: 15/1220 | O22: 35/23843 | P22: 4.90E-11 | Q22: 4.83E-08 | R22: 4.60E-08 | S22: Sprr3/Ppl/Cnfn/Krt6b/Casp14/Sprr1a/Abca12/Evpl/Lor/Tgm1/Sprr2h/Tgm3/Sprr2f/Il1a/Tmem79 | T22: 15 | W22: GO:0060271 | X22: cilium assembly | Y22: 91/2455 | Z22: 300/23843 | AA22: 5.19E-22 | AB22: 1.42E-18 | AC22: 1.39E-18 | AD22: Cdc14b/Fam161a/1810043G02Rik/Bbs2/Tmem216/Bbs10/Ulk4/Rpgr/Rilpl1/Rsph9/Ift88/Ift122/Tctn1/Arl13b/Dnal1/Wdr60/Fuz/Dnah7b/Wdr35/Tmem107/Tmem231/Ccdc39/Bbs4/Rfx2/Dync2h1/Bbs1/Nme5/Rfx3/Ttc8/Ccdc103/Tctn2/Ift81/Cep126/B9d2/Wdr34/Ahi1/Abcc4/Ttll3/Mks1/Cfap20/Tbc1d32/Snx10/Intu/Cep162/Iqcb1/Rsph1/Dnaaf3/Fbf1/Stk36/Ift172/Rab23/Cfap54/Cep41/Bbs5/Cep164/Ift57/Rpgrip1l/Cep97/Tmem138/Evi5l/Ccp110/Gmnc/Alms1/Cep135/Ift52/Tmem141/Gas8/Sept12/Cep250/Tchp/Cenpj/B9d1/Rab17/Lama5/Syne2/Ttll8/Rabl2/Wdr19/Nphp3/Cluap1/Wdr5b/Arl6/2410089E03Rik/Sept1/Ift80/Ift140/Dync2li1/Tmem237/Cdk10/Celsr2/Tctn3 | AE22: 91 | AH22: GO:0120031 | AI22: plasma membrane bounded cell projection assembly | AJ22: 130/3743 | AK22: 487/23843 | AL22: 2.56E-10 | AM22: 5.54E-07 | AN22: 5.10E-07 | AO22: Dmtn/Ppp1r9a/Vav2/Tgfb3/Spata13/Myo3b/Arhgef6/Nrxn1/Dzip1/Espn/Ssh1/Ccdc13/Tctn3/Dzip1l/Aif1/Celsr2/Syne2/Adamts16/Cdk10/Dnah7b/Avil/Tctn1/Fnbp1l/Mks1/Nphp3/Cln3/Actn2/Ift81/Ccdc39/Fam161a/2410089E03Rik/Ehd3/Cep41/Fgd3/Ift88/Gap43/Evl/Dnhd1/Srgap2/Crocc/Dnaaf3/Cep162/Dync2h1/Spef2/Fuz/Myh10/Dnal1/Sept4/Rpgr/Rpgrip1l/Cep126/P2rx7/Bbs10/Cep290/Agrn/Flna/Sh2b1/Mtor/Cep250/Plekhm1/Cep164/Mylk/Sept1/Stk36/Arap1/Arhgap24/Kif27/Sclt1/Ttll3/Cfap53/Dnaic2/Ptpn23/Cep131/Map4/Dbn1/Ttll8/Disc1/Ahi1/Nme5/Fgd4/Htt/Lama5/Alms1/C2cd3/Ccdc183/Mtss1l/Itgb4/Cfap54/Tmem80/Cc2d2a/Ccdc114/Arl13b/Slit2/Ptpdc1/Hap1/Bbs1/Abl1/Gas8/Ift172/Ccp110/Wdr60/Lpar1/Ano6/Mir34b/Rsph4a/Fbf1/Cdc14b/Klhl41/Traf3ip1/Ccdc151/Pcm1/Tchp/Tmem216/Ocrl/Myo1a/Eps8l2/Ttc8/Dnah6/Ccl5/Rab23/Ccdc65/Ttyh1/Ift140/Pcdh15/Trpm2/Kif3a/Ulk4/Ccdc88a/Ift122/Wdr19 | AP22: 130
A23: GO:0051056 | B23: regulation of small GTPase mediated signal transduction | C23: 89/4600 | D23: 267/23843 | E23: 3.48E-08 | F23: 4.47E-05 | G23: 3.64E-05 | H23: Rap1gap2/Vav3/Lpar1/Asap1/Arhgef6/Kalrn/Arhgap44/Arhgef37/Nrp1/Ccdc125/Notch1/Fgd3/Arhgdib/Rasal2/Cdc42bpa/Abca1/Psd3/Eps8l2/Arhgap40/Plce1/Agfg1/Ophn1/Eps8l1/Cyth3/Nrg1/Psd2/Appl1/Farp1/Rasa1/Plekhg6/Arap1/Arhgap17/Arap2/Mfn2/Arhgef15/Rasgrp1/Farp2/Arhgef2/Igf1/Ngef/Acap3/Gpr35/Lpar6/Fgd2/Arhgef5/Adap2/Ralgapb/F2rl2/Arhgef7/Prex1/Dlc1/Cgnl1/Arhgef39/Trio/Frmd7/Itsn2/Gpr20/Sh2b2/Obscn/Sipa1l2/Arhgef10l/Rasa4/Myo9b/Iqsec2/Fgd6/Agap2/Rasa3/Gpr4/Ssx2ip/Rap1gap/Arfgef2/Arhgef33/Cyth1/Arhgef4/Arfgap2/Arhgef9/Smap2/Icmt/Fgd5/Apoe/Prex2/Scai/Arhgef18/Dock2/Rtn4r/Madd/Rasa2/Kctd13/Ogt | I23: 89 | L23: GO:0018149 | M23: peptide cross-linking | N23: 14/1220 | O23: 59/23843 | P23: 1.20E-06 | Q23: 0.0007374779413 | R23: 0.0007015734268 | S23: Sprr3/Sprr1a/Dsp/Sprr2g/Evpl/Tgm1/Lce3f/Sprr2h/Lce3c/Tgm5/Tgm3/Sprr2f/Krt1/Lce3a | T23: 14 | W23: GO:0120031 | X23: plasma membrane bounded cell projection assembly | Y23: 113/2455 | Z23: 487/23843 | AA23: 6.25E-17 | AB23: 1.14E-13 | AC23: 1.12E-13 | AD23: Spata13/Mylk/Cdc14b/Fam161a/1810043G02Rik/Bbs2/Tmem216/Arhgap24/Bbs10/Ulk4/Rpgr/Rilpl1/Rsph9/Ift88/Ift122/Tctn1/Arl13b/Dnal1/Wdr60/Fuz/Dnah7b/Wdr35/Vav2/Tmem107/Tmem231/Ccdc39/Bbs4/Rfx2/Dync2h1/Bbs1/Nme5/Fgd4/Rfx3/Ttc8/Pmp22/Prdx6/Ccdc103/Tctn2/Ift81/Ntn1/Cep126/B9d2/Wdr34/Ahi1/Abcc4/Ttll3/Mks1/Cfap20/Tbc1d32/Snx10/Intu/Nrxn1/Rap2a/Cep162/Cln3/Iqcb1/Kank1/Rsph1/Dnaaf3/Fbf1/Stk36/Ift172/Rab23/Cfap54/Cep41/Bbs5/Dbnl/Cep164/Ift57/Rpgrip1l/Cep97/Tmem138/Evi5l/Ccp110/Gmnc/Alms1/Cep135/Parvb/Ift52/Tmem141/Gas8/Sept12/Tnik/Ssh2/Cep250/Stx2/Tchp/Cenpj/Hsp90aa1/B9d1/Rab17/Sh2b1/Lama5/Atp8b1/Syne2/Ttll8/Rabl2/Wdr19/Nphp3/Arhgef4/Cluap1/Wdr5b/Arl6/2410089E03Rik/Sept1/Myo3b/Ift80/Ift140/Dync2li1/Tmem237/Cdk10/Celsr2/Tctn3 | AE23: 113 | AH23: GO:0060271 | AI23: cilium assembly | AJ23: 90/3743 | AK23: 300/23843 | AL23: 2.84E-10 | AM23: 5.54E-07 | AN23: 5.10E-07 | AO23: Dzip1/Ccdc13/Tctn3/Dzip1l/Celsr2/Syne2/Adamts16/Cdk10/Dnah7b/Avil/Tctn1/Fnbp1l/Mks1/Nphp3/Ift81/Ccdc39/Fam161a/2410089E03Rik/Ehd3/Cep41/Ift88/Dnhd1/Crocc/Dnaaf3/Cep162/Dync2h1/Spef2/Fuz/Dnal1/Sept4/Rpgr/Rpgrip1l/Cep126/Bbs10/Cep290/Flna/Cep250/Cep164/Sept1/Stk36/Kif27/Sclt1/Ttll3/Cfap53/Dnaic2/Ptpn23/Cep131/Map4/Ttll8/Disc1/Ahi1/Nme5/Htt/Lama5/Alms1/C2cd3/Ccdc183/Cfap54/Tmem80/Cc2d2a/Ccdc114/Arl13b/Ptpdc1/Hap1/Bbs1/Gas8/Ift172/Ccp110/Wdr60/Mir34b/Rsph4a/Fbf1/Cdc14b/Traf3ip1/Ccdc151/Pcm1/Tchp/Tmem216/Ocrl/Ttc8/Dnah6/Rab23/Ccdc65/Ift140/Pcdh15/Kif3a/Ulk4/Ccdc88a/Ift122/Wdr19 | AP23: 90
A24: GO:0046578 | B24: regulation of Ras protein signal transduction | C24: 81/4600 | D24: 237/23843 | E24: 4.15E-08 | F24: 4.47E-05 | G24: 3.64E-05 | H24: Vav3/Lpar1/Asap1/Arhgef6/Kalrn/Arhgap44/Arhgef37/Nrp1/Ccdc125/Notch1/Fgd3/Arhgdib/Rasal2/Abca1/Psd3/Eps8l2/Plce1/Agfg1/Ophn1/Eps8l1/Cyth3/Nrg1/Psd2/Appl1/Farp1/Rasa1/Plekhg6/Arap1/Arhgap17/Arap2/Mfn2/Arhgef15/Rasgrp1/Farp2/Arhgef2/Igf1/Ngef/Acap3/Gpr35/Lpar6/Fgd2/Arhgef5/Adap2/F2rl2/Arhgef7/Prex1/Dlc1/Arhgef39/Trio/Itsn2/Gpr20/Sh2b2/Obscn/Arhgef10l/Rasa4/Myo9b/Iqsec2/Fgd6/Agap2/Rasa3/Gpr4/Ssx2ip/Arfgef2/Arhgef33/Cyth1/Arhgef4/Arfgap2/Arhgef9/Smap2/Icmt/Fgd5/Apoe/Prex2/Scai/Arhgef18/Dock2/Rtn4r/Madd/Rasa2/Kctd13/Ogt | I24: 81 | L24: GO:0045616 | M24: regulation of keratinocyte differentiation | N24: 10/1220 | O24: 31/23843 | P24: 1.96E-06 | Q24: 0.00107507134 | R24: 0.001022730908 | S24: Notch1/Prkch/Msx2/Cd109/Grhl1/Errfi1/Ncoa3/Foxc1/H2afy2/Zfp36 | T24: 10 | W24: GO:1905515 | X24: non-motile cilium assembly | Y24: 27/2455 | Z24: 66/23843 | AA24: 8.46E-11 | AB24: 1.15E-07 | AC24: 1.14E-07 | AD24: Bbs2/Tmem216/Bbs10/Ift88/Ift122/Arl13b/Fuz/Tmem107/Bbs4/Dync2h1/Bbs1/Ttc8/Cep126/Ahi1/Mks1/Tbc1d32/Intu/Ift172/Ift57/Rpgrip1l/Cep135/Ift52/Cep250/Cenpj/Nphp3/Ift80/Ift140 | AE24: 27 | AH24: GO:1905515 | AI24: non-motile cilium assembly | AJ24: 30/3743 | AK24: 66/23843 | AL24: 1.06E-08 | AM24: 1.03E-05 | AN24: 9.51E-06 | AO24: Ccdc13/Mks1/Nphp3/Ift88/Dync2h1/Fuz/Rpgrip1l/Cep126/Bbs10/Cep290/Cep250/Cep131/Map4/Disc1/Ahi1/Htt/C2cd3/Tmem80/Cc2d2a/Arl13b/Hap1/Bbs1/Ift172/Pcm1/Tmem216/Ttc8/Ift140/Pcdh15/Kif3a/Ift122 | AP24: 30
A25: GO:0035458 | B25: cellular response to interferon-beta | C25: 22/4600 | D25: 39/23843 | E25: 2.98E-07 | F25: 0.0002308780859 | G25: 0.0001880055314 | H25: Ifi204/Ifi47/Gm5431/Gbp3/Ifit1/Aim2/Ifit3/Ifi203/Ifi205/Tgtp1/Stat1/Ifi202b/Gbp2/9930111J21Rik1/Pnpt1/Ddx41/Trim6/Iigp1/Gm12185/Irgm1/Igtp/Htra2 | I25: 22 | L25: GO:0051056 | M25: regulation of small GTPase mediated signal transduction | N25: 32/1220 | O25: 267/23843 | P25: 7.21E-06 | Q25: 0.003556269678 | R25: 0.003383130755 | S25: Arhgef4/Notch1/Vav3/Nrp1/Arhgef37/Kank1/Arhgap40/Plekhg6/Arhgdib/Ralgapa1/Rasgrf1/Rasal2/Eps8l1/Rap1gap2/Eps8l2/Rasa1/Arhgap17/Kalrn/Prex1/Fgd3/Ralgps2/Appl1/Ngef/Adap2/F2rl2/Cyth1/Acap3/Arhgef39/Dnm2/Fgd6/Gpr20/Agfg1 | T25: 32 | W25: GO:0061512 | X25: protein localization to cilium | Y25: 18/2455 | Z25: 41/23843 | AA25: 3.13E-08 | AB25: 3.12E-05 | AC25: 3.07E-05 | AD25: Bbs2/Ift122/Spata7/Tctn1/Wdr35/Tmem107/Bbs4/Dync2h1/Bbs1/Tctn2/Tbc1d32/Snx10/Lztfl1/Ttc21b/Wdr19/Arl6/2410089E03Rik/Ift140 | AE25: 18 | AH25: GO:0006397 | AI25: mRNA processing | AJ25: 114/3743 | AK25: 439/23843 | AL25: 1.70E-08 | AM25: 1.42E-05 | AN25: 1.30E-05 | AO25: Apobec1/Khdrbs2/Ern1/Ddx17/Cstf3/Adar/Ccar2/Celf5/Cpeb1/Rbm26/Habp4/Dqx1/Zfp36l1/Prpf40b/Celf1/Tardbp/Srsf1/Rbfox3/Cpsf6/Plcb1/Sugp2/Rnf40/Tra2a/Rbm4/Sfswap/Snrnp70/Prpf38b/Dhx16/Hnrnpu/Srsf7/Gcfc2/Tia1/Rbm39/Lmntd2/Celf3/Pan2/Ptbp2/Pnn/Hnrnpm/Pcbp4/Hnrnpa2b1/Acin1/Thoc2/Pnpt1/Wdr83/Rbmx/2810403A07Rik/Cpsf4l/Prpf4b/Clasrp/Rbm25/Mettl3/Rbm20/Safb/Ddx39b/Srrm2/Srrm4/Rbm5/Noct/Akap8l/Luc7l2/Luc7l3/Malat1/Spen/Scaf4/Rnf20/Xab2/Scnm1/Sf3b1/Mbnl3/Srrm1/Akap17b/Pabpn1/Rrp1b/Phrf1/Gemin4/Pan3/Zranb2/Son/Rbm4b/Celf2/Zfp326/Pdcd11/Cdk11b/Srek1/Ddx47/Snrpf/Esrp2/Rnpc3/Safb2/Ythdc1/Tsen15/Zrsr2/Gemin2/Cpsf1/Usp49/U2af1l4/Hnrnph1/Dhx40/Sart3/Prpf3/U2af2/Snrpn/Mettl16/Rbm11/Zc3h3/Srsf5/Hsf1/Luc7l/Dhx9/Prpf39/Tsen2/Hnrnpl/Slc39a5 | AP25: 114
A26: GO:0043062 | B26: extracellular structure organization | C26: 85/4600 | D26: 267/23843 | E26: 6.50E-07 | F26: 0.0003607705569 | G26: 0.0002937778179 | H26: Sulf1/Sulf2/Serpinh1/Col4a6/Tgfbi/Ccdc80/Hspg2/Has2/Col5a2/Bmp7/Clasp1/Egfl6/Pdgfra/Col5a3/Notch1/Thsd4/Abcg1/Lipg/Nid1/Myh11/Abca1/Loxl2/Ctss/Hpn/Tfap2a/Wnt3a/Col4a4/Col4a3/Antxr1/Fap/Smoc1/2300002M23Rik/Col11a1/Has1/Col4a1/Tnfrsf11b/Tnf/Ramp2/Postn/Abi3bp/Prdx4/Soat2/Rgcc/Col2a1/Mpzl3/Loxl1/Scx/Ddr2/Fam234b/Lamc2/Mttp/Nphp3/Atp7a/Mkx/Reck/Mmp9/Spock2/Csgalnact1/Mpo/Lpl/Itga8/Foxf1/Fscn1/Itgb3/Phldb2/Apoe/Tex14/Cflar/Col11a2/Ecm2/Tnxb/Gfap/Serac1/Vit/Hapln2/Cd36/Creb3l1/Tcf15/Sfrp2/Tnr/Thbs2/Loxl3/Anxa2/P3h1/Pla2g2e | I26: 85 | L26: GO:0046578 | M26: regulation of Ras protein signal transduction | N26: 29/1220 | O26: 237/23843 | P26: 1.28E-05 | Q26: 0.005263081675 | R26: 0.005006845682 | S26: Arhgef4/Notch1/Vav3/Nrp1/Arhgef37/Kank1/Plekhg6/Arhgdib/Rasgrf1/Rasal2/Eps8l1/Eps8l2/Rasa1/Arhgap17/Kalrn/Prex1/Fgd3/Ralgps2/Appl1/Ngef/Adap2/F2rl2/Cyth1/Acap3/Arhgef39/Dnm2/Fgd6/Gpr20/Agfg1 | T26: 29 | W26: GO:0007224 | X26: smoothened signaling pathway | Y26: 37/2455 | Z26: 138/23843 | AA26: 3.43E-08 | AB26: 3.12E-05 | AC26: 3.07E-05 | AD26: 1810043G02Rik/Sall3/Ift88/Ift122/Tctn1/Evc/Arl13b/Fuz/Tmem231/Dync2h1/Fkbp8/Evc2/Tctn2/Mks1/Tbc1d32/Intu/Prkacb/Stk36/Ttc21b/Ift172/Rab23/Ift27/Ift57/Rpgrip1l/Foxa1/Ift52/Serpine2/Cenpj/B9d1/Wdr19/Megf8/Cluap1/Arl6/Ift80/Ift140/Ihh/Tctn3 | AE26: 37 | AH26: GO:0043484 | AI26: regulation of RNA splicing | AJ26: 42/3743 | AK26: 119/23843 | AL26: 1.22E-07 | AM26: 8.94E-05 | AN26: 8.23E-05 | AO26: Khdrbs2/Ern1/Ddx17/Celf5/Habp4/Srsf1/Rbfox3/Tra2a/Rbm4/Sfswap/Snrnp70/Hnrnpu/Srsf7/Tia1/Lmntd2/Celf3/Clk2/Ptbp2/Pcbp4/Hnrnpa2b1/Acin1/Rbmx/Rbm25/Rbm20/Srrm4/Rbm5/Malat1/Mbnl3/Rrp1b/Fastk/Son/Zfp326/Srek1/Esrp2/Ythdc1/Hnrnph1/U2af2/Rbm11/Srsf5/Polr2a/Hnrnpl/Slc39a5 | AP26: 42
A27: GO:0007264 | B27: small GTPase mediated signal transduction | C27: 140/4600 | D27: 495/23843 | E27: 6.62E-07 | F27: 0.0003607705569 | G27: 0.0002937778179 | H27: Rasgrp3/Rap1gap2/Rab6b/Vav3/Lpar1/Asap1/Arhgef6/Kalrn/Arhgap44/Arhgef37/Nrp1/Ccdc125/Notch1/Fgd3/Arhgdib/Rasal2/Rhobtb3/Cdc42bpa/Arhgap30/Abca1/Rhoc/Cnksr1/Rab44/Psd3/Eps8l2/Arhgap40/Hrasls/Plce1/Agfg1/Rab24/Ophn1/Eps8l1/Adrb1/Baiap2/Cyth3/Rhoj/Nrg1/Psd2/Appl1/Farp1/Rasa1/Rab40b/Plekhg6/Arap1/Arhgap17/Arap2/Mfn2/Dock9/Arhgef15/Rasgrp1/Wasf2/Farp2/Phactr4/Arhgef2/Rnd3/Igf1/Dok2/Ngef/Acap3/Dock3/Rab36/Arhgap31/Gpr35/Lpar6/Fgd2/Arhgef5/Adap2/Ralgapb/Rapgef2/Jun/Gm14137/F2rl2/Arhgef7/Plk2/Prex1/Dlc1/Setdb1/Cgnl1/Arhgef39/Trio/Frmd7/Itsn2/Gpr20/Rab27b/Sh2b2/Obscn/Rapgef4/Sipa1l2/Rab3b/Arhgef10l/Aif1/Rasa4/Myo9b/Iqsec2/Fgd6/Agap2/Rasa3/Usp8/Rap2c/Gpr4/Rab30/Chuk/Dock8/Rab42/Ksr2/Rab15/Ssx2ip/Rap1gap/Arfgef2/Arhgef33/Hmox1/Cyth1/Rab2b/Rab19/Arhgef4/Rapgef3/Arfgap2/Arhgef9/Nras/Smap2/Vangl2/Gdi1/Icmt/Fgd5/Apoe/Prex2/Rapgef5/Rassf1/Scai/Rhod/Arhgef18/Dock2/Rtn4r/Madd/Kndc1/Dock10/Rasa2/Rhof/Kctd13/Ogt | I27: 140 | L27: GO:0010256 | M27: endomembrane system organization | N27: 37/1220 | O27: 347/23843 | P27: 2.12E-05 | Q27: 0.008035170321 | R27: 0.007643973686 | S27: Pacsin3/Ano3/Syne1/Ank3/Blzf1/Serpine2/Pla2g3/Dmkn/Baiap2/Tmem43/Reep4/Gbf1/Csnk1a1/Camsap3/Camsap2/Rab3gap2/Bnip1/Plk3/Nbeal2/Trim72/Hace1/Kifc3/Hook3/Myo18a/Atp8b5/Tmem127/Stx17/Sptbn5/Clasp2/Prkcd/Sun3/Nup54/Dnm2/Agfg1/Trappc11/Zfp385a/Vps51 | T27: 37 | W27: GO:0042073 | X27: intraciliary transport | Y27: 18/2455 | Z27: 42/23843 | AA27: 4.94E-08 | AB27: 3.86E-05 | AC27: 3.79E-05 | AD27: Rpgr/Ift122/Wdr35/Dync2h1/Bbs1/Ift22/Ift81/Wdr34/Ttc21b/Ift27/Ift57/Ift52/Wdr19/Cluap1/Bbs12/Ift80/Ift140/Dync2li1 | AE27: 18 | AH27: GO:0008380 | AI27: RNA splicing | AJ27: 95/3743 | AK27: 365/23843 | AL27: 2.29E-07 | AM27: 0.0001340831681 | AN27: 0.0001234614278 | AO27: Khdrbs2/Ern1/Ddx17/Ccar2/Celf5/Habp4/Dqx1/Prpf40b/Celf1/Tardbp/Zfp638/Srsf1/Rbfox3/Sugp2/Tep1/Tra2a/Rbm4/Sfswap/Snrnp70/Prpf38b/Dhx16/Hnrnpu/Srsf7/Gcfc2/Tia1/Rbm39/Lmntd2/Celf3/Clk2/Nwd1/Ptbp2/Pnn/Hnrnpm/Pcbp4/Hnrnpa2b1/Acin1/Thoc2/Wdr83/Rbmx/2810403A07Rik/Prpf4b/Clasrp/Rbm25/Mettl3/Rbm20/Ddx39b/Srrm2/Srrm4/Rbm5/Luc7l2/Luc7l3/Malat1/Spen/Xab2/Scnm1/Sf3b1/Mbnl3/Srrm1/Akap17b/Rrp1b/Gemin4/Zranb2/Fastk/Son/Rbm4b/Celf2/Zfp326/Srek1/Ddx47/Snrpf/Esrp2/Rnpc3/Ythdc1/Tsen15/Zrsr2/Gemin2/Usp49/U2af1l4/Hnrnph1/Dhx40/Sart3/Prpf3/U2af2/Snrpn/Mettl16/Rbm11/Srsf5/Trpt1/Luc7l/Polr2a/Dhx9/Prpf39/Tsen2/Hnrnpl/Slc39a5 | AP27: 95
A28: GO:0035023 | B28: regulation of Rho protein signal transduction | C28: 48/4600 | D28: 127/23843 | E28: 8.97E-07 | F28: 0.0003808567382 | G28: 0.0003101341263 | H28: Vav3/Lpar1/Arhgef6/Kalrn/Arhgef37/Nrp1/Ccdc125/Fgd3/Arhgdib/Abca1/Eps8l2/Ophn1/Eps8l1/Farp1/Plekhg6/Arap1/Arap2/Arhgef15/Farp2/Arhgef2/Ngef/Gpr35/Lpar6/Fgd2/Arhgef5/F2rl2/Arhgef7/Prex1/Dlc1/Arhgef39/Trio/Itsn2/Gpr20/Obscn/Arhgef10l/Myo9b/Fgd6/Gpr4/Arhgef33/Arhgef4/Arhgef9/Fgd5/Apoe/Prex2/Scai/Arhgef18/Rtn4r/Kctd13 | I28: 48 | W28: GO:0007018 | X28: microtubule-based movement | Y28: 56/2455 | Z28: 260/23843 | AA28: 6.81E-08 | AB28: 4.65E-05 | AC28: 4.57E-05 | AD28: Bicd1/Mapt/Bbs2/Snapin/Ulk4/Kif9/Rpgr/Klc2/Rsph9/Ift122/Wdr60/Dnah7b/Wdr35/Ccdc39/Bbs4/Dync2h1/Kifc2/Bbs1/Nme5/Ift22/Rfx3/Kif19a/Mecp2/Kif1a/Ccdc103/Invs/Ift81/Kif21a/Wdr34/Mgarp/Cfap20/Cln3/Stk36/Ttc21b/Ap3m2/Cfap54/Ift27/Ift57/Bloc1s2/Map1b/Ift52/Tmem141/Gas8/Sun1/Rhot2/Terf2/Syne2/Wdr19/Cluap1/Bbs12/Ift80/Ift140/Dync2li1/Dync1h1/Celsr2/Bloc1s1 | AE28: 56 | AH28: GO:0035456 | AI28: response to interferon-beta | AJ28: 23/3743 | AK28: 50/23843 | AL28: 4.17E-07 | AM28: 0.0002033090477 | AN28: 0.0001872034029 | AO28: Ifi47/Ifi203/Igtp/Irgm2/Trim6/Gm5431/Gbp3/9930111J21Rik1/Bst2/Tgtp1/Gbp2/Stat1/Aim2/Irgm1/Ikbke/Ifitm3/Pnpt1/Ifit1/Gm12185/Ifit3/Ifi205/Xaf1/Ifi204 | AP28: 23
A29: GO:0050730 | B29: regulation of peptidyl-tyrosine phosphorylation | C29: 79/4600 | D29: 245/23843 | E29: 9.03E-07 | F29: 0.0003808567382 | G29: 0.0003101341263 | H29: Dmtn/Mtor/Errfi1/Plpp3/Pdgfra/Nrp1/Ntf3/Syk/Areg/Ptprz1/Tslp/Fyn/Lrp8/Wnt3a/Gdnf/Ripk2/Cntn1/Nrg1/Rasa1/Itga5/Ereg/Parp14/Hbegf/Itgb2/Il11/Arhgef2/Il15/Igf1/Lck/Agrn/Cd80/Crlf1/Socs4/Egfr/Lif/Il6st/Clcf1/Prkcd/Sfrp1/Gfra1/Neurl1a/Ighm/Cbl/Ppp2r5b/Angpt4/Cd4/Ptger4/Cspg4/Srcin1/Tnfrsf18/Epgn/Lrp4/Tnk2/Csf2/Rap2c/Hnf4a/Adra2b/Prnp/Enpp2/Hsph1/Ghr/Parp9/Sema4d/Egf/Socs5/Gprc5a/Il22ra2/Ghrl/Grm5/Cd300a/Itgb3/Erbb3/Stap1/Cd36/Sfrp2/Pdgfc/Isl1/Suz12/Ctnnd1 | I29: 79 | W29: GO:0010970 | X29: transport along microtubule | Y29: 35/2455 | Z29: 141/23843 | AA29: 6.04E-07 | AB29: 0.0003000201558 | AC29: 0.0002949339902 | AD29: Bicd1/Mapt/Snapin/Rpgr/Klc2/Ift122/Wdr35/Dync2h1/Bbs1/Ift22/Mecp2/Kif1a/Ift81/Wdr34/Mgarp/Cln3/Ttc21b/Ap3m2/Ift27/Ift57/Bloc1s2/Map1b/Ift52/Sun1/Rhot2/Terf2/Syne2/Wdr19/Cluap1/Bbs12/Ift80/Ift140/Dync2li1/Dync1h1/Bloc1s1 | AE29: 35 | AH29: GO:0035458 | AI29: cellular response to interferon-beta | AJ29: 19/3743 | AK29: 39/23843 | AL29: 1.42E-06 | AM29: 0.0005937023427 | AN29: 0.0005466706971 | AO29: Ifi47/Ifi203/Igtp/Irgm2/Trim6/Gm5431/Gbp3/9930111J21Rik1/Tgtp1/Gbp2/Stat1/Aim2/Irgm1/Pnpt1/Ifit1/Gm12185/Ifit3/Ifi205/Ifi204 | AP29: 19
A30: GO:0030198 | B30: extracellular matrix organization | C30: 73/4600 | D30: 222/23843 | E30: 1.02E-06 | F30: 0.0003808567382 | G30: 0.0003101341263 | H30: Sulf1/Sulf2/Serpinh1/Col4a6/Tgfbi/Ccdc80/Hspg2/Has2/Col5a2/Clasp1/Egfl6/Pdgfra/Col5a3/Notch1/Thsd4/Nid1/Myh11/Loxl2/Ctss/Hpn/Tfap2a/Wnt3a/Col4a4/Col4a3/Antxr1/Fap/Smoc1/2300002M23Rik/Col11a1/Has1/Col4a1/Tnfrsf11b/Tnf/Ramp2/Postn/Abi3bp/Prdx4/Rgcc/Col2a1/Mpzl3/Loxl1/Scx/Ddr2/Fam234b/Lamc2/Nphp3/Atp7a/Mkx/Reck/Mmp9/Spock2/Csgalnact1/Itga8/Foxf1/Fscn1/Itgb3/Phldb2/Cflar/Col11a2/Ecm2/Tnxb/Gfap/Serac1/Vit/Hapln2/Creb3l1/Tcf15/Sfrp2/Tnr/Thbs2/Loxl3/Anxa2/P3h1 | I30: 73 | W30: GO:0099111 | X30: microtubule-based transport | Y30: 35/2455 | Z30: 141/23843 | AA30: 6.04E-07 | AB30: 0.0003000201558 | AC30: 0.0002949339902 | AD30: Bicd1/Mapt/Snapin/Rpgr/Klc2/Ift122/Wdr35/Dync2h1/Bbs1/Ift22/Mecp2/Kif1a/Ift81/Wdr34/Mgarp/Cln3/Ttc21b/Ap3m2/Ift27/Ift57/Bloc1s2/Map1b/Ift52/Sun1/Rhot2/Terf2/Syne2/Wdr19/Cluap1/Bbs12/Ift80/Ift140/Dync2li1/Dync1h1/Bloc1s1 | AE30: 35 | AH30: GO:0007018 | AI30: microtubule-based movement | AJ30: 69/3743 | AK30: 260/23843 | AL30: 4.75E-06 | AM30: 0.001849037688 | AN30: 0.001702561451 | AO30: Wdr78/Cnih2/Cfap46/Celsr2/Mapt/Kif9/Syne2/Dnah7b/Kif7/Cln3/Ift81/Ccdc39/Kif6/Ttc21a/Dnhd1/Ap3d1/Invs/Dync2h1/Spef2/Stard9/Dnah2/Rpgr/Kif19a/Map1b/Uchl1/Stk36/Kif27/Klc2/Cfap53/Dnaic2/Cep131/Map4/Fez1/Kif5a/Bicd1/Tmem201/Trim46/Kifc2/Nme5/Kifc3/Htt/Camsap3/Bbs12/Ccdc183/Cfap54/Ccdc114/Dnah17/Sybu/Hap1/Bbs1/Gas8/Bloc1s2/Wdr60/Rsph4a/Traf3ip1/Ccdc151/Pcm1/Rhot2/Dnah6/Ccdc65/Ap3m2/Ift140/Kif13a/Kif3a/Ulk4/Klc3/Dnah9/Ift122/Wdr19 | AP30: 69
A31: GO:0035456 | B31: response to interferon-beta | C31: 25/4600 | D31: 50/23843 | E31: 1.02E-06 | F31: 0.0003808567382 | G31: 0.0003101341263 | H31: Ifi204/Ifi47/Gm5431/Gbp3/Ifit1/Aim2/Xaf1/Ifit3/Ifi203/Ifi205/Tgtp1/Bst2/Ifitm3/Stat1/Ifi202b/Gbp2/9930111J21Rik1/Pnpt1/Ddx41/Trim6/Iigp1/Gm12185/Irgm1/Igtp/Htra2 | I31: 25 | W31: GO:0030705 | X31: cytoskeleton-dependent intracellular transport | Y31: 37/2455 | Z31: 158/23843 | AA31: 1.35E-06 | AB31: 0.0006161809262 | AC31: 0.0006057349673 | AD31: Bicd1/Ccdc88b/Mapt/Snapin/Rpgr/Klc2/Ift122/Hook2/Wdr35/Dync2h1/Bbs1/Ift22/Mecp2/Kif1a/Ift81/Wdr34/Mgarp/Cln3/Ttc21b/Ap3m2/Ift27/Ift57/Bloc1s2/Map1b/Ift52/Sun1/Rhot2/Terf2/Syne2/Wdr19/Cluap1/Bbs12/Ift80/Ift140/Dync2li1/Dync1h1/Bloc1s1 | AE31: 37 | AH31: GO:0050684 | AI31: regulation of mRNA processing | AJ31: 38/3743 | AK31: 118/23843 | AL31: 6.09E-06 | AM31: 0.002223262124 | AN31: 0.002047140743 | AO31: Khdrbs2/Ddx17/Celf5/Rbm26/Zfp36l1/Rbfox3/Rnf40/Tra2a/Rbm4/Sfswap/Snrnp70/Hnrnpu/Srsf7/Tia1/Lmntd2/Celf3/Pcbp4/Hnrnpa2b1/Acin1/Rbmx/Rbm25/Safb/Srrm4/Rbm5/Malat1/Rnf20/Mbnl3/Son/Cdk11b/Srek1/Safb2/Ythdc1/U2af2/Rbm11/Hsf1/Dhx9/Hnrnpl/Slc39a5 | AP31: 38
A32: GO:0007265 | B32: Ras protein signal transduction | C32: 122/4600 | D32: 426/23843 | E32: 1.71E-06 | F32: 0.0006024301073 | G32: 0.0004905627661 | H32: Rasgrp3/Rab6b/Vav3/Lpar1/Asap1/Arhgef6/Kalrn/Arhgap44/Arhgef37/Nrp1/Ccdc125/Notch1/Fgd3/Arhgdib/Rasal2/Rhobtb3/Abca1/Rhoc/Cnksr1/Rab44/Psd3/Eps8l2/Hrasls/Plce1/Agfg1/Rab24/Ophn1/Eps8l1/Adrb1/Baiap2/Cyth3/Rhoj/Nrg1/Psd2/Appl1/Farp1/Rasa1/Rab40b/Plekhg6/Arap1/Arhgap17/Arap2/Mfn2/Arhgef15/Rasgrp1/Wasf2/Farp2/Phactr4/Arhgef2/Rnd3/Igf1/Dok2/Ngef/Acap3/Rab36/Gpr35/Lpar6/Fgd2/Arhgef5/Adap2/Ralgapb/Rapgef2/Jun/Gm14137/F2rl2/Arhgef7/Plk2/Prex1/Dlc1/Setdb1/Arhgef39/Trio/Itsn2/Gpr20/Rab27b/Sh2b2/Obscn/Rab3b/Arhgef10l/Aif1/Rasa4/Myo9b/Iqsec2/Fgd6/Agap2/Rasa3/Usp8/Rap2c/Gpr4/Rab30/Chuk/Rab42/Ksr2/Rab15/Ssx2ip/Arfgef2/Arhgef33/Cyth1/Rab2b/Rab19/Arhgef4/Rapgef3/Arfgap2/Arhgef9/Nras/Smap2/Vangl2/Icmt/Fgd5/Apoe/Prex2/Rassf1/Scai/Rhod/Arhgef18/Dock2/Rtn4r/Madd/Rasa2/Rhof/Kctd13/Ogt | I32: 122 | W32: GO:0035721 | X32: intraciliary retrograde transport | Y32: 8/2455 | Z32: 13/23843 | AA32: 9.99E-06 | AB32: 0.003947252175 | AC32: 0.00388033541 | AD32: Ift122/Wdr35/Dync2h1/Bbs1/Ttc21b/Wdr19/Ift140/Dync2li1 | AE32: 8 | AH32: GO:0048024 | AI32: regulation of mRNA splicing, via spliceosome | AJ32: 29/3743 | AK32: 81/23843 | AL32: 7.59E-06 | AM32: 0.002608951672 | AN32: 0.002402276909 | AO32: Khdrbs2/Ddx17/Celf5/Rbfox3/Tra2a/Rbm4/Sfswap/Snrnp70/Hnrnpu/Srsf7/Tia1/Lmntd2/Celf3/Pcbp4/Hnrnpa2b1/Acin1/Rbmx/Rbm25/Srrm4/Rbm5/Malat1/Mbnl3/Son/Srek1/Ythdc1/U2af2/Rbm11/Hnrnpl/Slc39a5 | AP32: 29
A33: GO:0050731 | B33: positive regulation of peptidyl-tyrosine phosphorylation | C33: 61/4600 | D33: 180/23843 | E33: 2.52E-06 | F33: 0.0008411250937 | G33: 0.0006849336507 | H33: Mtor/Plpp3/Pdgfra/Nrp1/Ntf3/Syk/Areg/Ptprz1/Tslp/Fyn/Lrp8/Wnt3a/Gdnf/Ripk2/Cntn1/Nrg1/Rasa1/Itga5/Ereg/Parp14/Hbegf/Il11/Arhgef2/Il15/Igf1/Lck/Agrn/Cd80/Crlf1/Lif/Il6st/Clcf1/Gfra1/Neurl1a/Ighm/Angpt4/Cd4/Ptger4/Cspg4/Srcin1/Tnfrsf18/Epgn/Lrp4/Tnk2/Csf2/Adra2b/Prnp/Enpp2/Hsph1/Ghr/Parp9/Sema4d/Egf/Ghrl/Grm5/Itgb3/Erbb3/Stap1/Cd36/Isl1/Ctnnd1 | I33: 61 | W33: GO:0006399 | X33: tRNA metabolic process | Y33: 36/2455 | Z33: 167/23843 | AA33: 1.38E-05 | AB33: 0.004831435465 | AC33: 0.004749529366 | AD33: Sepsecs/Pop5/Tprkb/Rpp21/Elac1/Thumpd2/Dalrd3/Pop4/Gatc/Pop1/Wars2/Tsen2/Cars2/Ears2/Dtd1/Trdmt1/Mars/Vars2/Dtd2/Trmu/Sars/Elp6/Thada/Hars2/Tars2/Dus4l/Trub1/Tyw3/Mtfmt/Dus3l/Trpt1/Mettl1/Gtpbp3/Trmt5/Alkbh1/Osgepl1 | AE33: 36 | AH33: GO:0043901 | AI33: negative regulation of multi-organism process | AJ33: 51/3743 | AK33: 182/23843 | AL33: 1.61E-05 | AM33: 0.005077178081 | AN33: 0.004674976467 | AO33: Arhgdib/A230050P20Rik/Tnf/Parp10/Oas1g/Npr2/Trim62/Oas1c/Oas1b/Oas2/Oas1a/Oas1h/Adar/Apobec3/Trim6/Ilf3/Trim21/Dhx58/Rsad2/Tslp/Bst2/Trim56/Trim31/Tardbp/Isg15/Trim25/Trim14/Crebbp/Trim26/Stat1/Trim35/Ifitm3/Acvr1c/Mill2/Zc3h12a/Camp/Oasl2/Trim11/Eif2ak2/Park2/Oas3/Timp1/Igf1/Mpo/Eif2ak4/Traf3ip1/Ovgp1/Irf3/Tlr2/Ccl5/Tarbp2 | AP33: 51
A34: GO:0043405 | B34: regulation of MAP kinase activity | C34: 87/4600 | D34: 290/23843 | E34: 7.20E-06 | F34: 0.002159186687 | G34: 0.001758239804 | H34: Tgfb3/Itga1/Cbs/Lpar1/Pik3cg/Bmp7/Sash1/Trp73/Bmp4/Dusp4/Ntf3/Syk/Lpar3/Map3k6/P2rx7/Pde5a/Plce1/Gadd45a/Rgs14/Map3k7/Tnf/Map3k13/Map2k3/Mdfi/Eif2ak2/Dvl3/Rasgrp1/Spred2/Ror2/Dusp8/Dnaja1/Map3k5/Igf1/Trib1/Spred1/Tlr6/Flt1/Fgd2/Egfr/Arhgef5/Fzd4/Muc20/Pik3r6/Prkcd/Paqr3/Sfrp1/Tpd52l1/Htr2b/Ighm/Mdfic/Zeb2/Dusp9/Fgf2/Cspg4/Epgn/Traf7/Gab1/Mapkbp1/Grm4/Adra2b/5730559C18Rik/Ghr/Irak3/Fgfr1/Map3k1/Egf/Spag9/Ghrl/Hmgcr/Uchl1/Grm5/Vangl2/Cd300a/Map3k9/Ntrk3/Apoe/Tnxb/Sfrp2/Pdgfc/Ptpn5/Pde6g/Shc2/Mapk8ip3/Madd/Il1b/Gsk3b/Ercc6 | I34: 87 | W34: GO:0008589 | X34: regulation of smoothened signaling pathway | Y34: 22/2455 | Z34: 83/23843 | AA34: 2.38E-05 | AB34: 0.006945579021 | AC34: 0.006827832382 | AD34: Sall3/Ift88/Ift122/Tctn1/Evc/Fuz/Dync2h1/Mks1/Intu/Prkacb/Stk36/Ttc21b/Ift172/Rab23/Rpgrip1l/Foxa1/Serpine2/Megf8/Arl6/Ift80/Ift140/Ihh | AE34: 22 | AH34: GO:0000377 | AI34: RNA splicing, via transesterification reactions with bulged adenosine as nucleophile | AJ34: 63/3743 | AK34: 240/23843 | AL34: 1.74E-05 | AM34: 0.005077178081 | AN34: 0.004674976467 | AO34: Khdrbs2/Ddx17/Celf5/Dqx1/Prpf40b/Celf1/Srsf1/Rbfox3/Tra2a/Rbm4/Sfswap/Snrnp70/Dhx16/Hnrnpu/Srsf7/Gcfc2/Tia1/Lmntd2/Celf3/Ptbp2/Hnrnpm/Pcbp4/Hnrnpa2b1/Acin1/Wdr83/Rbmx/2810403A07Rik/Rbm25/Mettl3/Ddx39b/Srrm4/Rbm5/Luc7l2/Luc7l3/Malat1/Spen/Xab2/Sf3b1/Mbnl3/Srrm1/Gemin4/Son/Celf2/Srek1/Snrpf/Esrp2/Rnpc3/Ythdc1/Zrsr2/Gemin2/Usp49/U2af1l4/Dhx40/Sart3/Prpf3/U2af2/Snrpn/Rbm11/Luc7l/Dhx9/Prpf39/Hnrnpl/Slc39a5 | AP34: 63
A35: GO:0043901 | B35: negative regulation of multi-organism process | C35: 60/4600 | D35: 182/23843 | E35: 8.15E-06 | F35: 0.002268717184 | G35: 0.001847431202 | H35: Oas1a/Oas1g/A230050P20Rik/Pou2f3/Spink5/Rsad2/Oas2/Dhx58/Arhgdib/Oasl2/Isg15/Oas3/Tslp/Scd1/Npr2/Slpi/Oasl1/Oas1h/Tnf/Tlr2/Trim25/Prdx4/Eif2ak2/Bst2/Ifitm3/Stat1/Igf1/Trib1/Zc3h12a/Oas1b/Shb/Oas1e/Adar/Zfp36/Tardbp/Jun/Tspan6/Nppc/Timp1/Trim6/Prdm1/Parp10/Prox1/Trim31/Mapkbp1/Lta/Acvr1c/Mpo/Rad50/Htra1/Srpk1/Crebbp/Mavs/Cd36/Trim32/Tarbp2/Trim14/Nbn/Anxa2/Ovgp1 | I35: 60 | W35: GO:0009100 | X35: glycoprotein metabolic process | Y35: 56/2455 | Z35: 320/23843 | AA35: 5.39E-05 | AB35: 0.01402669503 | AC35: 0.01378890403 | AD35: Gnptg/Acan/Poglut1/Fktn/Pxylp1/Dpy19l3/Hs3st5/Pomt2/Lmf1/Gorasp1/Xylt2/Fut1/Fbxo2/Pomk/St6galnac2/Il15/B3gat3/Gcnt1/Entpd5/Slc35c2/Tet1/Pqlc3/Engase/Man2a2/Sgsh/Man2c1/Pofut1/Dsel/Chpf/Mgat4b/Uggt2/Sulf2/Ogt/Lipc/Soat1/Dpm1/B3gnt2/Alg12/Cant1/Tmem5/Rfng/Man2b2/Man2b1/Acot8/Dolk/Jak3/6430550D23Rik/Spock2/Aga/Tmem258/Galnt2/B3galnt2/Trip11/Cog7/Tusc3/Ihh | AE35: 56 | AH35: GO:0000398 | AI35: mRNA splicing, via spliceosome | AJ35: 63/3743 | AK35: 240/23843 | AL35: 1.74E-05 | AM35: 0.005077178081 | AN35: 0.004674976467 | AO35: Khdrbs2/Ddx17/Celf5/Dqx1/Prpf40b/Celf1/Srsf1/Rbfox3/Tra2a/Rbm4/Sfswap/Snrnp70/Dhx16/Hnrnpu/Srsf7/Gcfc2/Tia1/Lmntd2/Celf3/Ptbp2/Hnrnpm/Pcbp4/Hnrnpa2b1/Acin1/Wdr83/Rbmx/2810403A07Rik/Rbm25/Mettl3/Ddx39b/Srrm4/Rbm5/Luc7l2/Luc7l3/Malat1/Spen/Xab2/Sf3b1/Mbnl3/Srrm1/Gemin4/Son/Celf2/Srek1/Snrpf/Esrp2/Rnpc3/Ythdc1/Zrsr2/Gemin2/Usp49/U2af1l4/Dhx40/Sart3/Prpf3/U2af2/Snrpn/Rbm11/Luc7l/Dhx9/Prpf39/Hnrnpl/Slc39a5 | AP35: 63
A36: GO:0045785 | B36: positive regulation of cell adhesion | C36: 108/4600 | D36: 379/23843 | E36: 8.32E-06 | F36: 0.002268717184 | G36: 0.001847431202 | H36: Dmtn/Dmd/Ank3/Pcsk5/Vav3/Vnn1/Alox15/Ccdc80/Has2/Col26a1/Bmp7/Plpp3/Egfl6/Il1rl2/Edil3/Col16a1/Nrp1/Myb/Zmiz1/Syk/Igfbp2/Nid1/Tpm1/Wnt3a/Smoc1/Lgals9/Ripk2/Hacd1/Cd274/Cyth3/Foxp3/Tnf/Il7/Cxcl12/Abi3bp/Cd1d1/Itga5/Ptpn23/Disc1/Flna/Rasgrp1/Cd59b/Egr3/Col8a1/Il1f8/Il15/Skap1/Ptafr/Igf1/Lck/Cd5/Cd80/Shb/Ccl25/Il6st/Tfrc/Tbx18/Pik3r6/Il4ra/Lgals8/Piezo1/Prex1/Chrd/Unc13d/Tnfsf13b/Cd27/Calca/Smad7/Cd4/Ptger4/Aif1/Tnfrsf18/Stat5b/Rreb1/Fam49b/Itga4/Gli3/Dock8/Cd6/Spock2/Rap1gap/Enpp2/Hsph1/Itga2/H2-T23/H2-DMa/H2-M3/Socs5/Itgal/Nck2/Nlrp3/Myo10/Foxf1/Tnfrsf13c/Triobp/Cited2/Itgb3/Tsc1/Ecm2/Vit/Frmd5/Cd36/Rhod/Il1b/Blm/Gsk3b/Nckap1l/S100a10 | I36: 108 | AH36: GO:0000375 | AI36: RNA splicing, via transesterification reactions | AJ36: 63/3743 | AK36: 241/23843 | AL36: 2.00E-05 | AM36: 0.00530424275 | AN36: 0.004884053629 | AO36: Khdrbs2/Ddx17/Celf5/Dqx1/Prpf40b/Celf1/Srsf1/Rbfox3/Tra2a/Rbm4/Sfswap/Snrnp70/Dhx16/Hnrnpu/Srsf7/Gcfc2/Tia1/Lmntd2/Celf3/Ptbp2/Hnrnpm/Pcbp4/Hnrnpa2b1/Acin1/Wdr83/Rbmx/2810403A07Rik/Rbm25/Mettl3/Ddx39b/Srrm4/Rbm5/Luc7l2/Luc7l3/Malat1/Spen/Xab2/Sf3b1/Mbnl3/Srrm1/Gemin4/Son/Celf2/Srek1/Snrpf/Esrp2/Rnpc3/Ythdc1/Zrsr2/Gemin2/Usp49/U2af1l4/Dhx40/Sart3/Prpf3/U2af2/Snrpn/Rbm11/Luc7l/Dhx9/Prpf39/Hnrnpl/Slc39a5 | AP36: 63
A37: GO:0022412 | B37: cellular process involved in reproduction in multicellular organism | C37: 105/4600 | D37: 368/23843 | E37: 1.04E-05 | F37: 0.002593400203 | G37: 0.002111822703 | H37: Mtor/Zfp449/Cyp26b1/Ago4/Zmiz1/Bmp4/Tdrd1/Folr2/Etv5/Spire1/Inhba/Mast2/Npr2/Spaca1/Zfp37/Tdrd7/Pde5a/Ccnb1ip1/Agfg1/Meiob/Hook1/Fancg/Ccdc155/Rnf17/Dhh/M1ap/Bmp8b/Cxcl12/Pla2g3/Ereg/Sycp1/Zpbp/Ccdc63/Spo11/Celf1/Igf1/Pygo1/Sept4/Osbp2/Bcl2/Shb/Spesp1/Smad5/Map7/Mybl1/Paqr8/Fancc/Tdrd9/Fzd4/Sfrp1/Tex15/Dnmt3l/Neurl1a/Plcb1/Ccdc136/Catsper4/Calca/Nppc/Kmt2b/Nup210l/Tdrd12/Prdm1/Ddx4/Slc26a8/Qk/Tex11/Ybx2/Catsper2/Pde3a/Pdilt/Zglp1/Nanos3/Zpbp2/Spef2/Cxadr/Bmp8a/Dnah1/Brdt/Pld6/Tial1/Prss42/Stag3/Izumo1/Catsper3/Ddias/Foxo3/Hoxc4/Atm/Tex14/Ube2b/Spaca6/Kmt2d/Slc26a3/Cdc25b/Pcsk4/Fosl1/Eqtn/Tarbp2/Mcmdc2/Nsun2/4930447C04Rik/Cfap157/Piwil2/Mlh1/Tssk3 | I37: 105 | AH37: GO:1903311 | AI37: regulation of mRNA metabolic process | AJ37: 57/3743 | AK37: 213/23843 | AL37: 2.35E-05 | AM37: 0.005966814484 | AN37: 0.005494138053 | AO37: Apobec1/Khdrbs2/Hnrnpr/Ddx17/Celf5/Rbm46/Rbm26/Nanos3/Zfp36l1/Prr5l/Tardbp/Rbfox3/Mtor/Rnf40/Tra2a/Rbm4/Sfswap/Snrnp70/Hnrnpu/Srsf7/Tia1/Lmntd2/Celf3/Pcbp4/Hnrnpa2b1/Dhx34/Acin1/Pnpt1/Rbmx/Rbm25/Zc3h12a/Mettl3/Safb/Srrm4/Rbm5/Noct/Malat1/Rnf20/Mbnl3/Son/Cdk11b/Srek1/Safb2/Zc3h12d/Ythdc1/Gigyf2/Cirbp/U2af2/Mettl16/Rbm11/Hsf1/Fastkd1/Dhx9/Hnrnpl/Brf1/Tnrc6c/Slc39a5 | AP37: 57
A38: GO:0018108 | B38: peptidyl-tyrosine phosphorylation | C38: 91/4600 | D38: 310/23843 | E38: 1.18E-05 | F38: 0.002785284245 | G38: 0.002268075129 | H38: Dmtn/Mtor/Flt4/Errfi1/Plpp3/Pdgfra/Nrp1/Ntf3/Syk/Melk/Areg/Ptprz1/Tslp/Fyn/Lrp8/Txk/Wnt3a/Gdnf/Ripk2/Cntn1/Nrg1/Rasa1/Itga5/Ereg/Parp14/Hbegf/Itgb2/Il11/Arhgef2/Il15/Igf1/Lck/Agrn/Cd80/Crlf1/Socs4/Flt1/Egfr/Lif/Il6st/Clcf1/Prkcd/Sfrp1/Gfra1/Neurl1a/Ddr2/Ighm/Cbl/Pkdcc/Ppp2r5b/Angpt4/Cd4/Ptger4/Cspg4/Srcin1/Tnfrsf18/Epgn/Lrp4/Tnk2/Csf2/Srms/Rap2c/Hnf4a/Jak1/Adra2b/Dyrk2/Prnp/Enpp2/Hsph1/Ghr/Parp9/Sema4d/Fgfr1/Dyrk3/Egf/Socs5/Gprc5a/Il22ra2/Ghrl/Grm5/Cd300a/Itgb3/Erbb3/Stap1/Clk2/Cd36/Sfrp2/Pdgfc/Isl1/Suz12/Ctnnd1 | I38: 91 | AH38: GO:0000245 | AI38: spliceosomal complex assembly | AJ38: 19/3743 | AK38: 46/23843 | AL38: 2.82E-05 | AM38: 0.006867377151 | AN38: 0.006323360351 | AO38: Celf1/Srsf1/Sfswap/Gcfc2/Ptbp2/Rbmx/2810403A07Rik/Ddx39b/Rbm5/Luc7l2/Luc7l3/Sf3b1/Celf2/Ythdc1/Zrsr2/Gemin2/Sart3/Luc7l/Prpf39 | AP38: 19
A39: GO:0010038 | B39: response to metal ion | C39: 72/4600 | D39: 232/23843 | E39: 1.21E-05 | F39: 0.002785284245 | G39: 0.002268075129 | H39: Dmtn/Ank3/Slc11a2/Alox15/Cybrd1/Loxl2/Trpm2/P2rx7/Apobec1/B2m/Tfap2a/Il1a/Kcnh1/Mapk8/Ncam1/Kcnmb2/Gipr/Alad/Fas/Ppif/Wnk1/Gss/Pparg/Lck/Bcl2/Nfatc4/Aqp9/Egfr/Tfrc/Tnnt2/Jun/Plcd1/Clic4/Abat/Hvcn1/Hfe/Htt/Fibin/Capn3/Cpne2/Atp7a/Cacna1g/Carf/Rasa4/Slc30a2/Ggh/Chuk/Mmp9/Fus/Ryr2/Prnp/Hmox1/Ttn/Haao/S100a16/Krt10/Aanat/Nptx1/Homer1/Scn5a/Tfr2/Bmp6/Gatm/Trpv6/Abcc2/Gdi1/Mtf1/Mt3/Xdh/Fos/Cyp27b1/Acer1 | I39: 72 | AH39: GO:0003341 | AI39: cilium movement | AJ39: 25/3743 | AK39: 73/23843 | AL39: 7.36E-05 | AM39: 0.01483307333 | AN39: 0.01365803359 | AO39: Wdr78/Cfap46/Celsr2/Dnah7b/Ccdc39/Dnhd1/Invs/Spef2/Stk36/Kif27/Cfap53/Dnaic2/Nme5/Ccdc183/Cfap54/Ccdc114/Dnah17/Bbs1/Gas8/Rsph4a/Ccdc151/Dnah6/Ccdc65/Ulk4/Dnah9 | AP39: 25
A40: GO:0022407 | B40: regulation of cell-cell adhesion | C40: 103/4600 | D40: 363/23843 | E40: 1.62E-05 | F40: 0.003437400143 | G40: 0.002799097359 | H40: Dmtn/Ank3/Vnn1/Alox15/Has2/Bmp7/Plpp3/Il1rl2/Myb/Zmiz1/Bmp4/Syk/Igfbp2/Wnt3a/Pde5a/Lgals9/Ripk2/Nfkbid/Cd274/Serpine2/Foxp3/Tigit/Tnf/Il7/Cxcl12/Cd1d1/Ptpn23/Rasgrp1/B4galnt2/Cd59b/Egr3/Arg1/Il1f8/Il15/Ptafr/Igf1/Lck/Cd5/Cd80/Zc3h12d/Ephb3/Rgcc/Shb/Dusp22/March7/Ccl25/Il6st/Tfrc/Tbx18/Pik3r6/Prkg1/Prkcd/Il4ra/Lgals8/Piezo1/Abat/Hfe/Il20rb/Tnfsf13b/Cd27/Smad7/C1qtnf1/Adamts18/Cd4/Aif1/Gpnmb/Stat5b/Ptger3/Fam49b/Gm9573/Itga4/Gtpbp4/Nrarp/Gli3/Dock8/Cd6/Celsr2/Rap1gap/Zc3h8/Prnp/Hsph1/H2-T23/H2-DMa/H2-M3/Socs5/Itgal/Nck2/Nlrp3/Myo10/Tnfrsf13c/Cited2/Cd300a/Pag1/Clec4g/Tnfrsf21/Tnr/Loxl3/Pla2g2d/Il1b/Lrrc32/Blm/Nckap1l/Zfp703 | I40: 103 | AH40: GO:0043113 | AI40: receptor clustering | AJ40: 21/3743 | AK40: 57/23843 | AL40: 8.22E-05 | AM40: 0.01549866673 | AN40: 0.0142709003 | AO40: Nrxn1/Cacna1a/Ssh1/Grik5/Syngap1/Magi2/Agrn/Flna/Pick1/Glrb/Rapsn/Cdk5/Pigr/Arhgef9/Etv5/Dvl1/Itgal/Lrp4/Ift122/Wdr19/Cdh2 | AP40: 21
A41: GO:0010769 | B41: regulation of cell morphogenesis involved in differentiation | C41: 92/4600 | D41: 317/23843 | E41: 1.73E-05 | F41: 0.003437400143 | G41: 0.002799097359 | H41: Map6/Dmtn/Ppp1r9a/Mgll/Syne1/Has2/Kalrn/Arhgap44/Bcl11a/Nrp1/Xlr3b/Lpar3/Cdk5r1/Slit1/Chrnb2/Sema3b/Ptprd/Xlr4b/Ptprz1/Crabp2/Lrp8/Id1/Wnt3a/Arc/Plxnd1/Ap1ar/Tubb2b/Cux2/Ocm/Baiap2/Nrg1/Postn/Cxcl12/Disc1/Flna/Dixdc1/Cacna1a/Pdlim5/Ngef/Agrn/Ephb3/Nfatc4/Rapgef2/Skil/Ankrd27/Sema3e/Rufy3/Xk/Prex1/Zeb2/Unc13d/Arhgap4/Sema4g/Zswim4/Kif13b/Dnm3/Srcin1/Caprin2/Lrp4/Dnm1l/Rreb1/Vim/Rgma/Plxna4/Olfm1/Enpp2/Sema3d/Bmpr2/Shox2/Sema4d/Rcc2/Zswim5/Triobp/Gdi1/Itgb3/Ntrk3/Apoe/Plxnc1/Fstl4/Ache/Hecw1/Tnr/Rtn4r/Zswim8/Wnt3/Kndc1/Ptprf/Fezf2/Gsk3b/S100a10/Adgrb3/Ntrk2 | I41: 92 | AH41: GO:0009582 | AI41: detection of abiotic stimulus | AJ41: 36/3743 | AK41: 122/23843 | AL41: 8.53E-05 | AM41: 0.01557651553 | AN41: 0.01434258211 | AO41: Slc12a2/Tnf/Strc/Hpn/Pdzd7/Cxcl12/Cabp4/Ccdc66/Dennd5b/Arrb2/Guca1b/Pkd2/Ano3/Trpv1/Gnat2/Pkdrej/Asic3/Fyn/Piezo1/Reep6/Pde6b/Ngfr/Itga2/Pkd2l2/Pcp2/Sema5a/Tulp1/Calca/Ttn/Igf1/Rrh/Serpine2/Rs1/Kcnk4/Pcdh15/Grm8 | AP41: 36
A42: GO:0031345 | B42: negative regulation of cell projection organization | C42: 62/4600 | D42: 194/23843 | E42: 1.74E-05 | F42: 0.003437400143 | G42: 0.002799097359 | H42: Rap1gap2/Evl/Map4/Lpar1/Asap1/Bcl11a/Tbc1d30/Nrp1/Cdk5r1/Slit1/Sema3b/Ptprz1/Fyn/Id1/B2m/Wnt3a/Zfp365/Rtn4rl1/Flna/Tbc1d7/Map4k4/Ngef/Nfatc4/Rapgef2/Prkcd/Paqr3/Thoc2/Sema3e/Rufy3/Plk2/Arhgap4/Sema4g/Cdk10/Dnm3/Adcy6/Cspg4/Lrp4/Vim/Rgma/Dleu2/Stmn2/Rap1gap/Prnp/Sema3d/Sema4d/Il15ra/Tnfrsf23/Grin2b/Gdi1/Pfn2/Stap1/Xylt1/Apoe/Tsc1/Fstl4/Gfap/Capzb/Tnr/Rtn4r/Wnt3/Ptprf/Gsk3b | I42: 62 | AH42: GO:0006376 | AI42: mRNA splice site selection | AJ42: 12/3743 | AK42: 24/23843 | AL42: 9.28E-05 | AM42: 0.01642997309 | AN42: 0.01512843086 | AO42: Celf1/Srsf1/Sfswap/Ptbp2/Rbmx/2810403A07Rik/Luc7l2/Luc7l3/Celf2/Ythdc1/Luc7l/Prpf39 | AP42: 12
A43: GO:0018212 | B43: peptidyl-tyrosine modification | C43: 91/4600 | D43: 313/23843 | E43: 1.78E-05 | F43: 0.003437400143 | G43: 0.002799097359 | H43: Dmtn/Mtor/Flt4/Errfi1/Plpp3/Pdgfra/Nrp1/Ntf3/Syk/Melk/Areg/Ptprz1/Tslp/Fyn/Lrp8/Txk/Wnt3a/Gdnf/Ripk2/Cntn1/Nrg1/Rasa1/Itga5/Ereg/Parp14/Hbegf/Itgb2/Il11/Arhgef2/Il15/Igf1/Lck/Agrn/Cd80/Crlf1/Socs4/Flt1/Egfr/Lif/Il6st/Clcf1/Prkcd/Sfrp1/Gfra1/Neurl1a/Ddr2/Ighm/Cbl/Pkdcc/Ppp2r5b/Angpt4/Cd4/Ptger4/Cspg4/Srcin1/Tnfrsf18/Epgn/Lrp4/Tnk2/Csf2/Srms/Rap2c/Hnf4a/Jak1/Adra2b/Dyrk2/Prnp/Enpp2/Hsph1/Ghr/Parp9/Sema4d/Fgfr1/Dyrk3/Egf/Socs5/Gprc5a/Il22ra2/Ghrl/Grm5/Cd300a/Itgb3/Erbb3/Stap1/Clk2/Cd36/Sfrp2/Pdgfc/Isl1/Suz12/Ctnnd1 | I43: 91 | AH43: GO:0031050 | AI43: dsRNA fragmentation | AJ43: 17/3743 | AK43: 42/23843 | AL43: 0.0001000083662 | AM43: 0.01665185034 | AN43: 0.01533273154 | AO43: Zcchc11/Esr1/Drosha/Adar/Bmp4/Tert/Egfr/Zc3h7b/Hnrnpa2b1/Ago4/Zc3h12a/Mettl3/Ago3/Zc3h7a/Srrt/Tarbp2/Nr2f1 | AP43: 17
A44: GO:0042391 | B44: regulation of membrane potential | C44: 119/4600 | D44: 434/23843 | E44: 2.11E-05 | F44: 0.003902262026 | G44: 0.003177637423 | H44: Ppp1r9a/Dmd/Ank3/Cacna1i/Tmem108/Slc26a9/Syne1/Ank2/Popdc3/Igsf9b/Sh3gl1/Gabrp/Cacna1c/Rims2/Kcnc2/Chrnb2/Dsp/Atxn1/Glrx/P2rx7/Xirp1/Dsc2/Kcnh1/Cux2/Unc13b/Scn3a/Rnf207/P2rx5/Cnr1/Kcnj2/Kcnmb2/Adrb1/Baiap2/Actn2/Tnf/P2rx3/Kcnk6/Bves/Usp53/Flna/Scn1b/Grin2d/Gnaq/P2rx4/Snta1/Cacna1a/Hebp2/Dvl1/Piezo2/Slc26a4/Agrn/Bcl2/Ptpn3/Glrb/Gpr35/Gabrd/Slc29a1/Kcnh7/Jun/Piezo1/Clcn1/Cnih2/Abat/Grik5/Rims1/Htt/Catsper4/Smad7/Myh14/Cacna1g/Bok/Rapgef4/Stoml2/Chrna5/Slc26a8/Kcnk5/Kcnh4/Ctns/Oprm1/Rims3/Casq2/Kcnk13/Catsper2/Ryr2/Grik3/Kcnip1/Cxadr/Pmaip1/Scn5a/Gclm/Hsh2d/Fxyd1/Fhl1/Slc26a11/Dpp6/Ghrl/Kcnk18/Slc1a6/Grin2b/Nup155/Ctnna3/Slc25a27/Cacna1e/Catsper3/Kcnh6/Cngb3/Slc25a33/Slc26a3/Glra4/Kcnk7/Slc26a1/Kcna2/Cacna1d/Wwp2/Dcn/Mapk8ip2/Abcb5/Gsk3b/Cacng2 | I44: 119 | AH44: GO:0070918 | AI44: production of small RNA involved in gene silencing by RNA | AJ44: 17/3743 | AK44: 42/23843 | AL44: 0.0001000083662 | AM44: 0.01665185034 | AN44: 0.01533273154 | AO44: Zcchc11/Esr1/Drosha/Adar/Bmp4/Tert/Egfr/Zc3h7b/Hnrnpa2b1/Ago4/Zc3h12a/Mettl3/Ago3/Zc3h7a/Srrt/Tarbp2/Nr2f1 | AP44: 17
A45: GO:0050678 | B45: regulation of epithelial cell proliferation | C45: 97/4600 | D45: 340/23843 | E45: 2.22E-05 | F45: 0.003902262026 | G45: 0.003177637423 | H45: Sulf1/Sulf2/Mtor/Gpc3/Flt4/Apln/Foxp2/Ptprm/Sparc/Has2/Errfi1/Notch1/Bmp4/Etv4/Cyba/Wnt10b/C5ar2/Gas1/Dlk1/Id1/Hpn/Wnt3a/Tgfbr3/Tnf/Cxcl12/Cd109/Esr1/Esrp1/Stat1/Deaf1/Egr3/Arg1/Nr4a1/Nkx2-9/Pparg/Igf1/Pgr/Ecm1/Rb1/Rgcc/Cdkn2b/Flt1/Zfp36/Egfr/Tbx18/Jun/Tgm1/Sfrp1/Krt4/Dlx5/Htr2b/Vdr/Sfn/Fgf9/Atp7a/Nfib/Fgf2/Epgn/Rreb1/Prox1/Atoh8/Esrp2/Agap2/Nrarp/F3/Ednrb/Ptprn/Rap1gap/Bnc1/Hmox1/Cxadr/Tnmd/Bmpr2/Krit1/Scn5a/Zfp36l1/Fgfr1/Kdm5b/Pgf/Nlrc3/Bmp6/Htra1/Ghrl/Nras/Tinf2/Itgb3/Apoe/Cflar/Eaf2/Xdh/Med1/Yap1/Sfrp2/Ccr3/Isl1/Suz12/Zfp703 | I45: 97 | AH45: GO:0009581 | AI45: detection of external stimulus | AJ45: 36/3743 | AK45: 123/23843 | AL45: 0.0001025781335 | AM45: 0.01665185034 | AN45: 0.01533273154 | AO45: Slc12a2/Tnf/Strc/Hpn/Pdzd7/Cxcl12/Cabp4/Ccdc66/Dennd5b/Arrb2/Guca1b/Pkd2/Ano3/Trpv1/Gnat2/Pkdrej/Asic3/Fyn/Piezo1/Reep6/Pde6b/Ngfr/Itga2/Pkd2l2/Pcp2/Sema5a/Tulp1/Calca/Ttn/Igf1/Rrh/Serpine2/Rs1/Kcnk4/Pcdh15/Grm8 | AP45: 36
A46: GO:0010035 | B46: response to inorganic substance | C46: 120/4600 | D46: 439/23843 | E46: 2.28E-05 | F46: 0.003902262026 | G46: 0.003177637423 | H46: Dmtn/Ank3/Slc11a2/Alox15/Cybrd1/Mmp2/Slc1a3/Kcnc2/Lrp11/Mtr/Loxl2/Glrx/Trpm2/P2rx7/Apobec1/B2m/Tfap2a/Il1a/Kcnh1/Mapk8/Ncam1/Mir7-1/Kcnmb2/Aptx/Tnf/Gipr/Mir196a-1/Atp2b4/Alad/Fas/Ppif/Wnk1/Lcn2/Stk26/Gss/Szt2/Nr4a1/Mir221/Map3k5/Pparg/Mb/Lck/Zc3h12a/Bcl2/Nfatc4/Gart/Aqp9/Nr4a2/Egfr/Fancc/Tfrc/Mir222/Tnnt2/Epor/Prkcd/Jun/Plcd1/Ddx11/Clic4/Abat/Hvcn1/Hfe/Plcb1/Htt/Fibin/Gpr37/Capn3/Cpne2/Atp7a/Cacna1g/Adprhl2/Mapk13/Mir31/Carf/Rasa4/Slc30a2/Ggh/Nos3/Chuk/Mmp9/Fus/Ryr2/Prnp/Hmox1/Ttn/Hsph1/Haao/S100a16/Nup93/Krt10/Aanat/Nptx1/Homer1/Scn5a/Mpo/Tfr2/Nqo1/Fbxo7/Gpr37l1/Mir199a-1/Mirlet7g/Bmp6/Gatm/Trpv6/Timeless/Abcc2/Gdi1/Foxo3/Mtf1/Mir615/Cflar/Oser1/Mt3/Cd36/Xdh/Fos/Cyp27b1/Acer1/Blm/Ercc6 | I46: 120
A47: GO:0051607 | B47: defense response to virus | C47: 67/4600 | D47: 216/23843 | E47: 2.42E-05 | F47: 0.004014296279 | G47: 0.003268867646 | H47: Oas1a/Oas1g/Ifit1bl1/Slfn8/A230050P20Rik/Trim30a/Rsad2/Rtp4/Oas2/Dhx58/Ifit1bl2/Oasl2/Zbp1/Isg15/Ifit1/Oas3/Aim2/Apobec1/Mx2/Ddx60/Samhd1/Ifit3/Oasl1/Oas1h/Ifit2/Cxcl10/Pum1/Zmynd11/Trim25/Lyst/Stat2/Eif2ak2/Mb21d1/Bst2/Ifitm3/Ifnlr1/Stat1/Ifit3b/Il15/Trim34a/Irf7/Zc3h12a/Oas1b/Trim12a/Bcl2/Oas1e/Adar/Ddx41/Unc13d/Tspan6/Ddx58/Serinc5/Trim6/Ifih1/Ifngr1/Spon2/Chuk/Cxadr/Parp9/Nlrp3/Ddx17/Dtx3l/Tagap/Htra1/Mavs/Tarbp2/Il1b | I47: 67
A48: GO:0031098 | B48: stress-activated protein kinase signaling cascade | C48: 80/4600 | D48: 270/23843 | E48: 2.68E-05 | F48: 0.004014296279 | G48: 0.003268867646 | H48: Flt4/Cbs/Slk/Errfi1/Sash1/Tnfrsf19/Map4k3/Trp73/Syk/Il1a/Map3k8/Gadd45a/Mapk8/Ripk2/Map3k7/Oxsr1/Tnf/Zmynd11/Map3k13/Map2k3/Fas/Mdfi/Eif2ak2/Dvl3/Rasgrp1/Stk26/Map4k4/Ror2/Nek6/Dnaja1/Dixdc1/Map3k5/Trib1/Zc3h12a/Dusp22/Tlr6/Fgd2/Phlpp1/Zfp36/Egfr/Arhgef5/Fzd4/Ankrd6/Mapk11/Nek4/Ccdc88c/Sfrp1/Tpd52l1/Mdfic/Plcb1/Zeb2/Cd27/Hipk2/Mapk10/Ptger4/Mapk13/Gab1/Mapkbp1/Map3k3/5730559C18Rik/Hsph1/Zfp36l1/Map3k1/Rassf2/Eda2r/Spag9/Cops5/Hmgcr/Vangl2/Ncor1/Map3k9/Tnxb/Xdh/Sfrp2/Rb1cc1/Gdf6/Mapk8ip3/Il1b/Mapk8ip2/Ercc6 | I48: 80
A49: GO:0045862 | B49: positive regulation of proteolysis | C49: 90/4600 | D49: 312/23843 | E49: 2.73E-05 | F49: 0.004014296279 | G49: 0.003268867646 | H49: Dapk1/Sox7/Nrd1/Slc11a2/Pacsin3/Uaca/Ifi27l2a/Aim2/Hpn/Sh3d19/Wnt3a/Col4a3/Usp13/Antxr1/Nlrp1b/Ripk2/Acer2/Tnf/Fas/Disc1/Rnf19b/Tank/Nlrc4/Ifi27/Stat1/Tnfsf10/Casp8ap2/Map3k5/Pparg/Dvl1/Trib1/Lck/Zc3h12a/Rnf180/Socs4/Myh9/Csnk1e/Nek5/Efna3/Ifi27l2b/Senp1/Rnf40/Tnfrsf1b/Chfr/Rnf125/Plk2/Dlc1/Smad7/Plk3/Capn3/Bok/Casp8/Pidd1/Tnip1/Rgma/Gramd4/Apaf1/Edem1/F3/Plgrkt/Lonrf2/Acvr1c/Casp12/Akirin2/Pmaip1/Csnk1a1/Ecscr/Hspa1a/St18/Egf/Socs5/Casp9/Nlrp3/Casp4/Apoe/Cflar/Arih2/S100a9/Cyfip2/Bbs7/Xdh/Trim32/Sfrp2/Smurf1/S100a8/Il1b/Gsk3b/Htra2/Ctnnd1/Ogt | I49: 90
A50: GO:0051091 | B50: positive regulation of DNA binding transcription factor activity | C50: 69/4600 | D50: 225/23843 | E50: 2.79E-05 | F50: 0.004014296279 | G50: 0.003268867646 | H50: Adgrf1/Plpp3/Prkch/Ncoa3/Arid5b/Lrrfip1/Kdm1a/Wnt10b/Lrp8/Aim2/Wnt3a/Hmgn3/Ripk2/Tgfbr3/Ror1/Anxa3/Fank1/Tnf/Cth/Map3k13/Lpar5/Tlr2/Trim25/Eif2ak2/Nlrc4/Esr1/Itgb2/Arhgef2/Pparg/Rgcc/Nfam1/Tlr6/Arhgef5/Fzd4/Traf5/Ppargc1a/Ripk3/Ddr2/Rhebl1/Capn3/Ppp2r5b/Hipk2/Trim31/Pprc1/Chuk/Rnf25/Ube2v1/Cd84/Irak3/Camk1d/Nkx2-2/Eda2r/Nlrp3/Dhx33/Jmy/Cops5/Taf12/Crebbp/Cflar/Card14/Mavs/Cd36/Fosl1/Trim32/Trim14/Rnf31/Tssk4/Cacna1d/Il1b | I50: 69
A51: GO:0051271 | B51: negative regulation of cellular component movement | C51: 84/4600 | D51: 287/23843 | E51: 2.80E-05 | F51: 0.004014296279 | G51: 0.003268867646 | H51: Sulf1/Evl/Ptprm/Erdr1/Dach1/Clasp1/Rnf20/Nrp1/Ccdc125/Notch1/Arhgdib/Stard13/Nbl1/Slit1/Nav3/Sema3b/C5ar2/Tpm1/Wnt3a/Ap1ar/Podn/Tgfbr3/Has1/Nrg1/Wnt11/Cxcl12/Trp53inp1/Ptpn23/Stk26/Cx3cr1/Osbpl8/Pparg/Trib1/Ldlrad4/Bcl2/Rgcc/Spred1/Ccl25/Prkg1/Krt16/Sfrp1/Clic4/Sema3e/Ppargc1a/Srgap2/Cnih2/Plcb1/Chrd/Dlc1/Arhgap4/Sema4g/Tcaf1/Timp1/Angpt4/Fgf2/Ptger4/Aif1/Ptprr/Reck/Rap2c/Gtpbp4/Hnf4a/Olfm1/Acvr1c/Sema3d/Krit1/Sema4d/Mmrn2/Miip/Cited2/Pfn2/Cd300a/Phldb2/Stap1/Apoe/Slc9a3r1/Frmd5/Scai/Wfdc6a/Sfrp2/Wnt3/Ptpru/Dcn/Gsk3b | I51: 84
A52: GO:0015698 | B52: inorganic anion transport | C52: 46/4600 | D52: 134/23843 | E52: 2.84E-05 | F52: 0.004014296279 | G52: 0.003268867646 | H52: Mtor/Clca3a1/Slc26a9/Slc34a2/Clca3b/Gabrp/Clca4a/Clca4b/Slc1a3/Clca3a2/P2ry6/Prkg2/Slc37a2/Slc12a2/Clca1/Abcb1a/Ptafr/Slc26a4/Glrb/Clic3/Gabrd/Slc37a1/Clic4/Clcn1/P2ry4/Slc4a11/Slc12a5/Slc34a3/Slc26a8/Best1/Ano10/Slc12a8/Prnp/Ttyh2/Fgfr1/Fxyd1/Slc26a11/Grm5/Clcn6/Ano9/Slc26a3/Ano7/Glra4/Cldn4/Slc26a1/Slc20a2 | I52: 46
A53: GO:0015711 | B53: organic anion transport | C53: 111/4600 | D53: 402/23843 | E53: 2.85E-05 | F53: 0.004014296279 | G53: 0.003268867646 | H53: Slc16a6/Slco2a1/Slc16a11/Bdkrb2/Slc15a1/Mfsd2a/Abca12/Pla2g4f/Slc6a14/Slc26a9/Slco3a1/Abcg2/Slc22a4/Slc5a8/AU018091/Slc6a20a/Slc16a9/Pla2r1/Slc1a3/Emb/Stra6l/Slc16a7/Syk/Folr2/Abcg1/Abca1/Pitpnm2/Slc2a3/P2rx7/Slc7a2/Apba1/Il1a/Slc37a2/Abca4/Slc4a10/Slc4a7/Htr6/Slc38a9/Slc25a22/Tnf/Pqlc2/Abcb1a/Arg1/Cacna1a/Osbpl8/Pparg/Proca1/Slc26a4/Aqp9/Slc4a8/Slc7a3/Prkg1/Tmem30b/Agxt/Prkcd/Slc22a23/Abat/Slc52a3/Xk/Htt/Slc4a11/Slc38a3/Ace2/Slc7a14/Slc6a19/Irs2/Slc43a1/Mttp/Slc1a4/Atp11b/Plin2/Slc13a5/Slc16a13/Slc26a8/Ptger3/Slco1a5/Atp8b5/Ctns/Trpv1/Slco4a1/Syt4/Slco4c1/Atp10a/Slc2a2/Slc36a2/Slc27a4/Slc6a17/Slc16a14/Slc26a11/Slc4a3/Slc1a6/Grin2b/Slc1a2/Abcc2/Apoe/Lrp2/Slc26a3/Slc9a3r1/Atp10b/Repin1/Slc16a4/Cd36/Slc26a1/Slc19a1/Slc16a12/Pla2g2d/Il1b/Folr1/Slc38a1/Ntrk2/Pla2g2e | I53: 111
A54: GO:0019221 | B54: cytokine-mediated signaling pathway | C54: 104/4600 | D54: 372/23843 | E54: 2.89E-05 | F54: 0.004014296279 | G54: 0.003268867646 | H54: Il1r2/Ccl6/Oas2/Nlrc5/Il17rd/Syk/Il3ra/Il20ra/Zbp1/Tnfrsf10b/Zcchc11/Tslp/Duox2/Aim2/Txk/Il1f9/Il1f6/Lrrc4/Rtn4rl1/Il22ra1/Il1a/Ripk2/Podn/Cxcl10/Tnfrsf11b/Tnf/Il7/Cxcl12/Fas/Ereg/Parp14/Stat2/Ifitm3/Ifnlr1/Cx3cr1/Stat1/Arg1/Il1f8/Duox1/Il15/Tnfrsf4/Lrrc3/Pparg/Cxcl3/Irf7/Ecm1/Socs4/Adar/Gpr35/Ccl25/Il6st/Otud4/Tnfrsf1b/Ccl9/Plcb1/Il20rb/Cd27/Osmr/Sh2b2/Cd4/Il18r1/Trim6/Iigp1/Ifngr1/Tnfrsf18/Relt/Stat5b/Slit3/Gab1/Chuk/F3/Jak1/Ptprn/Lrrc19/Ccdc3/Lepr/Irak3/Thpo/Parp9/St18/Plvap/Socs5/Il11ra1/Socs2/Il22ra2/Lrrtm1/Csf2rb2/Casp4/Nyx/Irgm1/Foxo3/Stap1/Card14/Mt3/Mavs/Cxcl11/Med1/Trim32/Tnfrsf21/Rtn4r/Il1b/Ptprf/Dcn/Gm13271 | I54: 104
A55: GO:0007266 | B55: Rho protein signal transduction | C55: 61/4600 | D55: 193/23843 | E55: 2.94E-05 | F55: 0.004014296279 | G55: 0.003268867646 | H55: Vav3/Lpar1/Arhgef6/Kalrn/Arhgef37/Nrp1/Ccdc125/Fgd3/Arhgdib/Rhobtb3/Abca1/Rhoc/Cnksr1/Eps8l2/Ophn1/Eps8l1/Adrb1/Baiap2/Rhoj/Farp1/Plekhg6/Arap1/Arap2/Arhgef15/Farp2/Phactr4/Arhgef2/Rnd3/Ngef/Gpr35/Lpar6/Fgd2/Arhgef5/Gm14137/F2rl2/Arhgef7/Prex1/Dlc1/Arhgef39/Trio/Itsn2/Gpr20/Obscn/Arhgef10l/Myo9b/Fgd6/Gpr4/Chuk/Arhgef33/Arhgef4/Arhgef9/Vangl2/Fgd5/Apoe/Prex2/Scai/Rhod/Arhgef18/Rtn4r/Rhof/Kctd13 | I55: 61
A56: GO:0050673 | B56: epithelial cell proliferation | C56: 111/4600 | D56: 403/23843 | E56: 3.19E-05 | F56: 0.004142424744 | G56: 0.003373203491 | H56: Sulf1/Sulf2/Mtor/Gpc3/Flt4/Apln/Foxp2/Ptprm/Sparc/Has2/Errfi1/Epha2/Igfbp4/Notch1/Bmp4/Etv4/Loxl2/Cyba/Wnt10b/Areg/Pik3cb/Sidt2/C5ar2/Fst/Gas1/Dlk1/Id1/Hpn/Wnt3a/Fap/Tgfbr3/Tnf/Cxcl12/Cd109/Ereg/Esr1/Esrp1/Stat1/Deaf1/Egr3/Arg1/Col8a1/Nr4a1/Nkx2-9/Pparg/Igf1/Pgr/Ecm1/Rb1/Rgcc/Cdkn2b/Flt1/Zfp36/Egfr/Tbx18/Jun/Tgm1/Sfrp1/Krt4/Dlx5/Htr2b/Col8a2/Vdr/Sfn/Fgf9/Atp7a/Nfib/Fgf2/Epgn/Rreb1/Prox1/Atoh8/Esrp2/Agap2/Nrarp/Chuk/F3/Ednrb/Ptprn/Rap1gap/Bnc1/Tfap2c/Hmox1/Cxadr/Tnmd/Bmpr2/Krit1/Scn5a/Zfp36l1/Fgfr1/Kdm5b/Pgf/Nlrc3/Bmp6/Htra1/Ghrl/Nras/Tinf2/Itgb3/Apoe/Cflar/Eaf2/Ptprv/Xdh/Med1/Yap1/Sfrp2/Ccr3/Isl1/Suz12/Zfp703 | I56: 111
A57: GO:0015849 | B57: organic acid transport | C57: 83/4600 | D57: 284/23843 | E57: 3.30E-05 | F57: 0.004142424744 | G57: 0.003373203491 | H57: Slc16a6/Slco2a1/Slc16a11/Bdkrb2/Slc15a1/Mfsd2a/Pla2g4f/Slc6a14/Slc26a9/Slco3a1/Slc5a8/AU018091/Slc6a20a/Slc16a9/Pla2r1/Slc1a3/Emb/Stra6l/Slc16a7/Syk/Folr2/P2rx7/Slc7a2/Apba1/Il1a/Htr6/Slc38a9/Slc25a22/Tnf/Pqlc2/Arg1/Cacna1a/Pparg/Proca1/Slc26a4/Aqp9/Slc7a3/Prkg1/Agxt/Prkcd/Abat/Xk/Htt/Slc38a3/Ace2/Slc7a14/Slc6a19/Irs2/Slc43a1/Slc1a4/Plin2/Slc13a5/Slc16a13/Slc26a8/Slco1a5/Ctns/Trpv1/Syt4/Fxyd1/Slc36a2/Slc27a4/Slc6a17/Slc16a14/Slc1a6/Grin2b/Slc1a2/Abcc2/Apoe/Lrp2/Slc26a3/Slc9a3r1/Repin1/Slc16a4/Cd36/Slc26a1/Slc19a1/Slc16a12/Pla2g2d/Il1b/Folr1/Slc38a1/Ntrk2/Pla2g2e | I57: 83
A58: GO:0043900 | B58: regulation of multi-organism process | C58: 110/4600 | D58: 399/23843 | E58: 3.32E-05 | F58: 0.004142424744 | G58: 0.003373203491 | H58: Oas1a/Oas1g/A230050P20Rik/Pou2f3/Spink5/Trim30a/Rsad2/Sash1/Oas2/Plat/Dhx58/Notch1/Arhgdib/Oasl2/Inhba/Cyba/Isg15/Pglyrp4/Zcchc11/Oas3/Pkdrej/Tslp/Scd1/Aim2/Hpn/Npr2/Pde5a/Slpi/Lgals9/Ripk2/Unc13b/Ddx60/Oasl1/Oas1h/Cnr1/Rrp1b/Pum1/Tnf/Tlr2/Trim25/Prdx4/Eif2ak2/Mb21d1/Bst2/Ifitm3/Ifnlr1/Stat1/Arg1/Il15/Ptafr/Igf1/Trib1/Zc3h12a/Oas1b/Bcl2/Shb/Lhfpl2/Oas1e/Adar/Zfp36/Tardbp/Exoc2/Jun/Nlrp10/Ythdc2/Mdfic/Plcb1/Tspan6/Ddx58/Nppc/Ppih/Ppid/Timp1/Cd4/Trim6/Prdm1/Pcx/Parp10/Prox1/Trim31/Cd180/Ppie/Mapkbp1/Ednrb/Pde3a/Lta/Acvr1c/Cd84/Mpo/Parp9/Rad50/Dtx3l/Bmp6/Htra1/Fbxl2/Srpk1/Spink14/Crebbp/Hoxc4/Apoe/Mavs/Cd36/Trim32/Tarbp2/Trim14/Nbn/Pglyrp3/Il1b/Anxa2/Ovgp1 | I58: 110
A59: GO:0010721 | B59: negative regulation of cell development | C59: 101/4600 | D59: 362/23843 | E59: 4.08E-05 | F59: 0.004892598651 | G59: 0.003984074997 | H59: Dmtn/Rap1gap2/Lpar1/Asap1/Bmp7/Bcl11a/Ttpa/Nrp1/Fbn1/Notch1/Trp73/Bmp4/Casz1/Kdm1a/Cdk5r1/Slit1/Sema3b/Ptprz1/Id4/Id1/B2m/Npr2/Wnt3a/Ap1ar/Zfp365/Rtn4rl1/Il1a/Tert/Irx3/Hook3/Nrg1/Postn/Flna/Map4k4/Arhgef2/Dixdc1/Igf1/Ngef/Bcl2/Shb/Nfatc4/Cdkn2b/Id3/Rapgef2/Paqr3/Thoc2/Sema3e/Srgap2/Rufy3/Plk2/Arhgap4/Sema4g/Nppc/Dnm3/Adcy6/Cspg4/Tlx3/Ascl1/Lrp4/Vim/Ptger3/Mbd1/Rgma/Dleu2/Stmn2/Gli3/Trpv1/Olfm1/Ednrb/Ski/Rap1gap/Syt4/Kdm4a/Sema3d/Sema4d/Nkx2-2/Il15ra/Rcc2/Tnfrsf23/Gpr37l1/Six3/Gdi1/Foxo3/Stap1/Ntrk3/Xylt1/Apoe/F2/Tsc1/Fstl4/Mt3/Gfap/Med1/Tnr/Nbn/Rtn4r/Wnt3/Il1b/Fezf2/Gsk3b/Isl1 | I59: 101
A60: GO:0098661 | B60: inorganic anion transmembrane transport | C60: 31/4600 | D60: 80/23843 | E60: 4.16E-05 | F60: 0.004892598651 | G60: 0.003984074997 | H60: Mtor/Slc26a9/Clca3b/Clca4b/Slc1a3/Clca3a2/Slc37a2/Slc12a2/Clca1/Ptafr/Slc26a4/Glrb/Clic3/Slc37a1/Clic4/Clcn1/Slc4a11/Slc12a5/Slc26a8/Best1/Slc12a8/Prnp/Fxyd1/Slc26a11/Grm5/Clcn6/Ano9/Slc26a3/Glra4/Slc26a1/Slc20a2 | I60: 31
A61: GO:0006821 | B61: chloride transport | C61: 37/4600 | D61: 102/23843 | E61: 4.37E-05 | F61: 0.004982138763 | G61: 0.004056988094 | H61: Clca3a1/Slc26a9/Clca3b/Gabrp/Clca4a/Clca4b/Slc1a3/Clca3a2/P2ry6/Prkg2/Slc12a2/Clca1/Abcb1a/Ptafr/Slc26a4/Glrb/Clic3/Gabrd/Clic4/Clcn1/P2ry4/Slc12a5/Slc26a8/Best1/Ano10/Slc12a8/Prnp/Ttyh2/Slc26a11/Grm5/Clcn6/Ano9/Slc26a3/Ano7/Glra4/Cldn4/Slc26a1 | I61: 37
A62: GO:2001056 | B62: positive regulation of cysteine-type endopeptidase activity | C62: 44/4600 | D62: 129/23843 | E62: 4.99E-05 | F62: 0.005453825984 | G62: 0.004441086075 | H62: Dapk1/Sox7/Slc11a2/Uaca/Ifi27l2a/Aim2/Wnt3a/Col4a3/Nlrp1b/Ripk2/Acer2/Tnf/Fas/Nlrc4/Ifi27/Stat1/Tnfsf10/Casp8ap2/Map3k5/Pparg/Lck/Nek5/Ifi27l2b/Senp1/Dlc1/Bok/Casp8/Pidd1/Gramd4/Apaf1/F3/Acvr1c/Casp12/Pmaip1/St18/Casp9/Nlrp3/Casp4/Cflar/S100a9/Cyfip2/Xdh/S100a8/Htra2 | I62: 44
A63: GO:0051403 | B63: stress-activated MAPK cascade | C63: 71/4600 | D63: 237/23843 | E63: 5.00E-05 | F63: 0.005453825984 | G63: 0.004441086075 | H63: Flt4/Cbs/Sash1/Tnfrsf19/Trp73/Syk/Il1a/Gadd45a/Mapk8/Ripk2/Map3k7/Tnf/Zmynd11/Map3k13/Map2k3/Fas/Mdfi/Eif2ak2/Dvl3/Rasgrp1/Map4k4/Ror2/Dnaja1/Dixdc1/Map3k5/Trib1/Zc3h12a/Dusp22/Tlr6/Fgd2/Phlpp1/Zfp36/Egfr/Arhgef5/Fzd4/Ankrd6/Mapk11/Sfrp1/Tpd52l1/Mdfic/Plcb1/Zeb2/Cd27/Hipk2/Mapk10/Ptger4/Mapk13/Gab1/Mapkbp1/Map3k3/5730559C18Rik/Hsph1/Zfp36l1/Map3k1/Rassf2/Eda2r/Spag9/Cops5/Hmgcr/Vangl2/Ncor1/Map3k9/Tnxb/Xdh/Sfrp2/Rb1cc1/Gdf6/Mapk8ip3/Il1b/Mapk8ip2/Ercc6 | I63: 71
A64: GO:0046942 | B64: carboxylic acid transport | C64: 82/4600 | D64: 283/23843 | E64: 5.11E-05 | F64: 0.00545396849 | G64: 0.004441202119 | H64: Slc16a6/Slco2a1/Slc16a11/Bdkrb2/Slc15a1/Mfsd2a/Pla2g4f/Slc6a14/Slc26a9/Slco3a1/Slc5a8/AU018091/Slc6a20a/Slc16a9/Pla2r1/Slc1a3/Emb/Stra6l/Slc16a7/Syk/Folr2/P2rx7/Slc7a2/Apba1/Il1a/Htr6/Slc38a9/Slc25a22/Tnf/Pqlc2/Arg1/Cacna1a/Pparg/Proca1/Slc26a4/Aqp9/Slc7a3/Prkg1/Agxt/Prkcd/Abat/Xk/Htt/Slc38a3/Ace2/Slc7a14/Slc6a19/Irs2/Slc43a1/Slc1a4/Plin2/Slc13a5/Slc16a13/Slc26a8/Slco1a5/Ctns/Trpv1/Syt4/Slc36a2/Slc27a4/Slc6a17/Slc16a14/Slc1a6/Grin2b/Slc1a2/Abcc2/Apoe/Lrp2/Slc26a3/Slc9a3r1/Repin1/Slc16a4/Cd36/Slc26a1/Slc19a1/Slc16a12/Pla2g2d/Il1b/Folr1/Slc38a1/Ntrk2/Pla2g2e | I64: 82
A65: GO:0032963 | B65: collagen metabolic process | C65: 33/4600 | D65: 88/23843 | E65: 5.18E-05 | F65: 0.00545396849 | G65: 0.004441202119 | H65: Tgfb3/Serpinh1/Errfi1/Mmp2/Bmp4/P2rx7/Ctss/Id1/Fap/Tgfbr3/Mrc2/Arg1/Pparg/Rgcc/Adamts3/Prkcd/Scx/Ltbp1/Mkx/Vim/P3h3/Mmp9/Suco/Itga2/Serpinb7/Rapgef3/Mmp8/Mmp16/Larp6/F2/Tnxb/Creb3l1/P3h1 | I65: 33
A66: GO:0045616 | B66: regulation of keratinocyte differentiation | C66: 16/4600 | D66: 31/23843 | E66: 5.52E-05 | F66: 0.005611612298 | G66: 0.0045695725 | H66: Msx2/Errfi1/Prkch/Ncoa3/Notch1/Grhl1/Krt84/Alox8/Cd109/H2afy/Trim16/Zfp36/Vdr/Zfp36l1/Med1/Cyp27b1 | I66: 16
A67: GO:0040013 | B67: negative regulation of locomotion | C67: 87/4600 | D67: 305/23843 | E67: 5.74E-05 | F67: 0.005736462349 | G67: 0.004671238711 | H67: Sulf1/Evl/Ptprm/Erdr1/Dach1/Clasp1/Rnf20/Nrp1/Ccdc125/Notch1/Arhgdib/Stard13/Nbl1/Slit1/Nav3/Sema3b/C5ar2/Tpm1/Wnt3a/Ap1ar/Podn/Tgfbr3/Has1/Nrg1/Wnt11/Cxcl12/Trim25/Trp53inp1/Ptpn23/Stk26/Cx3cr1/Osbpl8/Pparg/Trib1/Ldlrad4/Bcl2/Rgcc/Spred1/Ccl25/Prkg1/Krt16/Sfrp1/Clic4/Sema3e/Ppargc1a/Srgap2/Plcb1/Chrd/Dlc1/Arhgap4/Sema4g/Tcaf1/Timp1/Angpt4/Fgf2/Ptger4/Aif1/Ptprr/Reck/Rap2c/Gtpbp4/Hnf4a/Olfm1/Acvr1c/Sema3d/Krit1/Sema4d/Mmrn2/Miip/Ghrl/Grm5/Cited2/Pfn2/Cd300a/Phldb2/Stap1/Apoe/Slc9a3r1/Frmd5/Scai/Trim32/Wfdc6a/Sfrp2/Wnt3/Ptpru/Dcn/Gsk3b | I67: 87
A68: GO:0002791 | B68: regulation of peptide secretion | C68: 128/4600 | D68: 483/23843 | E68: 5.86E-05 | F68: 0.005757689194 | G68: 0.00468852387 | H68: Ica1/Tgfb3/Gpr27/Chd7/Apln/Il1r2/Myh10/Kalrn/Rsad2/Syk/Tlr5/Nos1/Glrx/Trpm2/P2rx7/Sidt2/Tslp/C5ar2/Aim2/Llgl2/Il1a/Hmgn3/Lgals9/Ripk2/Unc13b/Cnr1/Cd274/Adrb1/Foxp3/Tnf/Postn/Gipr/Alox8/Tlr2/Cd14/Ptpn23/Rasgrp1/Map4k4/Ubr5/Nucb2/Tnfrsf4/Pparg/Igf1/Zc3h12a/Sybu/Rgcc/Tlr6/Trim16/Rab11fip1/Egfr/Lif/Mapk11/Clcf1/Il4ra/Nlrp10/Sfrp1/Il1rl1/Arhgef7/Abat/Il17f/Hfe/Htr2b/Ssc5d/Ddx58/Myt1/Otud5/Arid5a/Malrd1/Irs2/Ppid/Ffar4/Rapgef4/Trim6/Ptger4/Srcin1/Ifih1/Dnm1l/Ptger3/C1qtnf3/Cidea/Oprm1/Hnf4a/Chuk/Midn/Mapkbp1/Syt7/Mir200a/Syt4/Acvr1c/Ttn/Cd84/Lepr/Bmp8a/Lpl/H2-T23/Tfr2/Egf/Sct/Nlrp3/Vpreb3/Casp4/Ghrl/Hmgcr/Cacna1e/Phpt1/Stxbp5/Ahi1/Rhbdf2/Nnat/Mavs/Slc9b2/S100a9/Ptprv/Zfp384/Cd36/Tnfrsf21/Wls/Il17rb/Rab11fip3/Madd/S100a8/Il1b/Lrrc32/P3h1/Ildr1/Isl1/Pfkfb2/Stxbp5l | I68: 128
A69: GO:0031589 | B69: cell-substrate adhesion | C69: 87/4600 | D69: 306/23843 | E69: 6.52E-05 | F69: 0.006110635425 | G69: 0.004975930288 | H69: Dmtn/Dmd/Pcsk5/Itga1/Alox15/Slk/Ccdc80/Strc/Has2/Col26a1/Epdr1/Camsap3/Clasp1/Egfl6/Lypd5/Edil3/Col16a1/Col5a3/Tyro3/Nrp1/Sorbs3/Macf1/Notch1/Nid1/Pik3cb/Ptprz1/Ap1ar/Antxr1/Smoc1/Acer2/Hacd1/Actn2/Postn/Abi3bp/Rasa1/Bves/Itga5/Disc1/Flna/Itgb2/Pip5k1a/Col8a1/Itgb4/Bcl2/Ephb3/Ccl25/Fzd4/Adamts12/Fermt2/Vwf/Sfrp1/Sema3e/Sorbs1/Srgap2/Prex1/Unc13d/Itga11/Dlc1/Mertk/Tmem8b/Vamp3/Srcin1/Rreb1/Gm9573/Itga4/Itgb2l/Spock2/Angptl3/Enpp2/Itga2/Rcc2/Itgal/Itga8/Foxf1/Triobp/Itgb3/Phldb2/Onecut2/Tsc1/Ecm2/Tnxb/Vit/Cd36/Rhod/Sned1/Gsk3b/S100a10 | I69: 87
A70: GO:0051051 | B70: negative regulation of transport | C70: 131/4600 | D70: 498/23843 | E70: 6.94E-05 | F70: 0.006406877699 | G70: 0.005217162304 | H70: Dmtn/Ppp1r9a/Slc15a1/Grb10/Ank3/Mtor/Upk3b/Il1r2/Kalrn/Fabp5/Rsad2/Abcg2/Pacsin3/Wnk3/Notch1/Tcaf2/Cttnbp2nl/Nos1/Tpr/C5ar2/Lgals9/Prkg2/Grk6/Nup153/Cnr1/Htr6/Serpine2/Oxsr1/Foxp3/Actn2/Tnf/Tlr2/Ppif/Wnk1/Esr1/Bst2/Il11/Map4k4/Entpd1/Gnaq/Ubr5/Nucb2/Tnfrsf4/Pparg/Zc3h12a/Svip/Lrrtm2/Agrn/Bcl2/Rgcc/Tlr6/Rab11fip1/Prom2/Gpr35/Lif/Pacsin1/Prkg1/Siglece/Sfrp1/Ankrd27/Cnih2/Abat/Mdfic/Ssc5d/Otud5/Pkdcc/Irs2/Atp7a/Sh2b2/Vamp3/Bok/Ffar4/Ptger4/Srcin1/Npy1r/Parp10/Ptger3/Oprl1/C1qtnf3/Cidea/Nos3/Oprm1/Hnf4a/Ptgs1/Mmp9/Midn/Casq2/Mapkbp1/Syt4/Acvr1c/Hmox1/Siah3/Cd84/Bmp8a/Egf/Sct/Nlrp3/Kcnab1/Lrrtm1/Foxf1/Lypla1/Vpreb3/Ghrl/Hmgcr/Pde2a/Hrc/Inha/Gdi1/Cd300a/Itgb3/Erbb3/Ano9/Ahi1/Rhbdf2/Pcsk9/Rangap1/Ptprv/Oaz3/Slc9a3r1/Wfdc6a/Tnfrsf21/Hecw1/Rab11fip3/Madd/Il1b/Adra1d/Wwp2/Lrrc32/Chp1/Stxbp5l/Ogt | I70: 131
A71: GO:0032970 | B71: regulation of actin filament-based process | C71: 104/4600 | D71: 380/23843 | E71: 7.32E-05 | F71: 0.006624949872 | G71: 0.005394739897 | H71: Dmtn/Ppp1r9a/Tgfb3/Plekhh2/Mtor/Evl/Lpar1/Alox15/Ank2/Arhgap44/Clasp1/Cacna1c/Nrp1/Sorbs3/Arhgdib/Ntf3/Rhobtb3/Gmfg/Spire1/Cdk5r1/Dsp/Rhoc/Trpm2/Avil/Dsc2/Id1/Tpm1/Eps8l2/Ap1ar/Arhgap40/Il1a/Wipf3/Pdlim4/Kirrel/Rnf207/Eps8l1/Kcnj2/Adrb1/Baiap2/Rhoj/Actn2/Wnt11/Fchsd1/Actr3b/Rasa1/Tlr2/Tmod4/Arap1/Arhgap17/Flna/Bst2/Arhgef15/Wasf2/Grhl3/Wipf1/Dixdc1/Rnd3/Rgcc/Myh9/Arhgef5/Tnnt2/Synpo2/Prkcd/Gm14137/Sema3e/Prex1/Kank3/Dlc1/Ppm1e/Frmd7/Ccdc88a/Cdk10/Tmod2/Ptger4/Arhgef10l/Ptger3/Prox1/Odam/Casq2/Ryr2/Scn5a/Map3k1/Fxyd1/Rapgef3/Nck2/Jmy/Fscn1/Ctnna3/Triobp/Phpt1/Vangl2/Pfn2/Synpo2l/Itgb3/Phldb2/Stap1/Ntrk3/Tsc1/Tmod1/Rhod/Capzb/Nckap1l/Rhof/S100a10 | I71: 104
A72: GO:0043406 | B72: positive regulation of MAP kinase activity | C72: 66/4600 | D72: 219/23843 | E72: 7.40E-05 | F72: 0.006624949872 | G72: 0.005394739897 | H72: Tgfb3/Itga1/Lpar1/Pik3cg/Sash1/Trp73/Bmp4/Ntf3/Syk/Lpar3/Map3k6/P2rx7/Pde5a/Plce1/Gadd45a/Map3k7/Tnf/Map3k13/Map2k3/Mdfi/Eif2ak2/Dvl3/Rasgrp1/Ror2/Map3k5/Igf1/Tlr6/Flt1/Fgd2/Egfr/Arhgef5/Fzd4/Muc20/Pik3r6/Prkcd/Tpd52l1/Htr2b/Ighm/Mdfic/Zeb2/Fgf2/Cspg4/Epgn/Traf7/Gab1/Mapkbp1/Grm4/Adra2b/5730559C18Rik/Ghr/Fgfr1/Map3k1/Egf/Spag9/Ghrl/Grm5/Vangl2/Map3k9/Ntrk3/Pdgfc/Pde6g/Shc2/Mapk8ip3/Madd/Il1b/Ercc6 | I72: 66
A73: GO:0060700 | B73: regulation of ribonuclease activity | C73: 10/4600 | D73: 15/23843 | E73: 8.16E-05 | F73: 0.006724337757 | G73: 0.0054756721 | H73: Oas1a/Oas1g/Oas2/Oasl2/Oas3/Oasl1/Oas1h/Oas1b/Oas1e/Abce1 | I73: 10
A74: GO:1904950 | B74: negative regulation of establishment of protein localization | C74: 58/4600 | D74: 187/23843 | E74: 8.22E-05 | F74: 0.006724337757 | G74: 0.0054756721 | H74: Dmtn/Il1r2/Rsad2/Nos1/C5ar2/Lgals9/Foxp3/Tnf/Map4k4/Dnaja1/Ubr5/Tnfrsf4/Zc3h12a/Svip/Rgcc/Tlr6/Rab11fip1/Sfrp1/Mdfic/Ssc5d/Otud5/Pkdcc/Ffar4/Ptger4/Srcin1/Parp10/Ptger3/C1qtnf3/Cidea/Oprm1/Hnf4a/Midn/Mapkbp1/Syt4/Acvr1c/Siah3/Hsph1/Cd84/Bmp8a/Nlrp3/Lypla1/Vpreb3/Ghrl/Hmgcr/Pde2a/Gdi1/Rhbdf2/Rangap1/Ptprv/Tnfrsf21/Rab11fip3/Madd/Il1b/Wwp2/Lrrc32/Chp1/Stxbp5l/Ogt | I74: 58
A75: GO:0010952 | B75: positive regulation of peptidase activity | C75: 49/4600 | D75: 151/23843 | E75: 8.23E-05 | F75: 0.006724337757 | G75: 0.0054756721 | H75: Dapk1/Sox7/Slc11a2/Uaca/Ifi27l2a/Aim2/Wnt3a/Col4a3/Antxr1/Nlrp1b/Ripk2/Acer2/Tnf/Fas/Tank/Nlrc4/Ifi27/Stat1/Tnfsf10/Casp8ap2/Map3k5/Pparg/Lck/Nek5/Efna3/Ifi27l2b/Senp1/Dlc1/Bok/Casp8/Pidd1/Gramd4/Apaf1/F3/Acvr1c/Casp12/Akirin2/Pmaip1/St18/Casp9/Nlrp3/Casp4/Cflar/S100a9/Cyfip2/Xdh/Sfrp2/S100a8/Htra2 | I75: 49
A76: GO:0006520 | B76: cellular amino acid metabolic process | C76: 78/4600 | D76: 270/23843 | E76: 8.55E-05 | F76: 0.006724337757 | G76: 0.0054756721 | H76: Cdo1/Cbs/Slc6a14/Pm20d1/Ddah2/Ggt1/Slc1a3/Rars2/Azin2/Nmnat2/Mtr/Nos1/Bcat1/Glyat/Cyp2d22/Gls/Cad/Gls2/Mtrr/Hykk/Oat/Cth/Sardh/Upb1/Atp2b4/Prdx4/Gss/Arg1/Fah/Cacna1a/Mars2/Nmnat1/Gart/Pfas/Got1l1/Acy1/Agxt/Pcbd1/Abat/Htt/Hmgcl/Hpdl/Shmt1/Ivd/Atp7a/Baat/Auh/Dao/Stat5b/Iars2/Ddo/Nos3/Hnf4a/Ddc/Ears2/Dars2/Pcyox1l/Plod1/Haao/Wars/Qrsl1/Ghr/Gm853/Hal/Gclm/Gatb/Ctps/Pipox/Gatm/Sds/Icmt/Aass/Lrrc47/Atcay/Hgd/Aars2/Uroc1/Aasdh | I76: 78
A77: GO:0031346 | B77: positive regulation of cell projection organization | C77: 116/4600 | D77: 434/23843 | E77: 8.68E-05 | F77: 0.006724337757 | G77: 0.0054756721 | H77: Map6/Ppp1r9a/Dmd/Tgfb3/Mtor/Lpar1/Kalrn/Bmp7/Bcl11a/Nrp1/Cobl/Xlr3b/Rims2/Bmp4/Kdm1a/Lpar3/Palm/Nav3/Ptprd/Xlr4b/Ptprz1/P2rx7/Crabp2/Avil/Fyn/Lrp8/Eps8l2/Wnt3a/Plxnd1/Tubb2b/Cux2/Ocm/Plk5/Eps8l1/Cnr1/Serpine2/Baiap2/Cntn1/Nrg1/Cxcl12/Plekhm1/Arap1/Disc1/Plaa/Cpeb1/Wasf2/Lcn2/Enc1/Scn1b/Fez1/Dixdc1/Dvl1/Agrn/Prom2/Lif/Foxo6/Fzd4/Unc13a/Pacsin1/Epor/Rapgef2/Skil/Gm14137/Ankrd27/Neurl1a/Rufy3/Rims1/Zeb2/Htt/Frmd7/Ccdc88a/Ppp2r5b/Itsn2/Atp7a/Dnm3/Zfp804a/Myo3b/Caprin2/Dnm1l/Rreb1/Rgma/Plxna4/Stmn2/Cpeb3/Qk/Lrrc7/Syt4/Enpp2/Tenm3/Bmpr2/Shox2/Itga2/Camk1d/Sema4d/Fgfr1/Fscn1/Cpne9/Dcc/Gdi1/Ntrk3/Apoe/Plxnc1/Ahi1/Cflar/S100a9/Ache/Kat2a/Ptpn5/Crocc/Smurf1/Wnt3/D16Ertd472e/Ptprf/P3h1/Gsk3b/Ntrk2 | I77: 116
A78: GO:0085029 | B78: extracellular matrix assembly | C78: 16/4600 | D78: 32/23843 | E78: 9.07E-05 | F78: 0.006852678593 | G78: 0.00558018088 | H78: Has2/Clasp1/Notch1/Thsd4/Myh11/Antxr1/Has1/Ramp2/Rgcc/Loxl1/Fam234b/Lamc2/Atp7a/Phldb2/Tnxb/Hapln2 | I78: 16
A79: GO:0034724 | B79: DNA replication-independent nucleosome organization | C79: 15/4600 | D79: 29/23843 | E79: 9.14E-05 | F79: 0.006852678593 | G79: 0.00558018088 | H79: Hist1h4c/Ipo4/Hist1h4a/Supt16/Hist1h4m/Nasp/Hist1h4n/Hist1h4d/Cabin1/Hist1h4i/Oip5/Hist1h4k/Hist1h4j/Hist1h4h/Hist4h4 | I79: 15
A80: GO:0001819 | B80: positive regulation of cytokine production | C80: 109/4600 | D80: 404/23843 | E80: 9.33E-05 | F80: 0.006907112406 | G80: 0.005624506689 | H80: Sulf1/Sulf2/Afap1l2/Flt4/Il1rl2/Rsad2/Dhx58/Heg1/Syk/Tlr5/Cyba/Zcchc11/P2rx7/Rora/Tslp/Aim2/Txk/Dlk1/B2m/Il1f9/Il1f6/Wnt3a/Il1a/Lgals9/Ripk2/Ddx60/Cd274/Foxp3/Tigit/Pum1/Tnf/Postn/Il7/Wnt11/Ltb/Gbp5/Alox8/Cd1d1/Tlr2/Cd14/Ereg/Eif2ak2/Mb21d1/Rasgrp1/Arhgef2/Stat1/Il1f8/Il15/Ptafr/Irf7/Rgcc/Nfatc4/Nfam1/Tlr6/Trim16/Irf4/Mapk11/Il4ra/Nlrp10/Hilpda/Il1rl1/Il17f/Htr2b/Plcb1/Il20rb/Tspan6/Ddx58/Cd27/Arid5a/Polr3a/Il18r1/Trim6/Ptger4/Ifih1/Mapk13/Stat5b/Fam49b/C1qtnf3/Csf2/Arnt/Spon2/Chuk/Cd6/Lta/Arfgef2/5730559C18Rik/Akirin2/Cd84/Lpl/H2-T23/Serpinb7/H2-M3/Nlrp3/Dhx33/Casp4/Mcoln2/Tnfrsf13c/C3ar1/Il17c/Nras/Ulbp1/Mavs/Cd36/Trim32/Il17rb/Prg2/Il1b/Slamf6/Isl1 | I80: 109
A81: GO:0010950 | B81: positive regulation of endopeptidase activity | C81: 47/4600 | D81: 144/23843 | E81: 9.71E-05 | F81: 0.007104037007 | G81: 0.005784863676 | H81: Dapk1/Sox7/Slc11a2/Uaca/Ifi27l2a/Aim2/Wnt3a/Col4a3/Nlrp1b/Ripk2/Acer2/Tnf/Fas/Nlrc4/Ifi27/Stat1/Tnfsf10/Casp8ap2/Map3k5/Pparg/Lck/Nek5/Efna3/Ifi27l2b/Senp1/Dlc1/Bok/Casp8/Pidd1/Gramd4/Apaf1/F3/Acvr1c/Casp12/Akirin2/Pmaip1/St18/Casp9/Nlrp3/Casp4/Cflar/S100a9/Cyfip2/Xdh/Sfrp2/S100a8/Htra2 | I81: 47
A82: GO:0006919 | B82: activation of cysteine-type endopeptidase activity involved in apoptotic process | C82: 29/4600 | D82: 76/23843 | E82: 0.0001005259844 | F82: 0.007225479404 | G82: 0.005883755012 | H82: Slc11a2/Ifi27l2a/Col4a3/Nlrp1b/Acer2/Tnf/Nlrc4/Ifi27/Stat1/Casp8ap2/Pparg/Lck/Ifi27l2b/Senp1/Dlc1/Bok/Casp8/Pidd1/Apaf1/F3/Casp12/Pmaip1/Casp9/Nlrp3/Casp4/Cflar/S100a9/Xdh/S100a8 | I82: 29
A83: GO:0043280 | B83: positive regulation of cysteine-type endopeptidase activity involved in apoptotic process | C83: 40/4600 | D83: 117/23843 | E83: 0.0001011904418 | F83: 0.007225479404 | G83: 0.005883755012 | H83: Dapk1/Sox7/Slc11a2/Uaca/Ifi27l2a/Wnt3a/Col4a3/Nlrp1b/Acer2/Tnf/Fas/Nlrc4/Ifi27/Stat1/Tnfsf10/Casp8ap2/Map3k5/Pparg/Lck/Ifi27l2b/Senp1/Dlc1/Bok/Casp8/Pidd1/Gramd4/Apaf1/F3/Acvr1c/Casp12/Pmaip1/St18/Casp9/Nlrp3/Casp4/Cflar/S100a9/Xdh/S100a8/Htra2 | I83: 40
A84: GO:0051345 | B84: positive regulation of hydrolase activity | C84: 129/4600 | D84: 495/23843 | E84: 0.0001219625823 | F84: 0.008396142255 | G84: 0.006837033408 | H84: Dapk1/Itga1/Sox7/Slc11a2/Lpar1/Kalrn/Epha2/Pdgfra/Mtss1l/Ccl6/Tbc1d30/Arhgef37/Rgp1/Ccdc125/Uaca/Ntf3/Rhoc/Tbc1d9/Ifi27l2a/Aim2/Txk/Tpm1/Arhgap27/Wnt3a/Col4a3/Antxr1/Tbc1d21/Mapk8/Nlrp1b/Ripk2/Acer2/Adrb1/Tnf/Wnt11/Rasa1/Arap1/Fas/Tank/Sgsm2/Nlrc4/Plaa/Esr1/Ifi27/Dvl3/Dock9/Rasgrp1/Tbc1d7/Pip5k1a/Stat1/Grhl3/Tnfsf10/Gnaq/Casp8ap2/Map3k5/Ptafr/Pparg/Lck/Agrn/Flt1/Rgs10/Nek5/Ccl25/Arhgef5/Efna3/Ralgapb/Tnnt2/Rapgef2/Dennd1b/Prkcd/Ifi27l2b/Senp1/Ddx11/Ankrd27/Ccl9/Srgap2/Ripk3/Arhgef7/Htr2b/Prex1/Dlc1/Usp6nl/Tbc1d2/Ppp1r12a/Bok/Casp8/Fgf2/Pidd1/Myo9b/Dennd6b/Rgma/Odam/Gramd4/Apaf1/F3/Dock8/Ryr2/Rap1gap/Acvr1c/Casp12/Akirin2/Pmaip1/Ric1/Itga2/Sema4d/Fgfr1/Rcc2/St18/Hnrnpu/Casp9/Rapgef3/Nlrp3/Casp4/Pfn2/Cd300a/Ntrk3/Cflar/Rangap1/Tsc1/S100a9/Cyfip2/Xdh/Sfrp2/Rgs6/Rtn4r/S100a8/Dock10/Gsk3b/Htra2/S100a10 | I84: 129
A85: GO:0022612 | B85: gland morphogenesis | C85: 47/4600 | D85: 146/23843 | E85: 0.0001407917779 | F85: 0.009343981734 | G85: 0.007608865279 | H85: Tnc/Sulf1/Sulf2/Msx2/Bmp7/Epha2/Ncoa3/Nrp1/Notch1/Mmp2/Bmp4/Etv5/Etv4/Areg/Duox2/Id4/Hpn/Wnt3a/Plxnd1/Slc12a2/Tnf/Esr1/Esrp1/Igf1/Polb/Pgr/Bcl2/Egfr/Sfrp1/Vdr/Lama1/Tbx2/Nfib/Prox1/Esrp2/Gli3/Tfap2c/Msn/Tbx3/Fgfr1/Kdm5b/Rln1/Bsx/Cflar/Slc9a3r1/Med1/Ctnnd1 | I85: 47
A86: GO:0032874 | B86: positive regulation of stress-activated MAPK cascade | C86: 48/4600 | D86: 150/23843 | E86: 0.0001414709286 | F86: 0.009343981734 | G86: 0.007608865279 | H86: Flt4/Sash1/Tnfrsf19/Syk/Il1a/Gadd45a/Ripk2/Map3k7/Tnf/Mdfi/Eif2ak2/Dvl3/Rasgrp1/Map4k4/Ror2/Dixdc1/Map3k5/Zc3h12a/Dusp22/Tlr6/Fgd2/Arhgef5/Fzd4/Ankrd6/Tpd52l1/Mdfic/Plcb1/Zeb2/Cd27/Hipk2/Gab1/Mapkbp1/Map3k3/5730559C18Rik/Map3k1/Rassf2/Eda2r/Spag9/Hmgcr/Vangl2/Map3k9/Xdh/Rb1cc1/Gdf6/Mapk8ip3/Il1b/Mapk8ip2/Ercc6 | I86: 48
A87: GO:0051224 | B87: negative regulation of protein transport | C87: 56/4600 | D87: 183/23843 | E87: 0.0001603444114 | F87: 0.0103054309 | G87: 0.008391779604 | H87: Dmtn/Il1r2/Rsad2/Nos1/C5ar2/Lgals9/Foxp3/Tnf/Map4k4/Ubr5/Tnfrsf4/Zc3h12a/Svip/Rgcc/Tlr6/Rab11fip1/Sfrp1/Mdfic/Ssc5d/Otud5/Pkdcc/Ffar4/Ptger4/Srcin1/Parp10/Ptger3/C1qtnf3/Cidea/Oprm1/Hnf4a/Midn/Mapkbp1/Syt4/Acvr1c/Siah3/Cd84/Bmp8a/Nlrp3/Lypla1/Vpreb3/Ghrl/Hmgcr/Pde2a/Gdi1/Rhbdf2/Rangap1/Ptprv/Tnfrsf21/Rab11fip3/Madd/Il1b/Wwp2/Lrrc32/Chp1/Stxbp5l/Ogt | I87: 56
A88: GO:2000146 | B88: negative regulation of cell motility | C88: 74/4600 | D88: 258/23843 | E88: 0.0001632237304 | F88: 0.0103054309 | G88: 0.008391779604 | H88: Sulf1/Evl/Ptprm/Erdr1/Dach1/Clasp1/Rnf20/Ccdc125/Notch1/Arhgdib/Stard13/Nbl1/Nav3/C5ar2/Tpm1/Ap1ar/Podn/Tgfbr3/Has1/Nrg1/Wnt11/Cxcl12/Trp53inp1/Ptpn23/Stk26/Cx3cr1/Osbpl8/Pparg/Trib1/Ldlrad4/Bcl2/Rgcc/Spred1/Ccl25/Prkg1/Krt16/Sfrp1/Clic4/Ppargc1a/Srgap2/Plcb1/Chrd/Dlc1/Arhgap4/Tcaf1/Timp1/Angpt4/Fgf2/Ptger4/Aif1/Ptprr/Reck/Rap2c/Gtpbp4/Hnf4a/Olfm1/Acvr1c/Krit1/Mmrn2/Miip/Cited2/Pfn2/Cd300a/Phldb2/Stap1/Apoe/Slc9a3r1/Frmd5/Scai/Wfdc6a/Sfrp2/Ptpru/Dcn/Gsk3b | I88: 74
A89: GO:0034765 | B89: regulation of ion transmembrane transport | C89: 117/4600 | D89: 445/23843 | E89: 0.0001679221745 | F89: 0.01034634415 | G89: 0.008425095534 | H89: Dmd/Dapk1/Ank3/Mtor/Chd7/Pik3cg/Ank2/Pm20d1/Cemip/Cacna1c/Pdzk1/Wnk3/Tcaf2/Bmp4/Kcnc2/Cyba/Nos1/Glrx/P2rx7/Ctss/Fyn/Arc/Kcnq5/Myo5a/Slc31a2/Kcnh1/Grk6/Rnf207/Kcnj2/Cxcl10/Oxsr1/Adrb1/Actn2/Tnf/Jph2/Atp2b4/Cacna2d3/Ppif/Wnk1/Abcb1a/Flna/Kcnq4/Kcnv1/Scn1b/Galr2/Snta1/Cacna1a/Ptafr/Agrn/Ptpn3/Stac/Gpr35/Clic3/Kcnh7/Prkg1/Clic4/Ppargc1a/Clcn1/Cnih2/Cacna2d2/Hvcn1/Plcb1/Htt/Catsper4/Kcnj9/Mettl21c/Capn3/Irs2/Atp7a/Tcaf1/Ptger3/Gsg1l/Oprl1/Casq1/Kcnj14/Kcns1/Fxyd6/Gpr89/Oprm1/Mmp9/Casq2/Kcnk13/Catsper2/Ryr2/Prnp/Kcnip1/Homer1/Scn5a/Fxyd1/Fhl1/Slc36a2/Rapgef3/Nos1ap/Kcnab1/Dpp6/Cacna1e/Grm5/Catsper3/Hrc/Itgb3/Kcnip4/Ano9/F2/Pcsk9/Stac3/Slc9a3r1/Bdkrb1/Kcnb2/Hecw1/Kcnk7/Kcna2/Cacna1d/Adra1d/Wwp2/Mapk8ip2/Cacng2/Chp1 | I89: 117
A90: GO:0070304 | B90: positive regulation of stress-activated protein kinase signaling cascade | C90: 48/4600 | D90: 151/23843 | E90: 0.0001690466367 | F90: 0.01034634415 | G90: 0.008425095534 | H90: Flt4/Sash1/Tnfrsf19/Syk/Il1a/Gadd45a/Ripk2/Map3k7/Tnf/Mdfi/Eif2ak2/Dvl3/Rasgrp1/Map4k4/Ror2/Dixdc1/Map3k5/Zc3h12a/Dusp22/Tlr6/Fgd2/Arhgef5/Fzd4/Ankrd6/Tpd52l1/Mdfic/Plcb1/Zeb2/Cd27/Hipk2/Gab1/Mapkbp1/Map3k3/5730559C18Rik/Map3k1/Rassf2/Eda2r/Spag9/Hmgcr/Vangl2/Map3k9/Xdh/Rb1cc1/Gdf6/Mapk8ip3/Il1b/Mapk8ip2/Ercc6 | I90: 48
A91: GO:0007254 | B91: JNK cascade | C91: 57/4600 | D91: 188/23843 | E91: 0.0001849252508 | F91: 0.01098199658 | G91: 0.008942711451 | H91: Flt4/Cbs/Sash1/Tnfrsf19/Trp73/Syk/Il1a/Gadd45a/Mapk8/Ripk2/Map3k7/Tnf/Zmynd11/Map3k13/Mdfi/Dvl3/Rasgrp1/Map4k4/Ror2/Dnaja1/Dixdc1/Map3k5/Trib1/Dusp22/Tlr6/Fgd2/Phlpp1/Egfr/Arhgef5/Fzd4/Ankrd6/Sfrp1/Tpd52l1/Mdfic/Plcb1/Zeb2/Cd27/Hipk2/Mapk10/Ptger4/Gab1/Mapkbp1/Map3k1/Rassf2/Eda2r/Spag9/Cops5/Vangl2/Ncor1/Map3k9/Tnxb/Sfrp2/Rb1cc1/Mapk8ip3/Il1b/Mapk8ip2/Ercc6 | I91: 57
A92: GO:0051236 | B92: establishment of RNA localization | C92: 49/4600 | D92: 156/23843 | E92: 0.0002008296222 | F92: 0.0116307469 | G92: 0.009470993068 | H92: Ranbp17/Supt6/Tpr/Sidt2/Bicd2/Ncbp1/Nup153/Senp2/Aaas/Xpo1/Xpo5/Nup188/Cpeb1/Nol6/Zfp36/Pnpt1/Thoc2/Abce1/Htt/Srsf7/Atr/Rbm26/Tchhl1/Srsf10/Qk/Cpsf6/Smg7/Rftn1/Nup88/Nup210/Lrpprc/Nup160/Nup93/Tnks/Zfp36l1/Sidt1/Nup43/Sdad1/Magohb/Zc3h11a/Nup155/Atm/Nup54/Tsc1/Hnrnpa2b1/Nup214/Srsf1/Hnrnpa1/Thoc1 | I92: 49
A93: GO:2000181 | B93: negative regulation of blood vessel morphogenesis | C93: 37/4600 | D93: 109/23843 | E93: 0.0002128534152 | F93: 0.01196501999 | G93: 0.009743193828 | H93: Sulf1/Ptprm/Sparc/Epha2/Notch1/Stard13/Col4a3/Col4a2/Tcf4/Cxcl10/Ago1/Stab1/Optc/Cx3cr1/Stat1/Pparg/Adgrb2/Rgcc/Spred1/Lif/Efna3/Sema3e/Il17f/Plk2/Angpt4/Ptger4/Sema6a/Gpr4/Tnmd/Krit1/Ecscr/Mmrn2/Cd36/Xdh/Thbs2/Dcn/Adgrb3 | I93: 37
A94: GO:0032755 | B94: positive regulation of interleukin-6 production | C94: 30/4600 | D94: 83/23843 | E94: 0.000238618586 | F94: 0.01247182613 | G94: 0.01015588938 | H94: Il1rl2/Cyba/Zcchc11/P2rx7/Tslp/Il1f9/Il1f6/Il1a/Lgals9/Ripk2/Tnf/Tlr2/Ereg/Arhgef2/Il1f8/Ptafr/Tlr6/Nlrp10/Il17f/Ddx58/Arid5a/Ifih1/Mapk13/Spon2/5730559C18Rik/Akirin2/Mavs/Cd36/Il1b/Isl1 | I94: 30
A95: GO:0030336 | B95: negative regulation of cell migration | C95: 70/4600 | D95: 244/23843 | E95: 0.0002393242296 | F95: 0.01247182613 | G95: 0.01015588938 | H95: Sulf1/Evl/Ptprm/Erdr1/Dach1/Clasp1/Rnf20/Notch1/Arhgdib/Stard13/Nbl1/Nav3/C5ar2/Tpm1/Podn/Tgfbr3/Has1/Nrg1/Wnt11/Cxcl12/Trp53inp1/Ptpn23/Stk26/Cx3cr1/Osbpl8/Pparg/Trib1/Ldlrad4/Bcl2/Rgcc/Spred1/Ccl25/Prkg1/Krt16/Sfrp1/Clic4/Ppargc1a/Srgap2/Plcb1/Chrd/Dlc1/Arhgap4/Tcaf1/Timp1/Angpt4/Fgf2/Ptger4/Aif1/Ptprr/Reck/Rap2c/Gtpbp4/Hnf4a/Olfm1/Acvr1c/Krit1/Mmrn2/Miip/Cited2/Pfn2/Cd300a/Phldb2/Stap1/Apoe/Slc9a3r1/Scai/Sfrp2/Ptpru/Dcn/Gsk3b | I95: 70
A96: GO:0006335 | B96: DNA replication-dependent nucleosome assembly | C96: 15/4600 | D96: 31/23843 | E96: 0.0002393983322 | F96: 0.01247182613 | G96: 0.01015588938 | H96: Hist1h3b/Hist1h4c/Ipo4/Hist1h4a/Hist1h3d/Hist1h4m/Nasp/Hist1h4n/Hist1h4d/Hist1h4i/Hist1h3e/Hist1h4k/Hist1h4j/Hist1h4h/Hist4h4 | I96: 15
A97: GO:0032069 | B97: regulation of nuclease activity | C97: 15/4600 | D97: 31/23843 | E97: 0.0002393983322 | F97: 0.01247182613 | G97: 0.01015588938 | H97: Oas1a/Oas1g/Oas2/Oasl2/Dffa/Oas3/Oasl1/Oas1h/Gzma/Oas1b/Oas1e/Prkcd/Ddx11/Abce1/Neil1 | I97: 15
A98: GO:0034723 | B98: DNA replication-dependent nucleosome organization | C98: 15/4600 | D98: 31/23843 | E98: 0.0002393983322 | F98: 0.01247182613 | G98: 0.01015588938 | H98: Hist1h3b/Hist1h4c/Ipo4/Hist1h4a/Hist1h3d/Hist1h4m/Nasp/Hist1h4n/Hist1h4d/Hist1h4i/Hist1h3e/Hist1h4k/Hist1h4j/Hist1h4h/Hist4h4 | I98: 15
A99: GO:0051043 | B99: regulation of membrane protein ectodomain proteolysis | C99: 12/4600 | D99: 22/23843 | E99: 0.0002433866011 | F99: 0.01247182613 | G99: 0.01015588938 | H99: Nrd1/Pacsin3/Timp3/Sh3d19/Tnf/Ptpn3/Timp4/Tnfrsf1b/Timp1/Rgma/Apoe/Il1b | I99: 12
A100: GO:0006336 | B100: DNA replication-independent nucleosome assembly | C100: 14/4600 | D100: 28/23843 | E100: 0.0002495196959 | F100: 0.01247182613 | G100: 0.01015588938 | H100: Hist1h4c/Ipo4/Hist1h4a/Hist1h4m/Nasp/Hist1h4n/Hist1h4d/Cabin1/Hist1h4i/Oip5/Hist1h4k/Hist1h4j/Hist1h4h/Hist4h4 | I100: 14
A101: GO:0060444 | B101: branching involved in mammary gland duct morphogenesis | C101: 14/4600 | D101: 28/23843 | E101: 0.0002495196959 | F101: 0.01247182613 | G101: 0.01015588938 | H101: Msx2/Epha2/Ncoa3/Etv5/Etv4/Areg/Slc12a2/Esr1/Pgr/Vdr/Tfap2c/Tbx3/Kdm5b/Med1 | I101: 14
A102: GO:0030335 | B102: positive regulation of cell migration | C102: 127/4600 | D102: 494/23843 | E102: 0.0002527704403 | F102: 0.0125253689 | G102: 0.0101994896 | H102: Dmtn/Lgr6/Mtor/Pcsk5/Flt4/Lpar1/Sparc/Has2/Bmp7/Clasp1/Plpp3/Cemip/Pdgfra/Sash1/Nrp1/Notch1/Tcaf2/Mmp2/Bmp4/Ntf3/Gab2/Sema3b/Mcam/Ptprz1/Tfap2a/Myo5a/Il1a/Tert/Mapk8/Lgals9/P2ry6/Ikbkap/Cd274/Pik3cd/Anxa3/Cxcl10/Rhoj/Postn/Wnt11/Cxcl12/Tlr2/Map2k3/Itga5/Plaa/Flna/Cpeb1/Hbegf/Arhgef2/Ror2/P2rx4/Ptafr/Igf1/Cxcl3/Pgr/Zc3h12a/Bcl2/Flt1/Egfr/Il6st/Synpo2/Rapgef2/Prr5/Jun/Sema3e/Rufy3/Ddr2/Plk2/Lamc2/Prex1/Sema4g/Arhgef39/Irs2/Nipbl/Atp7a/Angpt4/Rapgef4/Fgf2/Ptger4/Aif1/Tnfrsf18/Gpnmb/Rreb1/Aoc3/Ptger3/Sema6a/Prox1/Atoh8/Gab1/Itga4/Nos3/Mmp9/F3/Dock8/S100a14/Angptl3/Map3k3/Hmox1/Enpp2/Sema3d/Bmpr2/Syne2/Itga2/Camk1d/Sema4d/Fgfr1/Dapk2/Egf/Plvap/Pgf/Rapgef3/Spag9/Foxf1/C3ar1/Fgfr1op/Mospd2/Itgb3/Onecut2/Ntrk3/Rarres2/Cxcl11/Rhod/Bdkrb1/Trim32/Pdgfc/Il1b/Nckap1l/Zfp703 | I102: 127
A103: GO:0045860 | B103: positive regulation of protein kinase activity | C103: 114/4600 | D103: 436/23843 | E103: 0.0002547674235 | F103: 0.0125253689 | G103: 0.0101994896 | H103: Ppp1r9a/Tgfb3/Itga1/Lpar1/Slk/Pik3cg/Cemip/Sash1/Map4k3/Trp73/Bmp4/Ntf3/Syk/Lpar3/Map3k6/Cdk5r1/Tead1/P2rx7/Lrp8/Pim1/Wnt3a/Pde5a/Plce1/Map3k8/Gadd45a/Map3k7/Oxsr1/Tnf/Nrg1/Map3k13/Atp2b4/Map2k3/Ereg/Mdfi/Eif2ak2/Cdkn1a/Dvl3/Camkk2/Rasgrp1/Stk26/Map4k4/Ror2/Nek6/Osbpl8/Map3k5/Igf1/Agrn/Rgcc/Tlr6/Flt1/Fgd2/Egfr/Arhgef5/Fzd4/Muc20/Pik3r6/Rapgef2/Prkcd/Nek4/Tpd52l1/Ccnl2/Neurl1a/Ripk3/Ddr2/Htr2b/Ighm/Mdfic/Zeb2/Ccdc88a/Cd4/Fgf2/Cspg4/Srcin1/Epgn/Ccnyl1/Prox1/Traf7/Gab1/Agap2/Hnf4a/Mapkbp1/Grm4/Psrc1/Adra2b/Prnp/Map3k3/Ccnl1/5730559C18Rik/Hsph1/Ghr/Fgfr1/Map3k1/Egf/Camkk1/Rassf2/Spag9/Ghrl/Mmd/Grm5/Vangl2/Cd300a/Itgb3/Map3k9/Erbb3/Stap1/Ntrk3/Cdc25b/Pdgfc/Pde6g/Shc2/Mapk8ip3/Madd/Il1b/Ercc6 | I103: 114
A104: GO:0051290 | B104: protein heterotetramerization | C104: 21/4600 | D104: 51/23843 | E104: 0.0002611545263 | F104: 0.01262347972 | G104: 0.01027938189 | H104: Hist1h3b/Hist1h4c/Hist1h4a/Hist1h3d/Agrn/Hist1h4m/Hist1h4n/Hist1h4d/Rcc1/Lrp4/Hist1h4i/Hist1h3e/Cpsf6/Hist1h4k/Hist1h4j/Hist1h4h/Grin2b/Nup54/Anxa2/S100a10/Hist4h4 | I104: 21
